Workbook

Sheet Instructions
I2: Validation - Croisement des tables
B3: Instructions:
A4: 1 | B4: Dupliquer votre modèle de détermination avant de passer aux étapes suivantes. | I4: Ovoltotrec | J4: Rapport GTYF | K4: Rapport ECONO
A5: 2 | B5: Coller les OUTPUTs ci-dessous dans votre modèle de détermination. | I5: =VLOOKUP("Ovoltotrec",Output!$C:$AM,8,FALSE) -> 7485201.98 | J5: =VLOOKUP("OVOLTOTREC",GTYF!$C:$AQ,8,FALSE)=I5 -> TRUE | K5: =VLOOKUP("OVOLTOTREC",Econo!$C:$AQ,8,FALSE)=I5 -> TRUE
B6: Outputs pour Cahier_Détermination_2023
A7: 3 | B7: Ajouter l'agrégat FCIMPROD_SNAT au thème 5 de la section LANSCAPE de votre modèle et les courbes SNAT
B8: *AGGREGATE FCIMPROD_SNAT FCxxxx
A9: 4 | B9: Copier coller la syntaxe TARGET_GTYF_DET, TARGET_ECONO, TARGET AREA, TARGET DETAIL (voir plus bas) dans la section "Reports" du scénario de détermination.
B10: *TARGET GTYF_DET.dbf
B11: *TARGET_ECONO.dbf
B12: *TARGET AREA.dbf et *TARGET DETAIL.dbf
A13: 5 | B13: Insérer la syntaxe économique dans les sections Output, Lanscape, …
A14: 6 | B14: Compiler le scénario (Faire une fleche sur vos scénarios)
A15: 7 | B15: Ouvrir vos rapports Output, GTYF et ECONO directement de WS. Contrôle A --> Contrôle C
A16: 8 | B16: Copier/coller vos rapports Output, GTYF et ECONO dans les onglets appropriés. Attention de respecter le nombres de colonnes. Les onglets Output, GTYF et ECONO sont préformatés et contiennent des formules aux colonnes AM à AP.
A17: 9 | B17: Valider que la cellule I5 indique vrai lorsque vous aurez collé vos données dans les onglets "Output", "GTYF" et ÉCONO" pour s'assurer que les données proviennent de la même optimisation.
A18: 10 | B18: Utiliser le fichier DBF pour copier/coller votre calendrier de COS dans l'onglet Cedule_COS et y ajouter les COS absents (COS fermés ou toujours ouverts) et compléter leur calendrier par des "0" ou des "1".
A19: 11 | B19: Compléter toutes les cellules et onglets de couleur | D19: jaune
A20: 12 | B20: Notez que les tableaux 9, 10, 13, 15 et 17 ont des instructions particulières

Sheet Suivi_modif
B2: Modifications apportées au cahier:
B3: Version originale (v1) | C3: Version de départ
B4: Version modifiée 2 novembre 2021 (v2) | C4: Correction du calcul de % de sapin en P0 (cellule O9)
B6: Modifications version subséquente apportées au cahier adapté p2_p3 | H6: Inclus ?
B7: Version modifiée 4 novembre 2021 (v3) | C7: Correction du % récolte volume sur pied destiné à l'aménagement (Tableau - CelluleV59) | H7: OUI | I7: joufr3 11/11/2021
B8: Version modifiée 4 novembre 2021 (v3) | C8: Correction des valideurs Vrai/Faux (Tableau - Cellule W101, W102, W103) | H8: OUI | I8: joufr3 11/11/2021
B9: Version modifiée 8 novembre 2021 (v4) | C9: Onglet "UTA" - Amélioration de la syntaxe des rechercheV | H9: OUI | I9: joufr3 11/11/2021
B10: Version modifiée 8 novembre 2021 (v4) | C10: Tableau 3 - ligne 50: changé la police de caractère pour du Arial | H10: OUI | I10: joufr3 11/11/2021
B11: Version modifiée 9 novembre 2021 (v5) | C11: Onglet "Target_ECONO": La syntaxe du rapport a été corrigée. | H11: OUI | I11: fait par LABBE1 et scénario résolu 1 flèche 10/11/2021
B12: Version modifiée 11 novembre 2021 (v6) | C12: Tableau 1 - Entente Crie - Correction pour considérer le code "EXEC" pour les UA avec Entente Crie | H12: NON | I12: non-intégrée car pas d'impact pour UA vague 3
B13: Version modifiée 15 novembre 2021 (v7) | C13: Tableau 3 - Ligne 49 en caractère gras - ligne 51 en caractère normal. | H13: OUI
C14: Tableau 8 - Arrondi ajouté dans formules cellules G102 et G103 | H14: OUI | I14: Joufr3 25/11/2021
C15: Tableau 10 - format % dans la cellule H143 | H15: OUI | I15: benan3 9/12/2021
B17: Modifications JOUFR3 11/11/2021
B18: Comme il n'y a pas de SNAT en vague 3, la formule aux cellules AB5 à AB19, AB21 et AB22 dans l'onglet "Figures" a été corrigée en ajoutant les caractères en rouge : SIERREUR(RECHERCHEV(ZXX;Output!$C:$AQ;6;FAUX);0)
B19: Comme il n'y a pas de SNAT en vague 3, la formule aux cellules AF163 à AI174 et AF174 à AI176 dans l'onglet "Tableaux" a été corrigée en ajoutant les caractères en rouge : =SIERREUR(RECHERCHEV($AEXXX;Output!$C:$AQ;AF$160;FAUX);0)
B21: Modifications à apporter au cahier lorsque on le complète :
B22: Données tableau "coupes_partielles_P2_a_P6.xlsx" à intégrer dans le tableau 9 dans les colonnes E, F et G et ajout de "-" pour les colonnes E, F et G sans valeur.
B24: Version du 12/05/2022 : syntaxe erronée dans WS empêchant la production des résultats de structure d'âge pour l'UTA 6
B26: Validation par CARMI5 2021-11-12
B28: 1. Validation des intrants, Somme des OUTPUT P0@P30 du cahier = Somme des OUTPUT P0@P30 du modèle :
B29: Onglet OUTPUT | C29: OK
B30: Onglet GTYF | C30: OK
B31: Onglet Econo | C31: OK
B32: 2. Validation des tableaux, Confrontation avec le cahier d'analyse de la détermination (BENAN) et le fichier de consignation
B33: Validation des catégories de superficie | C33: Ok | D33: Cahier BENAN
B34: Tableau 1 | C34: OK | D34: Cahier BENAN
B35: Tableau 3 | C35: OK | D35: Pour 2023-28 P2@P3 au lieu de P2@P6
B36: Tableau 4 | C36: OK | D36: Pour 2023-28 P2@P3 au lieu de P2@P6 . Modifie Cellule N83 par N79-L49
B37: Tableau 8 | C37: OK | D37: Pour 2023-28 P2@P3 au lieu de P2@P6 . Pour 2018-23 fichier de consignation
B38: Tableau 9 | C38: OK | D38: Fonctionnement et affichage
B39: Tableau 10 | C39: OK | D39: Pour 2023-28 P2@P3 au lieu de P2@P6 . Pour 2018-23 fichier de consignation
B40: Tableau 13 | C40: OK | D40: Écart sur le TOTAL <= 100, masque la ligne Mélezes,Pruche,Autres feuillus durs car < 1%
B41: 3. Validation des figures, Confrontation avec le cahier d'analyse de la détermination (BENAN) et le fichier de consignation
B42: Figure 2 | C42: OK | D42: Fonctionnement et affichage
B43: Figure 3 | C43: OK | D43: Fonctionnement et affichage
B44: Figure 4 | C44: OK | D44: Fonctionnement et affichage
B45: Figure 5 | C45: OK | D45: Fonctionnement et affichage
B46: Figure 6 | C46: OK | D46: Fonctionnement et affichage
B47: Figure 7 | C47: OK | D47: Fonctionnement et affichage
B48: Figure 9b | C48: OK | D48: Fonctionnement et affichage. Apparence semblable au cahier de BENAN
B49: Figure 9c | C49: OK | D49: Fonctionnement et affichage. Apparence semblable au cahier de BENAN
B50: Figure 10a | C50: OK | D50: Fonctionnement et affichage. Apparence semblable au cahier de BENAN
B51: Figure 10c | C51: OK | D51: Fonctionnement et affichage.
B52: Figure 11b | C52: OK | D52: Fonctionnement et affichage.
B53: Figure 14 | C53: OK | D53: Fonctionnement et affichage. Apparence semblable au cahier de BENAN
B54: Figure 15a | C54: OK | D54: Fonctionnement et affichage. Apparence semblable au cahier de BENAN
B55: Figure 19 | C55: OK | D55: Fonctionnement et affichage. Nombre d'UTR conforme au modèle
B56: Figure 20 | C56: OK | D56: Fonctionnement et affichage.
B57: Figure 21 | C57: OK | D57: Fonctionnement et affichage.
B58: Figure 22 | C58: OK | D58: Fonctionnement et affichage.
B59: 4. Validation des UTA
B60: Conforme au nombre d'UTA du modèle | C60: OK

Sheet Tableaux
T1: Instructions : Compléter les cellules oranges | AB1: Avec l'utilisation de l'outil à Éric
B2: PROER1 : vous pouvez utiliser l'outil FoxPro pour compléter les cellules oranges : | T2: 1) Cellule V11 : Inscrire la superficie totale brute de la carte WS | AB2: 1038585
B3: l'outil intérroge la carte Woodstock et met les valeurs dans un fichier Excel | T3: 2) Cellule V15 : Inscrire la superficie WS des GS RP1 et RP2 (ça ne devrait être que du EXEX et EXTI) | AB3: 0
B4: interroge_carte_WS_pour cahier_analyse.FXP | T4: 3) Cellule V24 : Inscrire la superficie WS des GS RP3 à RP9 sur INC | AB4: 0
B5: T:\Donnees\Courant\CPF_2023-2028\Comite_Vague_2\30_Phase1\32_Sce1\Outils | T5: 4) Cellule V25 : Inscrire la superficie WS des GS SNAT sur INC (qui ne sont pas des RP) | AB5: 0
T6: 5) Cellules L20 à S21 : Inscrire la superficie de la carte WS pour chacune des cases oranges
B7: Catégories | I7: Superficie | Z7: Total | AA7: Sup_aff | AB7: 4498.3
I8: ha | J8: % | V8: Période | Z8: Total | AA8: Sup_empche | AB8: 6203.2
B9: Superficie totale du territoire d'analyse (EXHU exclu) | I9: =V11-V16 -> 1037953.9 | J9: =IFERROR(I9/I9,"-") -> 1 | S9: =LEFT(B$25,10) -> Tableau 1. | T9: Output | U9: Superficie | V9: 0 | Z9: Total | AA9: Sup_ecot | AB9: 5339.6
B10: Pertes (emprise chemin, écotone, improductif) | I10: =U20+V20+Y20 -> 21301 | J10: =I10/I9 -> 0.02052210604 | S10: =LEFT(B$25,10) -> Tableau 1. | T10: OSUPTOT | U10: WS | V10: =VLOOKUP(T10,Output!$C:$H,6,FALSE) -> 1017283.2 | Z10: INC | AA10: Sup_brivAB | AB10: 25309.1
B11: Territoire improductif (EXEX + EXTI) | I11: =SUM(V13:V14) -> 213500.7 | J11: =I11/I9 -> 0.2056938174 | S11: Tableau 1. | U11: Brute | V11: =AB2 -> 1038585 | X11: Sup_soustraite : | Y11: =T20+U20+V20+Y20+AA20 -> 36206 | Z11: INC | AA11: Sup_brivCD | AB11: 4936.3
B12: sans possibilité de remise en production | I12: =I11-I13 -> 213500.7 | J12: - | S12: Tableau 1. | U12: pertes | V12: =U20+V20+Y20 -> 21301 | X12: Sup nette : | Y12: =V11-Y11 -> 1002379 | Z12: Total | AA12: Sup_impro | AB12: 3290.5
B13: avec possibilité de remise en production (RP1 et RP2) | I13: =V15 -> 0 | J13: - | S13: Tableau 1. | T13: OSUPEXEX | U13: EXEX | V13: =VLOOKUP(T13,Output!$C:$H,6,FALSE) -> 165051 | Z13: Total | AA13: Sup_pentf | AB13: 12304
S14: Tableau 1. | T14: OSUPEXTI | U14: EXTI | V14: =VLOOKUP(T14,Output!$C:$H,6,FALSE) -> 48449.7 | Z14: INC | AA14: Sup_pentf | AB14: 10777.3
B15: Territoire inclus dans l’UA mais exclu des activités d'aménagement (EXIN) | I15: =V17 -> 89705.6 | J15: =I15/I9 -> 0.08642541832 | S15: Tableau 1. | U15: RP1/RP2 | V15: =AB3 -> 0
B16: pentes abruptes et sommets (codes F et S) --> potentiellement récoltables | I16: =AA21 -> 13014 | J16: - | S16: Tableau 1. | T16: OSUPEXHU | U16: EXHU | V16: =VLOOKUP(T16,Output!$C:$H,6,FALSE) -> 631.1
B17: bandes riveraines (densité AB) --> potentiellement récoltables | I17: =W21 -> 43618 | J17: - | S17: Tableau 1. | T17: OSUPEXIN | U17: EXIN | V17: =VLOOKUP(T17,Output!$C:$H,6,FALSE) -> 89705.6
B18: bandes riveraines (densité CD) --> potentiellement récoltables | I18: =X21 -> 7884 | J18: - | S18: Tableau 1. | T18: ↓ | U18: ↓ | V18: ↓ | Y18: ↓ | AA18: ↓
B19: autres | I19: =I15-I16-I17-I18 -> 25189.6 | K19: si on exclut la superficie INC des îles | S19: Tableau 1. | T19: Sup_aff | U19: Sup_empche | V19: Sup_ecot | W19: Sup_brivAB | X19: Sup_brivCD | Y19: Sup_impro | Z19: Sup_aut | AA19: Sup_pentf
B20: Territoire destiné à l'aménagement forestier (INC) | I20: =V22 -> 713445.8 | J20: =I20/I9 -> 0.6873578875 | K20: =(I21-26999)/I9 -> 0.6613461349 | S20: Tableau 1. | T20: 1460 | U20: 9682 | V20: 7889 | Y20: 3730 | AA20: 13445 | AB20: Total
B21: forestier exploitable | I21: =V22-I22-I23 -> 713445.8 | J21: - | S21: Tableau 1. | W21: 43618 | X21: 7884 | AA21: 13014 | AB21: INC
B22: forestier inexploitable avec possibilité de remise en production (RP3 à RP15) | I22: =V24 -> 0 | J22: - | S22: Tableau 1. | T22: OSUPINC | U22: INC | V22: =VLOOKUP(T22,Output!$C:$H,6,FALSE) -> 713445.8
B23: forestier inexploitable sans possibilité de remise en production (SNAT) | I23: =V25 -> 0 | J23: - | S23: Tableau 1.
S24: Tableau 1. | U24: RP3 à RP9 | V24: =AB4 -> 0
B25: Tableau 1. Répartition de la superficie de l'unité d'aménagement pas catégorie de territoire | S25: Tableau 1. | U25: SNAT | V25: =AB5 -> 0
B26: Catégories | F26: Superficies
F27: Hectares | G27: %
B28: Superficie totale de l’unité d’aménagement | F28: =ROUND(I9,-1) -> 1037950 | G28: =F28/F28 -> 1
B29: Retraits de superficie
B30: Territoire non forestier | F30: =ROUND(I10+I11,-1) -> 234800 | G30: =F30/F28 -> 0.2262151356
B31: Territoire forestier peu productif (30 à 50 m³/ha) | F31: =ROUND(I22+I23,-1) -> 0 | G31: =F31/F28 -> 0
B32: Territoire forestier exclu de l’aménagement | F32: =ROUND(F28-F30-F31-F33,-1) -> 89700 | G32: =F32/F28 -> 0.0864203478 | N32: À compléter UA : | O32: UA:
B33: Superficie destinée à l’aménagement forestier | F33: =ROUND(I21,-1) -> 713450 | G33: =F33/F28 -> 0.6873645166 | O33: 07451 | T33: Légende | U33: Output | V33: P2@P3
S34: =LEFT(B$46,10) -> Tableau 3. | T34: Sepm | U34: OVOLGSEPMREC | V34: =IFERROR(VLOOKUP($U34,Output!$C:$AR,42,FALSE)/5,0) -> 679475.902
S35: Tableau 3.
S36: Tableau 3. | T36: Tho | U36: OVOLTHOREC | V36: =IFERROR(VLOOKUP($U36,Output!$C:$AR,42,FALSE)/5,0) -> 16619.401
S37: Tableau 3. | T37: Pru | U37: OVOLPRUREC | V37: =IFERROR(VLOOKUP($U37,Output!$C:$AR,42,FALSE)/5,0) -> 52.184
S38: Tableau 3. | T38: Pins | U38: OVOLGPINSREC | V38: =IFERROR(VLOOKUP($U38,Output!$C:$AR,42,FALSE)/5,0) -> 21611.642
S39: Tableau 3. | T39: Peu | U39: OVOLGPEUREC | V39: =IFERROR(VLOOKUP($U39,Output!$C:$AR,42,FALSE)/5,0) -> 247049.44
S40: Tableau 3. | T40: Bop | U40: OVOLGBPREC | V40: =IFERROR(VLOOKUP($U40,Output!$C:$AR,42,FALSE)/5,0) -> 374693.779
S41: Tableau 3. | T41: Boj | U41: OVOLBOJREC | V41: =IFERROR(VLOOKUP($U41,Output!$C:$AR,42,FALSE)/5,0) -> 76831.56
S42: Tableau 3. | T42: Ers | U42: OVOLERSREC | V42: =IFERROR(VLOOKUP($U42,Output!$C:$AR,42,FALSE)/5,0) -> 18146.912
S43: Tableau 3. | T43: Err | U43: OVOLGEROREC | V43: =IFERROR(VLOOKUP($U43,Output!$C:$AR,42,FALSE)/5,0) -> 69438.097
S44: Tableau 3. | T44: Autre .F. (Auf) | V44: =V47-V42-V41 -> 4241.528
S45: Tableau 3. | T45: résineux | U45: OVOLGRREC | V45: =IFERROR(VLOOKUP($U45,Output!$C:$AR,42,FALSE)/5,0) -> 717754.972
B46: Tableau 3. Possibilités forestières par essence ou par groupe d’essences et écart avec la période 2018-2023 | S46: Tableau 3. | T46: intolérant | U46: OVOLGFIREC | V46: =IFERROR(VLOOKUP($U46,Output!$C:$AR,42,FALSE)/5,0) -> 691184.987
B47: Périodes | C47: ="Possibilités forestières (m"&CHAR(179)&" bruts/an)" -> Possibilités forestières (m³ bruts/an) | S47: Tableau 3. | T47: Tolérant | U47: OVOLGFTREC | V47: =IFERROR(VLOOKUP($U47,Output!$C:$AR,42,FALSE)/5,0) -> 99220
C48: SEPM | D48: Thuya | E48: Pruche | F48: Pins blanc et rouge | G48: Peupliers | H48: Bouleau à papier | I48: Bouleau jaune | J48: Érables à sucre et rouge | K48: Autres feuillus durs | L48: Total | N48: Possibilité forestière unitaire (PAC / Sup destinée à l'aménagement) | S48: Tableau 3. | T48: Total récoltés | U48: OVOLTOTREC | V48: =IFERROR(VLOOKUP($U48,Output!$C:$AR,42,FALSE)/5,0) -> 1508162.143
B49: 2023-2028 | C49: =ROUND(V$34,-2) -> 679500 | D49: =ROUND(V$36,-2) -> 16600 | E49: =ROUND(V$37,-2) -> 100 | F49: =ROUND(V$38,-2) -> 21600 | G49: =ROUND(V$39,-2) -> 247000 | H49: =ROUND(V$40,-2) -> 374700 | I49: =ROUND(V$41,-2) -> 76800 | J49: =ROUND(V$50,-2) -> 87600 | K49: =ROUND(V$44,-2) -> 4200 | L49: =SUM(C49:K49) -> 1508100 | N49: =V57 -> 2.113900264 | S49: Tableau 3. | T49: FN sur pied | U49: OVOLGFNREC | V49: =IFERROR(VLOOKUP($U49,Output!$C:$AR,42,FALSE)/5,0) -> 3929.092
C50: =C49/$L$49 -> 0.4505669385 | D50: 0.01100722764 | E50: 6.630860023e-05 | F50: 0.01432265765 | G50: 0.1637822426 | H50: 0.248458325 | I50: 0.05092500497 | J50: 0.0580863338 | K50: 0.002784961209 | L50: =SUM(C50:K50) -> 1 | S50: Tableau 3. | T50: ER | V50: =V42+V43 -> 87585.009
B51: 2018-2023 | C51: =VLOOKUP($O$33,DataLocal!$A$6:$W$35,13,FALSE) -> 393500 | D51: =VLOOKUP($O$33,DataLocal!$A$6:$W$35,14,FALSE) -> 47800 | E51: =VLOOKUP($O$33,DataLocal!$A$6:$W$35,15,FALSE) -> 0 | F51: =VLOOKUP($O$33,DataLocal!$A$6:$W$35,16,FALSE) -> 25000 | G51: =VLOOKUP($O$33,DataLocal!$A$6:$W$35,17,FALSE) -> 89800 | H51: =VLOOKUP($O$33,DataLocal!$A$6:$W$35,18,FALSE) -> 266300 | I51: =VLOOKUP($O$33,DataLocal!$A$6:$W$35,19,FALSE) -> 57700 | J51: =VLOOKUP($O$33,DataLocal!$A$6:$W$35,20,FALSE) -> 50400 | K51: =VLOOKUP($O$33,DataLocal!$A$6:$W$35,21,FALSE) -> 2200 | L51: =VLOOKUP($O$33,DataLocal!$A$6:$W$35,23,FALSE) -> 932700 | N51: % du volume sur pied initial | S51: Tableau 3. | U51: OVOLSABREC | V51: =IFERROR(VLOOKUP($U51,Output!$C:$AR,42,FALSE)/5,0) -> 253349.968
B52: Écart | C52: =IFERROR((C49/C$51)-1,0) -> 0.7268106734 | D52: -0.6527196653 | E52: 0 | F52: -0.136 | G52: 1.750556793 | H52: 0.4070597071 | I52: 0.3310225303 | J52: 0.7380952381 | K52: 0.9090909091 | L52: 0.6169186234 | N52: =V59 -> 0.01704744788 | S52: Tableau 3. | U52: OVOLGEPXREC | V52: =IFERROR(VLOOKUP($U52,Output!$C:$AR,42,FALSE)/5,0) -> 338438.546
B53: ="Répartition de la composante SEPM des possibilités forestières 2023-2028 : sapin ("&IFERROR(ROUND(V51/V34*100,0),0)&"%), épinettes ("&IFERROR(ROUND(V52/V34*100,0),0)&"%), pin gris ("&IFERROR(ROUND(V53/V34*100,0),0)&"%) et mélèzes ("&IFERROR(ROUND(V54/V34*100,0),0)&"%)." -> Répartition de la composante SEPM des possibilités forestières 2023-2028 : sapin (37%), épinettes (50%), pin gris (13%) et mélèzes (0%). | S53: Tableau 3. | U53: OVOLGPGREC | V53: =IFERROR(VLOOKUP($U53,Output!$C:$AR,42,FALSE)/5,0) -> 86012.325
B54: ="Répartition de la composante Érables à sucre et rouge des possibilités forestières 2023-2028 : érable à sucre("&IFERROR(ROUND(V42/(V42+V43)*100,0),0)&"%) et érable rouge ("&IFERROR(ROUND(V43/(V42+V43)*100,0),0)&"%)." -> Répartition de la composante Érables à sucre et rouge des possibilités forestières 2023-2028 : érable à sucre(21%) et érable rouge (79%). | S54: Tableau 3. | U54: OVOLGMLREC | V54: =IFERROR(VLOOKUP($U54,Output!$C:$AR,42,FALSE)/5,0) -> 1670.873
B55: Copier/Coller le tableau ci-dessus avec les lignes 53 et 54 | S55: Tableau 3. | U55: OSUPINC | V55: =IFERROR(VLOOKUP($U55,Output!$C:$AM,6,FALSE),0) -> 713445.8
S56: Tableau 3. | U56: OVOLTOTPIEDINC | V56: =IFERROR(VLOOKUP($U56,Output!$C:$AM,7,FALSE),0) -> 91550472.09
S57: Tableau 3. | U57: Possibilité forestière unitaire | V57: =IFERROR(V48/F33,0) -> 2.113900264
S58: Tableau 3. | U58: % récolte volume sur pied
U59: % récolte volume sur pied destiné à l'aménagement | V59: =V48/Figures!V19 -> 0.01704744788
B61: Tableau 4. Répartition des superficies récoltées et des possibilités forestières par grand type de forêt
B62: Grands types de forêt | D62: Superficie récoltée* | H62: Possibilités forestières* | S62: =LEFT(B$61,10) -> Tableau 4. | V62: Output total non arrondi | W62: Écart entre la somme du tableau et le output total
D63: Coupes totales | F63: Coupes partielles | H63: Résineux | J63: Feuillus tolérants | L63: Feuillus intolérants | N63: Total | S63: Tableau 4. | T63: Total | Z63: P2 à P3
D64: ha/an | E64: % | F64: ha/an | G64: % | H64: m³ bruts/an | I64: % | J64: ="m"&CHAR(179)&" bruts/an" -> m³ bruts/an | K64: % | L64: ="m"&CHAR(179)&" bruts/an" -> m³ bruts/an | M64: % | N64: ="m"&CHAR(179)&" bruts/an" -> m³ bruts/an | O64: % | S64: Tableau 4. | T64: ha/an | U64: % | Y64: Famille de courbe | Z64: OSUPINC | AA64: OSUPREALREGAFIN | AB64: OSUPREALREGAPAR | AC64: OSUPREALREGAPRE | AD64: OVOLGRREC | AE64: OVOLGAURREC | AF64: OVOLGFIREC | AG64: OVOLGFTREC | AH64: OVOLTOTREC
B65: Bétulaies blanches | D65: =ROUND(AA65/5,-1) -> 1470 | E65: =IFERROR(D65/D$79,0) -> 0.1835205993 | F65: =ROUND(AB65/5,-1) -> 0 | G65: =IFERROR(F65/F$79,0) -> 0 | H65: =ROUND(AD65/5,-2) -> 59300 | I65: =IFERROR(H65/H$79,0) -> 0.08262505225 | J65: =ROUND(AG65/5,-2) -> 21100 | K65: =IFERROR(J65/J$79,0) -> 0.2127016129 | L65: =ROUND(AF65/5,-2) -> 200200 | M65: =L65/L$79 -> 0.2896831139 | N65: =H65+J65+L65 -> 280600 | O65: =N65/$N$79 -> 0.1860742706 | S65: Tableau 4. | T65: =D65+F65 -> 1470 | U65: =IFERROR(T65/T$79,0) -> 0.1501532176 | V65: =(AA65+AB65)/5 -> 1471.62 | W65: =T65-V65 -> -1.62 | Y65: (FCTYF_BOP) | Z65: =VLOOKUP(Z$64&$Y65,GTYF!$C:$AP,6,FALSE) -> 62483.7 | AA65: =VLOOKUP(AA$64&$Y65,GTYF!$C:$AR,42,FALSE) -> 7358.1 | AB65: =VLOOKUP(AB$64&$Y65,GTYF!$C:$AR,42,FALSE) -> 0 | AC65: =VLOOKUP(AC$64&$Y65,GTYF!$C:$AR,42,FALSE) -> 7358.1 | AD65: =VLOOKUP(AD$64&$Y65,GTYF!$C:$AR,42,FALSE) -> 296678.76 | AE65: =VLOOKUP(AE$64&$Y65,GTYF!$C:$AR,42,FALSE) -> 16717.86 | AF65: =VLOOKUP(AF$64&$Y65,GTYF!$C:$AR,42,FALSE) -> 1000953.29 | AG65: =VLOOKUP(AG$64&$Y65,GTYF!$C:$AR,42,FALSE) -> 105419.915 | AH65: =VLOOKUP(AH$64&$Y65,GTYF!$C:$AR,42,FALSE) -> 1403051.96
B66: Bétulaies blanches à résineux | D66: 1270 | E66: =IFERROR(D66/D$79,0) -> 0.1585518102 | F66: 0 | G66: =IFERROR(F66/F$79,0) -> 0 | H66: =ROUND(AD66/5,-2) -> 92800 | I66: =IFERROR(H66/H$79,0) -> 0.1293019367 | J66: =ROUND(AG66/5,-2) -> 10200 | K66: 0.1028225806 | L66: =ROUND(AF66/5,-2) -> 129100 | M66: =L66/L$79 -> 0.1868036464 | N66: =H66+J66+L66 -> 232100 | O66: 0.1539124668 | S66: Tableau 4. | T66: 1270 | U66: =IFERROR(T66/T$79,0) -> 0.1297242084 | V66: =(AA66+AB66)/5 -> 1267.485 | W66: 2.515 | Y66: (FCTYF_BOPR) | Z66: =VLOOKUP(Z$64&$Y66,GTYF!$C:$AP,6,FALSE) -> 90661.3 | AA66: =VLOOKUP(AA$64&$Y66,GTYF!$C:$AR,42,FALSE) -> 6337.425 | AB66: =VLOOKUP(AB$64&$Y66,GTYF!$C:$AR,42,FALSE) -> 0 | AC66: =VLOOKUP(AC$64&$Y66,GTYF!$C:$AR,42,FALSE) -> 6337.425 | AD66: =VLOOKUP(AD$64&$Y66,GTYF!$C:$AR,42,FALSE) -> 463946.705 | AE66: =VLOOKUP(AE$64&$Y66,GTYF!$C:$AR,42,FALSE) -> 54781.46 | AF66: =VLOOKUP(AF$64&$Y66,GTYF!$C:$AR,42,FALSE) -> 645684.14 | AG66: =VLOOKUP(AG$64&$Y66,GTYF!$C:$AR,42,FALSE) -> 50882.13 | AH66: =VLOOKUP(AH$64&$Y66,GTYF!$C:$AR,42,FALSE) -> 1160512.975
B67: Cédrières | D67: 0 | E67: 0 | F67: 30 | G67: 0.01685393258 | H67: =ROUND(AD67/5,-2) -> 1200 | I67: 0.001672007803 | J67: 400 | K67: 0.004032258065 | L67: 300 | M67: 0.0004340905802 | N67: 1900 | O67: 0.00125994695 | S67: Tableau 4. | T67: 30 | U67: 0.003064351379 | V67: =(AA67+AB67)/5 -> 25 | W67: 5 | Y67: (FCTYF_THO) | Z67: =VLOOKUP(Z$64&$Y67,GTYF!$C:$AP,6,FALSE) -> 11072.9 | AA67: =VLOOKUP(AA$64&$Y67,GTYF!$C:$AR,42,FALSE) -> 0 | AB67: =VLOOKUP(AB$64&$Y67,GTYF!$C:$AR,42,FALSE) -> 125 | AC67: =VLOOKUP(AC$64&$Y67,GTYF!$C:$AR,42,FALSE) -> 125 | AD67: =VLOOKUP(AD$64&$Y67,GTYF!$C:$AR,42,FALSE) -> 5873.75 | AE67: =VLOOKUP(AE$64&$Y67,GTYF!$C:$AR,42,FALSE) -> 4416.25 | AF67: =VLOOKUP(AF$64&$Y67,GTYF!$C:$AR,42,FALSE) -> 1497.5 | AG67: =VLOOKUP(AG$64&$Y67,GTYF!$C:$AR,42,FALSE) -> 2077.5 | AH67: =VLOOKUP(AH$64&$Y67,GTYF!$C:$AR,42,FALSE) -> 9448.75
B68: Érablières rouges | D68: 0 | E68: 0 | F68: 0 | G68: 0 | H68: 0 | I68: 0 | J68: 0 | K68: 0 | L68: 0 | M68: 0 | N68: 0 | O68: 0 | S68: Tableau 4. | T68: 0 | U68: 0 | V68: =(AA68+AB68)/5 -> 0 | W68: 0 | Y68: (FCTYF_ERO) | Z68: =VLOOKUP(Z$64&$Y68,GTYF!$C:$AP,6,FALSE) -> 6681 | AA68: =VLOOKUP(AA$64&$Y68,GTYF!$C:$AR,42,FALSE) -> 0 | AB68: =VLOOKUP(AB$64&$Y68,GTYF!$C:$AR,42,FALSE) -> 0 | AC68: =VLOOKUP(AC$64&$Y68,GTYF!$C:$AR,42,FALSE) -> 0 | AD68: =VLOOKUP(AD$64&$Y68,GTYF!$C:$AR,42,FALSE) -> 0 | AE68: =VLOOKUP(AE$64&$Y68,GTYF!$C:$AR,42,FALSE) -> 0 | AF68: =VLOOKUP(AF$64&$Y68,GTYF!$C:$AR,42,FALSE) -> 0 | AG68: =VLOOKUP(AG$64&$Y68,GTYF!$C:$AR,42,FALSE) -> 0 | AH68: =VLOOKUP(AH$64&$Y68,GTYF!$C:$AR,42,FALSE) -> 0
B69: Feuillus tolérants | D69: 0 | E69: 0 | F69: 490 | G69: 0.2752808989 | H69: 3400 | I69: 0.004737355441 | J69: 19700 | K69: 0.1985887097 | L69: 10700 | M69: 0.01548256403 | N69: 33800 | O69: 0.0224137931 | S69: Tableau 4. | T69: 490 | U69: 0.05005107252 | V69: 493.749 | W69: -3.749 | Y69: (FCTYF_FT) | Z69: =VLOOKUP(Z$64&$Y69,GTYF!$C:$AP,6,FALSE) -> 75887.6 | AA69: =VLOOKUP(AA$64&$Y69,GTYF!$C:$AR,42,FALSE) -> 0 | AB69: =VLOOKUP(AB$64&$Y69,GTYF!$C:$AR,42,FALSE) -> 2468.745 | AC69: =VLOOKUP(AC$64&$Y69,GTYF!$C:$AR,42,FALSE) -> 2468.745 | AD69: =VLOOKUP(AD$64&$Y69,GTYF!$C:$AR,42,FALSE) -> 16802.69 | AE69: =VLOOKUP(AE$64&$Y69,GTYF!$C:$AR,42,FALSE) -> 893.84 | AF69: =VLOOKUP(AF$64&$Y69,GTYF!$C:$AR,42,FALSE) -> 53738.85 | AG69: =VLOOKUP(AG$64&$Y69,GTYF!$C:$AR,42,FALSE) -> 98550.405 | AH69: =VLOOKUP(AH$64&$Y69,GTYF!$C:$AR,42,FALSE) -> 169091.945
B70: Feuillus tolérants à résineux | D70: 10 | E70: 0.001248439451 | F70: 1040 | G70: 0.5842696629 | H70: 28100 | I70: 0.03915284938 | J70: 33100 | K70: 0.3336693548 | L70: 12100 | M70: 0.01750832007 | N70: 73300 | O70: 0.04860742706 | S70: Tableau 4. | T70: 1050 | U70: 0.1072522983 | V70: 1054.123 | W70: -4.123 | Y70: (FCTYF_FTR) | Z70: =VLOOKUP(Z$64&$Y70,GTYF!$C:$AP,6,FALSE) -> 39937.3 | AA70: =VLOOKUP(AA$64&$Y70,GTYF!$C:$AR,42,FALSE) -> 52.575 | AB70: =VLOOKUP(AB$64&$Y70,GTYF!$C:$AR,42,FALSE) -> 5218.04 | AC70: =VLOOKUP(AC$64&$Y70,GTYF!$C:$AR,42,FALSE) -> 5270.615 | AD70: =VLOOKUP(AD$64&$Y70,GTYF!$C:$AR,42,FALSE) -> 140706.335 | AE70: =VLOOKUP(AE$64&$Y70,GTYF!$C:$AR,42,FALSE) -> 11927.22 | AF70: =VLOOKUP(AF$64&$Y70,GTYF!$C:$AR,42,FALSE) -> 60602.61 | AG70: =VLOOKUP(AG$64&$Y70,GTYF!$C:$AR,42,FALSE) -> 165681.275 | AH70: =VLOOKUP(AH$64&$Y70,GTYF!$C:$AR,42,FALSE) -> 366998.005
B71: Pessières | D71: =ROUND(AA71/5,-1) -> 1120 | E71: 0.1398252185 | F71: 0 | G71: 0 | H71: 159500 | I71: 0.2222377038 | J71: 400 | K71: 0.004032258065 | L71: 12400 | M71: 0.01794241065 | N71: 172300 | O71: 0.1142572944 | S71: Tableau 4. | T71: 1120 | U71: 0.1144024515 | V71: 1120.585 | W71: =T71-V71 -> -0.585 | Y71: (FCTYF_EPX) | Z71: =VLOOKUP(Z$64&$Y71,GTYF!$C:$AP,6,FALSE) -> 176686.6 | AA71: =VLOOKUP(AA$64&$Y71,GTYF!$C:$AR,42,FALSE) -> 5602.925 | AB71: =VLOOKUP(AB$64&$Y71,GTYF!$C:$AR,42,FALSE) -> 0 | AC71: =VLOOKUP(AC$64&$Y71,GTYF!$C:$AR,42,FALSE) -> 5602.925 | AD71: =VLOOKUP(AD$64&$Y71,GTYF!$C:$AR,42,FALSE) -> 797270.84 | AE71: =VLOOKUP(AE$64&$Y71,GTYF!$C:$AR,42,FALSE) -> 20113.68 | AF71: =VLOOKUP(AF$64&$Y71,GTYF!$C:$AR,42,FALSE) -> 61757.8 | AG71: =VLOOKUP(AG$64&$Y71,GTYF!$C:$AR,42,FALSE) -> 1897.17 | AH71: =VLOOKUP(AH$64&$Y71,GTYF!$C:$AR,42,FALSE) -> 860925.81
B72: Peupleraies | D72: 1620 | E72: 0.202247191 | F72: 0 | G72: 0 | H72: 55000 | I72: 0.07663369096 | J72: 9800 | K72: 0.09879032258 | L72: 222200 | M72: 0.3215164231 | N72: 287000 | O72: 0.1903183024 | S72: Tableau 4. | T72: 1620 | U72: 0.1654749745 | V72: 1615.227 | W72: 4.773 | Y72: (FCTYF_PEU) | Z72: =VLOOKUP(Z$64&$Y72,GTYF!$C:$AP,6,FALSE) -> 31255 | AA72: =VLOOKUP(AA$64&$Y72,GTYF!$C:$AR,42,FALSE) -> 8076.135 | AB72: =VLOOKUP(AB$64&$Y72,GTYF!$C:$AR,42,FALSE) -> 0 | AC72: =VLOOKUP(AC$64&$Y72,GTYF!$C:$AR,42,FALSE) -> 8076.135 | AD72: =VLOOKUP(AD$64&$Y72,GTYF!$C:$AR,42,FALSE) -> 274949.105 | AE72: =VLOOKUP(AE$64&$Y72,GTYF!$C:$AR,42,FALSE) -> 9827.74 | AF72: =VLOOKUP(AF$64&$Y72,GTYF!$C:$AR,42,FALSE) -> 1110854.77 | AG72: =VLOOKUP(AG$64&$Y72,GTYF!$C:$AR,42,FALSE) -> 48842.025 | AH72: =VLOOKUP(AH$64&$Y72,GTYF!$C:$AR,42,FALSE) -> 1434645.905
B73: Peupleraies à résineux | D73: 240 | E73: 0.02996254682 | F73: 0 | G73: 0 | H73: 17800 | I73: 0.02480144907 | J73: 300 | K73: 0.003024193548 | L73: 28300 | M73: 0.0409492114 | N73: 46400 | O73: 0.03076923077 | S73: Tableau 4. | T73: 240 | U73: 0.02451481103 | V73: 244.017 | W73: -4.017 | Y73: (FCTYF_PEUR) | Z73: =VLOOKUP(Z$64&$Y73,GTYF!$C:$AP,6,FALSE) -> 15392.2 | AA73: =VLOOKUP(AA$64&$Y73,GTYF!$C:$AR,42,FALSE) -> 1220.085 | AB73: =VLOOKUP(AB$64&$Y73,GTYF!$C:$AR,42,FALSE) -> 0 | AC73: =VLOOKUP(AC$64&$Y73,GTYF!$C:$AR,42,FALSE) -> 1220.085 | AD73: =VLOOKUP(AD$64&$Y73,GTYF!$C:$AR,42,FALSE) -> 89231.04 | AE73: =VLOOKUP(AE$64&$Y73,GTYF!$C:$AR,42,FALSE) -> 4985.78 | AF73: =VLOOKUP(AF$64&$Y73,GTYF!$C:$AR,42,FALSE) -> 141653.785 | AG73: =VLOOKUP(AG$64&$Y73,GTYF!$C:$AR,42,FALSE) -> 1525.565 | AH73: =VLOOKUP(AH$64&$Y73,GTYF!$C:$AR,42,FALSE) -> 232410.385
B74: Pinèdes blanches | D74: 0 | E74: 0 | F74: 150 | G74: 0.08426966292 | H74: 11900 | I74: 0.01658074404 | J74: 100 | K74: 0.001008064516 | L74: 1600 | M74: 0.002315149761 | N74: 13600 | O74: 0.009018567639 | S74: Tableau 4. | T74: 150 | U74: 0.01532175689 | V74: 146.74 | W74: 3.26 | Y74: (FCTYF_PIN) | Z74: =VLOOKUP(Z$64&$Y74,GTYF!$C:$AP,6,FALSE) -> 5424.9 | AA74: =VLOOKUP(AA$64&$Y74,GTYF!$C:$AR,42,FALSE) -> 0 | AB74: =VLOOKUP(AB$64&$Y74,GTYF!$C:$AR,42,FALSE) -> 733.7 | AC74: =VLOOKUP(AC$64&$Y74,GTYF!$C:$AR,42,FALSE) -> 733.7 | AD74: =VLOOKUP(AD$64&$Y74,GTYF!$C:$AR,42,FALSE) -> 59561.765 | AE74: =VLOOKUP(AE$64&$Y74,GTYF!$C:$AR,42,FALSE) -> 48739.69 | AF74: =VLOOKUP(AF$64&$Y74,GTYF!$C:$AR,42,FALSE) -> 8232.115 | AG74: =VLOOKUP(AG$64&$Y74,GTYF!$C:$AR,42,FALSE) -> 667.665 | AH74: =VLOOKUP(AH$64&$Y74,GTYF!$C:$AR,42,FALSE) -> 68461.545
B75: Pinèdes grises | D75: 450 | E75: 0.05617977528 | F75: 70 | G75: 0.0393258427 | H75: 78800 | I75: 0.109795179 | J75: 0 | K75: 0 | L75: 3400 | M75: 0.004919693243 | N75: 82200 | O75: 0.05450928382 | S75: Tableau 4. | T75: 520 | U75: 0.0531154239 | V75: 516.298 | W75: 3.702 | Y75: (FCTYF_PIG) | Z75: =VLOOKUP(Z$64&$Y75,GTYF!$C:$AP,6,FALSE) -> 21596.9 | AA75: =VLOOKUP(AA$64&$Y75,GTYF!$C:$AR,42,FALSE) -> 2256.49 | AB75: =VLOOKUP(AB$64&$Y75,GTYF!$C:$AR,42,FALSE) -> 325 | AC75: =VLOOKUP(AC$64&$Y75,GTYF!$C:$AR,42,FALSE) -> 2581.49 | AD75: =VLOOKUP(AD$64&$Y75,GTYF!$C:$AR,42,FALSE) -> 394063.66 | AE75: =VLOOKUP(AE$64&$Y75,GTYF!$C:$AR,42,FALSE) -> 992.63 | AF75: =VLOOKUP(AF$64&$Y75,GTYF!$C:$AR,42,FALSE) -> 17093.255 | AG75: =VLOOKUP(AG$64&$Y75,GTYF!$C:$AR,42,FALSE) -> 0 | AH75: =VLOOKUP(AH$64&$Y75,GTYF!$C:$AR,42,FALSE) -> 411160.05
B76: Prucheraies | D76: 0 | E76: 0 | F76: 0 | G76: 0 | H76: 0 | I76: 0 | J76: 0 | K76: 0 | L76: 0 | M76: 0 | N76: 0 | O76: 0 | S76: Tableau 4. | T76: 0 | U76: 0 | V76: 0 | W76: 0 | Y76: (FCTYF_PRU) | Z76: =VLOOKUP(Z$64&$Y76,GTYF!$C:$AP,6,FALSE) -> 0 | AA76: =VLOOKUP(AA$64&$Y76,GTYF!$C:$AR,42,FALSE) -> 0 | AB76: =VLOOKUP(AB$64&$Y76,GTYF!$C:$AR,42,FALSE) -> 0 | AC76: =VLOOKUP(AC$64&$Y76,GTYF!$C:$AR,42,FALSE) -> 0 | AD76: =VLOOKUP(AD$64&$Y76,GTYF!$C:$AR,42,FALSE) -> 0 | AE76: =VLOOKUP(AE$64&$Y76,GTYF!$C:$AR,42,FALSE) -> 0 | AF76: =VLOOKUP(AF$64&$Y76,GTYF!$C:$AR,42,FALSE) -> 0 | AG76: =VLOOKUP(AG$64&$Y76,GTYF!$C:$AR,42,FALSE) -> 0 | AH76: =VLOOKUP(AH$64&$Y76,GTYF!$C:$AR,42,FALSE) -> 0
B77: Résineux à feuillus | D77: 1140 | E77: 0.1423220974 | F77: 0 | G77: 0 | H77: 120400 | I77: 0.1677581162 | J77: 2400 | K77: 0.02419354839 | L77: 59800 | M77: 0.08652872233 | N77: 182600 | O77: 0.1210875332 | S77: Tableau 4. | T77: 1140 | U77: 0.1164453524 | V77: 1137.654 | W77: 2.346 | Y77: (FCTYF_RF) | Z77: =VLOOKUP(Z$64&$Y77,GTYF!$C:$AP,6,FALSE) -> 133920.6 | AA77: =VLOOKUP(AA$64&$Y77,GTYF!$C:$AR,42,FALSE) -> 5688.27 | AB77: =VLOOKUP(AB$64&$Y77,GTYF!$C:$AR,42,FALSE) -> 0 | AC77: =VLOOKUP(AC$64&$Y77,GTYF!$C:$AR,42,FALSE) -> 5688.27 | AD77: =VLOOKUP(AD$64&$Y77,GTYF!$C:$AR,42,FALSE) -> 602186.915 | AE77: =VLOOKUP(AE$64&$Y77,GTYF!$C:$AR,42,FALSE) -> 14107.98 | AF77: =VLOOKUP(AF$64&$Y77,GTYF!$C:$AR,42,FALSE) -> 298908.585 | AG77: =VLOOKUP(AG$64&$Y77,GTYF!$C:$AR,42,FALSE) -> 11876.195 | AH77: =VLOOKUP(AH$64&$Y77,GTYF!$C:$AR,42,FALSE) -> 912971.695
B78: Sapinières | D78: 690 | E78: 0.0861423221 | F78: 0 | G78: 0 | H78: 89500 | I78: 0.1247039153 | J78: =ROUND(AG78/5,-2) -> 1700 | K78: 0.01713709677 | L78: 11000 | M78: 0.01591665461 | N78: 102200 | O78: 0.06777188329 | S78: Tableau 4. | T78: 690 | U78: 0.07048008172 | V78: 686.161 | W78: 3.839 | Y78: (FCTYF_SAB) | Z78: =VLOOKUP(Z$64&$Y78,GTYF!$C:$AP,6,FALSE) -> 42445.8 | AA78: =VLOOKUP(AA$64&$Y78,GTYF!$C:$AR,42,FALSE) -> 3430.805 | AB78: =VLOOKUP(AB$64&$Y78,GTYF!$C:$AR,42,FALSE) -> 0 | AC78: =VLOOKUP(AC$64&$Y78,GTYF!$C:$AR,42,FALSE) -> 3430.805 | AD78: =VLOOKUP(AD$64&$Y78,GTYF!$C:$AR,42,FALSE) -> 447503.305 | AE78: =VLOOKUP(AE$64&$Y78,GTYF!$C:$AR,42,FALSE) -> 3904.705 | AF78: =VLOOKUP(AF$64&$Y78,GTYF!$C:$AR,42,FALSE) -> 54948.23 | AG78: =VLOOKUP(AG$64&$Y78,GTYF!$C:$AR,42,FALSE) -> 8680.15 | AH78: =VLOOKUP(AH$64&$Y78,GTYF!$C:$AR,42,FALSE) -> 511131.69
B79: Total | D79: =SUM(D65:D78) -> 8010 | E79: =SUM(E65:E78) -> 1 | F79: =SUM(F65:F78) -> 1780 | G79: =SUM(G65:G78) -> 1 | H79: =SUM(H65:H78) -> 717700 | I79: =SUM(I65:I78) -> 1 | J79: 99200 | K79: 1 | L79: 691100 | M79: 1 | N79: =SUM(N65:N78) -> 1508000 | O79: 1 | S79: Tableau 4. | T79: =SUM(T65:T78) -> 9790 | U79: =SUM(U65:U78) -> 1 | V79: =SUM(V65:V78) -> 9778.659 | W79: 11.341 | Y79: Somme | Z79: =SUM(Z65:Z78) -> 713445.8 | AA79: =SUM(AA65:AA78) -> 40022.81 | AB79: =SUM(AB65:AB78) -> 8870.485 | AC79: =SUM(AC65:AC78) -> 48893.295
B80: * Les superficies sont arrondies à la dizaine près et les volumes à la centaine près. Cette opération peut engendrer de légères distorsions sur les sommes | S80: Tableau 4. | Y80: Total (Output) | Z80: =VLOOKUP(Z$64,Output!$C:$AP,6,FALSE) -> 713445.8
Y81: Écart | Z81: =Z79-Z80 -> 0
N82: Écart de possibilité
N83: =N79-L49 -> -100 | O83: Valideur
B84: Tableau 8. Traitements commerciaux supportant les possibilités forestières
B85: Traitements commerciaux (récolte) | G85: Superficie annuelle moyenne (ha/an) | H85: Superficie antérieure (ha/an) | I85: Écart (ha/an)
T88: Légende | U88: Name | V88: PERIOD2@3
B89: Coupe avec protection de la régénération et des sols (CPRS) | G89: =IFERROR(ROUND(V89,-1),0)-G90-G91 -> 8000 | H89: =IFERROR(ROUND(VLOOKUP(O33,DataLocal!$A:$BH,37,FALSE),-1),0) -> 6910 | I89: =G89-H89 -> 1090 | S89: =LEFT(B$84,10) -> Tableau 8. | T89: Coupes avec protection de la régénération et des sols (CPRS) | U89: OSUPCT | V89: =IFERROR(VLOOKUP(U89,Output!$C:$AR,42,FALSE)/5,"0000") -> 8004.56
B90: Coupe avec protection des petites tiges marchandes (CPPTM) | G90: =IFERROR(ROUND(V90,-1),0) -> 0 | H90: =IFERROR(ROUND(VLOOKUP(O33,DataLocal!$A:$BH,38,FALSE),-1),0) -> 0 | I90: =G90-H90 -> 0 | S90: Tableau 8. | T90: Coupe avec protection des petites tiges marchandes (CPPTM) | U90: OSUPREALACPPTM | V90: =IFERROR(VLOOKUP(U90,Output!$C:$AR,42,FALSE)/5,"0000") -> 0
B91: Coupe avec réserve de semenciers (CRS) | G91: =IFERROR(ROUND(V91,-1),0) -> 0 | H91: =IFERROR(ROUND(VLOOKUP(33,DataLocal!$A:$BH,39,FALSE),-1),0) -> 0 | I91: 0 | S91: Tableau 8. | T91: Coupe avec réserve de semenciers (CRS) | U91: OSUPREALACRS | V91: =IFERROR(VLOOKUP(U91,Output!$C:$AR,42,FALSE)/5,"0000") -> 0
B92: Total des coupes finales | G92: =SUM(G89:G91) -> 8000 | H92: =SUM(H89:H91) -> 6910 | I92: 1090 | S92: Tableau 8.
B93: Éclaircie commerciale | G93: =IFERROR(ROUND(V93,-1),0) -> 70 | H93: =IFERROR(ROUND(VLOOKUP(O33,DataLocal!$A:$BH,40,FALSE),-1),0) -> 80 | I93: -10 | S93: Tableau 8. | T93: Éclaircie commerciale (EC) | U93: OSUPEC_SEPM | V93: =IFERROR(VLOOKUP(U93,Output!$C:$AR,42,FALSE)/5,"0000") -> 65
B94: Coupe progressive régulière | G94: =IFERROR(ROUND(V94+V95,-1),0) -> 0 | H94: =IFERROR(ROUND(VLOOKUP(O33,DataLocal!$A:$BH,41,FALSE),-1),0) -> 230 | I94: -230 | S94: Tableau 8. | T94: Coupe progressive régulière initiale (CPROG) | U94: OSUPCPROG_INI | V94: =IFERROR(VLOOKUP(U94,Output!$C:$AR,42,FALSE)/5,"0000") -> 0000
B95: Coupe progressive irrégulière à régénération lente (CPIL) | G95: =IFERROR(ROUND(V96+V97,-1),0) -> 1680 | H95: =IFERROR(ROUND(VLOOKUP(O33,DataLocal!$A:$BH,42,FALSE),-1),0) -> 1010 | I95: 670 | S95: Tableau 8. | T95: Coupe progressive régulière finale (CPROG) | U95: OSUPCPROG_FIN | V95: =IFERROR(VLOOKUP(U95,Output!$C:$AR,42,FALSE)/5,"0000") -> 0000
B96: Coupe progressive irrégulière à couvert permanent (CPICP) | G96: =IFERROR(ROUND(V98,-1),0) -> 30 | H96: =IFERROR(ROUND(VLOOKUP(O33,DataLocal!$A:$BH,43,FALSE),-1),0) -> 730 | I96: -700 | S96: Tableau 8. | T96: Coupe progessive irrégulière initiale (CPIRL) | U96: OSUPCPIRL_INI | V96: =IFERROR(VLOOKUP(U96,Output!$C:$AR,42,FALSE)/5,"0000") -> 1684.099
B97: Coupes de jardinage ou d'amélioration | G97: =IFERROR(ROUND(V99,-1),0) -> 0 | H97: =IFERROR(ROUND(VLOOKUP(O33,DataLocal!$A:$BH,44,FALSE),-1),0) -> 0 | I97: 0 | T97: Coupe progessive irrégulière finale (CPIRL) | U97: OSUPCPIRL_FIN | V97: =IFERROR(VLOOKUP(U97,Output!$C:$AR,42,FALSE)/5,"0000") -> 0
B98: Total des coupes partielles | G98: =SUM(G93:G97) -> 1780 | H98: =SUM(H93:H97) -> 2050 | I98: -270 | S98: =LEFT(B$84,10) -> Tableau 8. | T98: Coupe à couvert permanent (CPICP) | U98: OSUPCPICP | V98: =IFERROR(VLOOKUP(U98,Output!$C:$AR,42,FALSE)/5,"0000") -> 25
B99: Total des activités de récolte | G99: =G92+G98 -> 9780 | H99: =H98+H92 -> 8960 | I99: 820 | S99: =LEFT(B$84,10) -> Tableau 8. | T99: Coupe de jardinage (CJ) | U99: OSUPCJ | V99: =IFERROR(VLOOKUP(U99,Output!$C:$AR,42,FALSE)/5,"0000") -> 0000
B100: % des coupes totales / récolte | G100: =IFERROR(G92/G99,0) -> 0.81799591 | H100: =IFERROR(H92/H99,0) -> 0.7712053571 | I100: =ROUND(G100-H100,2) -> 0.05 | W100: Valideur
B101: % des coupes partielles / récolte | G101: =IFERROR(G98/G99,0) -> 0.18200409 | H101: =IFERROR(H98/H99,0) -> 0.2287946429 | I101: =ROUND(G101-H101,2) -> -0.05 | S101: =LEFT(B$84,10) -> Tableau 8. | U101: OSUPREALREGAPAR | V101: =VLOOKUP(U101,Output!$C:$AR,42,FALSE)/5 -> 1774.099 | W101: =ROUND(SUM(V93:V99),0)=ROUND(V101,0) -> TRUE
B102: Coupes partielles de peuplements résineux | G102: =ROUND(((AB67+AB71+AB75+AB76+AB77+AB78)/5),-1) -> 90 | H102: =IFERROR(ROUND(VLOOKUP(O33,DataLocal!$A:$BH,45,FALSE),-1),0) -> 1180 | I102: -1090 | S102: =LEFT(B$84,10) -> Tableau 8. | U102: OSUPREALREGAFIN | V102: =VLOOKUP(U102,Output!$C:$AR,42,FALSE)/5 -> 8004.56 | W102: =ROUND((V89),0)=ROUND(V102,0) -> TRUE
B103: Coupes partielles de peuplements de feuillus tolérants et de pins | G103: =ROUND(((AB69+AB70+AB74)/5),-1) -> 1680 | H103: =IFERROR(ROUND(VLOOKUP(O33,DataLocal!$A:$BH,46,FALSE),-1),0) -> 880 | I103: 800 | K103: Arrondi ajouté dans formules cellules G102 et G103 | S103: =LEFT(B$84,10) -> Tableau 8. | U103: OSUPREALREGAPRE | V103: =VLOOKUP(U103,Output!$C:$AR,42,FALSE)/5 -> 9778.658 | W103: =ROUND(V89+SUM(V93:V99),0)=ROUND(V103,0) -> TRUE
B109: Tableau 9. Variables descriptives reliées aux coupes partielles et totales par grand type de forêt | L109: La CRV est-elle compabilisée avec les coupes partielles (regaPar)?
B110: Grands types de forêt | E110: Coupes partielles | H110: Coupes totales | L110: Si Oui - Remplacer alors les valeurs (colonne H et I) par celles-ci
E111: Rotation moyenne | F111: Prélèvement moyen | G111: Surface terrière moyenne avant coupe | H111: Âge moyen des peuplements | I111: Volume moyen toutes essences | J111: Dimension des bois SEPM | M111: Âge moyen des peuplements | N111: Volume moyen toutes essences
S113: Référence Tableau 63 du cahier d'analyse VF
E115: Années | F115: ="m"&CHAR(179)&"/ha" -> m³/ha | G115: ="m"&CHAR(178)&"/ha" -> m²/ha | H115: Années | I115: ="m"&CHAR(179)&"/an" -> m³/an | J115: ="dcm"&CHAR(179)&"/tige" -> dcm³/tige | M115: Années | N115: ="m"&CHAR(179)&"/an" -> m³/an | S115: =LEFT(B$109,10) -> Tableau 9. | V115: OSUPREALREGAPRE | W115: OSUPINC | X115: OVOLGSEPMRECREGAFIN | Y115: ONBTGSEPMRECREGAFIN | Z115: OVOLTOTRECACT | AA115: OVOLTOTRECACFP | AB115: OVOLTOTRECACRS | AC115: OVOLTOTRECACPPTM | AD115: OSUPREALREGAFIN | AE115: OVOLTOTRECACRV | AF115: OAGETOTRECACT | AG115: OAGETOTRECACFP | AH115: OAGETOTRECACRS | AI115: OAGETOTRECACPPTM | AJ115: OSUPREALREGAFIN | AK115: OAGETOTRECACRV | AM115: OVOLTOTRECaEC | AN115: OVOLTOTRECaEC2 | AO115: OVOLTOTRECaEC3 | AP115: OVOLTOTRECaCA | AQ115: OVOLTOTRECaCA2 | AR115: OVOLTOTRECaCPROG | AS115: OVOLTOTRECaCPIL | AT115: OVOLTOTRECaCPIP | AU115: OVOLTOTRECaCPFORT | AV115: OVOLTOTRECaCPFAIBL | AW115: OVOLTOTRECaCP | AX115: OVOLTOTRECaCPJ | AY115: OVOLTOTRECaCJ | AZ115: SOMME | BA115: OSUPREALREGAPAR
B116: =T116 -> Bétulaies blanches | E116: - | F116: =IFERROR($AZ116/$BA116,"-") -> - | G116: - | H116: =IFERROR(($AF116+$AG116+$AH116+$AI116+$AK116)/$AJ116*5,"-") -> 110.455284 | I116: =IFERROR(($Z116+$AA116+$AB116+$AC116+$AE116)/$AD116,"-") -> 190.6812846 | J116: =(IFERROR(X116/Y116*1000,"-")) -> 156.6012531 | M116: =IFERROR(($AF116+$AG116+$AH116+$AI116)/$AJ116*5,"-") -> 110.455284 | N116: =IFERROR(($Z116+$AA116+$AB116+$AC116)/$AD116,"-") -> 190.6812846 | S116: =LEFT(B$109,10) -> Tableau 9. | T116: Bétulaies blanches | U116: (FCTYF_BOP) | V116: =VLOOKUP(V$115&$U116,GTYF!$C:$AR,42,FALSE) -> 7358.1 | W116: =VLOOKUP(W$115&$U116,GTYF!$C:$AQ,6,FALSE) -> 62483.7 | X116: =VLOOKUP(X$115&$U116,GTYF!$C:$AR,42,FALSE) -> 279960.9 | Y116: =VLOOKUP(Y$115&$U116,GTYF!$C:$AR,42,FALSE) -> 1787730.905 | Z116: =VLOOKUP(Z$115&$U116,GTYF!$C:$AR,42,FALSE) -> 1403051.96 | AA116: =VLOOKUP(AA$115&$U116,GTYF!$C:$AR,42,FALSE) -> 0 | AB116: =VLOOKUP(AB$115&$U116,GTYF!$C:$AR,42,FALSE) -> 0 | AC116: =VLOOKUP(AC$115&$U116,GTYF!$C:$AR,42,FALSE) -> 0 | AD116: =VLOOKUP(AD$115&$U116,GTYF!$C:$AR,42,FALSE) -> 7358.1 | AE116: =VLOOKUP(AE$115&$U116,GTYF!$C:$AR,42,FALSE) -> 0 | AF116: =VLOOKUP(AF$115&$U116,GTYF!$C:$AR,42,FALSE) -> 162548.205 | AG116: =VLOOKUP(AG$115&$U116,GTYF!$C:$AR,42,FALSE) -> 0 | AH116: =VLOOKUP(AH$115&$U116,GTYF!$C:$AR,42,FALSE) -> 0 | AI116: =VLOOKUP(AI$115&$U116,GTYF!$C:$AR,42,FALSE) -> 0 | AJ116: =VLOOKUP(AJ$115&$U116,GTYF!$C:$AR,42,FALSE) -> 7358.1 | AK116: =VLOOKUP(AK$115&$U116,GTYF!$C:$AR,42,FALSE) -> 0 | AM116: =VLOOKUP(AM$115&$U116,GTYF!$C:$AR,42,FALSE) -> 0 | AN116: =VLOOKUP(AN$115&$U116,GTYF!$C:$AR,42,FALSE) -> 0 | AO116: =VLOOKUP(AO$115&$U116,GTYF!$C:$AR,42,FALSE) -> 0 | AP116: =VLOOKUP(AP$115&$U116,GTYF!$C:$AR,42,FALSE) -> 0 | AQ116: =VLOOKUP(AQ$115&$U116,GTYF!$C:$AR,42,FALSE) -> 0 | AR116: =VLOOKUP(AR$115&$U116,GTYF!$C:$AR,42,FALSE) -> 0 | AS116: =VLOOKUP(AS$115&$U116,GTYF!$C:$AR,42,FALSE) -> 0 | AT116: =VLOOKUP(AT$115&$U116,GTYF!$C:$AR,42,FALSE) -> 0 | AU116: =VLOOKUP(AU$115&$U116,GTYF!$C:$AR,42,FALSE) -> 0 | AV116: =VLOOKUP(AV$115&$U116,GTYF!$C:$AR,42,FALSE) -> 0 | AW116: =VLOOKUP(AW$115&$U116,GTYF!$C:$AR,42,FALSE) -> 0 | AX116: =VLOOKUP(AX$115&$U116,GTYF!$C:$AR,42,FALSE) -> 0 | AY116: =VLOOKUP(AY$115&$U116,GTYF!$C:$AR,42,FALSE) -> 0 | AZ116: =SUM(AM116:AY116) -> 0 | BA116: =VLOOKUP(BA$115&$U116,GTYF!$C:$AR,42,FALSE) -> 0
B117: Bétulaies blanches à résineux | E117: - | F117: - | G117: - | H117: =IFERROR(($AF117+$AG117+$AH117+$AI117+$AK117)/$AJ117*5,"-") -> 95.02200421 | I117: =IFERROR(($Z117+$AA117+$AB117+$AC117+$AE117)/$AD117,"-") -> 183.1205853 | J117: =(IFERROR(X117/Y117*1000,"-")) -> 165.901096 | M117: =IFERROR(($AF117+$AG117+$AH117+$AI117)/$AJ117*5,"-") -> 95.02200421 | N117: =IFERROR(($Z117+$AA117+$AB117+$AC117)/$AD117,"-") -> 183.1205853 | S117: Tableau 9. | T117: Bétulaies blanches à résineux | U117: (FCTYF_BOPR) | V117: =VLOOKUP(V$115&$U117,GTYF!$C:$AR,42,FALSE) -> 6337.425 | W117: =VLOOKUP(W$115&$U117,GTYF!$C:$AQ,6,FALSE) -> 90661.3 | X117: =VLOOKUP(X$115&$U117,GTYF!$C:$AR,42,FALSE) -> 409165.245 | Y117: =VLOOKUP(Y$115&$U117,GTYF!$C:$AR,42,FALSE) -> 2466320.325 | Z117: =VLOOKUP(Z$115&$U117,GTYF!$C:$AR,42,FALSE) -> 1160512.975 | AA117: =VLOOKUP(AA$115&$U117,GTYF!$C:$AR,42,FALSE) -> 0 | AB117: =VLOOKUP(AB$115&$U117,GTYF!$C:$AR,42,FALSE) -> 0 | AC117: =VLOOKUP(AC$115&$U117,GTYF!$C:$AR,42,FALSE) -> 0 | AD117: =VLOOKUP(AD$115&$U117,GTYF!$C:$AR,42,FALSE) -> 6337.425 | AE117: =VLOOKUP(AE$115&$U117,GTYF!$C:$AR,42,FALSE) -> 0 | AF117: =VLOOKUP(AF$115&$U117,GTYF!$C:$AR,42,FALSE) -> 120438.965 | AG117: =VLOOKUP(AG$115&$U117,GTYF!$C:$AR,42,FALSE) -> 0 | AH117: =VLOOKUP(AH$115&$U117,GTYF!$C:$AR,42,FALSE) -> 0 | AI117: =VLOOKUP(AI$115&$U117,GTYF!$C:$AR,42,FALSE) -> 0 | AJ117: =VLOOKUP(AJ$115&$U117,GTYF!$C:$AR,42,FALSE) -> 6337.425 | AK117: =VLOOKUP(AK$115&$U117,GTYF!$C:$AR,42,FALSE) -> 0 | AM117: =VLOOKUP(AM$115&$U117,GTYF!$C:$AR,42,FALSE) -> 0 | AN117: =VLOOKUP(AN$115&$U117,GTYF!$C:$AR,42,FALSE) -> 0 | AO117: =VLOOKUP(AO$115&$U117,GTYF!$C:$AR,42,FALSE) -> 0 | AP117: =VLOOKUP(AP$115&$U117,GTYF!$C:$AR,42,FALSE) -> 0 | AQ117: =VLOOKUP(AQ$115&$U117,GTYF!$C:$AR,42,FALSE) -> 0 | AR117: =VLOOKUP(AR$115&$U117,GTYF!$C:$AR,42,FALSE) -> 0 | AS117: =VLOOKUP(AS$115&$U117,GTYF!$C:$AR,42,FALSE) -> 0 | AT117: =VLOOKUP(AT$115&$U117,GTYF!$C:$AR,42,FALSE) -> 0 | AU117: =VLOOKUP(AU$115&$U117,GTYF!$C:$AR,42,FALSE) -> 0 | AV117: =VLOOKUP(AV$115&$U117,GTYF!$C:$AR,42,FALSE) -> 0 | AW117: =VLOOKUP(AW$115&$U117,GTYF!$C:$AR,42,FALSE) -> 0 | AX117: =VLOOKUP(AX$115&$U117,GTYF!$C:$AR,42,FALSE) -> 0 | AY117: =VLOOKUP(AY$115&$U117,GTYF!$C:$AR,42,FALSE) -> 0 | AZ117: =SUM(AM117:AY117) -> 0 | BA117: =VLOOKUP(BA$115&$U117,GTYF!$C:$AR,42,FALSE) -> 0
B118: Cédrières | E118: 95 | F118: 82 | G118: 37 | H118: =IFERROR(($AF118+$AG118+$AH118+$AI118+$AK118)/$AJ118*5,"-") -> - | I118: - | J118: =(IFERROR(X118/Y118*1000,"-")) -> - | M118: - | N118: - | S118: Tableau 9. | T118: Cédrières | U118: (FCTYF_THO) | V118: =VLOOKUP(V$115&$U118,GTYF!$C:$AR,42,FALSE) -> 125 | W118: =VLOOKUP(W$115&$U118,GTYF!$C:$AQ,6,FALSE) -> 11072.9 | X118: =VLOOKUP(X$115&$U118,GTYF!$C:$AR,42,FALSE) -> 0 | Y118: =VLOOKUP(Y$115&$U118,GTYF!$C:$AR,42,FALSE) -> 0 | Z118: =VLOOKUP(Z$115&$U118,GTYF!$C:$AR,42,FALSE) -> 0 | AA118: =VLOOKUP(AA$115&$U118,GTYF!$C:$AR,42,FALSE) -> 0 | AB118: =VLOOKUP(AB$115&$U118,GTYF!$C:$AR,42,FALSE) -> 0 | AC118: =VLOOKUP(AC$115&$U118,GTYF!$C:$AR,42,FALSE) -> 0 | AD118: =VLOOKUP(AD$115&$U118,GTYF!$C:$AR,42,FALSE) -> 0 | AE118: =VLOOKUP(AE$115&$U118,GTYF!$C:$AR,42,FALSE) -> 0 | AF118: =VLOOKUP(AF$115&$U118,GTYF!$C:$AR,42,FALSE) -> 0 | AG118: =VLOOKUP(AG$115&$U118,GTYF!$C:$AR,42,FALSE) -> 0 | AH118: =VLOOKUP(AH$115&$U118,GTYF!$C:$AR,42,FALSE) -> 0 | AI118: =VLOOKUP(AI$115&$U118,GTYF!$C:$AR,42,FALSE) -> 0 | AJ118: =VLOOKUP(AJ$115&$U118,GTYF!$C:$AR,42,FALSE) -> 0 | AK118: =VLOOKUP(AK$115&$U118,GTYF!$C:$AR,42,FALSE) -> 0 | AM118: =VLOOKUP(AM$115&$U118,GTYF!$C:$AR,42,FALSE) -> 0 | AN118: =VLOOKUP(AN$115&$U118,GTYF!$C:$AR,42,FALSE) -> 0 | AO118: =VLOOKUP(AO$115&$U118,GTYF!$C:$AR,42,FALSE) -> 0 | AP118: =VLOOKUP(AP$115&$U118,GTYF!$C:$AR,42,FALSE) -> 0 | AQ118: =VLOOKUP(AQ$115&$U118,GTYF!$C:$AR,42,FALSE) -> 0 | AR118: =VLOOKUP(AR$115&$U118,GTYF!$C:$AR,42,FALSE) -> 0 | AS118: =VLOOKUP(AS$115&$U118,GTYF!$C:$AR,42,FALSE) -> 0 | AT118: =VLOOKUP(AT$115&$U118,GTYF!$C:$AR,42,FALSE) -> 9448.75 | AU118: =VLOOKUP(AU$115&$U118,GTYF!$C:$AR,42,FALSE) -> 0 | AV118: =VLOOKUP(AV$115&$U118,GTYF!$C:$AR,42,FALSE) -> 0 | AW118: =VLOOKUP(AW$115&$U118,GTYF!$C:$AR,42,FALSE) -> 0 | AX118: =VLOOKUP(AX$115&$U118,GTYF!$C:$AR,42,FALSE) -> 0 | AY118: =VLOOKUP(AY$115&$U118,GTYF!$C:$AR,42,FALSE) -> 0 | AZ118: 9448.75 | BA118: =VLOOKUP(BA$115&$U118,GTYF!$C:$AR,42,FALSE) -> 125
B119: Érablières rouges | E119: - | F119: - | G119: - | H119: - | I119: - | J119: - | M119: - | N119: - | S119: Tableau 9. | T119: Érablières rouges | U119: (FCTYF_ERO) | V119: =VLOOKUP(V$115&$U119,GTYF!$C:$AR,42,FALSE) -> 0 | W119: =VLOOKUP(W$115&$U119,GTYF!$C:$AQ,6,FALSE) -> 6681 | X119: =VLOOKUP(X$115&$U119,GTYF!$C:$AR,42,FALSE) -> 0 | Y119: =VLOOKUP(Y$115&$U119,GTYF!$C:$AR,42,FALSE) -> 0 | Z119: =VLOOKUP(Z$115&$U119,GTYF!$C:$AR,42,FALSE) -> 0 | AA119: =VLOOKUP(AA$115&$U119,GTYF!$C:$AR,42,FALSE) -> 0 | AB119: =VLOOKUP(AB$115&$U119,GTYF!$C:$AR,42,FALSE) -> 0 | AC119: =VLOOKUP(AC$115&$U119,GTYF!$C:$AR,42,FALSE) -> 0 | AD119: =VLOOKUP(AD$115&$U119,GTYF!$C:$AR,42,FALSE) -> 0 | AE119: =VLOOKUP(AE$115&$U119,GTYF!$C:$AR,42,FALSE) -> 0 | AF119: =VLOOKUP(AF$115&$U119,GTYF!$C:$AR,42,FALSE) -> 0 | AG119: =VLOOKUP(AG$115&$U119,GTYF!$C:$AR,42,FALSE) -> 0 | AH119: =VLOOKUP(AH$115&$U119,GTYF!$C:$AR,42,FALSE) -> 0 | AI119: =VLOOKUP(AI$115&$U119,GTYF!$C:$AR,42,FALSE) -> 0 | AJ119: =VLOOKUP(AJ$115&$U119,GTYF!$C:$AR,42,FALSE) -> 0 | AK119: =VLOOKUP(AK$115&$U119,GTYF!$C:$AR,42,FALSE) -> 0 | AM119: =VLOOKUP(AM$115&$U119,GTYF!$C:$AR,42,FALSE) -> 0 | AN119: =VLOOKUP(AN$115&$U119,GTYF!$C:$AR,42,FALSE) -> 0 | AO119: =VLOOKUP(AO$115&$U119,GTYF!$C:$AR,42,FALSE) -> 0 | AP119: =VLOOKUP(AP$115&$U119,GTYF!$C:$AR,42,FALSE) -> 0 | AQ119: =VLOOKUP(AQ$115&$U119,GTYF!$C:$AR,42,FALSE) -> 0 | AR119: =VLOOKUP(AR$115&$U119,GTYF!$C:$AR,42,FALSE) -> 0 | AS119: =VLOOKUP(AS$115&$U119,GTYF!$C:$AR,42,FALSE) -> 0 | AT119: =VLOOKUP(AT$115&$U119,GTYF!$C:$AR,42,FALSE) -> 0 | AU119: =VLOOKUP(AU$115&$U119,GTYF!$C:$AR,42,FALSE) -> 0 | AV119: =VLOOKUP(AV$115&$U119,GTYF!$C:$AR,42,FALSE) -> 0 | AW119: =VLOOKUP(AW$115&$U119,GTYF!$C:$AR,42,FALSE) -> 0 | AX119: =VLOOKUP(AX$115&$U119,GTYF!$C:$AR,42,FALSE) -> 0 | AY119: =VLOOKUP(AY$115&$U119,GTYF!$C:$AR,42,FALSE) -> 0 | AZ119: 0 | BA119: =VLOOKUP(BA$115&$U119,GTYF!$C:$AR,42,FALSE) -> 0
B120: Feuillus tolérants | E120: 52 | F120: 74 | G120: 24 | H120: - | I120: - | J120: - | M120: - | N120: - | S120: Tableau 9. | T120: Feuillus tolérants | U120: (FCTYF_FT) | V120: =VLOOKUP(V$115&$U120,GTYF!$C:$AR,42,FALSE) -> 2468.745 | W120: =VLOOKUP(W$115&$U120,GTYF!$C:$AQ,6,FALSE) -> 75887.6 | X120: =VLOOKUP(X$115&$U120,GTYF!$C:$AR,42,FALSE) -> 0 | Y120: =VLOOKUP(Y$115&$U120,GTYF!$C:$AR,42,FALSE) -> 0 | Z120: =VLOOKUP(Z$115&$U120,GTYF!$C:$AR,42,FALSE) -> 0 | AA120: =VLOOKUP(AA$115&$U120,GTYF!$C:$AR,42,FALSE) -> 0 | AB120: =VLOOKUP(AB$115&$U120,GTYF!$C:$AR,42,FALSE) -> 0 | AC120: =VLOOKUP(AC$115&$U120,GTYF!$C:$AR,42,FALSE) -> 0 | AD120: =VLOOKUP(AD$115&$U120,GTYF!$C:$AR,42,FALSE) -> 0 | AE120: =VLOOKUP(AE$115&$U120,GTYF!$C:$AR,42,FALSE) -> 0 | AF120: =VLOOKUP(AF$115&$U120,GTYF!$C:$AR,42,FALSE) -> 0 | AG120: =VLOOKUP(AG$115&$U120,GTYF!$C:$AR,42,FALSE) -> 0 | AH120: =VLOOKUP(AH$115&$U120,GTYF!$C:$AR,42,FALSE) -> 0 | AI120: =VLOOKUP(AI$115&$U120,GTYF!$C:$AR,42,FALSE) -> 0 | AJ120: =VLOOKUP(AJ$115&$U120,GTYF!$C:$AR,42,FALSE) -> 0 | AK120: =VLOOKUP(AK$115&$U120,GTYF!$C:$AR,42,FALSE) -> 0 | AM120: =VLOOKUP(AM$115&$U120,GTYF!$C:$AR,42,FALSE) -> 0 | AN120: =VLOOKUP(AN$115&$U120,GTYF!$C:$AR,42,FALSE) -> 0 | AO120: =VLOOKUP(AO$115&$U120,GTYF!$C:$AR,42,FALSE) -> 0 | AP120: =VLOOKUP(AP$115&$U120,GTYF!$C:$AR,42,FALSE) -> 0 | AQ120: =VLOOKUP(AQ$115&$U120,GTYF!$C:$AR,42,FALSE) -> 0 | AR120: =VLOOKUP(AR$115&$U120,GTYF!$C:$AR,42,FALSE) -> 0 | AS120: =VLOOKUP(AS$115&$U120,GTYF!$C:$AR,42,FALSE) -> 143535.93 | AT120: =VLOOKUP(AT$115&$U120,GTYF!$C:$AR,42,FALSE) -> 0 | AU120: =VLOOKUP(AU$115&$U120,GTYF!$C:$AR,42,FALSE) -> 25556.015 | AV120: =VLOOKUP(AV$115&$U120,GTYF!$C:$AR,42,FALSE) -> 0 | AW120: =VLOOKUP(AW$115&$U120,GTYF!$C:$AR,42,FALSE) -> 0 | AX120: =VLOOKUP(AX$115&$U120,GTYF!$C:$AR,42,FALSE) -> 0 | AY120: =VLOOKUP(AY$115&$U120,GTYF!$C:$AR,42,FALSE) -> 0 | AZ120: 169091.945 | BA120: =VLOOKUP(BA$115&$U120,GTYF!$C:$AR,42,FALSE) -> 2468.745
B121: Feuillus tolérants à résineux | E121: 52 | F121: 71 | G121: 24 | H121: 85.00047551 | I121: 142.6006657 | J121: ND | M121: 85.00047551 | N121: 142.6006657 | S121: Tableau 9. | T121: Feuillus tolérants à résineux | U121: (FCTYF_FTR) | V121: =VLOOKUP(V$115&$U121,GTYF!$C:$AR,42,FALSE) -> 5270.615 | W121: =VLOOKUP(W$115&$U121,GTYF!$C:$AQ,6,FALSE) -> 39937.3 | X121: =VLOOKUP(X$115&$U121,GTYF!$C:$AR,42,FALSE) -> 3848.55 | Y121: =VLOOKUP(Y$115&$U121,GTYF!$C:$AR,42,FALSE) -> 20135.405 | Z121: =VLOOKUP(Z$115&$U121,GTYF!$C:$AR,42,FALSE) -> 7497.23 | AA121: =VLOOKUP(AA$115&$U121,GTYF!$C:$AR,42,FALSE) -> 0 | AB121: =VLOOKUP(AB$115&$U121,GTYF!$C:$AR,42,FALSE) -> 0 | AC121: =VLOOKUP(AC$115&$U121,GTYF!$C:$AR,42,FALSE) -> 0 | AD121: =VLOOKUP(AD$115&$U121,GTYF!$C:$AR,42,FALSE) -> 52.575 | AE121: =VLOOKUP(AE$115&$U121,GTYF!$C:$AR,42,FALSE) -> 0 | AF121: =VLOOKUP(AF$115&$U121,GTYF!$C:$AR,42,FALSE) -> 893.78 | AG121: =VLOOKUP(AG$115&$U121,GTYF!$C:$AR,42,FALSE) -> 0 | AH121: =VLOOKUP(AH$115&$U121,GTYF!$C:$AR,42,FALSE) -> 0 | AI121: =VLOOKUP(AI$115&$U121,GTYF!$C:$AR,42,FALSE) -> 0 | AJ121: =VLOOKUP(AJ$115&$U121,GTYF!$C:$AR,42,FALSE) -> 52.575 | AK121: =VLOOKUP(AK$115&$U121,GTYF!$C:$AR,42,FALSE) -> 0 | AM121: =VLOOKUP(AM$115&$U121,GTYF!$C:$AR,42,FALSE) -> 0 | AN121: =VLOOKUP(AN$115&$U121,GTYF!$C:$AR,42,FALSE) -> 0 | AO121: =VLOOKUP(AO$115&$U121,GTYF!$C:$AR,42,FALSE) -> 0 | AP121: =VLOOKUP(AP$115&$U121,GTYF!$C:$AR,42,FALSE) -> 0 | AQ121: =VLOOKUP(AQ$115&$U121,GTYF!$C:$AR,42,FALSE) -> 0 | AR121: =VLOOKUP(AR$115&$U121,GTYF!$C:$AR,42,FALSE) -> 0 | AS121: =VLOOKUP(AS$115&$U121,GTYF!$C:$AR,42,FALSE) -> 297867.37 | AT121: =VLOOKUP(AT$115&$U121,GTYF!$C:$AR,42,FALSE) -> 0 | AU121: =VLOOKUP(AU$115&$U121,GTYF!$C:$AR,42,FALSE) -> 61633.405 | AV121: =VLOOKUP(AV$115&$U121,GTYF!$C:$AR,42,FALSE) -> 0 | AW121: =VLOOKUP(AW$115&$U121,GTYF!$C:$AR,42,FALSE) -> 0 | AX121: =VLOOKUP(AX$115&$U121,GTYF!$C:$AR,42,FALSE) -> 0 | AY121: =VLOOKUP(AY$115&$U121,GTYF!$C:$AR,42,FALSE) -> 0 | AZ121: =SUM(AM121:AY121) -> 359500.775 | BA121: =VLOOKUP(BA$115&$U121,GTYF!$C:$AR,42,FALSE) -> 5218.04
B122: Pessières | E122: 35 | F122: 50 | G122: 32 | H122: 80.1088494 | I122: 153.6564937 | J122: 119.1175581 | M122: 80.1088494 | N122: 153.6564937 | S122: Tableau 9. | T122: Pessières | U122: (FCTYF_EPX) | V122: =VLOOKUP(V$115&$U122,GTYF!$C:$AR,42,FALSE) -> 5602.925 | W122: =VLOOKUP(W$115&$U122,GTYF!$C:$AQ,6,FALSE) -> 176686.6 | X122: =VLOOKUP(X$115&$U122,GTYF!$C:$AR,42,FALSE) -> 777157.155 | Y122: =VLOOKUP(Y$115&$U122,GTYF!$C:$AR,42,FALSE) -> 6524287.16 | Z122: =VLOOKUP(Z$115&$U122,GTYF!$C:$AR,42,FALSE) -> 860925.81 | AA122: =VLOOKUP(AA$115&$U122,GTYF!$C:$AR,42,FALSE) -> 0 | AB122: =VLOOKUP(AB$115&$U122,GTYF!$C:$AR,42,FALSE) -> 0 | AC122: =VLOOKUP(AC$115&$U122,GTYF!$C:$AR,42,FALSE) -> 0 | AD122: =VLOOKUP(AD$115&$U122,GTYF!$C:$AR,42,FALSE) -> 5602.925 | AE122: =VLOOKUP(AE$115&$U122,GTYF!$C:$AR,42,FALSE) -> 0 | AF122: =VLOOKUP(AF$115&$U122,GTYF!$C:$AR,42,FALSE) -> 89768.775 | AG122: =VLOOKUP(AG$115&$U122,GTYF!$C:$AR,42,FALSE) -> 0 | AH122: =VLOOKUP(AH$115&$U122,GTYF!$C:$AR,42,FALSE) -> 0 | AI122: =VLOOKUP(AI$115&$U122,GTYF!$C:$AR,42,FALSE) -> 0 | AJ122: =VLOOKUP(AJ$115&$U122,GTYF!$C:$AR,42,FALSE) -> 5602.925 | AK122: =VLOOKUP(AK$115&$U122,GTYF!$C:$AR,42,FALSE) -> 0 | AM122: =VLOOKUP(AM$115&$U122,GTYF!$C:$AR,42,FALSE) -> 0 | AN122: =VLOOKUP(AN$115&$U122,GTYF!$C:$AR,42,FALSE) -> 0 | AO122: =VLOOKUP(AO$115&$U122,GTYF!$C:$AR,42,FALSE) -> 0 | AP122: =VLOOKUP(AP$115&$U122,GTYF!$C:$AR,42,FALSE) -> 0 | AQ122: =VLOOKUP(AQ$115&$U122,GTYF!$C:$AR,42,FALSE) -> 0 | AR122: =VLOOKUP(AR$115&$U122,GTYF!$C:$AR,42,FALSE) -> 0 | AS122: =VLOOKUP(AS$115&$U122,GTYF!$C:$AR,42,FALSE) -> 0 | AT122: =VLOOKUP(AT$115&$U122,GTYF!$C:$AR,42,FALSE) -> 0 | AU122: =VLOOKUP(AU$115&$U122,GTYF!$C:$AR,42,FALSE) -> 0 | AV122: =VLOOKUP(AV$115&$U122,GTYF!$C:$AR,42,FALSE) -> 0 | AW122: =VLOOKUP(AW$115&$U122,GTYF!$C:$AR,42,FALSE) -> 0 | AX122: =VLOOKUP(AX$115&$U122,GTYF!$C:$AR,42,FALSE) -> 0 | AY122: =VLOOKUP(AY$115&$U122,GTYF!$C:$AR,42,FALSE) -> 0 | AZ122: 0 | BA122: =VLOOKUP(BA$115&$U122,GTYF!$C:$AR,42,FALSE) -> 0
B123: Peupleraies | E123: - | F123: - | G123: - | H123: 94.99261714 | I123: 177.6401589 | J123: 159.8024917 | M123: 94.99261714 | N123: 177.6401589 | S123: Tableau 9. | T123: Peupleraies | U123: (FCTYF_PEU) | V123: =VLOOKUP(V$115&$U123,GTYF!$C:$AR,42,FALSE) -> 8076.135 | W123: =VLOOKUP(W$115&$U123,GTYF!$C:$AQ,6,FALSE) -> 31255 | X123: =VLOOKUP(X$115&$U123,GTYF!$C:$AR,42,FALSE) -> 265121.365 | Y123: =VLOOKUP(Y$115&$U123,GTYF!$C:$AR,42,FALSE) -> 1659056.515 | Z123: =VLOOKUP(Z$115&$U123,GTYF!$C:$AR,42,FALSE) -> 1434645.905 | AA123: =VLOOKUP(AA$115&$U123,GTYF!$C:$AR,42,FALSE) -> 0 | AB123: =VLOOKUP(AB$115&$U123,GTYF!$C:$AR,42,FALSE) -> 0 | AC123: =VLOOKUP(AC$115&$U123,GTYF!$C:$AR,42,FALSE) -> 0 | AD123: =VLOOKUP(AD$115&$U123,GTYF!$C:$AR,42,FALSE) -> 8076.135 | AE123: =VLOOKUP(AE$115&$U123,GTYF!$C:$AR,42,FALSE) -> 0 | AF123: =VLOOKUP(AF$115&$U123,GTYF!$C:$AR,42,FALSE) -> 153434.64 | AG123: =VLOOKUP(AG$115&$U123,GTYF!$C:$AR,42,FALSE) -> 0 | AH123: =VLOOKUP(AH$115&$U123,GTYF!$C:$AR,42,FALSE) -> 0 | AI123: =VLOOKUP(AI$115&$U123,GTYF!$C:$AR,42,FALSE) -> 0 | AJ123: =VLOOKUP(AJ$115&$U123,GTYF!$C:$AR,42,FALSE) -> 8076.135 | AK123: =VLOOKUP(AK$115&$U123,GTYF!$C:$AR,42,FALSE) -> 0 | AM123: =VLOOKUP(AM$115&$U123,GTYF!$C:$AR,42,FALSE) -> 0 | AN123: =VLOOKUP(AN$115&$U123,GTYF!$C:$AR,42,FALSE) -> 0 | AO123: =VLOOKUP(AO$115&$U123,GTYF!$C:$AR,42,FALSE) -> 0 | AP123: =VLOOKUP(AP$115&$U123,GTYF!$C:$AR,42,FALSE) -> 0 | AQ123: =VLOOKUP(AQ$115&$U123,GTYF!$C:$AR,42,FALSE) -> 0 | AR123: =VLOOKUP(AR$115&$U123,GTYF!$C:$AR,42,FALSE) -> 0 | AS123: =VLOOKUP(AS$115&$U123,GTYF!$C:$AR,42,FALSE) -> 0 | AT123: =VLOOKUP(AT$115&$U123,GTYF!$C:$AR,42,FALSE) -> 0 | AU123: =VLOOKUP(AU$115&$U123,GTYF!$C:$AR,42,FALSE) -> 0 | AV123: =VLOOKUP(AV$115&$U123,GTYF!$C:$AR,42,FALSE) -> 0 | AW123: =VLOOKUP(AW$115&$U123,GTYF!$C:$AR,42,FALSE) -> 0 | AX123: =VLOOKUP(AX$115&$U123,GTYF!$C:$AR,42,FALSE) -> 0 | AY123: =VLOOKUP(AY$115&$U123,GTYF!$C:$AR,42,FALSE) -> 0 | AZ123: 0 | BA123: =VLOOKUP(BA$115&$U123,GTYF!$C:$AR,42,FALSE) -> 0
B124: Peupleraies à résineux | E124: - | F124: - | G124: - | H124: 81.32623957 | I124: 190.4870439 | J124: 152.5419468 | M124: 81.32623957 | N124: 190.4870439 | S124: Tableau 9. | T124: Peupleraies à résineux | U124: (FCTYF_PEUR) | V124: =VLOOKUP(V$115&$U124,GTYF!$C:$AR,42,FALSE) -> 1220.085 | W124: =VLOOKUP(W$115&$U124,GTYF!$C:$AQ,6,FALSE) -> 15392.2 | X124: =VLOOKUP(X$115&$U124,GTYF!$C:$AR,42,FALSE) -> 84245.26 | Y124: =VLOOKUP(Y$115&$U124,GTYF!$C:$AR,42,FALSE) -> 552276.025 | Z124: =VLOOKUP(Z$115&$U124,GTYF!$C:$AR,42,FALSE) -> 232410.385 | AA124: =VLOOKUP(AA$115&$U124,GTYF!$C:$AR,42,FALSE) -> 0 | AB124: =VLOOKUP(AB$115&$U124,GTYF!$C:$AR,42,FALSE) -> 0 | AC124: =VLOOKUP(AC$115&$U124,GTYF!$C:$AR,42,FALSE) -> 0 | AD124: =VLOOKUP(AD$115&$U124,GTYF!$C:$AR,42,FALSE) -> 1220.085 | AE124: =VLOOKUP(AE$115&$U124,GTYF!$C:$AR,42,FALSE) -> 0 | AF124: =VLOOKUP(AF$115&$U124,GTYF!$C:$AR,42,FALSE) -> 19844.985 | AG124: =VLOOKUP(AG$115&$U124,GTYF!$C:$AR,42,FALSE) -> 0 | AH124: =VLOOKUP(AH$115&$U124,GTYF!$C:$AR,42,FALSE) -> 0 | AI124: =VLOOKUP(AI$115&$U124,GTYF!$C:$AR,42,FALSE) -> 0 | AJ124: =VLOOKUP(AJ$115&$U124,GTYF!$C:$AR,42,FALSE) -> 1220.085 | AK124: =VLOOKUP(AK$115&$U124,GTYF!$C:$AR,42,FALSE) -> 0 | AM124: =VLOOKUP(AM$115&$U124,GTYF!$C:$AR,42,FALSE) -> 0 | AN124: =VLOOKUP(AN$115&$U124,GTYF!$C:$AR,42,FALSE) -> 0 | AO124: =VLOOKUP(AO$115&$U124,GTYF!$C:$AR,42,FALSE) -> 0 | AP124: =VLOOKUP(AP$115&$U124,GTYF!$C:$AR,42,FALSE) -> 0 | AQ124: =VLOOKUP(AQ$115&$U124,GTYF!$C:$AR,42,FALSE) -> 0 | AR124: =VLOOKUP(AR$115&$U124,GTYF!$C:$AR,42,FALSE) -> 0 | AS124: =VLOOKUP(AS$115&$U124,GTYF!$C:$AR,42,FALSE) -> 0 | AT124: =VLOOKUP(AT$115&$U124,GTYF!$C:$AR,42,FALSE) -> 0 | AU124: =VLOOKUP(AU$115&$U124,GTYF!$C:$AR,42,FALSE) -> 0 | AV124: =VLOOKUP(AV$115&$U124,GTYF!$C:$AR,42,FALSE) -> 0 | AW124: =VLOOKUP(AW$115&$U124,GTYF!$C:$AR,42,FALSE) -> 0 | AX124: =VLOOKUP(AX$115&$U124,GTYF!$C:$AR,42,FALSE) -> 0 | AY124: =VLOOKUP(AY$115&$U124,GTYF!$C:$AR,42,FALSE) -> 0 | AZ124: 0 | BA124: =VLOOKUP(BA$115&$U124,GTYF!$C:$AR,42,FALSE) -> 0
B125: Pinèdes blanches | E125: 65 | F125: 94 | G125: 29 | H125: - | I125: - | J125: - | M125: - | N125: - | S125: Tableau 9. | T125: Pinèdes blanches | U125: (FCTYF_PIN) | V125: =VLOOKUP(V$115&$U125,GTYF!$C:$AR,42,FALSE) -> 733.7 | W125: =VLOOKUP(W$115&$U125,GTYF!$C:$AQ,6,FALSE) -> 5424.9 | X125: =VLOOKUP(X$115&$U125,GTYF!$C:$AR,42,FALSE) -> 0 | Y125: =VLOOKUP(Y$115&$U125,GTYF!$C:$AR,42,FALSE) -> 0 | Z125: =VLOOKUP(Z$115&$U125,GTYF!$C:$AR,42,FALSE) -> 0 | AA125: =VLOOKUP(AA$115&$U125,GTYF!$C:$AR,42,FALSE) -> 0 | AB125: =VLOOKUP(AB$115&$U125,GTYF!$C:$AR,42,FALSE) -> 0 | AC125: =VLOOKUP(AC$115&$U125,GTYF!$C:$AR,42,FALSE) -> 0 | AD125: =VLOOKUP(AD$115&$U125,GTYF!$C:$AR,42,FALSE) -> 0 | AE125: =VLOOKUP(AE$115&$U125,GTYF!$C:$AR,42,FALSE) -> 0 | AF125: =VLOOKUP(AF$115&$U125,GTYF!$C:$AR,42,FALSE) -> 0 | AG125: =VLOOKUP(AG$115&$U125,GTYF!$C:$AR,42,FALSE) -> 0 | AH125: =VLOOKUP(AH$115&$U125,GTYF!$C:$AR,42,FALSE) -> 0 | AI125: =VLOOKUP(AI$115&$U125,GTYF!$C:$AR,42,FALSE) -> 0 | AJ125: =VLOOKUP(AJ$115&$U125,GTYF!$C:$AR,42,FALSE) -> 0 | AK125: =VLOOKUP(AK$115&$U125,GTYF!$C:$AR,42,FALSE) -> 0 | AM125: =VLOOKUP(AM$115&$U125,GTYF!$C:$AR,42,FALSE) -> 0 | AN125: =VLOOKUP(AN$115&$U125,GTYF!$C:$AR,42,FALSE) -> 0 | AO125: =VLOOKUP(AO$115&$U125,GTYF!$C:$AR,42,FALSE) -> 0 | AP125: =VLOOKUP(AP$115&$U125,GTYF!$C:$AR,42,FALSE) -> 0 | AQ125: =VLOOKUP(AQ$115&$U125,GTYF!$C:$AR,42,FALSE) -> 0 | AR125: =VLOOKUP(AR$115&$U125,GTYF!$C:$AR,42,FALSE) -> 0 | AS125: =VLOOKUP(AS$115&$U125,GTYF!$C:$AR,42,FALSE) -> 0 | AT125: =VLOOKUP(AT$115&$U125,GTYF!$C:$AR,42,FALSE) -> 0 | AU125: =VLOOKUP(AU$115&$U125,GTYF!$C:$AR,42,FALSE) -> 68461.545 | AV125: =VLOOKUP(AV$115&$U125,GTYF!$C:$AR,42,FALSE) -> 0 | AW125: =VLOOKUP(AW$115&$U125,GTYF!$C:$AR,42,FALSE) -> 0 | AX125: =VLOOKUP(AX$115&$U125,GTYF!$C:$AR,42,FALSE) -> 0 | AY125: =VLOOKUP(AY$115&$U125,GTYF!$C:$AR,42,FALSE) -> 0 | AZ125: 68461.545 | BA125: =VLOOKUP(BA$115&$U125,GTYF!$C:$AR,42,FALSE) -> 733.7
B126: Pinèdes grises | E126: 26 | F126: 35.48346154 | G126: 27 | H126: 67.73115547 | I126: 177.1015715 | J126: 149.5838338 | M126: 67.73115547 | N126: 177.1015715 | S126: Tableau 9. | T126: Pinèdes grises | U126: (FCTYF_PIG) | V126: =VLOOKUP(V$115&$U126,GTYF!$C:$AR,42,FALSE) -> 2581.49 | W126: =VLOOKUP(W$115&$U126,GTYF!$C:$AQ,6,FALSE) -> 21596.9 | X126: =VLOOKUP(X$115&$U126,GTYF!$C:$AR,42,FALSE) -> 382102.09 | Y126: =VLOOKUP(Y$115&$U126,GTYF!$C:$AR,42,FALSE) -> 2554434.395 | Z126: =VLOOKUP(Z$115&$U126,GTYF!$C:$AR,42,FALSE) -> 399627.925 | AA126: =VLOOKUP(AA$115&$U126,GTYF!$C:$AR,42,FALSE) -> 0 | AB126: =VLOOKUP(AB$115&$U126,GTYF!$C:$AR,42,FALSE) -> 0 | AC126: =VLOOKUP(AC$115&$U126,GTYF!$C:$AR,42,FALSE) -> 0 | AD126: =VLOOKUP(AD$115&$U126,GTYF!$C:$AR,42,FALSE) -> 2256.49 | AE126: =VLOOKUP(AE$115&$U126,GTYF!$C:$AR,42,FALSE) -> 0 | AF126: =VLOOKUP(AF$115&$U126,GTYF!$C:$AR,42,FALSE) -> 30566.935 | AG126: =VLOOKUP(AG$115&$U126,GTYF!$C:$AR,42,FALSE) -> 0 | AH126: =VLOOKUP(AH$115&$U126,GTYF!$C:$AR,42,FALSE) -> 0 | AI126: =VLOOKUP(AI$115&$U126,GTYF!$C:$AR,42,FALSE) -> 0 | AJ126: =VLOOKUP(AJ$115&$U126,GTYF!$C:$AR,42,FALSE) -> 2256.49 | AK126: =VLOOKUP(AK$115&$U126,GTYF!$C:$AR,42,FALSE) -> 0 | AM126: =VLOOKUP(AM$115&$U126,GTYF!$C:$AR,42,FALSE) -> 11532.125 | AN126: =VLOOKUP(AN$115&$U126,GTYF!$C:$AR,42,FALSE) -> 0 | AO126: =VLOOKUP(AO$115&$U126,GTYF!$C:$AR,42,FALSE) -> 0 | AP126: =VLOOKUP(AP$115&$U126,GTYF!$C:$AR,42,FALSE) -> 0 | AQ126: =VLOOKUP(AQ$115&$U126,GTYF!$C:$AR,42,FALSE) -> 0 | AR126: =VLOOKUP(AR$115&$U126,GTYF!$C:$AR,42,FALSE) -> 0 | AS126: =VLOOKUP(AS$115&$U126,GTYF!$C:$AR,42,FALSE) -> 0 | AT126: =VLOOKUP(AT$115&$U126,GTYF!$C:$AR,42,FALSE) -> 0 | AU126: =VLOOKUP(AU$115&$U126,GTYF!$C:$AR,42,FALSE) -> 0 | AV126: =VLOOKUP(AV$115&$U126,GTYF!$C:$AR,42,FALSE) -> 0 | AW126: =VLOOKUP(AW$115&$U126,GTYF!$C:$AR,42,FALSE) -> 0 | AX126: =VLOOKUP(AX$115&$U126,GTYF!$C:$AR,42,FALSE) -> 0 | AY126: =VLOOKUP(AY$115&$U126,GTYF!$C:$AR,42,FALSE) -> 0 | AZ126: 11532.125 | BA126: =VLOOKUP(BA$115&$U126,GTYF!$C:$AR,42,FALSE) -> 325
B127: Prucheraies | E127: - | F127: - | G127: - | H127: - | I127: - | J127: - | M127: - | N127: - | S127: Tableau 9. | T127: Prucheraies | U127: (FCTYF_PRU) | V127: =VLOOKUP(V$115&$U127,GTYF!$C:$AR,42,FALSE) -> 0 | W127: =VLOOKUP(W$115&$U127,GTYF!$C:$AQ,6,FALSE) -> 0 | X127: =VLOOKUP(X$115&$U127,GTYF!$C:$AR,42,FALSE) -> 0 | Y127: =VLOOKUP(Y$115&$U127,GTYF!$C:$AR,42,FALSE) -> 0 | Z127: =VLOOKUP(Z$115&$U127,GTYF!$C:$AR,42,FALSE) -> 0 | AA127: =VLOOKUP(AA$115&$U127,GTYF!$C:$AR,42,FALSE) -> 0 | AB127: =VLOOKUP(AB$115&$U127,GTYF!$C:$AR,42,FALSE) -> 0 | AC127: =VLOOKUP(AC$115&$U127,GTYF!$C:$AR,42,FALSE) -> 0 | AD127: =VLOOKUP(AD$115&$U127,GTYF!$C:$AR,42,FALSE) -> 0 | AE127: =VLOOKUP(AE$115&$U127,GTYF!$C:$AR,42,FALSE) -> 0 | AF127: =VLOOKUP(AF$115&$U127,GTYF!$C:$AR,42,FALSE) -> 0 | AG127: =VLOOKUP(AG$115&$U127,GTYF!$C:$AR,42,FALSE) -> 0 | AH127: =VLOOKUP(AH$115&$U127,GTYF!$C:$AR,42,FALSE) -> 0 | AI127: =VLOOKUP(AI$115&$U127,GTYF!$C:$AR,42,FALSE) -> 0 | AJ127: =VLOOKUP(AJ$115&$U127,GTYF!$C:$AR,42,FALSE) -> 0 | AK127: =VLOOKUP(AK$115&$U127,GTYF!$C:$AR,42,FALSE) -> 0 | AM127: =VLOOKUP(AM$115&$U127,GTYF!$C:$AR,42,FALSE) -> 0 | AN127: =VLOOKUP(AN$115&$U127,GTYF!$C:$AR,42,FALSE) -> 0 | AO127: =VLOOKUP(AO$115&$U127,GTYF!$C:$AR,42,FALSE) -> 0 | AP127: =VLOOKUP(AP$115&$U127,GTYF!$C:$AR,42,FALSE) -> 0 | AQ127: =VLOOKUP(AQ$115&$U127,GTYF!$C:$AR,42,FALSE) -> 0 | AR127: =VLOOKUP(AR$115&$U127,GTYF!$C:$AR,42,FALSE) -> 0 | AS127: =VLOOKUP(AS$115&$U127,GTYF!$C:$AR,42,FALSE) -> 0 | AT127: =VLOOKUP(AT$115&$U127,GTYF!$C:$AR,42,FALSE) -> 0 | AU127: =VLOOKUP(AU$115&$U127,GTYF!$C:$AR,42,FALSE) -> 0 | AV127: =VLOOKUP(AV$115&$U127,GTYF!$C:$AR,42,FALSE) -> 0 | AW127: =VLOOKUP(AW$115&$U127,GTYF!$C:$AR,42,FALSE) -> 0 | AX127: =VLOOKUP(AX$115&$U127,GTYF!$C:$AR,42,FALSE) -> 0 | AY127: =VLOOKUP(AY$115&$U127,GTYF!$C:$AR,42,FALSE) -> 0 | AZ127: 0 | BA127: =VLOOKUP(BA$115&$U127,GTYF!$C:$AR,42,FALSE) -> 0
B128: Résineux à feuillus | E128: - | F128: - | G128: - | H128: 89.64381525 | I128: 160.5007665 | J128: 162.3210382 | M128: 89.64381525 | N128: 160.5007665 | S128: Tableau 9. | T128: Résineux à feuillus | U128: (FCTYF_RF) | V128: =VLOOKUP(V$115&$U128,GTYF!$C:$AR,42,FALSE) -> 5688.27 | W128: =VLOOKUP(W$115&$U128,GTYF!$C:$AQ,6,FALSE) -> 133920.6 | X128: =VLOOKUP(X$115&$U128,GTYF!$C:$AR,42,FALSE) -> 588078.935 | Y128: =VLOOKUP(Y$115&$U128,GTYF!$C:$AR,42,FALSE) -> 3622937.245 | Z128: =VLOOKUP(Z$115&$U128,GTYF!$C:$AR,42,FALSE) -> 912971.695 | AA128: =VLOOKUP(AA$115&$U128,GTYF!$C:$AR,42,FALSE) -> 0 | AB128: =VLOOKUP(AB$115&$U128,GTYF!$C:$AR,42,FALSE) -> 0 | AC128: =VLOOKUP(AC$115&$U128,GTYF!$C:$AR,42,FALSE) -> 0 | AD128: =VLOOKUP(AD$115&$U128,GTYF!$C:$AR,42,FALSE) -> 5688.27 | AE128: =VLOOKUP(AE$115&$U128,GTYF!$C:$AR,42,FALSE) -> 0 | AF128: =VLOOKUP(AF$115&$U128,GTYF!$C:$AR,42,FALSE) -> 101983.645 | AG128: =VLOOKUP(AG$115&$U128,GTYF!$C:$AR,42,FALSE) -> 0 | AH128: =VLOOKUP(AH$115&$U128,GTYF!$C:$AR,42,FALSE) -> 0 | AI128: =VLOOKUP(AI$115&$U128,GTYF!$C:$AR,42,FALSE) -> 0 | AJ128: =VLOOKUP(AJ$115&$U128,GTYF!$C:$AR,42,FALSE) -> 5688.27 | AK128: =VLOOKUP(AK$115&$U128,GTYF!$C:$AR,42,FALSE) -> 0 | AM128: =VLOOKUP(AM$115&$U128,GTYF!$C:$AR,42,FALSE) -> 0 | AN128: =VLOOKUP(AN$115&$U128,GTYF!$C:$AR,42,FALSE) -> 0 | AO128: =VLOOKUP(AO$115&$U128,GTYF!$C:$AR,42,FALSE) -> 0 | AP128: =VLOOKUP(AP$115&$U128,GTYF!$C:$AR,42,FALSE) -> 0 | AQ128: =VLOOKUP(AQ$115&$U128,GTYF!$C:$AR,42,FALSE) -> 0 | AR128: =VLOOKUP(AR$115&$U128,GTYF!$C:$AR,42,FALSE) -> 0 | AS128: =VLOOKUP(AS$115&$U128,GTYF!$C:$AR,42,FALSE) -> 0 | AT128: =VLOOKUP(AT$115&$U128,GTYF!$C:$AR,42,FALSE) -> 0 | AU128: =VLOOKUP(AU$115&$U128,GTYF!$C:$AR,42,FALSE) -> 0 | AV128: =VLOOKUP(AV$115&$U128,GTYF!$C:$AR,42,FALSE) -> 0 | AW128: =VLOOKUP(AW$115&$U128,GTYF!$C:$AR,42,FALSE) -> 0 | AX128: =VLOOKUP(AX$115&$U128,GTYF!$C:$AR,42,FALSE) -> 0 | AY128: =VLOOKUP(AY$115&$U128,GTYF!$C:$AR,42,FALSE) -> 0 | AZ128: 0 | BA128: =VLOOKUP(BA$115&$U128,GTYF!$C:$AR,42,FALSE) -> 0
B129: Sapinières | E129: - | F129: - | G129: - | H129: 50.91277412 | I129: 148.98302 | J129: 125.7758222 | M129: =IFERROR(($AF129+$AG129+$AH129+$AI129)/$AJ129*5,"-") -> 50.91277412 | N129: 148.98302 | S129: Tableau 9. | T129: Sapinières | U129: (FCTYF_SAB) | V129: =VLOOKUP(V$115&$U129,GTYF!$C:$AR,42,FALSE) -> 3430.805 | W129: =VLOOKUP(W$115&$U129,GTYF!$C:$AQ,6,FALSE) -> 42445.8 | X129: =VLOOKUP(X$115&$U129,GTYF!$C:$AR,42,FALSE) -> 443598.6 | Y129: =VLOOKUP(Y$115&$U129,GTYF!$C:$AR,42,FALSE) -> 3526898.83 | Z129: =VLOOKUP(Z$115&$U129,GTYF!$C:$AR,42,FALSE) -> 511131.69 | AA129: =VLOOKUP(AA$115&$U129,GTYF!$C:$AR,42,FALSE) -> 0 | AB129: =VLOOKUP(AB$115&$U129,GTYF!$C:$AR,42,FALSE) -> 0 | AC129: =VLOOKUP(AC$115&$U129,GTYF!$C:$AR,42,FALSE) -> 0 | AD129: =VLOOKUP(AD$115&$U129,GTYF!$C:$AR,42,FALSE) -> 3430.805 | AE129: =VLOOKUP(AE$115&$U129,GTYF!$C:$AR,42,FALSE) -> 0 | AF129: =VLOOKUP(AF$115&$U129,GTYF!$C:$AR,42,FALSE) -> 34934.36 | AG129: =VLOOKUP(AG$115&$U129,GTYF!$C:$AR,42,FALSE) -> 0 | AH129: =VLOOKUP(AH$115&$U129,GTYF!$C:$AR,42,FALSE) -> 0 | AI129: =VLOOKUP(AI$115&$U129,GTYF!$C:$AR,42,FALSE) -> 0 | AJ129: =VLOOKUP(AJ$115&$U129,GTYF!$C:$AR,42,FALSE) -> 3430.805 | AK129: =VLOOKUP(AK$115&$U129,GTYF!$C:$AR,42,FALSE) -> 0 | AM129: =VLOOKUP(AM$115&$U129,GTYF!$C:$AR,42,FALSE) -> 0 | AN129: =VLOOKUP(AN$115&$U129,GTYF!$C:$AR,42,FALSE) -> 0 | AO129: =VLOOKUP(AO$115&$U129,GTYF!$C:$AR,42,FALSE) -> 0 | AP129: =VLOOKUP(AP$115&$U129,GTYF!$C:$AR,42,FALSE) -> 0 | AQ129: =VLOOKUP(AQ$115&$U129,GTYF!$C:$AR,42,FALSE) -> 0 | AR129: =VLOOKUP(AR$115&$U129,GTYF!$C:$AR,42,FALSE) -> 0 | AS129: =VLOOKUP(AS$115&$U129,GTYF!$C:$AR,42,FALSE) -> 0 | AT129: =VLOOKUP(AT$115&$U129,GTYF!$C:$AR,42,FALSE) -> 0 | AU129: =VLOOKUP(AU$115&$U129,GTYF!$C:$AR,42,FALSE) -> 0 | AV129: =VLOOKUP(AV$115&$U129,GTYF!$C:$AR,42,FALSE) -> 0 | AW129: =VLOOKUP(AW$115&$U129,GTYF!$C:$AR,42,FALSE) -> 0 | AX129: =VLOOKUP(AX$115&$U129,GTYF!$C:$AR,42,FALSE) -> 0 | AY129: =VLOOKUP(AY$115&$U129,GTYF!$C:$AR,42,FALSE) -> 0 | AZ129: 0 | BA129: =VLOOKUP(BA$115&$U129,GTYF!$C:$AR,42,FALSE) -> 0
S130: Tableau 9. | T130: Tous les GTYF | V130: =SUM(V116:V129) -> 48893.295 | W130: =SUM(W116:W129) -> 713445.8 | X130: 3233278.1 | Y130: 22714076.8 | Z130: 6922775.575 | AA130: 0 | AB130: 0 | AC130: 0 | AD130: 40022.81 | AE130: 0 | AF130: 714414.29 | AG130: 0 | AH130: 0 | AI130: 0 | AJ130: 40022.81 | AK130: 0
L131: Les statistiques portants sur les coupes partielles proviennent d'un Script R et sont disponibles ici:
L132: T:\Donnees\02_Courant\01_CPF\01_UA\0XXXX\70_Determination\72_Rapport\01_Cahier_DET\Tableau_9
L133: Données T:\Donnees\02_Courant\01_CPF\01_UA\07451\70_Determination\72_Rapport\01_Cahier_DET\Tableau_9\Coupes_partielles_P2_a_P6.xlsx intégrées
B134: Tableau 10. Traitements non commerciaux supportant les possibilités forestières | L134: données colonne F correspondent à celles du fichier généré par l'outil R de F. Plante
B135: Traitements non commerciaux | F135: Superficie annuelle moyenne (ha/an) | G135: Superficie antérieure (ha/an) | H135: Écart (ha/an) | X135: Exemple U03772
K138: Le texte en rouge demande à l'analyste de valider la nature exacte du traitement et les superficies - variable selon la vague et l'UA - veuillez ensuite mettre en noir et supprimer la remarque si elle ne s'applique pas (si DEG_1 ne contient pas de regarni)
B139: Ligniculture (essences à croissance rapide) | F139: =ROUND(V139,-1) -> 0 | G139: =IFERROR(ROUND(VLOOKUP(O33,DataLocal!$A:$BH,47,FALSE),-1),0) -> 0 | H139: =F139-G139 -> 0 | S139: =LEFT(B$134,11) -> Tableau 10. | T139: Plantation ligniculture (pins, feuillus) | U139: OSUPPL_PPF | V139: =IFERROR(VLOOKUP(U139,Output!C:AR,42,FALSE),0)/5 -> 0
B140: Plantation intensive (2 000 plants/ha) | F140: =ROUND(V140,-1) -> 190 | G140: =IFERROR(ROUND(VLOOKUP(O33,DataLocal!$A:$BH,48,FALSE),-1),0) -> 0 | H140: =F140-G140 -> 190 | S140: =LEFT(B$134,11) -> Tableau 10. | T140: Plantation intensive | U140: OSUPPL_SEPM_I | V140: =IFERROR(VLOOKUP(U140,Output!C:AR,42,FALSE),0)/5 -> 194.551
B141: Plantation de base (1 600 plants/ha) | F141: =ROUND(V141,-1) -> 1030 | G141: =IFERROR(ROUND(VLOOKUP(O33,DataLocal!$A:$BH,49,FALSE),-1),0) -> 1020 | H141: 10 | S141: Tableau 10. | T141: Plantation de base | U141: OSUPPL_SEPM_E | V141: =IFERROR(VLOOKUP(U141,Output!C:AR,42,FALSE),0)/5 -> 1025.122
B142: Regarni | F142: =ROUND(V142,-1) -> 0 | G142: =IFERROR(ROUND(VLOOKUP(O33,DataLocal!$A:$BH,50,FALSE),-1),0) -> 330 | H142: -330 | S142: Tableau 10. | T142: Regarni | U142: OSUPREG | V142: =IFERROR(VLOOKUP(U142,Output!C:AR,42,FALSE),0)/5 -> 0
B143: % des plantations dans les coupes totales | F143: =IFERROR(SUM(F139:F141)/G92,0) -> 0.1525 | G143: =IFERROR(SUM(G139:G141)/H92,0) -> 0.1476121563 | H143: =ROUND((F143-G143),-1) -> 0 | S143: Tableau 10.
B144: Total des travaux de reboisement | F144: =ROUND(SUM(F139:F142),-1) -> 1220 | G144: =ROUND(SUM(G139:G142),-1) -> 1350 | H144: -130 | S144: Tableau 10.
B145: Nettoiement (régénération naturelle et plantation) | F145: =ROUND(V145,-1) -> 870 | G145: =IFERROR(ROUND(VLOOKUP(O33,DataLocal!$A:$BH,51,FALSE),-1),0) -> 220 | H145: 650 | S145: Tableau 10. | T145: Nettoiement | U145: OSUPREALNET | V145: =IFERROR(VLOOKUP(U145,Output!C:AR,42,FALSE),0)/5 -> 873.09
B146: Éclaircie précommerciale | F146: =ROUND(V146,-1) -> 80 | G146: =IFERROR(ROUND(VLOOKUP(O33,DataLocal!$A:$BH,52,FALSE),-1),0) -> 60 | H146: 20 | S146: Tableau 10. | T146: Éclaircie précommerciale de la régénération naturelle | U146: OSUPREALEPC | V146: =IFERROR(VLOOKUP(U146,Output!C:AR,42,FALSE),0)/5 -> 79.037 | X146: Exemple U09751
B147: Dégagement de la régénération naturelle (et regarni) | F147: =ROUND(V147,-1) -> 0 | G147: =IFERROR(ROUND(VLOOKUP(O33,DataLocal!$A:$BH,53,FALSE),-1),0) -> 480 | H147: -480 | S147: Tableau 10. | T147: Dégagement de la régénération naturelle | U147: OSUPDEG_2 | V147: =IFERROR(VLOOKUP(U147,Output!C:AR,42,FALSE),0)/5 -> 0
B148: Dégagement des plantations | F148: =ROUND(V148,-1) -> 840 | G148: =IFERROR(ROUND(VLOOKUP(O33,DataLocal!$A:$BH,54,FALSE),-1),0) -> 1340 | H148: -500 | S148: Tableau 10. | T148: Dégagement de plantation | U148: OSUPDEG_1 | V148: =IFERROR(VLOOKUP(U148,Output!C:AR,42,FALSE),0)/5 -> 839.551
B149: Élagage | F149: =ROUND(V149,-1) -> 0 | G149: =IFERROR(ROUND(VLOOKUP(O33,DataLocal!$A:$BN,66,FALSE),-1),0) -> 20 | H149: -20 | S149: Tableau 10. | T149: Élagage (plantation) | U149: OSUPELAG | V149: =IFERROR(VLOOKUP(U149,Output!C:AR,42,FALSE),0)/5 -> 0
B150: Total des travaux d'éducation | F150: =SUM(F145:F149) -> 1790 | G150: =SUM(G145:G149) -> 2120 | H150: -330 | S150: Tableau 10. | U150: OSUPSCA_LIGN | V150: =IFERROR(VLOOKUP(U150,Output!C:AR,42,FALSE),0)/5 -> 0
B151: Scarifiage partiel | F151: =ROUND(V152,-1) -> 420 | G151: =IFERROR(ROUND(VLOOKUP(O33,DataLocal!$A:$BH,58,FALSE),-1),0) -> 1070 | H151: -650 | S151: Tableau 10. | U151: OSUPSCA_LRD | V151: =IFERROR(VLOOKUP(U151,Output!C:AR,42,FALSE),0)/5 -> 0
B152: Scarifiage en plein | F152: =ROUND(V153+V150+V151,-1) -> 1220 | G152: =IFERROR(ROUND(VLOOKUP(O33,DataLocal!$A:$BH,59,FALSE),-1),0) -> 1020 | H152: 200 | S152: Tableau 10. | U152: OSUPSCA_PART | V152: =IFERROR(VLOOKUP(U152,Output!C:AR,42,FALSE),0)/5 -> 416.74
B153: Total de la préparation de terrain | F153: =IFERROR(SUM(F151:F152),0) -> 1640 | G153: =IFERROR(SUM(G151:G152),0) -> 2090 | H153: -450 | S153: Tableau 10. | U153: OSUPSCA_REG | V153: =IFERROR(VLOOKUP(U153,Output!C:AR,42,FALSE),0)/5 -> 1219.672
B154: Total des travaux sans récolte | F154: =F153+F150+F144 -> 4650 | G154: =G153+G150+G144 -> 5560 | H154: -910
B160: Tableau 13 : Variation du volume sur pied à court, moyen et long terme | L160: % du volume total | U160: colonne | V160: 37 | W160: 38 | X160: 39 | Y160: 40 | AF160: 37 | AG160: 38 | AH160: 39 | AI160: 40
B161: Essences | C161: Volume moyen sur pied (m3) | G161: Volume moyen sur pied (%) | V161: Volume moyen sur pied (m3) | Z161: Volume moyen sur pied (%) | AF161: Volume dans courbe SNAT
C162: 2023 à 2048 | D162: 2048 à 2073 | E162: 2073 à 2118 | F162: 2118 à 2168 | G162: =C162 -> 2023 à 2048 | H162: =D162 -> 2048 à 2073 | I162: 2073 à 2118 | J162: 2118 à 2168 | L162: 2023 à 2048 | T162: Légende | U162: Name | V162: p 2 à 6 | W162: p 7 à 11 | X162: p 12 à 20 | Y162: p 21 à 30 | Z162: p 2 à 6 | AA162: p 7 à 11 | AB162: p 12 à 20 | AC162: p 21 à 30 | AE162: Name | AF162: p 2 à 6 | AG162: p 7 à 11 | AH162: p 12 à 20 | AI162: p 21 à 30
B163: =T163 -> Sapin baumier | C163: =ROUND(V163-AF163,-2) -> 15957500 | D163: =ROUND(W163-AG163,-2) -> 10204000 | E163: 7307900 | F163: 7175800 | G163: =C163/C$177 -> 0.185158111 | H163: =D163/D$177 -> 0.1334372515 | I163: =E163/E$177 -> 0.09815638616 | J163: =F163/F$177 -> 0.0963820791 | L163: =C163/C$177 -> 0.185158111 | S163: =LEFT(B$160,11) -> Tableau 13 | T163: Sapin baumier | U163: OVOLSABPIEDINC | V163: =VLOOKUP($U163,Output!$C:$AQ,V$160,FALSE) -> 15957464.64 | W163: =VLOOKUP($U163,Output!$C:$AQ,W$160,FALSE) -> 10204041.71 | X163: =VLOOKUP($U163,Output!$C:$AQ,X$160,FALSE) -> 7307857.562 | Y163: =VLOOKUP($U163,Output!$C:$AQ,Y$160,FALSE) -> 7175770.846 | Z163: =V163/V$178 -> 0.1851576904 | AA163: =W163/W$178 -> 0.1334377946 | AB163: =X163/X$178 -> 0.09815583717 | AC163: =Y163/Y$178 -> 0.09638170815 | AE163: OVOLSABPIEDSNAT | AF163: =IFERROR(VLOOKUP($AE163,Output!$C:$AQ,AF$160,FALSE),0) -> 0 | AG163: =IFERROR(VLOOKUP($AE163,Output!$C:$AQ,AG$160,FALSE),0) -> 0 | AH163: =IFERROR(VLOOKUP($AE163,Output!$C:$AQ,AH$160,FALSE),0) -> 0 | AI163: =IFERROR(VLOOKUP($AE163,Output!$C:$AQ,AI$160,FALSE),0) -> 0
B164: =T164 -> Épinettes | C164: =ROUND(V164-AF164,-2) -> 24517600 | D164: 25167700 | E164: 23461900 | F164: 22160400 | G164: 0.2844826886 | H164: 0.3291168871 | I164: 0.3151295607 | J164: 0.2976484051 | L164: 0.2844826886 | S164: Tableau 13 | T164: Épinettes | U164: OVOLgEpxPIEDINC | V164: =VLOOKUP($U164,Output!$C:$AQ,V$160,FALSE) -> 24517578.98 | W164: =VLOOKUP($U164,Output!$C:$AQ,W$160,FALSE) -> 25167672.98 | X164: =VLOOKUP($U164,Output!$C:$AQ,X$160,FALSE) -> 23461897.66 | Y164: =VLOOKUP($U164,Output!$C:$AQ,Y$160,FALSE) -> 22160390.76 | Z164: 0.2844824288 | AA164: 0.3291165281 | AB164: 0.3151295967 | AC164: 0.2976483448 | AE164: OVOLgEpxPIEDSNAT | AF164: =IFERROR(VLOOKUP($AE164,Output!$C:$AQ,AF$160,FALSE),0) -> 0 | AG164: =IFERROR(VLOOKUP($AE164,Output!$C:$AQ,AG$160,FALSE),0) -> 0 | AH164: =IFERROR(VLOOKUP($AE164,Output!$C:$AQ,AH$160,FALSE),0) -> 0 | AI164: =IFERROR(VLOOKUP($AE164,Output!$C:$AQ,AI$160,FALSE),0) -> 0
B165: =T165 -> Pin gris | C165: 3554800 | D165: 4499000 | E165: 6820500 | F165: 7096300 | G165: 0.04124706584 | H165: 0.05883322174 | I165: 0.09160985123 | J165: 0.09531427128 | L165: 0.04124706584 | S165: Tableau 13 | T165: Pin gris | U165: OVOLgPgPIEDINC | V165: =VLOOKUP($U165,Output!$C:$AQ,V$160,FALSE) -> 3554753.118 | W165: =VLOOKUP($U165,Output!$C:$AQ,W$160,FALSE) -> 4499010.622 | X165: =VLOOKUP($U165,Output!$C:$AQ,X$160,FALSE) -> 6820484.02 | Y165: =VLOOKUP($U165,Output!$C:$AQ,Y$160,FALSE) -> 7096275.396 | Z165: 0.04124651955 | AA165: 0.05883335963 | AB165: 0.09160965621 | AC165: 0.09531396122 | AE165: OVOLgPgPIEDSNAT | AF165: =IFERROR(VLOOKUP($AE165,Output!$C:$AQ,AF$160,FALSE),0) -> 0 | AG165: =IFERROR(VLOOKUP($AE165,Output!$C:$AQ,AG$160,FALSE),0) -> 0 | AH165: =IFERROR(VLOOKUP($AE165,Output!$C:$AQ,AH$160,FALSE),0) -> 0 | AI165: =IFERROR(VLOOKUP($AE165,Output!$C:$AQ,AI$160,FALSE),0) -> 0
B166: =T166 -> Mélèzes | C166: 158200 | D166: 174500 | E166: 129400 | F166: 42100 | G166: 0.001835626706 | H166: 0.002281928694 | I166: 0.001738041896 | J166: 0.0005654680356 | L166: 0.001835626706 | S166: Tableau 13 | T166: Mélèzes | U166: OVOLgMlPIEDINC | V166: =VLOOKUP($U166,Output!$C:$AQ,V$160,FALSE) -> 158175.744 | W166: =VLOOKUP($U166,Output!$C:$AQ,W$160,FALSE) -> 174548.698 | X166: =VLOOKUP($U166,Output!$C:$AQ,X$160,FALSE) -> 129429.5122 | Y166: =VLOOKUP($U166,Output!$C:$AQ,Y$160,FALSE) -> 42148.271 | Z166: 0.001835345156 | AA166: 0.002282565476 | AB166: 0.001738438663 | AC166: 0.0005661165109 | AE166: OVOLGMlPIEDSNAT | AF166: =IFERROR(VLOOKUP($AE166,Output!$C:$AQ,AF$160,FALSE),0) -> 0 | AG166: =IFERROR(VLOOKUP($AE166,Output!$C:$AQ,AG$160,FALSE),0) -> 0 | AH166: =IFERROR(VLOOKUP($AE166,Output!$C:$AQ,AH$160,FALSE),0) -> 0 | AI166: =IFERROR(VLOOKUP($AE166,Output!$C:$AQ,AI$160,FALSE),0) -> 0
B167: Thuya | C167: =ROUND(V167-AF167,-2) -> 2032000 | D167: 1953700 | E167: 1779000 | F167: 1771500 | G167: 0.02357770839 | H167: 0.0255484475 | I167: 0.02389471818 | J167: 0.02379398159 | L167: 0.02357770839 | S167: Tableau 13 | T167: Thuya | U167: OVOLTHOPIEDINC | V167: =VLOOKUP($U167,Output!$C:$AQ,V$160,FALSE) -> 2031996.348 | W167: =VLOOKUP($U167,Output!$C:$AQ,W$160,FALSE) -> 1953717.068 | X167: =VLOOKUP($U167,Output!$C:$AQ,X$160,FALSE) -> 1778990.289 | Y167: =VLOOKUP($U167,Output!$C:$AQ,Y$160,FALSE) -> 1771504.72 | Z167: 0.0235776647 | AA167: 0.02554867026 | AB167: 0.02389459286 | AC167: 0.02379405008 | AE167: OVOLTHOPIEDSNAT | AF167: =IFERROR(VLOOKUP($AE167,Output!$C:$AQ,AF$160,FALSE),0) -> 0 | AG167: =IFERROR(VLOOKUP($AE167,Output!$C:$AQ,AG$160,FALSE),0) -> 0 | AH167: =IFERROR(VLOOKUP($AE167,Output!$C:$AQ,AH$160,FALSE),0) -> 0 | AI167: =IFERROR(VLOOKUP($AE167,Output!$C:$AQ,AI$160,FALSE),0) -> 0
B168: Pruche | C168: 20600 | D168: 26100 | E168: 32200 | F168: 24800 | G168: 0.0002390259807 | H168: 0.0003413085325 | I168: 0.0004324957422 | J168: 0.0003331023108 | L168: 0.0002390259807 | S168: Tableau 13 | T168: Pruche | U168: OVOLPRUPIEDINC | V168: =VLOOKUP($U168,Output!$C:$AQ,V$160,FALSE) -> 20568.696 | W168: =VLOOKUP($U168,Output!$C:$AQ,W$160,FALSE) -> 26118.496 | X168: =VLOOKUP($U168,Output!$C:$AQ,X$160,FALSE) -> 32215.26778 | Y168: =VLOOKUP($U168,Output!$C:$AQ,Y$160,FALSE) -> 24801.427 | Z168: 0.0002386627407 | AA168: 0.0003415503979 | AB168: 0.0004327009047 | AC168: 0.0003331215489 | AE168: OVOLPRUPIEDSNAT | AF168: =IFERROR(VLOOKUP($AE168,Output!$C:$AQ,AF$160,FALSE),0) -> 0 | AG168: =IFERROR(VLOOKUP($AE168,Output!$C:$AQ,AG$160,FALSE),0) -> 0 | AH168: =IFERROR(VLOOKUP($AE168,Output!$C:$AQ,AH$160,FALSE),0) -> 0 | AI168: =IFERROR(VLOOKUP($AE168,Output!$C:$AQ,AI$160,FALSE),0) -> 0
B169: Pins blanc et rouge | C169: 1315500 | D169: 1266900 | E169: 1201500 | F169: 883900 | G169: 0.01526401348 | H169: 0.01656719463 | I169: 0.01613800106 | J169: 0.01187214244 | L169: 0.01526401348 | S169: Tableau 13 | T169: Pins blanc et rouge | U169: OVOLGPINSPIEDINC | V169: =VLOOKUP($U169,Output!$C:$AQ,V$160,FALSE) -> 1315504.554 | W169: =VLOOKUP($U169,Output!$C:$AQ,W$160,FALSE) -> 1266894.48 | X169: =VLOOKUP($U169,Output!$C:$AQ,X$160,FALSE) -> 1201526.256 | Y169: =VLOOKUP($U169,Output!$C:$AQ,Y$160,FALSE) -> 883935.33 | Z169: 0.01526406546 | AA169: 0.01656712216 | AB169: 0.01613835717 | AC169: 0.01187261952 | AE169: OVOLGPINSCPIEDSNAT | AF169: =IFERROR(VLOOKUP($AE169,Output!$C:$AQ,AF$160,FALSE),0) -> 0 | AG169: =IFERROR(VLOOKUP($AE169,Output!$C:$AQ,AG$160,FALSE),0) -> 0 | AH169: =IFERROR(VLOOKUP($AE169,Output!$C:$AQ,AH$160,FALSE),0) -> 0 | AI169: =IFERROR(VLOOKUP($AE169,Output!$C:$AQ,AI$160,FALSE),0) -> 0
B170: Peupliers | C170: 4257400 | D170: 3393900 | E170: 3494900 | F170: 4968900 | G170: 0.04939947623 | H170: 0.04438187848 | I170: 0.04694190588 | J170: 0.0667400029 | L170: 0.04939947623 | S170: Tableau 13 | T170: Peupliers | U170: OVOLGPEUPIEDINC | V170: =VLOOKUP($U170,Output!$C:$AQ,V$160,FALSE) -> 4257356.218 | W170: =VLOOKUP($U170,Output!$C:$AQ,W$160,FALSE) -> 3393891.122 | X170: =VLOOKUP($U170,Output!$C:$AQ,X$160,FALSE) -> 3494887.192 | Y170: =VLOOKUP($U170,Output!$C:$AQ,Y$160,FALSE) -> 4968873.928 | Z170: 0.04939896545 | AA170: 0.04438176162 | AB170: 0.0469417439 | AC170: 0.066739667 | AE170: OVOLPEUPIEDSNAT | AF170: =IFERROR(VLOOKUP($AE170,Output!$C:$AQ,AF$160,FALSE),0) -> 0 | AG170: =IFERROR(VLOOKUP($AE170,Output!$C:$AQ,AG$160,FALSE),0) -> 0 | AH170: =IFERROR(VLOOKUP($AE170,Output!$C:$AQ,AH$160,FALSE),0) -> 0 | AI170: =IFERROR(VLOOKUP($AE170,Output!$C:$AQ,AI$160,FALSE),0) -> 0
B171: Bouleau à papier | C171: 16106500 | D171: 12127200 | E171: 15617000 | F171: 18106900 | G171: 0.1868869883 | H171: 0.1585868519 | I171: 0.209760435 | J171: 0.2432036383 | L171: 0.1868869883 | N171: =(F171-C171)/C171 -> 0.124198305 | S171: Tableau 13 | T171: Bouleau à papier | U171: OVOLgBpPIEDINC | V171: =VLOOKUP($U171,Output!$C:$AQ,V$160,FALSE) -> 16106495.19 | W171: =VLOOKUP($U171,Output!$C:$AQ,W$160,FALSE) -> 12127231.22 | X171: =VLOOKUP($U171,Output!$C:$AQ,X$160,FALSE) -> 15617035.64 | Y171: =VLOOKUP($U171,Output!$C:$AQ,Y$160,FALSE) -> 18106899.63 | Z171: 0.186886922 | AA171: 0.1585872574 | AB171: 0.2097609586 | AC171: 0.2432036854 | AE171: OVOLgBpPIEDSNAT | AF171: =IFERROR(VLOOKUP($AE171,Output!$C:$AQ,AF$160,FALSE),0) -> 0 | AG171: =IFERROR(VLOOKUP($AE171,Output!$C:$AQ,AG$160,FALSE),0) -> 0 | AH171: =IFERROR(VLOOKUP($AE171,Output!$C:$AQ,AH$160,FALSE),0) -> 0 | AI171: =IFERROR(VLOOKUP($AE171,Output!$C:$AQ,AI$160,FALSE),0) -> 0
B172: Bouleau jaune | C172: 8703500 | D172: 8217500 | E172: 6579500 | F172: 4477700 | G172: 0.1009884769 | H172: 0.1074598799 | I172: 0.08837284894 | J172: 0.0601424281 | L172: 0.1009884769 | N172: =(F172-C172)/C172 -> -0.4855288102 | S172: Tableau 13 | T172: Bouleau jaune | U172: OVOLBOJPIEDINC | V172: =VLOOKUP($U172,Output!$C:$AQ,V$160,FALSE) -> 8703519.458 | W172: =VLOOKUP($U172,Output!$C:$AQ,W$160,FALSE) -> 8217549.702 | X172: =VLOOKUP($U172,Output!$C:$AQ,X$160,FALSE) -> 6579458.908 | Y172: =VLOOKUP($U172,Output!$C:$AQ,Y$160,FALSE) -> 4477726.4 | Z172: 0.100988697 | AA172: 0.107460528 | AB172: 0.08837231593 | AC172: 0.06014279557 | AE172: OVOLBOJPIEDSNAT | AF172: =IFERROR(VLOOKUP($AE172,Output!$C:$AQ,AF$160,FALSE),0) -> 0 | AG172: =IFERROR(VLOOKUP($AE172,Output!$C:$AQ,AG$160,FALSE),0) -> 0 | AH172: =IFERROR(VLOOKUP($AE172,Output!$C:$AQ,AH$160,FALSE),0) -> 0 | AI172: =IFERROR(VLOOKUP($AE172,Output!$C:$AQ,AI$160,FALSE),0) -> 0
B173: Érable rouge | C173: 4460100 | D173: 3879400 | E173: 2359100 | F173: 2338800 | G173: 0.05175144547 | H173: 0.05073074026 | I173: 0.03168635731 | J173: 0.03141369695 | L173: 0.05175144547 | S173: Tableau 13 | T173: Érable rouge | U173: OVOLgEroPIEDINC | V173: =VLOOKUP($U173,Output!$C:$AQ,V$160,FALSE) -> 4460126.32 | W173: =VLOOKUP($U173,Output!$C:$AQ,W$160,FALSE) -> 3879440.002 | X173: =VLOOKUP($U173,Output!$C:$AQ,X$160,FALSE) -> 2359119.29 | Y173: =VLOOKUP($U173,Output!$C:$AQ,Y$160,FALSE) -> 2338779.771 | Z173: 0.05175174797 | AA173: 0.05073126249 | AB173: 0.03168662319 | AC173: 0.03141343197 | AE173: OVOLgEroPIEDSNAT | AF173: =IFERROR(VLOOKUP($AE173,Output!$C:$AQ,AF$160,FALSE),0) -> 0 | AG173: =IFERROR(VLOOKUP($AE173,Output!$C:$AQ,AG$160,FALSE),0) -> 0 | AH173: =IFERROR(VLOOKUP($AE173,Output!$C:$AQ,AH$160,FALSE),0) -> 0 | AI173: =IFERROR(VLOOKUP($AE173,Output!$C:$AQ,AI$160,FALSE),0) -> 0
B174: Érable à sucre | C174: 4563700 | D174: 5002000 | E174: 5132900 | F174: 4910700 | G174: 0.05295353729 | H174: 0.06541093024 | I174: 0.06894277625 | J174: 0.06595828699 | L174: 0.05295353729 | S174: Tableau 13 | T174: Érable à sucre | U174: OVOLERSPIEDINC | V174: =VLOOKUP($U174,Output!$C:$AQ,V$160,FALSE) -> 4563736.848 | W174: =VLOOKUP($U174,Output!$C:$AQ,W$160,FALSE) -> 5001993.792 | X174: =VLOOKUP($U174,Output!$C:$AQ,X$160,FALSE) -> 5132853.447 | Y174: =VLOOKUP($U174,Output!$C:$AQ,Y$160,FALSE) -> 4910705.683 | Z174: 0.05295396189 | AA174: 0.06541084793 | AB174: 0.06894216572 | AC174: 0.06595837745 | AE174: OVOLERSPIEDSNAT | AF174: =IFERROR(VLOOKUP($AE174,Output!$C:$AQ,AF$160,FALSE),0) -> 0 | AG174: =IFERROR(VLOOKUP($AE174,Output!$C:$AQ,AG$160,FALSE),0) -> 0 | AH174: =IFERROR(VLOOKUP($AE174,Output!$C:$AQ,AH$160,FALSE),0) -> 0 | AI174: =IFERROR(VLOOKUP($AE174,Output!$C:$AQ,AI$160,FALSE),0) -> 0
B175: Autres feuillus durs | C175: =ROUND(V175-AF175,-2) -> 535800 | D175: 558300 | E175: 535800 | F175: 493800 | G175: 0.00621699614 | H175: 0.007300864125 | I175: 0.007196621698 | J175: 0.006632496817 | L175: 0.00621699614 | S175: Tableau 13 | T175: Autres feuillus durs | V175: =V178-V176-V174-V173-V172-V171-V170-V169-V168-V167 -> 535828.716 | W175: =W178-W176-W174-W173-W172-W171-W170-W169-W168-W167 -> 558291.43 | X175: =X178-X176-X174-X173-X172-X171-X170-X169-X168-X167 -> 535829.02 | Y175: =Y178-Y176-Y174-Y173-Y172-Y171-Y170-Y169-Y168-Y167 -> 493771.9 | Z175: 0.006217328989 | AA175: 0.00730075193 | AB175: 0.007197013022 | AC175: 0.00663212081 | AE175: Autres feuillus durs | AF175: =AF178-AF176-AF174-AF173-AF172-AF171-AF170-AF169-AF168-AF167 -> 0 | AG175: =AG178-AG176-AG174-AG173-AG172-AG171-AG170-AG169-AG168-AG167 -> 0 | AH175: =AH178-AH176-AH174-AH173-AH172-AH171-AH170-AH169-AH168-AH167 -> 0 | AI175: =AI178-AI176-AI174-AI173-AI172-AI171-AI170-AI169-AI168-AI167 -> 0
B176: Autres essences | C176: =IF($L$163<0.0095,C163,0)+IF($L$164<0.0095,C164,0)+IF($L$165<0.0095,C165,0)+IF($L$166<0.0095,C166,0)+IF($L$167<0.0095,C167,0)+IF($L$168<0.0095,C168,0)+IF($L$169<0.0095,C169,0)+IF($L$170<0.0095,C170,0)+IF($L$171<0.0095,C171,0)+IF($L$172<0.0095,C172,0)+IF($L$173<0.0095,C173,0)+IF($L$174<0.0095,C174+0)+IF($L$175<0.0095,C175,0) -> 714600 | D176: =IF($L$163<0.0095,D163,0)+IF($L$164<0.0095,D164,0)+IF($L$165<0.0095,D165,0)+IF($L$166<0.0095,D166,0)+IF($L$167<0.0095,D167,0)+IF($L$168<0.0095,D168,0)+IF($L$169<0.0095,D169,0)+IF($L$170<0.0095,D170,0)+IF($L$171<0.0095,D171,0)+IF($L$172<0.0095,D172,0)+IF($L$173<0.0095,D173,0)+IF($L$174<0.0095,D174+0)+IF($L$175<0.0095,D175,0) -> 758900 | E176: =IF($L$163<0.0095,E163,0)+IF($L$164<0.0095,E164,0)+IF($L$165<0.0095,E165,0)+IF($L$166<0.0095,E166,0)+IF($L$167<0.0095,E167,0)+IF($L$168<0.0095,E168,0)+IF($L$169<0.0095,E169,0)+IF($L$170<0.0095,E170,0)+IF($L$171<0.0095,E171,0)+IF($L$172<0.0095,E172,0)+IF($L$173<0.0095,E173,0)+IF($L$174<0.0095,E174+0)+IF($L$175<0.0095,E175,0) -> 697400 | F176: =IF($L$163<0.0095,F163,0)+IF($L$164<0.0095,F164,0)+IF($L$165<0.0095,F165,0)+IF($L$166<0.0095,F166,0)+IF($L$167<0.0095,F167,0)+IF($L$168<0.0095,F168,0)+IF($L$169<0.0095,F169,0)+IF($L$170<0.0095,F170,0)+IF($L$171<0.0095,F171,0)+IF($L$172<0.0095,F172,0)+IF($L$173<0.0095,F173,0)+IF($L$174<0.0095,F174+0)+IF($L$175<0.0095,F175,0) -> 560700 | G176: 0.008291648827 | H176: 0.009924101352 | I176: 0.009367159336 | J176: 0.007531067163 | L176: 0.008291648827 | S176: Tableau 13 | T176: SEPM | U176: OVOLGSEPMPIEDINC | V176: =VLOOKUP($U176,Output!$C:$AQ,V$160,FALSE) -> 44187972.48 | W176: =VLOOKUP($U176,Output!$C:$AQ,W$160,FALSE) -> 40045274.01 | X176: =VLOOKUP($U176,Output!$C:$AQ,X$160,FALSE) -> 37719668.75 | Y176: =VLOOKUP($U176,Output!$C:$AQ,Y$160,FALSE) -> 36474585.27 | Z176: 0.5127219838 | AA176: 0.5236702478 | AB176: 0.5066335287 | AC176: 0.4899101307 | AE176: OVOLgSEPMPIEDSNAT | AF176: =IFERROR(VLOOKUP($AE176,Output!$C:$AQ,AF$160,FALSE),0) -> 0 | AG176: =IFERROR(VLOOKUP($AE176,Output!$C:$AQ,AG$160,FALSE),0) -> 0 | AH176: =IFERROR(VLOOKUP($AE176,Output!$C:$AQ,AH$160,FALSE),0) -> 0 | AI176: =IFERROR(VLOOKUP($AE176,Output!$C:$AQ,AI$160,FALSE),0) -> 0
B177: Total | C177: =ROUND(V178-AF178,-2) -> 86183100 | D177: =ROUND(W178-AG178,-2) -> 76470400 | E177: =ROUND(X178-AH178,-2) -> 74451600 | F177: =ROUND(Y178-AI178,-2) -> 74451600 | G177: 1 | H177: 1 | I177: 1 | J177: 1 | S177: Tableau 13 | T177: FN - ERS BOJ | U177: OVOLGFNPIEDINC | V177: =VLOOKUP($U177,Output!$C:$AQ,V$160,FALSE) -> 386830.636 | W177: =VLOOKUP($U177,Output!$C:$AQ,W$160,FALSE) -> 364041.698 | X177: =VLOOKUP($U177,Output!$C:$AQ,X$160,FALSE) -> 282705.9144 | Y177: =VLOOKUP($U177,Output!$C:$AQ,Y$160,FALSE) -> 230942.587 | Z177: 0.004488474125 | AA177: 0.004760556918 | AB177: 0.003797177965 | AC177: 0.003101916365 | AE177: OVOLgFnPIEDSNAT | AF177: =IFERROR(VLOOKUP($AE177,Output!$C:$AQ,AF$160,FALSE),0) -> 0 | AG177: =IFERROR(VLOOKUP($AE177,Output!$C:$AQ,AG$160,FALSE),0) -> 0 | AH177: =IFERROR(VLOOKUP($AE177,Output!$C:$AQ,AH$160,FALSE),0) -> 0 | AI177: =IFERROR(VLOOKUP($AE177,Output!$C:$AQ,AI$160,FALSE),0) -> 0
L178: Masquer les lignes du tableau qui sont en surbrillance | S178: Tableau 13 | T178: TOT sur pied | U178: OVOLTOTPIEDINC | V178: =VLOOKUP($U178,Output!$C:$AQ,V$160,FALSE) -> 86183104.82 | W178: =VLOOKUP($U178,Output!$C:$AQ,W$160,FALSE) -> 76470401.32 | X178: =VLOOKUP($U178,Output!$C:$AQ,X$160,FALSE) -> 74451584.06 | Y178: =VLOOKUP($U178,Output!$C:$AQ,Y$160,FALSE) -> 74451584.06 | Z178: 1 | AA178: 1 | AB178: 1 | AC178: 1 | AE178: OVOLTOTPIEDSNAT | AF178: =IFERROR(VLOOKUP($AE178,Output!$C:$AQ,AF$160,FALSE),0) -> 0 | AG178: =IFERROR(VLOOKUP($AE178,Output!$C:$AQ,AG$160,FALSE),0) -> 0 | AH178: =IFERROR(VLOOKUP($AE178,Output!$C:$AQ,AH$160,FALSE),0) -> 0 | AI178: =IFERROR(VLOOKUP($AE178,Output!$C:$AQ,AI$160,FALSE),0) -> 0
L179: Ces volumes sont comptabilisés dans "Autres essences" | S179: Tableau 13 | T179: Érables à sucre et rouge
D182: P2 | E182: P3 | F182: P4 | G182: P5 | H182: P6
B183: Tableau 15 Statistiques sur les compartiments d’organisation spatiale admissibles à la récolte par période
B184: Compartiments d'organisation spatiale | D184: 2023-2028 | E184: 2028-2033 | F184: 2033-2038 | G184: 2038-2043 | H184: 2043-2048
B185: Nombre total | D185: =Cedule_COS!G6 -> 0
B186: En pessière | D186: =COUNTIF(Cedule_COS!$A$10:$A$1009,"<S*") -> 0 | J186: Fait la sommation automatique des COS débutant par la lettre "P" ou par "C", valider et corriger si nécessaire
B187: En sapinière | D187: =COUNTIF(Cedule_COS!$A$10:$A$1009,"S*") -> 0 | J187: Fait la sommation automatique des COS débutant par la lettre "S", valider et corriger si nécessaire
B188: Admissibles à la récolte | D188: =Cedule_COS!C7 -> 0 | E188: =Cedule_COS!D7 -> 0 | F188: =Cedule_COS!E7 -> 0 | G188: =Cedule_COS!F7 -> 0 | H188: =Cedule_COS!G7 -> 0
B189: % de compartiments admissibles | D189: =Cedule_COS!C8 ->  | E189: =Cedule_COS!D8 ->  | F189: =Cedule_COS!E8 ->  | G189: =Cedule_COS!F8 ->  | H189: =Cedule_COS!G8 -> 
B193: Tableau 17 Superficies considérées pour l'analyse de la mortalité d'ici la période 2023-2028 | S193: =LEFT(B$193,11) -> Tableau 17 | T193: Légende | V193: Output | W193: Valeur | X193: Période | Y193: Année
F194: ha | G194: % | S194: =LEFT(B$193,11) -> Tableau 17 | T194: Incluses aux activités de récolte | V194: OSUPINC | W194: =VLOOKUP($V194,Output!$C:$AQ,6,FALSE) -> 713445.8 | X194: P0 | Y194: 2018
B195: Épidémie sévère confirmée à la photo-interprétation | G195: =F195/W$194 -> 0 | J195: Faire une sélection sur le thème 8 = "INC" et seulement les années correspondant à l'épidémie actuelle | S195: =LEFT(B$193,11) -> Tableau 17 | T195: Épidémie sévère confirmée à la photo-interprétation | V195: Requete dans la table d'attribut
B196: Défoliation cumulative (cote ≥ 15) | F196: =ROUND(W196,-1) ->  | G196: =F196/W$194 ->  | J196: Des champs avaient été ajoutés par l'analyste à la fin de table d'attribut de la carte woodstock | S196: =LEFT(B$193,11) -> Tableau 17 | T196: Défoliation cumulative projetée 2023 ≥ 15 | V196: OSUPINC15+ | W196: =VLOOKUP($V196,Output!$C:$AQ,7,FALSE) ->  | X196: P1 | Y196: 2023
B197: Mortalité projetée | F197: =ROUND(SUM(W197:W198),-1) ->  | G197: =F197/W$194 ->  | J197: et c'est sur ces derniers que doivent se réaliser les requêtes | S197: =LEFT(B$193,11) -> Tableau 17 | T197: Mortalité projetée (sommation des 2 actions) | V197: osupaTBEmort | W197: =VLOOKUP($V197,Output!$C:$AQ,8,FALSE) ->  | X197: P2 | Y197: 2028
B198: Récupération prévue 2018-2023 | F198: =-ROUND(W199,-1) ->  | G198: =F198/W$194 ->  | V198: Osupactiontberetard | W198: =VLOOKUP($V198,Output!$C:$AQ,8,FALSE) ->  | X198: P2 | Y198: 2028
S199: =LEFT(B$193,11) -> Tableau 17 | T199: Récolte prévue à court terme (récupération) | V199: osuprealregapre_15+ | W199: =VLOOKUP($V199,Output!$C:$AQ,7,FALSE) ->  | X199: P1 | Y199: 2023

Sheet Figures
B2: Figure 2. Répartition du volume de bois marchand sur pied en début de calcul (m3). | N2: Volume sur pied en P0 | S2: Source: CahierDetermination_2018-2023 | V2: Volume sur pied en P0 - volume en SNAT | Z2: Volume dans courbe SNAT
L3: Conserver les GTYF même s'ils sont absents de l'UA | S3: Intrants | T3: Légende | U3: Name | V3: PERIOD0 | W3: % | X3: PERIOD0 | Z3: Name | AB3: PERIOD0
N4: Total | O4: =V19 -> 88468500 | S4: =LEFT(B$2,10) -> Figure 2. | T4: Autres feuillus durs | V4: =ROUND(V19-V17-V11-V12-V10-V8-V9-V6-V5-V7,-2) -> 503700 | W4: =IFERROR(V4/$V$19,0) -> 0.005693551942 | X4: =X19-X17-X11-X12-X10-X8-X9-X6-X5-X7 -> 503679.82 | Z4: Autres feuillus durs | AB4: =ROUND(AB19-AB17-AB11-AB12-AB10-AB8-AB9-AB6-AB5-AB7,-2) -> 0
N5: % R | O5: =(V17+V12+V11+V10)/V19 -> 0.507036968 | S5: Figure 2. | T5: Érable à sucre | U5: OVOLERSPIEDINC | V5: =ROUND(X5-AB5,-2) -> 4018500 | W5: 0.04542294715 | X5: =VLOOKUP(U5,Output!$C:$AQ,6,FALSE) -> 4018469.57 | Z5: OVOLERSPIEDSNAT | AB5: =IFERROR(VLOOKUP(Z5,Output!$C:$AQ,6,FALSE),0) -> 0
N6: %SEPM | O6: =V17/V19 -> 0.4678343139 | S6: Figure 2. | T6: Érable rouge | U6: OVOLgEroPIEDINC | V6: 4300200 | W6: 0.04860713135 | X6: =VLOOKUP(U6,Output!$C:$AQ,6,FALSE) -> 4300209.68 | Z6: OVOLgEroPIEDSNAT | AB6: =IFERROR(VLOOKUP(Z6,Output!$C:$AQ,6,FALSE),0) -> 0
N7: % Fi | O7: =W21 -> 0.3477350695 | P7: =O7*O4 -> 30763600 | S7: Figure 2. | T7: Bouleau jaune | U7: OVOLBOJPIEDINC | V7: 8326000 | W7: 0.09411259375 | X7: =VLOOKUP(U7,Output!$C:$AQ,6,FALSE) -> 8325979.15 | Z7: OVOLBOJPIEDSNAT | AB7: =IFERROR(VLOOKUP(Z7,Output!$C:$AQ,6,FALSE),0) -> 0
N8: % FT | O8: =W22 -> 0.1452279625 | S8: Figure 2. | T8: Bouleau à papier | U8: OVOLgBpPIEDINC | V8: 19234600 | W8: 0.2174174989 | X8: =VLOOKUP(U8,Output!$C:$AQ,6,FALSE) -> 19234610.09 | Z8: OVOLgBpPIEDSNAT | AB8: =IFERROR(VLOOKUP(Z8,Output!$C:$AQ,6,FALSE),0) -> 0
N9: %Sapin | O9: =V16/V17 -> 0.3966116274 | S9: Figure 2. | T9: Peupliers | U9: OVOLGPEUPIEDINC | V9: 7228700 | W9: 0.08170930896 | X9: =VLOOKUP(U9,Output!$C:$AQ,6,FALSE) -> 7228743.44 | Z9: OVOLPEUPIEDSNAT | AB9: =IFERROR(VLOOKUP(Z9,Output!$C:$AQ,6,FALSE),0) -> 0
N10: %ERR | O10: =IFERROR(V6/(V5+V6),0) -> 0.5169317321 | S10: Figure 2. | T10: Pins blanc et rouge | U10: OVOLGPINSPIEDINC | V10: 1246400 | W10: 0.01408863042 | X10: =VLOOKUP(U10,Output!$C:$AQ,6,FALSE) -> 1246421.75 | Z10: OVOLGPINSCPIEDSNAT | AB10: =IFERROR(VLOOKUP(Z10,Output!$C:$AQ,6,FALSE),0) -> 0
S11: Figure 2. | T11: Pruche | U11: OVOLPRUPIEDINC | V11: 18900 | W11: 0.0002136353617 | X11: =VLOOKUP(U11,Output!$C:$AQ,6,FALSE) -> 18935.47 | Z11: OVOLPRUPIEDSNAT | AB11: =IFERROR(VLOOKUP(Z11,Output!$C:$AQ,6,FALSE),0) -> 0
N12: Volume sur pied au calcul 2015-2018 | P12: UA | S12: Figure 2. | T12: Thuya | U12: OVOLTHOPIEDINC | V12: 2202900 | W12: 0.02490038827 | X12: =VLOOKUP(U12,Output!$C:$AQ,6,FALSE) -> 2202869 | Z12: OVOLTHOPIEDSNAT | AB12: =IFERROR(VLOOKUP(Z12,Output!$C:$AQ,6,FALSE),0) -> 0
P13: =Tableaux!O33 -> 07451 | S13: Figure 2. | T13: Mélèzes | U13: OVOLgMlPIEDINC | V13: 134000 | W13: 0.001514663411 | X13: =VLOOKUP(U13,Output!$C:$AQ,6,FALSE) -> 134029.46 | Z13: OVOLGMlPIEDSNAT | AB13: =IFERROR(VLOOKUP(Z13,Output!$C:$AQ,6,FALSE),0) -> 0
N14: Total | O14: =VLOOKUP(P13,DataLocal!$A:$BM,61,FALSE) -> 67162500 | S14: Figure 2. | T14: Pin gris | U14: OVOLgPgPIEDINC | V14: 3161600 | W14: 0.03573701374 | X14: =VLOOKUP(U14,Output!$C:$AQ,6,FALSE) -> 3161632.78 | Z14: OVOLgPgPIEDSNAT | AB14: =IFERROR(VLOOKUP(Z14,Output!$C:$AQ,6,FALSE),0) -> 0
N15: % R | O15: =VLOOKUP(P13,DataLocal!$A:$BM,62,FALSE) -> 0.52 | S15: Figure 2. | T15: Épinettes | U15: OVOLgEpxPIEDINC | V15: 21677800 | W15: 0.2450341082 | X15: =VLOOKUP(U15,Output!$C:$AQ,6,FALSE) -> 21677755.34 | Z15: OVOLgEpxPIEDSNAT | AB15: =IFERROR(VLOOKUP(Z15,Output!$C:$AQ,6,FALSE),0) -> 0
N16: % SEPM | O16: =VLOOKUP(P13,DataLocal!$A:$BM,63,FALSE) -> 0.45 | S16: Figure 2. | T16: Sapin baumier | U16: OVOLSABPIEDINC | V16: =ROUND(X16-AB16,-2) -> 16415200 | W16: 0.1855485286 | X16: =VLOOKUP(U16,Output!$C:$AQ,6,FALSE) -> 16415206.03 | Z16: OVOLSABPIEDSNAT | AB16: =IFERROR(VLOOKUP(Z16,Output!$C:$AQ,6,FALSE),0) -> 0
N17: % Fi | O17: =VLOOKUP(P13,DataLocal!$A:$BM,64,FALSE) -> 0.34 | S17: Figure 2. | T17: SEPM | U17: OVOLGSEPMPIEDINC | V17: =ROUND(X17-AB17,-2) -> 41388600 | W17: =IFERROR(V17/$V$19,0) -> 0.4678343139 | X17: =VLOOKUP(U17,Output!$C:$AQ,6,FALSE) -> 41388623.6 | Z17: OVOLgSEPMPIEDSNAT | AB17: =IFERROR(VLOOKUP(Z17,Output!$C:$AQ,6,FALSE),0) -> 0
N18: % Ft | O18: =VLOOKUP(P13,DataLocal!$A:$BM,65,FALSE) -> 0.14 | S18: Figure 2. | T18: FN - ERS BOJ | U18: OVOLGFNPIEDINC | V18: 386000 | W18: 0.004363134901 | X18: =VLOOKUP(U18,Output!$C:$AQ,6,FALSE) -> 386015.23 | Z18: OVOLgFnPIEDSNAT | AB18: =IFERROR(VLOOKUP(Z18,Output!$C:$AQ,6,FALSE),0) -> 0
S19: Figure 2. | T19: TOT sur pied | U19: OVOLTOTPIEDINC | V19: =ROUND(X19-AB19,-2) -> 88468500 | W19: 1 | X19: =VLOOKUP(U19,Output!$C:$AQ,6,FALSE) -> 88468541.57 | Z19: OVOLTOTPIEDSNAT | AB19: =IFERROR(VLOOKUP(Z19,Output!$C:$AQ,6,FALSE),0) -> 0
N20: Vol R | O20: =ROUND(O15*$O$14,-2) -> 34924500 | T20: Érables à sucre et rouge | U20: Érables à sucre et rouge | V20: =V5+V6 -> 8318700 | W20: 0.0940300785 | X20: =X5+X6 -> 8318679.25 | Z20: Érables à sucre et rouge | AB20: =IFERROR(VLOOKUP(Z20,Output!$C:$AQ,6,FALSE),0) -> 0
N21: Vol SEPM | O21: =ROUND(O16*$O$14,-2) -> 30223100 | P21: Traduits en m3 | T21: gFi | U21: OVOLgFiPIEDINC | V21: =ROUND(X21-AB21,-2) -> 30763600 | W21: 0.3477350695 | X21: =VLOOKUP(U21,Output!$C:$AQ,6,FALSE) -> 30763563.21 | Z21: OVOLgFiPIEDSNAT | AB21: =IFERROR(VLOOKUP(Z21,Output!$C:$AQ,6,FALSE),0) -> 0
N22: Vol Fi | O22: =ROUND(O17*$O$14,-2) -> 22835300 | P22: approximativement | T22: gFt | U22: OVOLgFtPIEDINC | V22: 12848100 | W22: 0.1452279625 | X22: =VLOOKUP(U22,Output!$C:$AQ,6,FALSE) -> 12848128.53 | Z22: OVOLgFtPIEDSNAT | AB22: =IFERROR(VLOOKUP(Z22,Output!$C:$AQ,6,FALSE),0) -> 0
N23: Vol Ft | O23: =ROUND(O18*$O$14,-2) -> 9402800
B27: Type de couvert : | C27: =#REF! -> 
B28: Figure 3. Répartition de la superficie par grand type de forêt en début de calcul (ha). | S28: Intrants | T28: Légende | V28: PERIOD0 | W28: % | X28: PERIOD0
S29: =LEFT(B$28,10) -> Figure 3. | T29: Sapinières | U29: (FCTYF_SAB) | V29: =ROUND(X29,-1) -> 42450 | W29: =V29/V$44 -> 0.05965894981 | X29: =VLOOKUP("OSUPINC"&$U29,GTYF!$C:$AP,6,FALSE) -> 42445.8
S30: Figure 3. | T30: Résineux à feuillus | U30: (FCTYF_RF) | V30: =ROUND(X30,-1) -> 133920 | W30: 0.1882102841 | X30: =VLOOKUP("OSUPINC"&$U30,GTYF!$C:$AP,6,FALSE) -> 133920.6
S31: Figure 3. | T31: Prucheraies | U31: (FCTYF_PRU) | V31: 0 | W31: 0 | X31: =VLOOKUP("OSUPINC"&$U31,GTYF!$C:$AP,6,FALSE) -> 0
S32: Figure 3. | T32: Pinèdes grises | U32: (FCTYF_PIG) | V32: 21600 | W32: 0.03035649743 | X32: =VLOOKUP("OSUPINC"&$U32,GTYF!$C:$AP,6,FALSE) -> 21596.9
L33: Conserver les GTYF même s'ils sont absents de l'UA | S33: Figure 3. | T33: Pinèdes blanches | U33: (FCTYF_PIN) | V33: 5420 | W33: 0.007617232226 | X33: =VLOOKUP("OSUPINC"&$U33,GTYF!$C:$AP,6,FALSE) -> 5424.9
S34: Figure 3. | T34: Peupleraies à résineux | U34: (FCTYF_PEUR) | V34: 15390 | W34: 0.02162900442 | X34: =VLOOKUP("OSUPINC"&$U34,GTYF!$C:$AP,6,FALSE) -> 15392.2
S35: Figure 3. | T35: Peupleraies | U35: (FCTYF_PEU) | V35: 31260 | W35: 0.04393259767 | X35: =VLOOKUP("OSUPINC"&$U35,GTYF!$C:$AP,6,FALSE) -> 31255
S36: Figure 3. | T36: Pessières | U36: (FCTYF_EPX) | V36: 176690 | W36: 0.2483189598 | X36: =VLOOKUP("OSUPINC"&$U36,GTYF!$C:$AP,6,FALSE) -> 176686.6
S37: Figure 3. | T37: Feuillus tolérants à résineux | U37: (FCTYF_FTR) | V37: 39940 | W37: 0.05613141238 | X37: =VLOOKUP("OSUPINC"&$U37,GTYF!$C:$AP,6,FALSE) -> 39937.3
S38: Figure 3. | T38: Feuillus tolérants | U38: (FCTYF_FT) | V38: 75890 | W38: 0.1066553051 | X38: =VLOOKUP("OSUPINC"&$U38,GTYF!$C:$AP,6,FALSE) -> 75887.6
S39: Figure 3. | T39: Érablières rouges | U39: (FCTYF_ERO) | V39: 6680 | W39: 0.009388027909 | X39: =VLOOKUP("OSUPINC"&$U39,GTYF!$C:$AP,6,FALSE) -> 6681
S40: Figure 3. | T40: Cédrières | U40: (FCTYF_THO) | V40: 11070 | W40: 0.01555770493 | X40: =VLOOKUP("OSUPINC"&$U40,GTYF!$C:$AP,6,FALSE) -> 11072.9
S41: Figure 3. | T41: Bétulaies blanches à résineux | U41: (FCTYF_BOPR) | V41: 90660 | W41: 0.1274129656 | X41: =VLOOKUP("OSUPINC"&$U41,GTYF!$C:$AP,6,FALSE) -> 90661.3
S42: Figure 3. | T42: Bétulaies blanches | U42: (FCTYF_BOP) | V42: 62480 | W42: 0.0878089796 | X42: =VLOOKUP("OSUPINC"&$U42,GTYF!$C:$AP,6,FALSE) -> 62483.7
U43: Somme: | V43: =SUM(V29:V42) -> 713450 | X43: =SUM(X29:X42) -> 713445.8
T44: OSUPINC | U44: Tous | V44: =VLOOKUP("OSUPINC",Output!$C:$AP,7,FALSE) -> 711544.54
V45: =V43-V44 -> 1905.46 | W45: Écart
V49: 2018
B50: Figure 4. Superficie destinée à l'aménagement forestier par classe d'âge en début de calcul (ha). | S50: Intrants | U50: Name | V50: PERIOD0 | X50: Classe d'âge | Y50: OUTPUT | Z50: Superficie (ha) | AA50: Pourcentage (%)
S51: =LEFT(B$50,10) -> Figure 4. | T51: 10 ans | U51: OSUP_INC_CLASSEAGEFCAGEAGE1 | V51: =VLOOKUP(U51,Output!$C:$AQ,6,FALSE) -> 16916.7 | X51: 10 | Z51: =ROUND(SUM(V51:V54),-1) -> 37540 | AA51: =IFERROR(Z51/$V$89,0) -> 0.0526178723
S52: Figure 4. | T52: 10 ans | U52: OSUP_INC_CLASSEAGEFCAGEAGE2 | V52: =VLOOKUP(U52,Output!$C:$AQ,6,FALSE) -> 2978.9 | X52: 30 | Z52: =ROUND(SUM(V55:V58),-1) -> 107270 | AA52: 0.1503547992
S53: Figure 4. | T53: 10 ans | U53: OSUP_INC_CLASSEAGEFCAGEAGE3 | V53: =VLOOKUP(U53,Output!$C:$AQ,6,FALSE) -> 13945.6 | X53: 50 | Z53: =ROUND(SUM(V59:V62),-1) -> 172010 | AA53: 0.2410975017
S54: Figure 4. | T54: 10 ans | U54: OSUP_INC_CLASSEAGEFCAGEAGE4 | V54: =VLOOKUP(U54,Output!$C:$AQ,6,FALSE) -> 3695.6 | X54: 70 | Z54: =ROUND(SUM(V63:V66),-1) -> 130380 | AA54: 0.1827468884
S55: Figure 4. | T55: 30 ans | U55: OSUP_INC_CLASSEAGEFCAGEAGE5 | V55: =VLOOKUP(U55,Output!$C:$AQ,6,FALSE) -> 4658.9 | X55: 90 | Z55: =ROUND(SUM(V67:V70),-1) -> 81410 | AA55: 0.1141081775
S56: Figure 4. | T56: 30 ans | U56: OSUP_INC_CLASSEAGEFCAGEAGE6 | V56: =VLOOKUP(U56,Output!$C:$AQ,6,FALSE) -> 11984.9 | X56: 120 et plus | Z56: =ROUND(SUM(V71:V80),-1) -> 45830 | AA56: 0.06423753563
S57: Figure 4. | T57: 30 ans | U57: OSUP_INC_CLASSEAGEFCAGEAGE7 | V57: =VLOOKUP(U57,Output!$C:$AQ,6,FALSE) -> 21446.6
S58: Figure 4. | T58: 30 ans | U58: OSUP_INC_CLASSEAGEFCAGEAGE8 | V58: =VLOOKUP(U58,Output!$C:$AQ,6,FALSE) -> 69178.5
S59: Figure 4. | T59: 50 ans | U59: OSUP_INC_CLASSEAGEFCAGEAGE9 | V59: =VLOOKUP(U59,Output!$C:$AQ,6,FALSE) -> 43160.1
S60: Figure 4. | T60: 50 ans | U60: OSUP_INC_CLASSEAGEFCAGEAGE10 | V60: =VLOOKUP(U60,Output!$C:$AQ,6,FALSE) -> 26714
S61: Figure 4. | T61: 50 ans | U61: OSUP_INC_CLASSEAGEFCAGEAGE11 | V61: =VLOOKUP(U61,Output!$C:$AQ,6,FALSE) -> 49188.7
N62: Proportion de la superficie dont l'évolution est suivi en âge: | S62: Figure 4. | T62: 50 ans | U62: OSUP_INC_CLASSEAGEFCAGEAGE12 | V62: =VLOOKUP(U62,Output!$C:$AQ,6,FALSE) -> 52947.1
N63: =IF(AND($W$81>=99.5%,$W$81<100%),"> 99%",IF(AND($W$81>=0.1%,$W$81<0.5%),"< 1%",$W$81)) -> 0.8051657183 | S63: Figure 4. | T63: 70 ans | U63: OSUP_INC_CLASSEAGEFCAGEAGE13 | V63: =VLOOKUP(U63,Output!$C:$AQ,6,FALSE) -> 62582.8
S64: Figure 4. | T64: 70 ans | U64: OSUP_INC_CLASSEAGEFCAGEAGE14 | V64: =VLOOKUP(U64,Output!$C:$AQ,6,FALSE) -> 25059
S65: Figure 4. | T65: 70 ans | U65: OSUP_INC_CLASSEAGEFCAGEAGE15 | V65: =VLOOKUP(U65,Output!$C:$AQ,6,FALSE) -> 22834.8
S66: Figure 4. | T66: 70 ans | U66: OSUP_INC_CLASSEAGEFCAGEAGE16 | V66: =VLOOKUP(U66,Output!$C:$AQ,6,FALSE) -> 19904.5
S67: Figure 4. | T67: 90 ans | U67: OSUP_INC_CLASSEAGEFCAGEAGE17 | V67: =VLOOKUP(U67,Output!$C:$AQ,6,FALSE) -> 16993.9
S68: Figure 4. | T68: 90 ans | U68: OSUP_INC_CLASSEAGEFCAGEAGE18 | V68: =VLOOKUP(U68,Output!$C:$AQ,6,FALSE) -> 25565.6
B69: Figure 5. Superficie destinée à l'aménagement forestier par classe de surface terrière en début de calcul (ha) | S69: Figure 4. | T69: 90 ans | U69: OSUP_INC_CLASSEAGEFCAGEAGE19 | V69: =VLOOKUP(U69,Output!$C:$AQ,6,FALSE) -> 13412.6
S70: Figure 4. | T70: 90 ans | U70: OSUP_INC_CLASSEAGEFCAGEAGE20 | V70: =VLOOKUP(U70,Output!$C:$AQ,6,FALSE) -> 25442.8
S71: Figure 4. | T71: 120 et plus | U71: OSUP_INC_CLASSEAGEFCAGEAGE21 | V71: =VLOOKUP(U71,Output!$C:$AQ,6,FALSE) -> 8124.6
S72: Figure 4. | T72: 120 et plus | U72: OSUP_INC_CLASSEAGEFCAGEAGE22 | V72: =VLOOKUP(U72,Output!$C:$AQ,6,FALSE) -> 2115
S73: Figure 4. | T73: 120 et plus | U73: OSUP_INC_CLASSEAGEFCAGEAGE23 | V73: =VLOOKUP(U73,Output!$C:$AQ,6,FALSE) -> 1526.2
S74: Figure 4. | T74: 120 et plus | U74: OSUP_INC_CLASSEAGEFCAGEAGE24 | V74: =VLOOKUP(U74,Output!$C:$AQ,6,FALSE) -> 1565.9
S75: Figure 4. | T75: 120 et plus | U75: OSUP_INC_CLASSEAGEFCAGEAGE25 | V75: =VLOOKUP(U75,Output!$C:$AQ,6,FALSE) -> 761.2
N76: Proportion de la superficie dont l'évolution est suivi en surface terrière: | S76: Figure 4. | T76: 120 et plus | U76: OSUP_INC_CLASSEAGEFCAGEAGE26 | V76: =VLOOKUP(U76,Output!$C:$AQ,6,FALSE) -> 0
N77: =IF(AND($W$88>=99.5%,$W$88<100%),"> 99%",IF(AND($W$88>=0.1%,$W$88<0.5%),"< 1%",$W$88)) -> 0.1948342817 | S77: Figure 4. | T77: 120 et plus | U77: OSUP_INC_CLASSEAGEFCAGEAGE27 | V77: =VLOOKUP(U77,Output!$C:$AQ,6,FALSE) -> 0
S78: Figure 4. | T78: 120 et plus | U78: OSUP_INC_CLASSEAGEFCAGEAGE28 | V78: =VLOOKUP(U78,Output!$C:$AQ,6,FALSE) -> 505.4
S79: Figure 4. | T79: 120 et plus | U79: OSUP_INC_CLASSEAGEFCAGEAGE29 | V79: =VLOOKUP(U79,Output!$C:$AQ,6,FALSE) -> 0
S80: Figure 4. | T80: 120 et plus | U80: OSUP_INC_CLASSEAGEFCAGEAGE30+ | V80: =VLOOKUP(U80,Output!$C:$AQ,6,FALSE) -> 31232.2
U81: Sous-total | V81: =SUM(V51:V80) -> 574442.1 | W81: =V81/V89 -> 0.8051657183
S82: =LEFT(B$69,10) -> Figure 5. | T82: <16 | U82: OSUPINC_ST016(FCST) | V82: =VLOOKUP(U82,GTYF!$C:$AQ,6,FALSE) -> 10636.3 | W82: =IFERROR(V82/$V$88,0) -> 0.07651810707
S83: Figure 5. | T83: 16 à 18 | U83: OSUPINC_ST1619(FCST) | V83: =VLOOKUP(U83,GTYF!$C:$AQ,6,FALSE) -> 14385.5 | W83: 0.103490051
S84: Figure 5. | T84: 19 à 21 | U84: OSUPINC_ST1922(FCST) | V84: =VLOOKUP(U84,GTYF!$C:$AQ,6,FALSE) -> 27151.7 | W84: 0.1953307718
S85: Figure 5. | T85: 22 à 24 | U85: OSUPINC_ST2225(FCST) | V85: =VLOOKUP(U85,GTYF!$C:$AQ,6,FALSE) -> 62061.9 | W85: 0.4464766046
S86: Figure 5. | T86: 25 à 28 | U86: OSUPINC_ST2528(FCST) | V86: =VLOOKUP(U86,GTYF!$C:$AQ,6,FALSE) -> 11681.2 | W86: 0.08403517316
S87: Figure 5. | T87: 29+ | U87: OSUPINC_ST29+(FCST) | V87: =VLOOKUP(U87,GTYF!$C:$AQ,6,FALSE) -> 13087.1 | W87: 0.09414929243
S88: Figure 5. | T88: Total 0-29+ | U88: Sous-total | V88: =SUM(V82:V87) -> 139003.7 | W88: =V88/V89 -> 0.1948342817
U89: OSUPINC | V89: =VLOOKUP(U89,Output!$C:$AQ,6,FALSE) -> 713445.8
A91: 80 | B91: Figure 6. Évolution des volumes et des possibilités forestières à rendement non-décroissant
U93: Période | V93: P0 | W93: P1 | X93: P2 | Y93: P3 | Z93: P4 | AA93: P5 | AB93: P6 | AC93: P7 | AD93: P8 | AE93: P9 | AF93: P10 | AG93: P11 | AH93: P12 | AI93: P13 | AJ93: P14 | AK93: P15 | AL93: P16 | AM93: P17 | AN93: P18 | AO93: P19 | AP93: P20 | AQ93: P21 | AR93: P22 | AS93: P23 | AT93: P24 | AU93: P25 | AV93: P26 | AW93: P27 | AX93: P28 | AY93: P29 | AZ93: P30
U94: Colonne | V94: 6 | W94: 7 | X94: 8 | Y94: 9 | Z94: 10 | AA94: 11 | AB94: 12 | AC94: 13 | AD94: 14 | AE94: 15 | AF94: 16 | AG94: 17 | AH94: 18 | AI94: 19 | AJ94: 20 | AK94: 21 | AL94: 22 | AM94: 23 | AN94: 24 | AO94: 25 | AP94: 26 | AQ94: 27 | AR94: 28 | AS94: 29 | AT94: 30 | AU94: 31 | AV94: 32 | AW94: 33 | AX94: 34 | AY94: 35 | AZ94: 36
S95: =LEFT(B$91,10) -> Figure 6. | T95: Légende | U95: Axe des "X" Début de période | W95: 2018 | X95: 2023 | Y95: 2028 | Z95: 2033 | AA95: 2038 | AB95: 2043 | AC95: 2048 | AD95: 2053 | AE95: 2058 | AF95: 2063 | AG95: 2068 | AH95: 2073 | AI95: 2078 | AJ95: 2083 | AK95: 2088 | AL95: 2093 | AM95: 2098 | AN95: 2103 | AO95: 2108 | AP95: 2113 | AQ95: 2118 | AR95: 2123 | AS95: 2128 | AT95: 2133 | AU95: 2138 | AV95: 2143 | AW95: 2148 | AX95: 2153 | AY95: 2158 | AZ95: 2163
S96: =LEFT(B$91,10) -> Figure 6. | T96: Possibilités forestières quinquennales | U96: OVOLTOTREC | V96: =VLOOKUP($U96,Output!$C:$AM,V$94,FALSE) -> 0 | W96: =VLOOKUP($U96,Output!$C:$AM,W$94,FALSE) -> 4617360 | X96: =VLOOKUP($U96,Output!$C:$AM,X$94,FALSE) -> 7485201.98 | Y96: =VLOOKUP($U96,Output!$C:$AM,Y$94,FALSE) -> 7596419.45 | Z96: =VLOOKUP($U96,Output!$C:$AM,Z$94,FALSE) -> 6736700 | AA96: =VLOOKUP($U96,Output!$C:$AM,AA$94,FALSE) -> 6736700 | AB96: =VLOOKUP($U96,Output!$C:$AM,AB$94,FALSE) -> 6736700 | AC96: =VLOOKUP($U96,Output!$C:$AM,AC$94,FALSE) -> 6783428.65 | AD96: =VLOOKUP($U96,Output!$C:$AM,AD$94,FALSE) -> 6783439.32 | AE96: =VLOOKUP($U96,Output!$C:$AM,AE$94,FALSE) -> 6783439.41 | AF96: =VLOOKUP($U96,Output!$C:$AM,AF$94,FALSE) -> 6814564.01 | AG96: =VLOOKUP($U96,Output!$C:$AM,AG$94,FALSE) -> 6814572.49 | AH96: =VLOOKUP($U96,Output!$C:$AM,AH$94,FALSE) -> 6814572.49 | AI96: =VLOOKUP($U96,Output!$C:$AM,AI$94,FALSE) -> 6814580.63 | AJ96: =VLOOKUP($U96,Output!$C:$AM,AJ$94,FALSE) -> 6814580.63 | AK96: =VLOOKUP($U96,Output!$C:$AM,AK$94,FALSE) -> 6814608.57 | AL96: =VLOOKUP($U96,Output!$C:$AM,AL$94,FALSE) -> 6814608.57 | AM96: =VLOOKUP($U96,Output!$C:$AM,AM$94,FALSE) -> 6814610.61 | AN96: =VLOOKUP($U96,Output!$C:$AM,AN$94,FALSE) -> 6814610.61 | AO96: =VLOOKUP($U96,Output!$C:$AM,AO$94,FALSE) -> 6814613.06 | AP96: =VLOOKUP($U96,Output!$C:$AM,AP$94,FALSE) -> 6814613.06 | AQ96: =VLOOKUP($U96,Output!$C:$AM,AQ$94,FALSE) -> 6814613.06 | AR96: =VLOOKUP($U96,Output!$C:$AM,AR$94,FALSE) -> 6814613.06 | AS96: =VLOOKUP($U96,Output!$C:$AM,AS$94,FALSE) -> 6814617.46 | AT96: =VLOOKUP($U96,Output!$C:$AM,AT$94,FALSE) -> 6814617.46 | AU96: =VLOOKUP($U96,Output!$C:$AM,AU$94,FALSE) -> 6814629.89 | AV96: =VLOOKUP($U96,Output!$C:$AM,AV$94,FALSE) -> 6814631.18 | AW96: =VLOOKUP($U96,Output!$C:$AM,AW$94,FALSE) -> 6814631.18 | AX96: =VLOOKUP($U96,Output!$C:$AM,AX$94,FALSE) -> 6814631.18 | AY96: =VLOOKUP($U96,Output!$C:$AM,AY$94,FALSE) -> 6814631.18 | AZ96: =VLOOKUP($U96,Output!$C:$AM,AZ$94,FALSE) -> 6814631.18
S97: =LEFT(B$91,10) -> Figure 6. | T97: Volume à maturité | U97: OVOLMATUREADM | V97: =VLOOKUP($U97,Output!$C:$AM,V$94,FALSE) -> 43870568.03 | W97: =VLOOKUP($U97,Output!$C:$AM,W$94,FALSE) -> 51103775.96 | X97: =VLOOKUP($U97,Output!$C:$AM,X$94,FALSE) -> 63690777.63 | Y97: =VLOOKUP($U97,Output!$C:$AM,Y$94,FALSE) -> 67473370.67 | Z97: =VLOOKUP($U97,Output!$C:$AM,Z$94,FALSE) -> 69567482.29 | AA97: =VLOOKUP($U97,Output!$C:$AM,AA$94,FALSE) -> 69956695.64 | AB97: =VLOOKUP($U97,Output!$C:$AM,AB$94,FALSE) -> 68364755.24 | AC97: =VLOOKUP($U97,Output!$C:$AM,AC$94,FALSE) -> 66230932.52 | AD97: =VLOOKUP($U97,Output!$C:$AM,AD$94,FALSE) -> 63977376.29 | AE97: =VLOOKUP($U97,Output!$C:$AM,AE$94,FALSE) -> 61146518.8 | AF97: =VLOOKUP($U97,Output!$C:$AM,AF$94,FALSE) -> 58700187.08 | AG97: =VLOOKUP($U97,Output!$C:$AM,AG$94,FALSE) -> 55321034.6 | AH97: =VLOOKUP($U97,Output!$C:$AM,AH$94,FALSE) -> 53804060.55 | AI97: =VLOOKUP($U97,Output!$C:$AM,AI$94,FALSE) -> 51820640.86 | AJ97: =VLOOKUP($U97,Output!$C:$AM,AJ$94,FALSE) -> 51437333.25 | AK97: =VLOOKUP($U97,Output!$C:$AM,AK$94,FALSE) -> 50262966.17 | AL97: =VLOOKUP($U97,Output!$C:$AM,AL$94,FALSE) -> 50539854.66 | AM97: =VLOOKUP($U97,Output!$C:$AM,AM$94,FALSE) -> 50938115.51 | AN97: =VLOOKUP($U97,Output!$C:$AM,AN$94,FALSE) -> 51753452.3 | AO97: =VLOOKUP($U97,Output!$C:$AM,AO$94,FALSE) -> 52589760.4 | AP97: =VLOOKUP($U97,Output!$C:$AM,AP$94,FALSE) -> 52288960.33 | AQ97: =VLOOKUP($U97,Output!$C:$AM,AQ$94,FALSE) -> 49862183.09 | AR97: =VLOOKUP($U97,Output!$C:$AM,AR$94,FALSE) -> 50364005.49 | AS97: =VLOOKUP($U97,Output!$C:$AM,AS$94,FALSE) -> 49911329.82 | AT97: =VLOOKUP($U97,Output!$C:$AM,AT$94,FALSE) -> 50828088.73 | AU97: =VLOOKUP($U97,Output!$C:$AM,AU$94,FALSE) -> 51269580.38 | AV97: =VLOOKUP($U97,Output!$C:$AM,AV$94,FALSE) -> 49280693.49 | AW97: =VLOOKUP($U97,Output!$C:$AM,AW$94,FALSE) -> 48947829.25 | AX97: =VLOOKUP($U97,Output!$C:$AM,AX$94,FALSE) -> 49395001.84 | AY97: =VLOOKUP($U97,Output!$C:$AM,AY$94,FALSE) -> 49687206.96 | AZ97: =VLOOKUP($U97,Output!$C:$AM,AZ$94,FALSE) -> 48791790.34
S98: =LEFT(B$91,10) -> Figure 6. | T98: Volume sur pied | U98: OVOLTOTPIEDINC | V98: =VLOOKUP($U98,Output!$C:$AM,V$94,FALSE) -> 88468541.57 | W98: =VLOOKUP($U98,Output!$C:$AM,W$94,FALSE) -> 91550472.09 | X98: =VLOOKUP($U98,Output!$C:$AM,X$94,FALSE) -> 90421063.77 | Y98: =VLOOKUP($U98,Output!$C:$AM,Y$94,FALSE) -> 88231231.28 | Z98: =VLOOKUP($U98,Output!$C:$AM,Z$94,FALSE) -> 86054445.28 | AA98: =VLOOKUP($U98,Output!$C:$AM,AA$94,FALSE) -> 84143655.25 | AB98: =VLOOKUP($U98,Output!$C:$AM,AB$94,FALSE) -> 82065128.54 | AC98: =VLOOKUP($U98,Output!$C:$AM,AC$94,FALSE) -> 79771648.19 | AD98: =VLOOKUP($U98,Output!$C:$AM,AD$94,FALSE) -> 77738674.49 | AE98: =VLOOKUP($U98,Output!$C:$AM,AE$94,FALSE) -> 75938515.8 | AF98: =VLOOKUP($U98,Output!$C:$AM,AF$94,FALSE) -> 74451584.06 | AG98: =VLOOKUP($U98,Output!$C:$AM,AG$94,FALSE) -> 74451584.06 | AH98: =VLOOKUP($U98,Output!$C:$AM,AH$94,FALSE) -> 74451584.06 | AI98: =VLOOKUP($U98,Output!$C:$AM,AI$94,FALSE) -> 74451584.06 | AJ98: =VLOOKUP($U98,Output!$C:$AM,AJ$94,FALSE) -> 74451584.06 | AK98: =VLOOKUP($U98,Output!$C:$AM,AK$94,FALSE) -> 74451584.06 | AL98: =VLOOKUP($U98,Output!$C:$AM,AL$94,FALSE) -> 74451584.06 | AM98: =VLOOKUP($U98,Output!$C:$AM,AM$94,FALSE) -> 74451584.06 | AN98: =VLOOKUP($U98,Output!$C:$AM,AN$94,FALSE) -> 74451584.06 | AO98: =VLOOKUP($U98,Output!$C:$AM,AO$94,FALSE) -> 74451584.06 | AP98: =VLOOKUP($U98,Output!$C:$AM,AP$94,FALSE) -> 74451584.06 | AQ98: =VLOOKUP($U98,Output!$C:$AM,AQ$94,FALSE) -> 74451584.06 | AR98: =VLOOKUP($U98,Output!$C:$AM,AR$94,FALSE) -> 74451584.06 | AS98: =VLOOKUP($U98,Output!$C:$AM,AS$94,FALSE) -> 74451584.06 | AT98: =VLOOKUP($U98,Output!$C:$AM,AT$94,FALSE) -> 74451584.06 | AU98: =VLOOKUP($U98,Output!$C:$AM,AU$94,FALSE) -> 74451584.06 | AV98: =VLOOKUP($U98,Output!$C:$AM,AV$94,FALSE) -> 74451584.06 | AW98: =VLOOKUP($U98,Output!$C:$AM,AW$94,FALSE) -> 74451584.06 | AX98: =VLOOKUP($U98,Output!$C:$AM,AX$94,FALSE) -> 74451584.06 | AY98: =VLOOKUP($U98,Output!$C:$AM,AY$94,FALSE) -> 74451584.06 | AZ98: =VLOOKUP($U98,Output!$C:$AM,AZ$94,FALSE) -> 74451584.06
S99: =LEFT(B$91,10) -> Figure 6. | T99: Volume récoltable | U99: OVOLTOTADMREGAPRE | V99: =VLOOKUP($U99,Output!$C:$AM,V$94,FALSE) -> 0 | W99: =VLOOKUP($U99,Output!$C:$AM,W$94,FALSE) -> 34300191.32 | X99: =VLOOKUP($U99,Output!$C:$AM,X$94,FALSE) -> 45162710.47 | Y99: =VLOOKUP($U99,Output!$C:$AM,Y$94,FALSE) -> 55420515.12 | Z99: =VLOOKUP($U99,Output!$C:$AM,Z$94,FALSE) -> 61524982.7 | AA99: =VLOOKUP($U99,Output!$C:$AM,AA$94,FALSE) -> 68547559.78 | AB99: =VLOOKUP($U99,Output!$C:$AM,AB$94,FALSE) -> 68293460.41 | AC99: =VLOOKUP($U99,Output!$C:$AM,AC$94,FALSE) -> 66644224.06 | AD99: =VLOOKUP($U99,Output!$C:$AM,AD$94,FALSE) -> 63106833.39 | AE99: =VLOOKUP($U99,Output!$C:$AM,AE$94,FALSE) -> 60694723.7 | AF99: =VLOOKUP($U99,Output!$C:$AM,AF$94,FALSE) -> 58315361.58 | AG99: =VLOOKUP($U99,Output!$C:$AM,AG$94,FALSE) -> 54901892.45 | AH99: =VLOOKUP($U99,Output!$C:$AM,AH$94,FALSE) -> 50934029.26 | AI99: =VLOOKUP($U99,Output!$C:$AM,AI$94,FALSE) -> 48593987.16 | AJ99: =VLOOKUP($U99,Output!$C:$AM,AJ$94,FALSE) -> 46116261.09 | AK99: =VLOOKUP($U99,Output!$C:$AM,AK$94,FALSE) -> 43559879.73 | AL99: =VLOOKUP($U99,Output!$C:$AM,AL$94,FALSE) -> 42320414.6 | AM99: =VLOOKUP($U99,Output!$C:$AM,AM$94,FALSE) -> 41147405.14 | AN99: =VLOOKUP($U99,Output!$C:$AM,AN$94,FALSE) -> 40008430.88 | AO99: =VLOOKUP($U99,Output!$C:$AM,AO$94,FALSE) -> 39140933.26 | AP99: =VLOOKUP($U99,Output!$C:$AM,AP$94,FALSE) -> 37789828.52 | AQ99: =VLOOKUP($U99,Output!$C:$AM,AQ$94,FALSE) -> 35186476.69 | AR99: =VLOOKUP($U99,Output!$C:$AM,AR$94,FALSE) -> 31660457.3 | AS99: =VLOOKUP($U99,Output!$C:$AM,AS$94,FALSE) -> 31027133.43 | AT99: =VLOOKUP($U99,Output!$C:$AM,AT$94,FALSE) -> 31340875.06 | AU99: =VLOOKUP($U99,Output!$C:$AM,AU$94,FALSE) -> 32526446.93 | AV99: =VLOOKUP($U99,Output!$C:$AM,AV$94,FALSE) -> 33637107.07 | AW99: =VLOOKUP($U99,Output!$C:$AM,AW$94,FALSE) -> 32118286.25 | AX99: =VLOOKUP($U99,Output!$C:$AM,AX$94,FALSE) -> 31422387.83 | AY99: =VLOOKUP($U99,Output!$C:$AM,AY$94,FALSE) -> 31970413.4 | AZ99: =VLOOKUP($U99,Output!$C:$AM,AZ$94,FALSE) -> 31927341.98
T116: * Source: Cahier_analyse, Tableau 13, onglet Budget | X116: Moyenne P2 à P6
B117: Figure 7. Répartition du budget annuel par familles de traitements prévus à la stratégie d’aménagement et coût moyen à l’hectare par famille de traitements
S118: =LEFT(B$117,10) -> Figure 7. | T118: Légende | U118: Output taux | V118: Output superficie | W118: $/ha | X118: ha | Y118: $
S119: =LEFT(B$117,10) -> Figure 7. | T119: Coupes avec protection de la régénération et des sols (CPRS) | U119: OTAUXCT_100 | V119: OSUPCT | W119: =IFERROR(VLOOKUP(U119,Output!$C:$AR,42,FALSE),0) -> 0 | X119: =IFERROR(VLOOKUP(V119,Output!$C:$AR,42,FALSE),"0000")/5 -> 8004.56 | Y119: =W119*X119 -> 0
S120: =LEFT(B$117,10) -> Figure 7. | T120: Coupe avec protection des petites tiges marchandes (CPPTM) | V120: OSUPREALaCPPTM | W120: =IFERROR(VLOOKUP(U120,Output!$C:$AQ,8,FALSE),0) -> 0 | X120: =IFERROR(VLOOKUP(V120,Output!$C:$AR,42,FALSE),"0000")/5 -> 0 | Y120: =W120*X120 -> 0
S121: =LEFT(B$117,10) -> Figure 7. | T121: Coupe avec réserve de semenciers (CRS) | V121: OSUPREALaCRS | W121: =IFERROR(VLOOKUP(U121,Output!$C:$AQ,8,FALSE),0) -> 0 | X121: =IFERROR(VLOOKUP(V121,Output!$C:$AR,42,FALSE),"0000")/5 -> 0 | Y121: 0
T122: Coupe à rétention variable (CRV, CPPTM, CPPTM, CPHR, CDL)
S123: =LEFT(B$117,10) -> Figure 7. | T123: Coupes finales | W123: =(ROUND(Y123/X123,0))&"$/ha" -> 0$/ha | X123: =SUM(X119:X121) -> 8004.56 | Y123: =SUM(Y119:Y121) -> 0
S124: Figure 7. | T124: Éclaircie commerciale (EC) | U124: OTAUXEC_SEPM_100 | V124: OSUPEC_SEPM | W124: =IFERROR(VLOOKUP(U124,Output!$C:$AR,42,FALSE),0) -> 1460 | X124: =IFERROR(VLOOKUP(V124,Output!$C:$AR,42,FALSE),"0000")/5 -> 65 | Y124: 94900
S125: Figure 7. | T125: Coupe progressive régulière initiale (CPROG) | U125: OTAUXCPROG_INI_100 | V125: OSUPCPROG_INI | W125: =IFERROR(VLOOKUP(U125,Output!$C:$AR,42,FALSE),0) -> 530 | X125: =IFERROR(VLOOKUP(V125,Output!$C:$AR,42,FALSE),"0000")/5 -> 0 | Y125: 0
S126: Figure 7. | T126: Coupe progressive régulière finale (CPROG) | U126: OTAUXCPROG_FIN_100 | V126: OSUPCPROG_FIN | W126: =IFERROR(VLOOKUP(U126,Output!$C:$AR,42,FALSE),0) -> 0 | X126: =IFERROR(VLOOKUP(V126,Output!$C:$AR,42,FALSE),"0000")/5 -> 0 | Y126: 0
S127: Figure 7. | T127: Coupe progessive irrégulière initiale (CPIRL) | U127: OTAUXCPIRL_INI_100 | V127: OSUPCPIRL_INI | W127: =IFERROR(VLOOKUP(U127,Output!$C:$AR,42,FALSE),0) -> 540 | X127: =IFERROR(VLOOKUP(V127,Output!$C:$AR,42,FALSE),"0000")/5 -> 1684.099 | Y127: 909413.46
S128: Figure 7. | T128: Coupe progessive irrégulière finale (CPIRL) | U128: OTAUXCPIRL_FIN_100 | V128: OSUPCPIRL_FIN | W128: =IFERROR(VLOOKUP(U128,Output!$C:$AR,42,FALSE),0) -> 0 | X128: =IFERROR(VLOOKUP(V128,Output!$C:$AR,42,FALSE),"0000")/5 -> 0 | Y128: 0
S129: Figure 7. | T129: Coupe à couvert permanent (CPICP) | U129: OTAUXCPICP_100 | V129: OSUPCPICP | W129: =IFERROR(VLOOKUP(U129,Output!$C:$AR,42,FALSE),0) -> 590 | X129: =IFERROR(VLOOKUP(V129,Output!$C:$AR,42,FALSE),"0000")/5 -> 25 | Y129: 14750
S130: Figure 7. | T130: Coupe de jardinage (CJ) | U130: OTAUXCJ_100 | V130: OSUPCJ | W130: =IFERROR(VLOOKUP(U130,Output!$C:$AR,42,FALSE),0) -> 674.87 | X130: =IFERROR(VLOOKUP(V130,Output!$C:$AR,42,FALSE),"0000")/5 -> 0 | Y130: 0
S131: Figure 7. | T131: Coupes partielles | W131: =(ROUND(Y131/X131,0))&"$/ha" -> 574$/ha | X131: =SUM(X124:X130) -> 1774.099 | Y131: =SUM(Y124:Y130) -> 1019063.46
S132: Figure 7. | T132: Plantation ligniculture (pins, feuillus) | U132: OTAUXPL_PPF_100 | V132: OSUPPL_PPF | W132: =IFERROR(VLOOKUP(U132,Output!$C:$AR,42,FALSE),0) -> 1640 | X132: =IFERROR(VLOOKUP(V132,Output!$C:$AR,42,FALSE),"0000")/5 -> 0 | Y132: 0
S133: Figure 7. | T133: Plantation intensive | U133: OTAUXPL_SEPM_I_100 | V133: OSUPPL_SEPM_I | W133: =IFERROR(VLOOKUP(U133,Output!$C:$AR,42,FALSE),0) -> 1550 | X133: =IFERROR(VLOOKUP(V133,Output!$C:$AR,42,FALSE),"0000")/5 -> 194.551 | Y133: 301554.05
S134: Figure 7. | T134: Plantation de base | U134: OTAUXPL_SEPM_E_100 | V134: OSUPPL_SEPM_E | W134: =IFERROR(VLOOKUP(U134,Output!$C:$AR,42,FALSE),0) -> 1240 | X134: =IFERROR(VLOOKUP(V134,Output!$C:$AR,42,FALSE),"0000")/5 -> 1025.122 | Y134: 1271151.28
S135: Figure 7. | T135: Regarni | U135: OTAUXREG_100 | V135: OSUPREG | W135: =IFERROR(VLOOKUP(U135,Output!$C:$AR,42,FALSE),0) -> 560 | X135: =IFERROR(VLOOKUP(V135,Output!$C:$AR,42,FALSE),"0000")/5 -> 0 | Y135: 0
S136: Figure 7. | T136: Ensemencement (ENS) | U136: OTAUXENS_100 | V136: OSUPENS | W136: =IFERROR(VLOOKUP(U136,Output!$C:$AR,42,FALSE),0) -> 130 | X136: =IFERROR(VLOOKUP(V136,Output!$C:$AR,42,FALSE),"0000")/5 -> 0 | Y136: =W136*X136 -> 0
S137: Figure 7. | T137: Reboisement | W137: =(ROUND(Y137/X137,0))&"$/ha" -> 1289$/ha | X137: =SUM(X132:X136) -> 1219.673 | Y137: =SUM(Y132:Y136) -> 1572705.33
S138: Figure 7. | T138: Dégagement de la régénération naturelle | U138: OTAUXDEG_2_100 | V138: OSUPDEG_2 | W138: =IFERROR(VLOOKUP(U138,Output!$C:$AR,42,FALSE),0) -> 1470 | X138: =IFERROR(VLOOKUP(V138,Output!$C:$AR,42,FALSE),"0000")/5 -> 0 | Y138: 0
S139: Figure 7. | T139: Dégagement de plantation | U139: OTAUXDEG_1_100 | V139: OSUPDEG_1 | W139: =IFERROR(VLOOKUP(U139,Output!$C:$AR,42,FALSE),0) -> 1470 | X139: =IFERROR(VLOOKUP(V139,Output!$C:$AR,42,FALSE),"0000")/5 -> 839.551 | Y139: 1234139.97
S140: Figure 7. | T140: Nettoiement de la régénération naturelle | U140: OTAUXNETT_100 | V140: OSUPREALNET | W140: =IFERROR(VLOOKUP(U140,Output!$C:$AR,42,FALSE),0) -> 1140 | X140: =IFERROR(VLOOKUP(V140,Output!$C:$AR,42,FALSE),"0000")/5-X141 -> 208.18 | Y140: 237325.2
C141: $ /m3 | E141: $ /ha | S141: Figure 7. | T141: Nettoiement de plantation | U141: OTAUXNETT_100 | V141: OSUPTCADNETT_T100% | W141: =IFERROR(VLOOKUP(U141,Output!$C:$AR,42,FALSE),0) -> 1140 | X141: =IFERROR(VLOOKUP(V141,Output!$C:$AR,42,FALSE),"0000")/5 -> 664.91 | Y141: 757997.4
C142: =Y151/(Instructions!I5/5) -> 3.789567475 | E142: =Y151/Tableaux!F33 -> 7.951693311 | S142: Figure 7. | T142: Éclaircie précommerciale (EPC_1) | U142: OTAUXEPC_1_100 | V142: OSUPEPC_1 | W142: =IFERROR(VLOOKUP(U142,Output!$C:$AR,42,FALSE),0) -> 1450 | X142: =IFERROR(VLOOKUP(V142,Output!$C:$AR,42,FALSE),"0000")/5 -> 0 | Y142: 0
S143: Figure 7. | T143: Éclaircie précommerciale (EPC_2) | U143: OTAUXEPC_2_100 | V143: OSUPEPC_2 | W143: =IFERROR(VLOOKUP(U143,Output!$C:$AR,42,FALSE),0) -> 1450 | X143: =IFERROR(VLOOKUP(V143,Output!$C:$AR,42,FALSE),"0000")/5 -> 79.037 | Y143: 114603.65
S144: Figure 7. | T144: Éclaircie précommerciale de la régénération naturelle | V144: OSUPREALEPC | W144: =IFERROR(VLOOKUP(U144,Output!$C:$AR,42,FALSE),0) -> 0 | X144: =IFERROR(VLOOKUP(V144,Output!$C:$AR,42,FALSE),"0000")/5 -> 79.037 | Y144: 0
S145: Figure 7. | T145: Élagage (plantation) | U145: OTAUXELAG_100 | V145: OSUPELAG | W145: =IFERROR(VLOOKUP(U145,Output!$C:$AR,42,FALSE),0) -> 1630 | X145: =IFERROR(VLOOKUP(V145,Output!$C:$AR,42,FALSE),"0000")/5 -> 0 | Y145: 0
S146: Figure 7. | T146: Travaux d'éducation | W146: =(ROUND(Y146/X146,0))&"$/ha" -> 1308$/ha | X146: =SUM(X138:X143)+X145 -> 1791.678 | Y146: =SUM(Y138:Y143)+Y145 -> 2344066.22
S147: Figure 7. | T147: Préparation terrain lignicult. + ferti + élagage (SCA_LIGN) | U147: OTAUXSCA_LIGN_100 | V147: OSUPSCA_LIGN | W147: =IFERROR(VLOOKUP(U147,Output!$C:$AR,42,FALSE),0) -> 1520 | X147: =IFERROR(VLOOKUP(V147,Output!$C:$AR,42,FALSE),"0000")/5 -> 0 | Y147: 0
S148: Figure 7. | T148: Préparation de terrain partielle (SCA_PART) | U148: OTAUXSCA_PART_100 | V148: OSUPSCA_PART | W148: =IFERROR(VLOOKUP(U148,Output!$C:$AR,42,FALSE),0) -> 540 | X148: =IFERROR(VLOOKUP(V148,Output!$C:$AR,42,FALSE),"0000")/5 -> 416.74 | Y148: 225039.6
S149: Figure 7. | T149: Préparation de terrain régulière, 1 passage (SCA_REG) | U149: OTAUXSCA_REG_100 | V149: OSUPSCA_REG | W149: =IFERROR(VLOOKUP(U149,Output!$C:$AR,42,FALSE),0) -> 420 | X149: =IFERROR(VLOOKUP(V149,Output!$C:$AR,42,FALSE),"0000")/5 -> 1219.672 | Y149: 512262.24 | AA149: Valideur
B150: Figure 9b Évolution de la superficie des vieilles forêts selon leur degré d'altération | S150: Figure 7. | T150: Préparation de terrain | W150: =(ROUND(Y150/X150,0))&"$/ha" -> 451$/ha | X150: =SUM(X147:X149) -> 1636.412 | Y150: =SUM(Y147:Y149) -> 737301.84 | Z150: =Y123+Y131+Y137+Y146+Y150 -> 5673136.85 | AA150: =Y151-Z150 -> -1.256999999
S151: Figure 7. | T151: Investissement sylvicole annuel (O$INVESTISTS)* | V151: O$INVESTISTS | Y151: =IFERROR(VLOOKUP(V151,Output!$C:$AR,42,FALSE),"0000")/5 -> 5673135.593
S155: =LEFT(B$117,10) -> Figure 7. | T155: =T123 -> Coupes finales | U155: =Y123 -> 0 | V155: =W123 -> 0$/ha
S156: =LEFT(B$117,10) -> Figure 7. | T156: =T131 -> Coupes partielles | U156: =Y131 -> 1019063.46 | V156: =W131 -> 574$/ha
S157: =LEFT(B$117,10) -> Figure 7. | T157: =T137 -> Reboisement | U157: =Y137 -> 1572705.33 | V157: =W137 -> 1289$/ha
S158: =LEFT(B$117,10) -> Figure 7. | T158: =T146 -> Travaux d'éducation | U158: =Y146 -> 2344066.22 | V158: =W146 -> 1308$/ha
S159: =LEFT(B$117,10) -> Figure 7. | T159: =T150 -> Préparation de terrain | U159: =Y150 -> 737301.84 | V159: =W150 -> 451$/ha
U161: Période | V161: P0 | W161: P1 | X161: P2 | Y161: P3 | Z161: P4 | AA161: P5 | AB161: P6 | AC161: P7 | AD161: P8 | AE161: P9 | AF161: P10 | AG161: P11 | AH161: P12 | AI161: P13 | AJ161: P14 | AK161: P15 | AL161: P16 | AM161: P17 | AN161: P18 | AO161: P19 | AP161: P20 | AQ161: P21 | AR161: P22 | AS161: P23 | AT161: P24 | AU161: P25 | AV161: P26 | AW161: P27 | AX161: P28 | AY161: P29 | AZ161: P30
S162: =LEFT(B$150,10) -> Figure 9b | U162: Axe des "X" Fin de période | V162: 2018 | W162: 2023 | X162: 2028 | Y162: 2033 | Z162: 2038 | AA162: 2043 | AB162: 2048 | AC162: 2053 | AD162: 2058 | AE162: 2063 | AF162: 2068 | AG162: 2073 | AH162: 2078 | AI162: 2083 | AJ162: 2088 | AK162: 2093 | AL162: 2098 | AM162: 2103 | AN162: 2108 | AO162: 2113 | AP162: 2118 | AQ162: 2123 | AR162: 2128 | AS162: 2133 | AT162: 2138 | AU162: 2143 | AV162: 2148 | AW162: 2153 | AX162: 2158 | AY162: 2163 | AZ162: 2168
S163: Figure 9b | U163: Colonne | V163: 6 | W163: 7 | X163: 8 | Y163: 9 | Z163: 10 | AA163: 11 | AB163: 12 | AC163: 13 | AD163: 14 | AE163: 15 | AF163: 16 | AG163: 17 | AH163: 18 | AI163: 19 | AJ163: 20 | AK163: 21 | AL163: 22 | AM163: 23 | AN163: 24 | AO163: 25 | AP163: 26 | AQ163: 27 | AR163: 28 | AS163: 29 | AT163: 30 | AU163: 31 | AV163: 32 | AW163: 33 | AX163: 34 | AY163: 35 | AZ163: 36
S164: Figure 9b | U164: OSUPREGECO | V164: =VLOOKUP($U164,Output!$C:$AL,V$163,FALSE) -> 803151.4 | W164: =VLOOKUP($U164,Output!$C:$AL,W$163,FALSE) -> 801250.14 | X164: =VLOOKUP($U164,Output!$C:$AL,X$163,FALSE) -> 798590.22 | Y164: =VLOOKUP($U164,Output!$C:$AL,Y$163,FALSE) -> 796089.68 | Z164: =VLOOKUP($U164,Output!$C:$AL,Z$163,FALSE) -> 793623.5 | AA164: =VLOOKUP($U164,Output!$C:$AL,AA$163,FALSE) -> 791557.66 | AB164: =VLOOKUP($U164,Output!$C:$AL,AB$163,FALSE) -> 789630.98 | AC164: =VLOOKUP($U164,Output!$C:$AL,AC$163,FALSE) -> 787920.39 | AD164: =VLOOKUP($U164,Output!$C:$AL,AD$163,FALSE) -> 786969.51 | AE164: =VLOOKUP($U164,Output!$C:$AL,AE$163,FALSE) -> 785961.73 | AF164: =VLOOKUP($U164,Output!$C:$AL,AF$163,FALSE) -> 784586.58 | AG164: =VLOOKUP($U164,Output!$C:$AL,AG$163,FALSE) -> 782888.44 | AH164: =VLOOKUP($U164,Output!$C:$AL,AH$163,FALSE) -> 781444.32 | AI164: =VLOOKUP($U164,Output!$C:$AL,AI$163,FALSE) -> 780306.59 | AJ164: =VLOOKUP($U164,Output!$C:$AL,AJ$163,FALSE) -> 779491.15 | AK164: =VLOOKUP($U164,Output!$C:$AL,AK$163,FALSE) -> 778933.49 | AL164: =VLOOKUP($U164,Output!$C:$AL,AL$163,FALSE) -> 778178.2 | AM164: =VLOOKUP($U164,Output!$C:$AL,AM$163,FALSE) -> 777708.82 | AN164: =VLOOKUP($U164,Output!$C:$AL,AN$163,FALSE) -> 777110.51 | AO164: =VLOOKUP($U164,Output!$C:$AL,AO$163,FALSE) -> 776507.44 | AP164: =VLOOKUP($U164,Output!$C:$AL,AP$163,FALSE) -> 776321.74 | AQ164: =VLOOKUP($U164,Output!$C:$AL,AQ$163,FALSE) -> 775991.56 | AR164: =VLOOKUP($U164,Output!$C:$AL,AR$163,FALSE) -> 775617.59 | AS164: =VLOOKUP($U164,Output!$C:$AL,AS$163,FALSE) -> 775330.28 | AT164: =VLOOKUP($U164,Output!$C:$AL,AT$163,FALSE) -> 775330.28 | AU164: =VLOOKUP($U164,Output!$C:$AL,AU$163,FALSE) -> 775323.42 | AV164: =VLOOKUP($U164,Output!$C:$AL,AV$163,FALSE) -> 775323.42 | AW164: =VLOOKUP($U164,Output!$C:$AL,AW$163,FALSE) -> 775323.42 | AX164: =VLOOKUP($U164,Output!$C:$AL,AX$163,FALSE) -> 775320.28 | AY164: =VLOOKUP($U164,Output!$C:$AL,AY$163,FALSE) -> 775300.28 | AZ164: =VLOOKUP($U164,Output!$C:$AL,AZ$163,FALSE) -> 775280.28
S165: Figure 9b | T165: Élevé | U165: OSUPVIEUXALERTEREGECO | V165: =VLOOKUP($U165,Output!$C:$AL,V$163,FALSE) -> 148705.56 | W165: =VLOOKUP($U165,Output!$C:$AL,W$163,FALSE) -> 148358.56 | X165: =VLOOKUP($U165,Output!$C:$AL,X$163,FALSE) -> 147862.3 | Y165: =VLOOKUP($U165,Output!$C:$AL,Y$163,FALSE) -> 147396.47 | Z165: =VLOOKUP($U165,Output!$C:$AL,Z$163,FALSE) -> 146941.53 | AA165: =VLOOKUP($U165,Output!$C:$AL,AA$163,FALSE) -> 146560.44 | AB165: =VLOOKUP($U165,Output!$C:$AL,AB$163,FALSE) -> 146205.57 | AC165: =VLOOKUP($U165,Output!$C:$AL,AC$163,FALSE) -> 145890.48 | AD165: =VLOOKUP($U165,Output!$C:$AL,AD$163,FALSE) -> 145714.49 | AE165: =VLOOKUP($U165,Output!$C:$AL,AE$163,FALSE) -> 145528.72 | AF165: =VLOOKUP($U165,Output!$C:$AL,AF$163,FALSE) -> 145275.99 | AG165: =VLOOKUP($U165,Output!$C:$AL,AG$163,FALSE) -> 144964.27 | AH165: =VLOOKUP($U165,Output!$C:$AL,AH$163,FALSE) -> 144697.07 | AI165: =VLOOKUP($U165,Output!$C:$AL,AI$163,FALSE) -> 144486.26 | AJ165: =VLOOKUP($U165,Output!$C:$AL,AJ$163,FALSE) -> 144334.67 | AK165: =VLOOKUP($U165,Output!$C:$AL,AK$163,FALSE) -> 144231.44 | AL165: =VLOOKUP($U165,Output!$C:$AL,AL$163,FALSE) -> 144089.81 | AM165: =VLOOKUP($U165,Output!$C:$AL,AM$163,FALSE) -> 144001.93 | AN165: =VLOOKUP($U165,Output!$C:$AL,AN$163,FALSE) -> 143889.72 | AO165: =VLOOKUP($U165,Output!$C:$AL,AO$163,FALSE) -> 143776.52 | AP165: =VLOOKUP($U165,Output!$C:$AL,AP$163,FALSE) -> 143740.89 | AQ165: =VLOOKUP($U165,Output!$C:$AL,AQ$163,FALSE) -> 143680.45 | AR165: =VLOOKUP($U165,Output!$C:$AL,AR$163,FALSE) -> 143610.25 | AS165: =VLOOKUP($U165,Output!$C:$AL,AS$163,FALSE) -> 143557.85 | AT165: =VLOOKUP($U165,Output!$C:$AL,AT$163,FALSE) -> 143557.85 | AU165: =VLOOKUP($U165,Output!$C:$AL,AU$163,FALSE) -> 143556.6 | AV165: =VLOOKUP($U165,Output!$C:$AL,AV$163,FALSE) -> 143556.6 | AW165: =VLOOKUP($U165,Output!$C:$AL,AW$163,FALSE) -> 143556.6 | AX165: =VLOOKUP($U165,Output!$C:$AL,AX$163,FALSE) -> 143556.03 | AY165: =VLOOKUP($U165,Output!$C:$AL,AY$163,FALSE) -> 143552.47 | AZ165: =VLOOKUP($U165,Output!$C:$AL,AZ$163,FALSE) -> 143548.82
S166: Figure 9b | U166: OSUPVIEUXACCEPTREGECO | V166: =VLOOKUP($U166,Output!$C:$AL,V$163,FALSE) -> 247842.6 | W166: =VLOOKUP($U166,Output!$C:$AL,W$163,FALSE) -> 247264.27 | X166: =VLOOKUP($U166,Output!$C:$AL,X$163,FALSE) -> 246437.17 | Y166: =VLOOKUP($U166,Output!$C:$AL,Y$163,FALSE) -> 245660.79 | Z166: =VLOOKUP($U166,Output!$C:$AL,Z$163,FALSE) -> 244902.55 | AA166: =VLOOKUP($U166,Output!$C:$AL,AA$163,FALSE) -> 244267.4 | AB166: =VLOOKUP($U166,Output!$C:$AL,AB$163,FALSE) -> 243675.94 | AC166: =VLOOKUP($U166,Output!$C:$AL,AC$163,FALSE) -> 243150.8 | AD166: =VLOOKUP($U166,Output!$C:$AL,AD$163,FALSE) -> 242857.49 | AE166: =VLOOKUP($U166,Output!$C:$AL,AE$163,FALSE) -> 242547.86 | AF166: =VLOOKUP($U166,Output!$C:$AL,AF$163,FALSE) -> 242126.65 | AG166: =VLOOKUP($U166,Output!$C:$AL,AG$163,FALSE) -> 241607.12 | AH166: =VLOOKUP($U166,Output!$C:$AL,AH$163,FALSE) -> 241161.78 | AI166: =VLOOKUP($U166,Output!$C:$AL,AI$163,FALSE) -> 240810.44 | AJ166: =VLOOKUP($U166,Output!$C:$AL,AJ$163,FALSE) -> 240557.79 | AK166: =VLOOKUP($U166,Output!$C:$AL,AK$163,FALSE) -> 240385.73 | AL166: =VLOOKUP($U166,Output!$C:$AL,AL$163,FALSE) -> 240149.68 | AM166: =VLOOKUP($U166,Output!$C:$AL,AM$163,FALSE) -> 240003.21 | AN166: =VLOOKUP($U166,Output!$C:$AL,AN$163,FALSE) -> 239816.19 | AO166: =VLOOKUP($U166,Output!$C:$AL,AO$163,FALSE) -> 239627.53 | AP166: =VLOOKUP($U166,Output!$C:$AL,AP$163,FALSE) -> 239568.16 | AQ166: =VLOOKUP($U166,Output!$C:$AL,AQ$163,FALSE) -> 239467.42 | AR166: =VLOOKUP($U166,Output!$C:$AL,AR$163,FALSE) -> 239350.42 | AS166: =VLOOKUP($U166,Output!$C:$AL,AS$163,FALSE) -> 239263.08 | AT166: =VLOOKUP($U166,Output!$C:$AL,AT$163,FALSE) -> 239263.08 | AU166: =VLOOKUP($U166,Output!$C:$AL,AU$163,FALSE) -> 239261 | AV166: =VLOOKUP($U166,Output!$C:$AL,AV$163,FALSE) -> 239261 | AW166: =VLOOKUP($U166,Output!$C:$AL,AW$163,FALSE) -> 239261 | AX166: =VLOOKUP($U166,Output!$C:$AL,AX$163,FALSE) -> 239260.06 | AY166: =VLOOKUP($U166,Output!$C:$AL,AY$163,FALSE) -> 239254.11 | AZ166: =VLOOKUP($U166,Output!$C:$AL,AZ$163,FALSE) -> 239248.03
S167: Figure 9b | T167: Moyen | V167: =V166-V165 -> 99137.04 | W167: =W166-W165 -> 98905.71 | X167: 98574.87 | Y167: 98264.32 | Z167: 97961.02 | AA167: 97706.96 | AB167: 97470.37 | AC167: 97260.32 | AD167: 97143 | AE167: 97019.14 | AF167: 96850.66 | AG167: 96642.85 | AH167: 96464.71 | AI167: 96324.18 | AJ167: 96223.12 | AK167: 96154.29 | AL167: 96059.87 | AM167: 96001.28 | AN167: 95926.47 | AO167: 95851.01 | AP167: 95827.27 | AQ167: 95786.97 | AR167: 95740.17 | AS167: 95705.23 | AT167: 95705.23 | AU167: 95704.4 | AV167: 95704.4 | AW167: 95704.4 | AX167: 95704.03 | AY167: 95701.64 | AZ167: 95699.21
S168: Figure 9b | T168: Faible | V168: =$V$164-V165-V167 -> 555308.8 | W168: 555887.13 | X168: 556714.23 | Y168: 557490.61 | Z168: 558248.85 | AA168: 558884 | AB168: 559475.46 | AC168: 560000.6 | AD168: 560293.91 | AE168: 560603.54 | AF168: 561024.75 | AG168: 561544.28 | AH168: 561989.62 | AI168: 562340.96 | AJ168: 562593.61 | AK168: 562765.67 | AL168: 563001.72 | AM168: 563148.19 | AN168: 563335.21 | AO168: 563523.87 | AP168: 563583.24 | AQ168: 563683.98 | AR168: 563800.98 | AS168: 563888.32 | AT168: 563888.32 | AU168: 563890.4 | AV168: 563890.4 | AW168: 563890.4 | AX168: 563891.34 | AY168: 563897.29 | AZ168: 563903.37
S169: Figure 9b | T169: Niveau prédit | U169: OSUPVIEUXTOTREGECO | V169: =VLOOKUP($U169,Output!$C:$AL,V$163,FALSE) -> 201721 | W169: =VLOOKUP($U169,Output!$C:$AL,W$163,FALSE) -> 249110.07 | X169: =VLOOKUP($U169,Output!$C:$AL,X$163,FALSE) -> 249731.14 | Y169: =VLOOKUP($U169,Output!$C:$AL,Y$163,FALSE) -> 295208.91 | Z169: =VLOOKUP($U169,Output!$C:$AL,Z$163,FALSE) -> 316211.36 | AA169: =VLOOKUP($U169,Output!$C:$AL,AA$163,FALSE) -> 352674.91 | AB169: =VLOOKUP($U169,Output!$C:$AL,AB$163,FALSE) -> 352618.27 | AC169: =VLOOKUP($U169,Output!$C:$AL,AC$163,FALSE) -> 366770.2 | AD169: =VLOOKUP($U169,Output!$C:$AL,AD$163,FALSE) -> 388584.1 | AE169: =VLOOKUP($U169,Output!$C:$AL,AE$163,FALSE) -> 385245.65 | AF169: =VLOOKUP($U169,Output!$C:$AL,AF$163,FALSE) -> 368383.19 | AG169: =VLOOKUP($U169,Output!$C:$AL,AG$163,FALSE) -> 338498.52 | AH169: =VLOOKUP($U169,Output!$C:$AL,AH$163,FALSE) -> 315012.55 | AI169: =VLOOKUP($U169,Output!$C:$AL,AI$163,FALSE) -> 302154.52 | AJ169: =VLOOKUP($U169,Output!$C:$AL,AJ$163,FALSE) -> 280768.61 | AK169: =VLOOKUP($U169,Output!$C:$AL,AK$163,FALSE) -> 284777.41 | AL169: =VLOOKUP($U169,Output!$C:$AL,AL$163,FALSE) -> 277180.76 | AM169: =VLOOKUP($U169,Output!$C:$AL,AM$163,FALSE) -> 275705.33 | AN169: =VLOOKUP($U169,Output!$C:$AL,AN$163,FALSE) -> 265718.58 | AO169: =VLOOKUP($U169,Output!$C:$AL,AO$163,FALSE) -> 261462.69 | AP169: =VLOOKUP($U169,Output!$C:$AL,AP$163,FALSE) -> 271280.44 | AQ169: =VLOOKUP($U169,Output!$C:$AL,AQ$163,FALSE) -> 265219.96 | AR169: =VLOOKUP($U169,Output!$C:$AL,AR$163,FALSE) -> 255198.76 | AS169: =VLOOKUP($U169,Output!$C:$AL,AS$163,FALSE) -> 246558.27 | AT169: =VLOOKUP($U169,Output!$C:$AL,AT$163,FALSE) -> 263140.26 | AU169: =VLOOKUP($U169,Output!$C:$AL,AU$163,FALSE) -> 268019.16 | AV169: =VLOOKUP($U169,Output!$C:$AL,AV$163,FALSE) -> 260643.18 | AW169: =VLOOKUP($U169,Output!$C:$AL,AW$163,FALSE) -> 266803.82 | AX169: =VLOOKUP($U169,Output!$C:$AL,AX$163,FALSE) -> 259050.35 | AY169: =VLOOKUP($U169,Output!$C:$AL,AY$163,FALSE) -> 253161.52 | AZ169: =VLOOKUP($U169,Output!$C:$AL,AZ$163,FALSE) -> 266291.24
S170: Figure 9b | T170: Portrait préindustriel
B176: Figure 9c Évolution de la superficie des peuplements en régénération selon leur degré d'altération
U177: Période | V177: P0 | W177: P1 | X177: P2 | Y177: P3 | Z177: P4 | AA177: P5 | AB177: P6 | AC177: P7 | AD177: P8 | AE177: P9 | AF177: P10 | AG177: P11 | AH177: P12 | AI177: P13 | AJ177: P14 | AK177: P15 | AL177: P16 | AM177: P17 | AN177: P18 | AO177: P19 | AP177: P20 | AQ177: P21 | AR177: P22 | AS177: P23 | AT177: P24 | AU177: P25 | AV177: P26 | AW177: P27 | AX177: P28 | AY177: P29 | AZ177: P30
U178: Axe des "X" Fin de période | V178: 2018 | W178: 2023 | X178: 2028 | Y178: 2033 | Z178: 2038 | AA178: 2043 | AB178: 2048 | AC178: 2053 | AD178: 2058 | AE178: 2063 | AF178: 2068 | AG178: 2073 | AH178: 2078 | AI178: 2083 | AJ178: 2088 | AK178: 2093 | AL178: 2098 | AM178: 2103 | AN178: 2108 | AO178: 2113 | AP178: 2118 | AQ178: 2123 | AR178: 2128 | AS178: 2133 | AT178: 2138 | AU178: 2143 | AV178: 2148 | AW178: 2153 | AX178: 2158 | AY178: 2163 | AZ178: 2168
S179: =LEFT(B$176,10) -> Figure 9c | U179: Colonne | V179: 6 | W179: 7 | X179: 8 | Y179: 9 | Z179: 10 | AA179: 11 | AB179: 12 | AC179: 13 | AD179: 14 | AE179: 15 | AF179: 16 | AG179: 17 | AH179: 18 | AI179: 19 | AJ179: 20 | AK179: 21 | AL179: 22 | AM179: 23 | AN179: 24 | AO179: 25 | AP179: 26 | AQ179: 27 | AR179: 28 | AS179: 29 | AT179: 30 | AU179: 31 | AV179: 32 | AW179: 33 | AX179: 34 | AY179: 35 | AZ179: 36
S180: Figure 9c | T180: Niveau prédit | U180: OSUPJEUNEREGECO | V180: =VLOOKUP($U180,Output!$C:$AL,V$179,FALSE) -> 34784.2 | W180: =VLOOKUP($U180,Output!$C:$AL,W$179,FALSE) -> 45774.76 | X180: =VLOOKUP($U180,Output!$C:$AL,X$179,FALSE) -> 80806.3 | Y180: =VLOOKUP($U180,Output!$C:$AL,Y$179,FALSE) -> 101310.74 | Z180: =VLOOKUP($U180,Output!$C:$AL,Z$179,FALSE) -> 110781.46 | AA180: =VLOOKUP($U180,Output!$C:$AL,AA$179,FALSE) -> 107815.19 | AB180: =VLOOKUP($U180,Output!$C:$AL,AB$179,FALSE) -> 102955.04 | AC180: =VLOOKUP($U180,Output!$C:$AL,AC$179,FALSE) -> 99809.23 | AD180: =VLOOKUP($U180,Output!$C:$AL,AD$179,FALSE) -> 97430.6 | AE180: =VLOOKUP($U180,Output!$C:$AL,AE$179,FALSE) -> 95611.14 | AF180: =VLOOKUP($U180,Output!$C:$AL,AF$179,FALSE) -> 95058.14 | AG180: =VLOOKUP($U180,Output!$C:$AL,AG$179,FALSE) -> 96682.16 | AH180: =VLOOKUP($U180,Output!$C:$AL,AH$179,FALSE) -> 98241.68 | AI180: =VLOOKUP($U180,Output!$C:$AL,AI$179,FALSE) -> 96494.68 | AJ180: =VLOOKUP($U180,Output!$C:$AL,AJ$179,FALSE) -> 96520.02 | AK180: =VLOOKUP($U180,Output!$C:$AL,AK$179,FALSE) -> 96828.44 | AL180: =VLOOKUP($U180,Output!$C:$AL,AL$179,FALSE) -> 104079.91 | AM180: =VLOOKUP($U180,Output!$C:$AL,AM$179,FALSE) -> 103066.54 | AN180: =VLOOKUP($U180,Output!$C:$AL,AN$179,FALSE) -> 105531.19 | AO180: =VLOOKUP($U180,Output!$C:$AL,AO$179,FALSE) -> 103775.23 | AP180: =VLOOKUP($U180,Output!$C:$AL,AP$179,FALSE) -> 103662.69 | AQ180: =VLOOKUP($U180,Output!$C:$AL,AQ$179,FALSE) -> 100353.85 | AR180: =VLOOKUP($U180,Output!$C:$AL,AR$179,FALSE) -> 98102.11 | AS180: =VLOOKUP($U180,Output!$C:$AL,AS$179,FALSE) -> 93527.55 | AT180: =VLOOKUP($U180,Output!$C:$AL,AT$179,FALSE) -> 92098.36 | AU180: =VLOOKUP($U180,Output!$C:$AL,AU$179,FALSE) -> 91513.4 | AV180: =VLOOKUP($U180,Output!$C:$AL,AV$179,FALSE) -> 93256.68 | AW180: =VLOOKUP($U180,Output!$C:$AL,AW$179,FALSE) -> 92841.53 | AX180: =VLOOKUP($U180,Output!$C:$AL,AX$179,FALSE) -> 90263.27 | AY180: =VLOOKUP($U180,Output!$C:$AL,AY$179,FALSE) -> 92240.44 | AZ180: =VLOOKUP($U180,Output!$C:$AL,AZ$179,FALSE) -> 93537.75
S181: Figure 9c | U181: OSUPREGECO | V181: =VLOOKUP($U181,Output!$C:$AL,V$179,FALSE) -> 803151.4 | W181: =VLOOKUP($U181,Output!$C:$AL,W$179,FALSE) -> 801250.14 | X181: =VLOOKUP($U181,Output!$C:$AL,X$179,FALSE) -> 798590.22 | Y181: =VLOOKUP($U181,Output!$C:$AL,Y$179,FALSE) -> 796089.68 | Z181: =VLOOKUP($U181,Output!$C:$AL,Z$179,FALSE) -> 793623.5 | AA181: =VLOOKUP($U181,Output!$C:$AL,AA$179,FALSE) -> 791557.66 | AB181: =VLOOKUP($U181,Output!$C:$AL,AB$179,FALSE) -> 789630.98 | AC181: =VLOOKUP($U181,Output!$C:$AL,AC$179,FALSE) -> 787920.39 | AD181: =VLOOKUP($U181,Output!$C:$AL,AD$179,FALSE) -> 786969.51 | AE181: =VLOOKUP($U181,Output!$C:$AL,AE$179,FALSE) -> 785961.73 | AF181: =VLOOKUP($U181,Output!$C:$AL,AF$179,FALSE) -> 784586.58 | AG181: =VLOOKUP($U181,Output!$C:$AL,AG$179,FALSE) -> 782888.44 | AH181: =VLOOKUP($U181,Output!$C:$AL,AH$179,FALSE) -> 781444.32 | AI181: =VLOOKUP($U181,Output!$C:$AL,AI$179,FALSE) -> 780306.59 | AJ181: =VLOOKUP($U181,Output!$C:$AL,AJ$179,FALSE) -> 779491.15 | AK181: =VLOOKUP($U181,Output!$C:$AL,AK$179,FALSE) -> 778933.49 | AL181: =VLOOKUP($U181,Output!$C:$AL,AL$179,FALSE) -> 778178.2 | AM181: =VLOOKUP($U181,Output!$C:$AL,AM$179,FALSE) -> 777708.82 | AN181: =VLOOKUP($U181,Output!$C:$AL,AN$179,FALSE) -> 777110.51 | AO181: =VLOOKUP($U181,Output!$C:$AL,AO$179,FALSE) -> 776507.44 | AP181: =VLOOKUP($U181,Output!$C:$AL,AP$179,FALSE) -> 776321.74 | AQ181: =VLOOKUP($U181,Output!$C:$AL,AQ$179,FALSE) -> 775991.56 | AR181: =VLOOKUP($U181,Output!$C:$AL,AR$179,FALSE) -> 775617.59 | AS181: =VLOOKUP($U181,Output!$C:$AL,AS$179,FALSE) -> 775330.28 | AT181: =VLOOKUP($U181,Output!$C:$AL,AT$179,FALSE) -> 775330.28 | AU181: =VLOOKUP($U181,Output!$C:$AL,AU$179,FALSE) -> 775323.42 | AV181: =VLOOKUP($U181,Output!$C:$AL,AV$179,FALSE) -> 775323.42 | AW181: =VLOOKUP($U181,Output!$C:$AL,AW$179,FALSE) -> 775323.42 | AX181: =VLOOKUP($U181,Output!$C:$AL,AX$179,FALSE) -> 775320.28 | AY181: =VLOOKUP($U181,Output!$C:$AL,AY$179,FALSE) -> 775300.28 | AZ181: =VLOOKUP($U181,Output!$C:$AL,AZ$179,FALSE) -> 775280.28
S182: Figure 9c | V182: =IFERROR(V180/V181,"0000") -> 0.04330964249 | W182: 0.05712917567 | X182: 0.1011861878 | Y182: 0.1272604614 | Z182: 0.1395894401 | AA182: 0.136206363 | AB182: 0.1303837395 | AC182: 0.126674257 | AD182: 0.1238047965 | AE182: 0.1216485948 | AF182: 0.1211569793 | AG182: 0.1234941724 | AH182: 0.1257180806 | AI182: 0.1236625209 | AJ182: 0.1238243949 | AK182: 0.1243089959 | AL182: 0.1337481698 | AM182: 0.1325258726 | AN182: 0.1357994631 | AO182: 0.1336435746 | AP182: 0.1335305772 | AQ182: 0.1293233782 | AR182: 0.126482575 | AS182: 0.1206293014 | AT182: 0.1187859708 | AU182: 0.1180325496 | AV182: 0.1202810048 | AW182: 0.1197455508 | AX182: 0.116420623 | AY182: 0.1189738252 | AZ182: 0.1206502376
S183: Figure 9c
S184: Figure 9c | U184: OSUPJEUNEALERTEREGECO | V184: =VLOOKUP($U184,Output!$C:$AL,V$179,FALSE) -> 240950.09 | W184: =VLOOKUP($U184,Output!$C:$AL,W$179,FALSE) -> 240379.71 | X184: =VLOOKUP($U184,Output!$C:$AL,X$179,FALSE) -> 239581.73 | Y184: =VLOOKUP($U184,Output!$C:$AL,Y$179,FALSE) -> 238831.57 | Z184: =VLOOKUP($U184,Output!$C:$AL,Z$179,FALSE) -> 238091.71 | AA184: =VLOOKUP($U184,Output!$C:$AL,AA$179,FALSE) -> 237471.95 | AB184: =VLOOKUP($U184,Output!$C:$AL,AB$179,FALSE) -> 236893.95 | AC184: =VLOOKUP($U184,Output!$C:$AL,AC$179,FALSE) -> 236380.77 | AD184: =VLOOKUP($U184,Output!$C:$AL,AD$179,FALSE) -> 236095.51 | AE184: =VLOOKUP($U184,Output!$C:$AL,AE$179,FALSE) -> 235793.18 | AF184: =VLOOKUP($U184,Output!$C:$AL,AF$179,FALSE) -> 235380.62 | AG184: =VLOOKUP($U184,Output!$C:$AL,AG$179,FALSE) -> 234871.18 | AH184: =VLOOKUP($U184,Output!$C:$AL,AH$179,FALSE) -> 234437.94 | AI184: =VLOOKUP($U184,Output!$C:$AL,AI$179,FALSE) -> 234096.62 | AJ184: =VLOOKUP($U184,Output!$C:$AL,AJ$179,FALSE) -> 233851.99 | AK184: =VLOOKUP($U184,Output!$C:$AL,AK$179,FALSE) -> 233684.69 | AL184: =VLOOKUP($U184,Output!$C:$AL,AL$179,FALSE) -> 233458.11 | AM184: =VLOOKUP($U184,Output!$C:$AL,AM$179,FALSE) -> 233317.29 | AN184: =VLOOKUP($U184,Output!$C:$AL,AN$179,FALSE) -> 233137.8 | AO184: =VLOOKUP($U184,Output!$C:$AL,AO$179,FALSE) -> 232956.88 | AP184: =VLOOKUP($U184,Output!$C:$AL,AP$179,FALSE) -> 232901.17 | AQ184: =VLOOKUP($U184,Output!$C:$AL,AQ$179,FALSE) -> 232802.11 | AR184: =VLOOKUP($U184,Output!$C:$AL,AR$179,FALSE) -> 232689.92 | AS184: =VLOOKUP($U184,Output!$C:$AL,AS$179,FALSE) -> 232603.73 | AT184: =VLOOKUP($U184,Output!$C:$AL,AT$179,FALSE) -> 232603.73 | AU184: =VLOOKUP($U184,Output!$C:$AL,AU$179,FALSE) -> 232601.67 | AV184: =VLOOKUP($U184,Output!$C:$AL,AV$179,FALSE) -> 232601.67 | AW184: =VLOOKUP($U184,Output!$C:$AL,AW$179,FALSE) -> 232601.67 | AX184: =VLOOKUP($U184,Output!$C:$AL,AX$179,FALSE) -> 232600.73 | AY184: =VLOOKUP($U184,Output!$C:$AL,AY$179,FALSE) -> 232594.73 | AZ184: =VLOOKUP($U184,Output!$C:$AL,AZ$179,FALSE) -> 232588.73
S185: Figure 9c | T185: Faible | U185: OSUPJEUNEACCEPTREGECO | V185: =VLOOKUP($U185,Output!$C:$AL,V$179,FALSE) -> 160634.95 | W185: =VLOOKUP($U185,Output!$C:$AL,W$179,FALSE) -> 160254.69 | X185: =VLOOKUP($U185,Output!$C:$AL,X$179,FALSE) -> 159722.71 | Y185: =VLOOKUP($U185,Output!$C:$AL,Y$179,FALSE) -> 159222.6 | Z185: =VLOOKUP($U185,Output!$C:$AL,Z$179,FALSE) -> 158729.36 | AA185: =VLOOKUP($U185,Output!$C:$AL,AA$179,FALSE) -> 158316.19 | AB185: =VLOOKUP($U185,Output!$C:$AL,AB$179,FALSE) -> 157930.85 | AC185: =VLOOKUP($U185,Output!$C:$AL,AC$179,FALSE) -> 157588.73 | AD185: =VLOOKUP($U185,Output!$C:$AL,AD$179,FALSE) -> 157398.56 | AE185: =VLOOKUP($U185,Output!$C:$AL,AE$179,FALSE) -> 157197 | AF185: =VLOOKUP($U185,Output!$C:$AL,AF$179,FALSE) -> 156921.96 | AG185: =VLOOKUP($U185,Output!$C:$AL,AG$179,FALSE) -> 156582.33 | AH185: =VLOOKUP($U185,Output!$C:$AL,AH$179,FALSE) -> 156293.51 | AI185: =VLOOKUP($U185,Output!$C:$AL,AI$179,FALSE) -> 156065.96 | AJ185: =VLOOKUP($U185,Output!$C:$AL,AJ$179,FALSE) -> 155902.88 | AK185: =VLOOKUP($U185,Output!$C:$AL,AK$179,FALSE) -> 155791.34 | AL185: =VLOOKUP($U185,Output!$C:$AL,AL$179,FALSE) -> 155640.29 | AM185: =VLOOKUP($U185,Output!$C:$AL,AM$179,FALSE) -> 155546.41 | AN185: =VLOOKUP($U185,Output!$C:$AL,AN$179,FALSE) -> 155426.75 | AO185: =VLOOKUP($U185,Output!$C:$AL,AO$179,FALSE) -> 155306.13 | AP185: =VLOOKUP($U185,Output!$C:$AL,AP$179,FALSE) -> 155268.99 | AQ185: =VLOOKUP($U185,Output!$C:$AL,AQ$179,FALSE) -> 155202.96 | AR185: =VLOOKUP($U185,Output!$C:$AL,AR$179,FALSE) -> 155128.16 | AS185: =VLOOKUP($U185,Output!$C:$AL,AS$179,FALSE) -> 155070.7 | AT185: =VLOOKUP($U185,Output!$C:$AL,AT$179,FALSE) -> 155070.7 | AU185: =VLOOKUP($U185,Output!$C:$AL,AU$179,FALSE) -> 155069.33 | AV185: =VLOOKUP($U185,Output!$C:$AL,AV$179,FALSE) -> 155069.33 | AW185: =VLOOKUP($U185,Output!$C:$AL,AW$179,FALSE) -> 155069.33 | AX185: =VLOOKUP($U185,Output!$C:$AL,AX$179,FALSE) -> 155068.7 | AY185: =VLOOKUP($U185,Output!$C:$AL,AY$179,FALSE) -> 155064.7 | AZ185: =VLOOKUP($U185,Output!$C:$AL,AZ$179,FALSE) -> 155060.7
S186: Figure 9c | T186: Moyen | V186: =V184-V185 -> 80315.14 | W186: 80125.02 | X186: 79859.02 | Y186: 79608.97 | Z186: 79362.35 | AA186: 79155.76 | AB186: 78963.1 | AC186: 78792.04 | AD186: 78696.95 | AE186: 78596.18 | AF186: 78458.66 | AG186: 78288.85 | AH186: 78144.43 | AI186: 78030.66 | AJ186: 77949.11 | AK186: 77893.35 | AL186: 77817.82 | AM186: 77770.88 | AN186: 77711.05 | AO186: 77650.75 | AP186: 77632.18 | AQ186: 77599.15 | AR186: 77561.76 | AS186: 77533.03 | AT186: 77533.03 | AU186: 77532.34 | AV186: 77532.34 | AW186: 77532.34 | AX186: 77532.03 | AY186: 77530.03 | AZ186: 77528.03
S187: Figure 9c | T187: Élevé | V187: =$V$181-V184 -> 562201.31 | W187: 562771.69 | X187: 563569.67 | Y187: 564319.83 | Z187: 565059.69 | AA187: 565679.45 | AB187: 566257.45 | AC187: 566770.63 | AD187: 567055.89 | AE187: 567358.22 | AF187: 567770.78 | AG187: 568280.22 | AH187: 568713.46 | AI187: 569054.78 | AJ187: 569299.41 | AK187: 569466.71 | AL187: 569693.29 | AM187: 569834.11 | AN187: 570013.6 | AO187: 570194.52 | AP187: 570250.23 | AQ187: 570349.29 | AR187: 570461.48 | AS187: 570547.67 | AT187: 570547.67 | AU187: 570549.73 | AV187: 570549.73 | AW187: 570549.73 | AX187: 570550.67 | AY187: 570556.67 | AZ187: 570562.67
U199: Période | V199: P0 | W199: P1 | X199: P2 | Y199: P3 | Z199: P4 | AA199: P5 | AB199: P6 | AC199: P7 | AD199: P8 | AE199: P9 | AF199: P10 | AG199: P11 | AH199: P12 | AI199: P13 | AJ199: P14 | AK199: P15 | AL199: P16 | AM199: P17 | AN199: P18 | AO199: P19 | AP199: P20 | AQ199: P21 | AR199: P22 | AS199: P23 | AT199: P24 | AU199: P25 | AV199: P26 | AW199: P27 | AX199: P28 | AY199: P29 | AZ199: P30
U200: Axe des "X" Fin de période | V200: 2018 | W200: 2023 | X200: 2028 | Y200: 2033 | Z200: 2038 | AA200: 2043 | AB200: 2048 | AC200: 2053 | AD200: 2058 | AE200: 2063 | AF200: 2068 | AG200: 2073 | AH200: 2078 | AI200: 2083 | AJ200: 2088 | AK200: 2093 | AL200: 2098 | AM200: 2103 | AN200: 2108 | AO200: 2113 | AP200: 2118 | AQ200: 2123 | AR200: 2128 | AS200: 2133 | AT200: 2138 | AU200: 2143 | AV200: 2148 | AW200: 2153 | AX200: 2158 | AY200: 2163 | AZ200: 2168
U201: Colonne | V201: 6 | W201: 7 | X201: 8 | Y201: 9 | Z201: 10 | AA201: 11 | AB201: 12 | AC201: 13 | AD201: 14 | AE201: 15 | AF201: 16 | AG201: 17 | AH201: 18 | AI201: 19 | AJ201: 20 | AK201: 21 | AL201: 22 | AM201: 23 | AN201: 24 | AO201: 25 | AP201: 26 | AQ201: 27 | AR201: 28 | AS201: 29 | AT201: 30 | AU201: 31 | AV201: 32 | AW201: 33 | AX201: 34 | AY201: 35 | AZ201: 36
B202: Figure 10a Évolution de la superficie selon le type de couvert | S202: =LEFT(B$202,10) -> Figure 10a | U202: OSUPINC
S203: Figure 10a | U203: Résineux | V203: =SUM(V214,V220,V221,V222,V224,V225) -> 257227.1 | W203: =SUM(W214,W220,W221,W222,W224,W225) -> 259080.86 | X203: 260332.75 | Y203: 255543.43 | Z203: 253756.97 | AA203: 250885.38 | AB203: 244512.66 | AC203: 244233.59 | AD203: 244888.98 | AE203: 245181.46 | AF203: 244461.88 | AG203: 243962.59 | AH203: 243661.38 | AI203: 233863.37 | AJ203: 226318.34 | AK203: 219196.4 | AL203: 217252.62 | AM203: 212972.94 | AN203: 212437.49 | AO203: 212097.95 | AP203: 211988.25 | AQ203: 209917.68 | AR203: 209644.52 | AS203: 209525.13 | AT203: 199866.09 | AU203: 196610.88 | AV203: 196443.43 | AW203: 197299.33 | AX203: 198799.55 | AY203: 198985.21 | AZ203: 198786.42
S204: Figure 10a | U204: Mixtes résineux | V204: =V223 -> 133920.6 | W204: =W223 -> 133448.2 | X204: 130773.58 | Y204: 127345.96 | Z204: 113166.64 | AA204: 105480.69 | AB204: 103029.86 | AC204: 90842.35 | AD204: 82299.8 | AE204: 71193.84 | AF204: 52696.56 | AG204: 52702.76 | AH204: 43962.56 | AI204: 53140.01 | AJ204: 57575.33 | AK204: 62812.33 | AL204: 64223.78 | AM204: 67424.63 | AN204: 67581.14 | AO204: 67176.92 | AP204: 67350.92 | AQ204: 69370.74 | AR204: 67369.77 | AS204: 66748.4 | AT204: 76398.36 | AU204: 79539.48 | AV204: 79530.5 | AW204: 78674.61 | AX204: 77171.25 | AY204: 76965.6 | AZ204: 77124.4
S205: Figure 10a | U205: Mixtes feuillus intolérants | V205: =V213+V219 -> 106053.5 | W205: =W213+W219 -> 102804.68 | X205: =X213+X219 -> 103017.72 | Y205: =Y213+Y219 -> 107972.61 | Z205: 121569.18 | AA205: 127583.73 | AB205: 134623.14 | AC205: 144550.72 | AD205: 152946.41 | AE205: 164715.57 | AF205: 184110.33 | AG205: 183220.42 | AH205: 193903.82 | AI205: 195382.32 | AJ205: 196788.91 | AK205: 199762.24 | AL205: 201001.98 | AM205: 203754.56 | AN205: 204908.43 | AO205: 207453.42 | AP205: 211117.45 | AQ205: 211110.24 | AR205: 213221.11 | AS205: 213842.47 | AT205: 213818.75 | AU205: 213849.08 | AV205: 215875.04 | AW205: 214625.04 | AX205: 214614.14 | AY205: 214614.14 | AZ205: 214936.63
S206: Figure 10a | U206: Mixtes feuillus tolérants | V206: =V217 -> 39937.3 | W206: =W217 -> 39142.25 | X206: 38577.13 | Y206: 38403.99 | Z206: 38039.1 | AA206: 37837.99 | AB206: 37809.09 | AC206: 37797.85 | AD206: 36254.01 | AE206: 33315.33 | AF206: 31838.29 | AG206: 31680.55 | AH206: 27929.51 | AI206: 26250.66 | AJ206: 28293.57 | AK206: 26647.52 | AL206: 25184.82 | AM206: 23082.24 | AN206: 21996.59 | AO206: 19642.46 | AP206: 15728.43 | AQ206: 15628.43 | AR206: 15628.43 | AS206: 17021.81 | AT206: 19223.18 | AU206: 23775.11 | AV206: 22087.37 | AW206: 23337.37 | AX206: 23337.37 | AY206: 24173.61 | AZ206: 24607.34
S207: Figure 10a | U207: Feuillus intolérants | V207: =V212+V215+V218 -> 100419.7 | W207: =W212+W215+W218 -> 101558.81 | X207: =X212+X215+X218 -> 100889.58 | Y207: 101909.6 | Z207: 102365.75 | AA207: 105128.27 | AB207: 105163.97 | AC207: 106355.1 | AD207: 109162.78 | AE207: 112460.97 | AF207: 114238.21 | AG207: 114100.81 | AH207: 114783.19 | AI207: 114486.36 | AJ207: 117480.98 | AK207: 118896.43 | AL207: 121408.04 | AM207: 123113.55 | AN207: 123113.55 | AO207: 123113.55 | AP207: 125220.82 | AQ207: 126197.8 | AR207: 128220.55 | AS207: 128220.55 | AT207: 128911.2 | AU207: 128761.83 | AV207: 128761.83 | AW207: 131137.85 | AX207: 133129.3 | AY207: 134901.16 | AZ207: 136494.96
S208: Figure 10a | U208: Feuillus tolérants | V208: =V216 -> 75887.6 | W208: =W216 -> 75509.74 | X208: 75293.87 | Y208: 75208.5 | Z208: 75020.25 | AA208: 74936 | AB208: 74786.66 | AC208: 74435.19 | AD208: 71711.94 | AE208: 69388.97 | AF208: 67535.72 | AG208: 67515.72 | AH208: 67498.25 | AI208: 67478.25 | AJ208: 63328.41 | AK208: 61912.96 | AL208: 59401.36 | AM208: 57655.28 | AN208: 57367.71 | AO208: 57317.53 | AP208: 55210.26 | AQ208: 54061.06 | AR208: 51827.61 | AS208: 50266.31 | AT208: 47407.09 | AU208: 43081.44 | AV208: 42919.63 | AW208: 40543.61 | AX208: 38563.06 | AY208: 35954.96 | AZ208: 33624.93
S209: Figure 10a | U209: Total | V209: =SUM(V203:V208) -> 713445.8 | W209: =SUM(W203:W208) -> 711544.54 | X209: =SUM(X203:X208) -> 708884.63 | Y209: 706384.09 | Z209: 703917.89 | AA209: 701852.06 | AB209: 699925.38 | AC209: 698214.8 | AD209: 697263.92 | AE209: 696256.14 | AF209: 694880.99 | AG209: 693182.85 | AH209: 691738.71 | AI209: 690600.97 | AJ209: 689785.54 | AK209: 689227.88 | AL209: 688472.6 | AM209: 688003.2 | AN209: 687404.91 | AO209: 686801.83 | AP209: 686616.13 | AQ209: 686285.95 | AR209: 685911.99 | AS209: 685624.67 | AT209: 685624.67 | AU209: 685617.82 | AV209: 685617.8 | AW209: 685617.81 | AX209: 685614.67 | AY209: 685594.68 | AZ209: 685574.68
S210: Figure 10a
S211: Figure 10a
S212: Figure 10a | T212: Bétulaies blanches | U212: (FCTYF_BOP) | V212: =VLOOKUP($U$202&$U212,GTYF!$C:$AP,V$201,FALSE) -> 62483.7 | W212: =VLOOKUP($U$202&$U212,GTYF!$C:$AP,W$201,FALSE) -> 62365.21 | X212: =VLOOKUP($U$202&$U212,GTYF!$C:$AP,X$201,FALSE) -> 62203.44 | Y212: =VLOOKUP($U$202&$U212,GTYF!$C:$AP,Y$201,FALSE) -> 61561.46 | Z212: =VLOOKUP($U$202&$U212,GTYF!$C:$AP,Z$201,FALSE) -> 61409.16 | AA212: =VLOOKUP($U$202&$U212,GTYF!$C:$AP,AA$201,FALSE) -> 60756.29 | AB212: =VLOOKUP($U$202&$U212,GTYF!$C:$AP,AB$201,FALSE) -> 60255.69 | AC212: =VLOOKUP($U$202&$U212,GTYF!$C:$AP,AC$201,FALSE) -> 59911.09 | AD212: =VLOOKUP($U$202&$U212,GTYF!$C:$AP,AD$201,FALSE) -> 62269.94 | AE212: =VLOOKUP($U$202&$U212,GTYF!$C:$AP,AE$201,FALSE) -> 64516.91 | AF212: =VLOOKUP($U$202&$U212,GTYF!$C:$AP,AF$201,FALSE) -> 66294.15 | AG212: =VLOOKUP($U$202&$U212,GTYF!$C:$AP,AG$201,FALSE) -> 66156.75 | AH212: =VLOOKUP($U$202&$U212,GTYF!$C:$AP,AH$201,FALSE) -> 66156.75 | AI212: =VLOOKUP($U$202&$U212,GTYF!$C:$AP,AI$201,FALSE) -> 66156.75 | AJ212: =VLOOKUP($U$202&$U212,GTYF!$C:$AP,AJ$201,FALSE) -> 68263.68 | AK212: =VLOOKUP($U$202&$U212,GTYF!$C:$AP,AK$201,FALSE) -> 69679.13 | AL212: =VLOOKUP($U$202&$U212,GTYF!$C:$AP,AL$201,FALSE) -> 72190.74 | AM212: =VLOOKUP($U$202&$U212,GTYF!$C:$AP,AM$201,FALSE) -> 73896.25 | AN212: =VLOOKUP($U$202&$U212,GTYF!$C:$AP,AN$201,FALSE) -> 73896.25 | AO212: =VLOOKUP($U$202&$U212,GTYF!$C:$AP,AO$201,FALSE) -> 73896.25 | AP212: =VLOOKUP($U$202&$U212,GTYF!$C:$AP,AP$201,FALSE) -> 76003.52 | AQ212: =VLOOKUP($U$202&$U212,GTYF!$C:$AP,AQ$201,FALSE) -> 76980.5 | AR212: =VLOOKUP($U$202&$U212,GTYF!$C:$AP,AR$201,FALSE) -> 79085.39 | AS212: =VLOOKUP($U$202&$U212,GTYF!$C:$AP,AS$201,FALSE) -> 79085.39 | AT212: =VLOOKUP($U$202&$U212,GTYF!$C:$AP,AT$201,FALSE) -> 79743.24 | AU212: =VLOOKUP($U$202&$U212,GTYF!$C:$AP,AU$201,FALSE) -> 79516.97 | AV212: =VLOOKUP($U$202&$U212,GTYF!$C:$AP,AV$201,FALSE) -> 79516.97 | AW212: =VLOOKUP($U$202&$U212,GTYF!$C:$AP,AW$201,FALSE) -> 81892.99 | AX212: =VLOOKUP($U$202&$U212,GTYF!$C:$AP,AX$201,FALSE) -> 83873.54 | AY212: =VLOOKUP($U$202&$U212,GTYF!$C:$AP,AY$201,FALSE) -> 85645.4 | AZ212: =VLOOKUP($U$202&$U212,GTYF!$C:$AP,AZ$201,FALSE) -> 87239.2
S213: Figure 10a | T213: Bétulaies blanches à résineux | U213: (FCTYF_BOPR) | V213: =VLOOKUP($U$202&$U213,GTYF!$C:$AP,V$201,FALSE) -> 90661.3 | W213: =VLOOKUP($U$202&$U213,GTYF!$C:$AP,W$201,FALSE) -> 88854.38 | X213: =VLOOKUP($U$202&$U213,GTYF!$C:$AP,X$201,FALSE) -> 89918.6 | Y213: =VLOOKUP($U$202&$U213,GTYF!$C:$AP,Y$201,FALSE) -> 97717.91 | Z213: =VLOOKUP($U$202&$U213,GTYF!$C:$AP,Z$201,FALSE) -> 113782.26 | AA213: =VLOOKUP($U$202&$U213,GTYF!$C:$AP,AA$201,FALSE) -> 121900.04 | AB213: =VLOOKUP($U$202&$U213,GTYF!$C:$AP,AB$201,FALSE) -> 129491.67 | AC213: =VLOOKUP($U$202&$U213,GTYF!$C:$AP,AC$201,FALSE) -> 141023.99 | AD213: =VLOOKUP($U$202&$U213,GTYF!$C:$AP,AD$201,FALSE) -> 150058.1 | AE213: =VLOOKUP($U$202&$U213,GTYF!$C:$AP,AE$201,FALSE) -> 163083.96 | AF213: =VLOOKUP($U$202&$U213,GTYF!$C:$AP,AF$201,FALSE) -> 182478.72 | AG213: =VLOOKUP($U$202&$U213,GTYF!$C:$AP,AG$201,FALSE) -> 181595.01 | AH213: =VLOOKUP($U$202&$U213,GTYF!$C:$AP,AH$201,FALSE) -> 192994.91 | AI213: =VLOOKUP($U$202&$U213,GTYF!$C:$AP,AI$201,FALSE) -> 194473.41 | AJ213: =VLOOKUP($U$202&$U213,GTYF!$C:$AP,AJ$201,FALSE) -> 196788.91 | AK213: =VLOOKUP($U$202&$U213,GTYF!$C:$AP,AK$201,FALSE) -> 199762.24 | AL213: =VLOOKUP($U$202&$U213,GTYF!$C:$AP,AL$201,FALSE) -> 201001.98 | AM213: =VLOOKUP($U$202&$U213,GTYF!$C:$AP,AM$201,FALSE) -> 203754.56 | AN213: =VLOOKUP($U$202&$U213,GTYF!$C:$AP,AN$201,FALSE) -> 204908.43 | AO213: =VLOOKUP($U$202&$U213,GTYF!$C:$AP,AO$201,FALSE) -> 207453.42 | AP213: =VLOOKUP($U$202&$U213,GTYF!$C:$AP,AP$201,FALSE) -> 211117.45 | AQ213: =VLOOKUP($U$202&$U213,GTYF!$C:$AP,AQ$201,FALSE) -> 211110.24 | AR213: =VLOOKUP($U$202&$U213,GTYF!$C:$AP,AR$201,FALSE) -> 213221.11 | AS213: =VLOOKUP($U$202&$U213,GTYF!$C:$AP,AS$201,FALSE) -> 213842.47 | AT213: =VLOOKUP($U$202&$U213,GTYF!$C:$AP,AT$201,FALSE) -> 213818.75 | AU213: =VLOOKUP($U$202&$U213,GTYF!$C:$AP,AU$201,FALSE) -> 213849.08 | AV213: =VLOOKUP($U$202&$U213,GTYF!$C:$AP,AV$201,FALSE) -> 215875.04 | AW213: =VLOOKUP($U$202&$U213,GTYF!$C:$AP,AW$201,FALSE) -> 214625.04 | AX213: =VLOOKUP($U$202&$U213,GTYF!$C:$AP,AX$201,FALSE) -> 214614.14 | AY213: =VLOOKUP($U$202&$U213,GTYF!$C:$AP,AY$201,FALSE) -> 214614.14 | AZ213: =VLOOKUP($U$202&$U213,GTYF!$C:$AP,AZ$201,FALSE) -> 214936.63
S214: Figure 10a | T214: Pessières | U214: (FCTYF_EPX) | V214: =VLOOKUP($U$202&$U214,GTYF!$C:$AP,V$201,FALSE) -> 176686.6 | W214: =VLOOKUP($U$202&$U214,GTYF!$C:$AP,W$201,FALSE) -> 179402.89 | X214: =VLOOKUP($U$202&$U214,GTYF!$C:$AP,X$201,FALSE) -> 184465.55 | Y214: =VLOOKUP($U$202&$U214,GTYF!$C:$AP,Y$201,FALSE) -> 186127.44 | Z214: =VLOOKUP($U$202&$U214,GTYF!$C:$AP,Z$201,FALSE) -> 186180.18 | AA214: =VLOOKUP($U$202&$U214,GTYF!$C:$AP,AA$201,FALSE) -> 187680.74 | AB214: =VLOOKUP($U$202&$U214,GTYF!$C:$AP,AB$201,FALSE) -> 189009.79 | AC214: =VLOOKUP($U$202&$U214,GTYF!$C:$AP,AC$201,FALSE) -> 189480.7 | AD214: =VLOOKUP($U$202&$U214,GTYF!$C:$AP,AD$201,FALSE) -> 190657.01 | AE214: =VLOOKUP($U$202&$U214,GTYF!$C:$AP,AE$201,FALSE) -> 190981.09 | AF214: =VLOOKUP($U$202&$U214,GTYF!$C:$AP,AF$201,FALSE) -> 190967.2 | AG214: =VLOOKUP($U$202&$U214,GTYF!$C:$AP,AG$201,FALSE) -> 190975.08 | AH214: =VLOOKUP($U$202&$U214,GTYF!$C:$AP,AH$201,FALSE) -> 190837.53 | AI214: =VLOOKUP($U$202&$U214,GTYF!$C:$AP,AI$201,FALSE) -> 188283.22 | AJ214: =VLOOKUP($U$202&$U214,GTYF!$C:$AP,AJ$201,FALSE) -> 183218.9 | AK214: =VLOOKUP($U$202&$U214,GTYF!$C:$AP,AK$201,FALSE) -> 176286.49 | AL214: =VLOOKUP($U$202&$U214,GTYF!$C:$AP,AL$201,FALSE) -> 174342.71 | AM214: =VLOOKUP($U$202&$U214,GTYF!$C:$AP,AM$201,FALSE) -> 170253.7 | AN214: =VLOOKUP($U$202&$U214,GTYF!$C:$AP,AN$201,FALSE) -> 169718.25 | AO214: =VLOOKUP($U$202&$U214,GTYF!$C:$AP,AO$201,FALSE) -> 169622.45 | AP214: =VLOOKUP($U$202&$U214,GTYF!$C:$AP,AP$201,FALSE) -> 169964.85 | AQ214: =VLOOKUP($U$202&$U214,GTYF!$C:$AP,AQ$201,FALSE) -> 170373.17 | AR214: =VLOOKUP($U$202&$U214,GTYF!$C:$AP,AR$201,FALSE) -> 171527.98 | AS214: =VLOOKUP($U$202&$U214,GTYF!$C:$AP,AS$201,FALSE) -> 172402.57 | AT214: =VLOOKUP($U$202&$U214,GTYF!$C:$AP,AT$201,FALSE) -> 171398.55 | AU214: =VLOOKUP($U$202&$U214,GTYF!$C:$AP,AU$201,FALSE) -> 170316.24 | AV214: =VLOOKUP($U$202&$U214,GTYF!$C:$AP,AV$201,FALSE) -> 170148.79 | AW214: =VLOOKUP($U$202&$U214,GTYF!$C:$AP,AW$201,FALSE) -> 171004.69 | AX214: =VLOOKUP($U$202&$U214,GTYF!$C:$AP,AX$201,FALSE) -> 172926.13 | AY214: =VLOOKUP($U$202&$U214,GTYF!$C:$AP,AY$201,FALSE) -> 173131.79 | AZ214: =VLOOKUP($U$202&$U214,GTYF!$C:$AP,AZ$201,FALSE) -> 172953
S215: Figure 10a | T215: Érablières rouges | U215: (FCTYF_ERO) | V215: =VLOOKUP($U$202&$U215,GTYF!$C:$AP,V$201,FALSE) -> 6681 | W215: =VLOOKUP($U$202&$U215,GTYF!$C:$AP,W$201,FALSE) -> 6681 | X215: =VLOOKUP($U$202&$U215,GTYF!$C:$AP,X$201,FALSE) -> 6681 | Y215: =VLOOKUP($U$202&$U215,GTYF!$C:$AP,Y$201,FALSE) -> 6681 | Z215: =VLOOKUP($U$202&$U215,GTYF!$C:$AP,Z$201,FALSE) -> 6681 | AA215: =VLOOKUP($U$202&$U215,GTYF!$C:$AP,AA$201,FALSE) -> 6681 | AB215: =VLOOKUP($U$202&$U215,GTYF!$C:$AP,AB$201,FALSE) -> 6681 | AC215: =VLOOKUP($U$202&$U215,GTYF!$C:$AP,AC$201,FALSE) -> 6681 | AD215: =VLOOKUP($U$202&$U215,GTYF!$C:$AP,AD$201,FALSE) -> 6681 | AE215: =VLOOKUP($U$202&$U215,GTYF!$C:$AP,AE$201,FALSE) -> 6681 | AF215: =VLOOKUP($U$202&$U215,GTYF!$C:$AP,AF$201,FALSE) -> 6681 | AG215: =VLOOKUP($U$202&$U215,GTYF!$C:$AP,AG$201,FALSE) -> 6681 | AH215: =VLOOKUP($U$202&$U215,GTYF!$C:$AP,AH$201,FALSE) -> 6659.35 | AI215: =VLOOKUP($U$202&$U215,GTYF!$C:$AP,AI$201,FALSE) -> 6362.52 | AJ215: =VLOOKUP($U$202&$U215,GTYF!$C:$AP,AJ$201,FALSE) -> 6341.31 | AK215: =VLOOKUP($U$202&$U215,GTYF!$C:$AP,AK$201,FALSE) -> 6341.31 | AL215: =VLOOKUP($U$202&$U215,GTYF!$C:$AP,AL$201,FALSE) -> 6341.31 | AM215: =VLOOKUP($U$202&$U215,GTYF!$C:$AP,AM$201,FALSE) -> 6341.31 | AN215: =VLOOKUP($U$202&$U215,GTYF!$C:$AP,AN$201,FALSE) -> 6341.31 | AO215: =VLOOKUP($U$202&$U215,GTYF!$C:$AP,AO$201,FALSE) -> 6341.31 | AP215: =VLOOKUP($U$202&$U215,GTYF!$C:$AP,AP$201,FALSE) -> 6341.31 | AQ215: =VLOOKUP($U$202&$U215,GTYF!$C:$AP,AQ$201,FALSE) -> 6341.31 | AR215: =VLOOKUP($U$202&$U215,GTYF!$C:$AP,AR$201,FALSE) -> 6341.31 | AS215: =VLOOKUP($U$202&$U215,GTYF!$C:$AP,AS$201,FALSE) -> 6341.31 | AT215: =VLOOKUP($U$202&$U215,GTYF!$C:$AP,AT$201,FALSE) -> 6341.31 | AU215: =VLOOKUP($U$202&$U215,GTYF!$C:$AP,AU$201,FALSE) -> 6341.31 | AV215: =VLOOKUP($U$202&$U215,GTYF!$C:$AP,AV$201,FALSE) -> 6341.31 | AW215: =VLOOKUP($U$202&$U215,GTYF!$C:$AP,AW$201,FALSE) -> 6341.31 | AX215: =VLOOKUP($U$202&$U215,GTYF!$C:$AP,AX$201,FALSE) -> 6341.31 | AY215: =VLOOKUP($U$202&$U215,GTYF!$C:$AP,AY$201,FALSE) -> 6341.31 | AZ215: =VLOOKUP($U$202&$U215,GTYF!$C:$AP,AZ$201,FALSE) -> 6341.31
S216: Figure 10a | T216: Feuillus tolérants | U216: (FCTYF_FT) | V216: =VLOOKUP($U$202&$U216,GTYF!$C:$AP,V$201,FALSE) -> 75887.6 | W216: =VLOOKUP($U$202&$U216,GTYF!$C:$AP,W$201,FALSE) -> 75509.74 | X216: =VLOOKUP($U$202&$U216,GTYF!$C:$AP,X$201,FALSE) -> 75293.87 | Y216: =VLOOKUP($U$202&$U216,GTYF!$C:$AP,Y$201,FALSE) -> 75208.5 | Z216: =VLOOKUP($U$202&$U216,GTYF!$C:$AP,Z$201,FALSE) -> 75020.25 | AA216: =VLOOKUP($U$202&$U216,GTYF!$C:$AP,AA$201,FALSE) -> 74936 | AB216: =VLOOKUP($U$202&$U216,GTYF!$C:$AP,AB$201,FALSE) -> 74786.66 | AC216: =VLOOKUP($U$202&$U216,GTYF!$C:$AP,AC$201,FALSE) -> 74435.19 | AD216: =VLOOKUP($U$202&$U216,GTYF!$C:$AP,AD$201,FALSE) -> 71711.94 | AE216: =VLOOKUP($U$202&$U216,GTYF!$C:$AP,AE$201,FALSE) -> 69388.97 | AF216: =VLOOKUP($U$202&$U216,GTYF!$C:$AP,AF$201,FALSE) -> 67535.72 | AG216: =VLOOKUP($U$202&$U216,GTYF!$C:$AP,AG$201,FALSE) -> 67515.72 | AH216: =VLOOKUP($U$202&$U216,GTYF!$C:$AP,AH$201,FALSE) -> 67498.25 | AI216: =VLOOKUP($U$202&$U216,GTYF!$C:$AP,AI$201,FALSE) -> 67478.25 | AJ216: =VLOOKUP($U$202&$U216,GTYF!$C:$AP,AJ$201,FALSE) -> 63328.41 | AK216: =VLOOKUP($U$202&$U216,GTYF!$C:$AP,AK$201,FALSE) -> 61912.96 | AL216: =VLOOKUP($U$202&$U216,GTYF!$C:$AP,AL$201,FALSE) -> 59401.36 | AM216: =VLOOKUP($U$202&$U216,GTYF!$C:$AP,AM$201,FALSE) -> 57655.28 | AN216: =VLOOKUP($U$202&$U216,GTYF!$C:$AP,AN$201,FALSE) -> 57367.71 | AO216: =VLOOKUP($U$202&$U216,GTYF!$C:$AP,AO$201,FALSE) -> 57317.53 | AP216: =VLOOKUP($U$202&$U216,GTYF!$C:$AP,AP$201,FALSE) -> 55210.26 | AQ216: =VLOOKUP($U$202&$U216,GTYF!$C:$AP,AQ$201,FALSE) -> 54061.06 | AR216: =VLOOKUP($U$202&$U216,GTYF!$C:$AP,AR$201,FALSE) -> 51827.61 | AS216: =VLOOKUP($U$202&$U216,GTYF!$C:$AP,AS$201,FALSE) -> 50266.31 | AT216: =VLOOKUP($U$202&$U216,GTYF!$C:$AP,AT$201,FALSE) -> 47407.09 | AU216: =VLOOKUP($U$202&$U216,GTYF!$C:$AP,AU$201,FALSE) -> 43081.44 | AV216: =VLOOKUP($U$202&$U216,GTYF!$C:$AP,AV$201,FALSE) -> 42919.63 | AW216: =VLOOKUP($U$202&$U216,GTYF!$C:$AP,AW$201,FALSE) -> 40543.61 | AX216: =VLOOKUP($U$202&$U216,GTYF!$C:$AP,AX$201,FALSE) -> 38563.06 | AY216: =VLOOKUP($U$202&$U216,GTYF!$C:$AP,AY$201,FALSE) -> 35954.96 | AZ216: =VLOOKUP($U$202&$U216,GTYF!$C:$AP,AZ$201,FALSE) -> 33624.93
S217: Figure 10a | T217: Feuillus tolérants à résineux | U217: (FCTYF_FTR) | V217: =VLOOKUP($U$202&$U217,GTYF!$C:$AP,V$201,FALSE) -> 39937.3 | W217: =VLOOKUP($U$202&$U217,GTYF!$C:$AP,W$201,FALSE) -> 39142.25 | X217: =VLOOKUP($U$202&$U217,GTYF!$C:$AP,X$201,FALSE) -> 38577.13 | Y217: =VLOOKUP($U$202&$U217,GTYF!$C:$AP,Y$201,FALSE) -> 38403.99 | Z217: =VLOOKUP($U$202&$U217,GTYF!$C:$AP,Z$201,FALSE) -> 38039.1 | AA217: =VLOOKUP($U$202&$U217,GTYF!$C:$AP,AA$201,FALSE) -> 37837.99 | AB217: =VLOOKUP($U$202&$U217,GTYF!$C:$AP,AB$201,FALSE) -> 37809.09 | AC217: =VLOOKUP($U$202&$U217,GTYF!$C:$AP,AC$201,FALSE) -> 37797.85 | AD217: =VLOOKUP($U$202&$U217,GTYF!$C:$AP,AD$201,FALSE) -> 36254.01 | AE217: =VLOOKUP($U$202&$U217,GTYF!$C:$AP,AE$201,FALSE) -> 33315.33 | AF217: =VLOOKUP($U$202&$U217,GTYF!$C:$AP,AF$201,FALSE) -> 31838.29 | AG217: =VLOOKUP($U$202&$U217,GTYF!$C:$AP,AG$201,FALSE) -> 31680.55 | AH217: =VLOOKUP($U$202&$U217,GTYF!$C:$AP,AH$201,FALSE) -> 27929.51 | AI217: =VLOOKUP($U$202&$U217,GTYF!$C:$AP,AI$201,FALSE) -> 26250.66 | AJ217: =VLOOKUP($U$202&$U217,GTYF!$C:$AP,AJ$201,FALSE) -> 28293.57 | AK217: =VLOOKUP($U$202&$U217,GTYF!$C:$AP,AK$201,FALSE) -> 26647.52 | AL217: =VLOOKUP($U$202&$U217,GTYF!$C:$AP,AL$201,FALSE) -> 25184.82 | AM217: =VLOOKUP($U$202&$U217,GTYF!$C:$AP,AM$201,FALSE) -> 23082.24 | AN217: =VLOOKUP($U$202&$U217,GTYF!$C:$AP,AN$201,FALSE) -> 21996.59 | AO217: =VLOOKUP($U$202&$U217,GTYF!$C:$AP,AO$201,FALSE) -> 19642.46 | AP217: =VLOOKUP($U$202&$U217,GTYF!$C:$AP,AP$201,FALSE) -> 15728.43 | AQ217: =VLOOKUP($U$202&$U217,GTYF!$C:$AP,AQ$201,FALSE) -> 15628.43 | AR217: =VLOOKUP($U$202&$U217,GTYF!$C:$AP,AR$201,FALSE) -> 15628.43 | AS217: =VLOOKUP($U$202&$U217,GTYF!$C:$AP,AS$201,FALSE) -> 17021.81 | AT217: =VLOOKUP($U$202&$U217,GTYF!$C:$AP,AT$201,FALSE) -> 19223.18 | AU217: =VLOOKUP($U$202&$U217,GTYF!$C:$AP,AU$201,FALSE) -> 23775.11 | AV217: =VLOOKUP($U$202&$U217,GTYF!$C:$AP,AV$201,FALSE) -> 22087.37 | AW217: =VLOOKUP($U$202&$U217,GTYF!$C:$AP,AW$201,FALSE) -> 23337.37 | AX217: =VLOOKUP($U$202&$U217,GTYF!$C:$AP,AX$201,FALSE) -> 23337.37 | AY217: =VLOOKUP($U$202&$U217,GTYF!$C:$AP,AY$201,FALSE) -> 24173.61 | AZ217: =VLOOKUP($U$202&$U217,GTYF!$C:$AP,AZ$201,FALSE) -> 24607.34
S218: Figure 10a | T218: Peupleraies | U218: (FCTYF_PEU) | V218: =VLOOKUP($U$202&$U218,GTYF!$C:$AP,V$201,FALSE) -> 31255 | W218: =VLOOKUP($U$202&$U218,GTYF!$C:$AP,W$201,FALSE) -> 32512.6 | X218: =VLOOKUP($U$202&$U218,GTYF!$C:$AP,X$201,FALSE) -> 32005.14 | Y218: =VLOOKUP($U$202&$U218,GTYF!$C:$AP,Y$201,FALSE) -> 33667.14 | Z218: =VLOOKUP($U$202&$U218,GTYF!$C:$AP,Z$201,FALSE) -> 34275.59 | AA218: =VLOOKUP($U$202&$U218,GTYF!$C:$AP,AA$201,FALSE) -> 37690.98 | AB218: =VLOOKUP($U$202&$U218,GTYF!$C:$AP,AB$201,FALSE) -> 38227.28 | AC218: =VLOOKUP($U$202&$U218,GTYF!$C:$AP,AC$201,FALSE) -> 39763.01 | AD218: =VLOOKUP($U$202&$U218,GTYF!$C:$AP,AD$201,FALSE) -> 40211.84 | AE218: =VLOOKUP($U$202&$U218,GTYF!$C:$AP,AE$201,FALSE) -> 41263.06 | AF218: =VLOOKUP($U$202&$U218,GTYF!$C:$AP,AF$201,FALSE) -> 41263.06 | AG218: =VLOOKUP($U$202&$U218,GTYF!$C:$AP,AG$201,FALSE) -> 41263.06 | AH218: =VLOOKUP($U$202&$U218,GTYF!$C:$AP,AH$201,FALSE) -> 41967.09 | AI218: =VLOOKUP($U$202&$U218,GTYF!$C:$AP,AI$201,FALSE) -> 41967.09 | AJ218: =VLOOKUP($U$202&$U218,GTYF!$C:$AP,AJ$201,FALSE) -> 42875.99 | AK218: =VLOOKUP($U$202&$U218,GTYF!$C:$AP,AK$201,FALSE) -> 42875.99 | AL218: =VLOOKUP($U$202&$U218,GTYF!$C:$AP,AL$201,FALSE) -> 42875.99 | AM218: =VLOOKUP($U$202&$U218,GTYF!$C:$AP,AM$201,FALSE) -> 42875.99 | AN218: =VLOOKUP($U$202&$U218,GTYF!$C:$AP,AN$201,FALSE) -> 42875.99 | AO218: =VLOOKUP($U$202&$U218,GTYF!$C:$AP,AO$201,FALSE) -> 42875.99 | AP218: =VLOOKUP($U$202&$U218,GTYF!$C:$AP,AP$201,FALSE) -> 42875.99 | AQ218: =VLOOKUP($U$202&$U218,GTYF!$C:$AP,AQ$201,FALSE) -> 42875.99 | AR218: =VLOOKUP($U$202&$U218,GTYF!$C:$AP,AR$201,FALSE) -> 42793.85 | AS218: =VLOOKUP($U$202&$U218,GTYF!$C:$AP,AS$201,FALSE) -> 42793.85 | AT218: =VLOOKUP($U$202&$U218,GTYF!$C:$AP,AT$201,FALSE) -> 42826.65 | AU218: =VLOOKUP($U$202&$U218,GTYF!$C:$AP,AU$201,FALSE) -> 42903.55 | AV218: =VLOOKUP($U$202&$U218,GTYF!$C:$AP,AV$201,FALSE) -> 42903.55 | AW218: =VLOOKUP($U$202&$U218,GTYF!$C:$AP,AW$201,FALSE) -> 42903.55 | AX218: =VLOOKUP($U$202&$U218,GTYF!$C:$AP,AX$201,FALSE) -> 42914.45 | AY218: =VLOOKUP($U$202&$U218,GTYF!$C:$AP,AY$201,FALSE) -> 42914.45 | AZ218: =VLOOKUP($U$202&$U218,GTYF!$C:$AP,AZ$201,FALSE) -> 42914.45
S219: Figure 10a | T219: Peupleraies à résineux | U219: (FCTYF_PEUR) | V219: =VLOOKUP($U$202&$U219,GTYF!$C:$AP,V$201,FALSE) -> 15392.2 | W219: =VLOOKUP($U$202&$U219,GTYF!$C:$AP,W$201,FALSE) -> 13950.3 | X219: =VLOOKUP($U$202&$U219,GTYF!$C:$AP,X$201,FALSE) -> 13099.12 | Y219: =VLOOKUP($U$202&$U219,GTYF!$C:$AP,Y$201,FALSE) -> 10254.7 | Z219: =VLOOKUP($U$202&$U219,GTYF!$C:$AP,Z$201,FALSE) -> 7786.92 | AA219: =VLOOKUP($U$202&$U219,GTYF!$C:$AP,AA$201,FALSE) -> 5683.69 | AB219: =VLOOKUP($U$202&$U219,GTYF!$C:$AP,AB$201,FALSE) -> 5131.47 | AC219: =VLOOKUP($U$202&$U219,GTYF!$C:$AP,AC$201,FALSE) -> 3526.73 | AD219: =VLOOKUP($U$202&$U219,GTYF!$C:$AP,AD$201,FALSE) -> 2888.31 | AE219: =VLOOKUP($U$202&$U219,GTYF!$C:$AP,AE$201,FALSE) -> 1631.61 | AF219: =VLOOKUP($U$202&$U219,GTYF!$C:$AP,AF$201,FALSE) -> 1631.61 | AG219: =VLOOKUP($U$202&$U219,GTYF!$C:$AP,AG$201,FALSE) -> 1625.41 | AH219: =VLOOKUP($U$202&$U219,GTYF!$C:$AP,AH$201,FALSE) -> 908.91 | AI219: =VLOOKUP($U$202&$U219,GTYF!$C:$AP,AI$201,FALSE) -> 908.91 | AJ219: =VLOOKUP($U$202&$U219,GTYF!$C:$AP,AJ$201,FALSE) -> 0 | AK219: =VLOOKUP($U$202&$U219,GTYF!$C:$AP,AK$201,FALSE) -> 0 | AL219: =VLOOKUP($U$202&$U219,GTYF!$C:$AP,AL$201,FALSE) -> 0 | AM219: =VLOOKUP($U$202&$U219,GTYF!$C:$AP,AM$201,FALSE) -> 0 | AN219: =VLOOKUP($U$202&$U219,GTYF!$C:$AP,AN$201,FALSE) -> 0 | AO219: =VLOOKUP($U$202&$U219,GTYF!$C:$AP,AO$201,FALSE) -> 0 | AP219: =VLOOKUP($U$202&$U219,GTYF!$C:$AP,AP$201,FALSE) -> 0 | AQ219: =VLOOKUP($U$202&$U219,GTYF!$C:$AP,AQ$201,FALSE) -> 0 | AR219: =VLOOKUP($U$202&$U219,GTYF!$C:$AP,AR$201,FALSE) -> 0 | AS219: =VLOOKUP($U$202&$U219,GTYF!$C:$AP,AS$201,FALSE) -> 0 | AT219: =VLOOKUP($U$202&$U219,GTYF!$C:$AP,AT$201,FALSE) -> 0 | AU219: =VLOOKUP($U$202&$U219,GTYF!$C:$AP,AU$201,FALSE) -> 0 | AV219: =VLOOKUP($U$202&$U219,GTYF!$C:$AP,AV$201,FALSE) -> 0 | AW219: =VLOOKUP($U$202&$U219,GTYF!$C:$AP,AW$201,FALSE) -> 0 | AX219: =VLOOKUP($U$202&$U219,GTYF!$C:$AP,AX$201,FALSE) -> 0 | AY219: =VLOOKUP($U$202&$U219,GTYF!$C:$AP,AY$201,FALSE) -> 0 | AZ219: =VLOOKUP($U$202&$U219,GTYF!$C:$AP,AZ$201,FALSE) -> 0
S220: Figure 10a | T220: Pinèdes grises | U220: (FCTYF_PIG) | V220: =VLOOKUP($U$202&$U220,GTYF!$C:$AP,V$201,FALSE) -> 21596.9 | W220: =VLOOKUP($U$202&$U220,GTYF!$C:$AP,W$201,FALSE) -> 21591.03 | X220: =VLOOKUP($U$202&$U220,GTYF!$C:$AP,X$201,FALSE) -> 18370.25 | Y220: =VLOOKUP($U$202&$U220,GTYF!$C:$AP,Y$201,FALSE) -> 18328.05 | Z220: =VLOOKUP($U$202&$U220,GTYF!$C:$AP,Z$201,FALSE) -> 18285.86 | AA220: =VLOOKUP($U$202&$U220,GTYF!$C:$AP,AA$201,FALSE) -> 18243.66 | AB220: =VLOOKUP($U$202&$U220,GTYF!$C:$AP,AB$201,FALSE) -> 18228.77 | AC220: =VLOOKUP($U$202&$U220,GTYF!$C:$AP,AC$201,FALSE) -> 17552.54 | AD220: =VLOOKUP($U$202&$U220,GTYF!$C:$AP,AD$201,FALSE) -> 17086.48 | AE220: =VLOOKUP($U$202&$U220,GTYF!$C:$AP,AE$201,FALSE) -> 17056.1 | AF220: =VLOOKUP($U$202&$U220,GTYF!$C:$AP,AF$201,FALSE) -> 17013.9 | AG220: =VLOOKUP($U$202&$U220,GTYF!$C:$AP,AG$201,FALSE) -> 16971.71 | AH220: =VLOOKUP($U$202&$U220,GTYF!$C:$AP,AH$201,FALSE) -> 16955.63 | AI220: =VLOOKUP($U$202&$U220,GTYF!$C:$AP,AI$201,FALSE) -> 16955.63 | AJ220: =VLOOKUP($U$202&$U220,GTYF!$C:$AP,AJ$201,FALSE) -> 16955.63 | AK220: =VLOOKUP($U$202&$U220,GTYF!$C:$AP,AK$201,FALSE) -> 16955.63 | AL220: =VLOOKUP($U$202&$U220,GTYF!$C:$AP,AL$201,FALSE) -> 16955.63 | AM220: =VLOOKUP($U$202&$U220,GTYF!$C:$AP,AM$201,FALSE) -> 16955.63 | AN220: =VLOOKUP($U$202&$U220,GTYF!$C:$AP,AN$201,FALSE) -> 16955.63 | AO220: =VLOOKUP($U$202&$U220,GTYF!$C:$AP,AO$201,FALSE) -> 16955.63 | AP220: =VLOOKUP($U$202&$U220,GTYF!$C:$AP,AP$201,FALSE) -> 16955.63 | AQ220: =VLOOKUP($U$202&$U220,GTYF!$C:$AP,AQ$201,FALSE) -> 16496.56 | AR220: =VLOOKUP($U$202&$U220,GTYF!$C:$AP,AR$201,FALSE) -> 15428.48 | AS220: =VLOOKUP($U$202&$U220,GTYF!$C:$AP,AS$201,FALSE) -> 14434.5 | AT220: =VLOOKUP($U$202&$U220,GTYF!$C:$AP,AT$201,FALSE) -> 14434.5 | AU220: =VLOOKUP($U$202&$U220,GTYF!$C:$AP,AU$201,FALSE) -> 14434.5 | AV220: =VLOOKUP($U$202&$U220,GTYF!$C:$AP,AV$201,FALSE) -> 14434.5 | AW220: =VLOOKUP($U$202&$U220,GTYF!$C:$AP,AW$201,FALSE) -> 14434.5 | AX220: =VLOOKUP($U$202&$U220,GTYF!$C:$AP,AX$201,FALSE) -> 14016.41 | AY220: =VLOOKUP($U$202&$U220,GTYF!$C:$AP,AY$201,FALSE) -> 14016.41 | AZ220: =VLOOKUP($U$202&$U220,GTYF!$C:$AP,AZ$201,FALSE) -> 14016.41
S221: Figure 10a | T221: Pinèdes blanches | U221: (FCTYF_PIN) | V221: =VLOOKUP($U$202&$U221,GTYF!$C:$AP,V$201,FALSE) -> 5424.9 | W221: =VLOOKUP($U$202&$U221,GTYF!$C:$AP,W$201,FALSE) -> 5424.9 | X221: =VLOOKUP($U$202&$U221,GTYF!$C:$AP,X$201,FALSE) -> 5424.9 | Y221: =VLOOKUP($U$202&$U221,GTYF!$C:$AP,Y$201,FALSE) -> 5307.51 | Z221: =VLOOKUP($U$202&$U221,GTYF!$C:$AP,Z$201,FALSE) -> 5299.1 | AA221: =VLOOKUP($U$202&$U221,GTYF!$C:$AP,AA$201,FALSE) -> 5235.79 | AB221: =VLOOKUP($U$202&$U221,GTYF!$C:$AP,AB$201,FALSE) -> 5141.01 | AC221: =VLOOKUP($U$202&$U221,GTYF!$C:$AP,AC$201,FALSE) -> 5087.26 | AD221: =VLOOKUP($U$202&$U221,GTYF!$C:$AP,AD$201,FALSE) -> 5052.4 | AE221: =VLOOKUP($U$202&$U221,GTYF!$C:$AP,AE$201,FALSE) -> 5051.18 | AF221: =VLOOKUP($U$202&$U221,GTYF!$C:$AP,AF$201,FALSE) -> 4387.69 | AG221: =VLOOKUP($U$202&$U221,GTYF!$C:$AP,AG$201,FALSE) -> 4387.69 | AH221: =VLOOKUP($U$202&$U221,GTYF!$C:$AP,AH$201,FALSE) -> 4387.69 | AI221: =VLOOKUP($U$202&$U221,GTYF!$C:$AP,AI$201,FALSE) -> 4060.93 | AJ221: =VLOOKUP($U$202&$U221,GTYF!$C:$AP,AJ$201,FALSE) -> 3952.49 | AK221: =VLOOKUP($U$202&$U221,GTYF!$C:$AP,AK$201,FALSE) -> 3762.96 | AL221: =VLOOKUP($U$202&$U221,GTYF!$C:$AP,AL$201,FALSE) -> 3762.96 | AM221: =VLOOKUP($U$202&$U221,GTYF!$C:$AP,AM$201,FALSE) -> 3572.29 | AN221: =VLOOKUP($U$202&$U221,GTYF!$C:$AP,AN$201,FALSE) -> 3572.29 | AO221: =VLOOKUP($U$202&$U221,GTYF!$C:$AP,AO$201,FALSE) -> 3328.55 | AP221: =VLOOKUP($U$202&$U221,GTYF!$C:$AP,AP$201,FALSE) -> 2876.45 | AQ221: =VLOOKUP($U$202&$U221,GTYF!$C:$AP,AQ$201,FALSE) -> 1113.29 | AR221: =VLOOKUP($U$202&$U221,GTYF!$C:$AP,AR$201,FALSE) -> 753.4 | AS221: =VLOOKUP($U$202&$U221,GTYF!$C:$AP,AS$201,FALSE) -> 753.4 | AT221: =VLOOKUP($U$202&$U221,GTYF!$C:$AP,AT$201,FALSE) -> 611.21 | AU221: =VLOOKUP($U$202&$U221,GTYF!$C:$AP,AU$201,FALSE) -> 549.5 | AV221: =VLOOKUP($U$202&$U221,GTYF!$C:$AP,AV$201,FALSE) -> 549.5 | AW221: =VLOOKUP($U$202&$U221,GTYF!$C:$AP,AW$201,FALSE) -> 549.5 | AX221: =VLOOKUP($U$202&$U221,GTYF!$C:$AP,AX$201,FALSE) -> 549.5 | AY221: =VLOOKUP($U$202&$U221,GTYF!$C:$AP,AY$201,FALSE) -> 549.5 | AZ221: =VLOOKUP($U$202&$U221,GTYF!$C:$AP,AZ$201,FALSE) -> 549.5
S222: Figure 10a | T222: Prucheraies | U222: (FCTYF_PRU) | V222: =VLOOKUP($U$202&$U222,GTYF!$C:$AP,V$201,FALSE) -> 0 | W222: =VLOOKUP($U$202&$U222,GTYF!$C:$AP,W$201,FALSE) -> 0 | X222: =VLOOKUP($U$202&$U222,GTYF!$C:$AP,X$201,FALSE) -> 0 | Y222: =VLOOKUP($U$202&$U222,GTYF!$C:$AP,Y$201,FALSE) -> 0 | Z222: =VLOOKUP($U$202&$U222,GTYF!$C:$AP,Z$201,FALSE) -> 0 | AA222: =VLOOKUP($U$202&$U222,GTYF!$C:$AP,AA$201,FALSE) -> 0 | AB222: =VLOOKUP($U$202&$U222,GTYF!$C:$AP,AB$201,FALSE) -> 0 | AC222: =VLOOKUP($U$202&$U222,GTYF!$C:$AP,AC$201,FALSE) -> 0 | AD222: =VLOOKUP($U$202&$U222,GTYF!$C:$AP,AD$201,FALSE) -> 0 | AE222: =VLOOKUP($U$202&$U222,GTYF!$C:$AP,AE$201,FALSE) -> 0 | AF222: =VLOOKUP($U$202&$U222,GTYF!$C:$AP,AF$201,FALSE) -> 0 | AG222: =VLOOKUP($U$202&$U222,GTYF!$C:$AP,AG$201,FALSE) -> 0 | AH222: =VLOOKUP($U$202&$U222,GTYF!$C:$AP,AH$201,FALSE) -> 0 | AI222: =VLOOKUP($U$202&$U222,GTYF!$C:$AP,AI$201,FALSE) -> 0 | AJ222: =VLOOKUP($U$202&$U222,GTYF!$C:$AP,AJ$201,FALSE) -> 0 | AK222: =VLOOKUP($U$202&$U222,GTYF!$C:$AP,AK$201,FALSE) -> 0 | AL222: =VLOOKUP($U$202&$U222,GTYF!$C:$AP,AL$201,FALSE) -> 0 | AM222: =VLOOKUP($U$202&$U222,GTYF!$C:$AP,AM$201,FALSE) -> 0 | AN222: =VLOOKUP($U$202&$U222,GTYF!$C:$AP,AN$201,FALSE) -> 0 | AO222: =VLOOKUP($U$202&$U222,GTYF!$C:$AP,AO$201,FALSE) -> 0 | AP222: =VLOOKUP($U$202&$U222,GTYF!$C:$AP,AP$201,FALSE) -> 0 | AQ222: =VLOOKUP($U$202&$U222,GTYF!$C:$AP,AQ$201,FALSE) -> 0 | AR222: =VLOOKUP($U$202&$U222,GTYF!$C:$AP,AR$201,FALSE) -> 0 | AS222: =VLOOKUP($U$202&$U222,GTYF!$C:$AP,AS$201,FALSE) -> 0 | AT222: =VLOOKUP($U$202&$U222,GTYF!$C:$AP,AT$201,FALSE) -> 0 | AU222: =VLOOKUP($U$202&$U222,GTYF!$C:$AP,AU$201,FALSE) -> 0 | AV222: =VLOOKUP($U$202&$U222,GTYF!$C:$AP,AV$201,FALSE) -> 0 | AW222: =VLOOKUP($U$202&$U222,GTYF!$C:$AP,AW$201,FALSE) -> 0 | AX222: =VLOOKUP($U$202&$U222,GTYF!$C:$AP,AX$201,FALSE) -> 0 | AY222: =VLOOKUP($U$202&$U222,GTYF!$C:$AP,AY$201,FALSE) -> 0 | AZ222: =VLOOKUP($U$202&$U222,GTYF!$C:$AP,AZ$201,FALSE) -> 0
S223: Figure 10a | T223: Résineux à feuillus | U223: (FCTYF_RF) | V223: =VLOOKUP($U$202&$U223,GTYF!$C:$AP,V$201,FALSE) -> 133920.6 | W223: =VLOOKUP($U$202&$U223,GTYF!$C:$AP,W$201,FALSE) -> 133448.2 | X223: =VLOOKUP($U$202&$U223,GTYF!$C:$AP,X$201,FALSE) -> 130773.58 | Y223: =VLOOKUP($U$202&$U223,GTYF!$C:$AP,Y$201,FALSE) -> 127345.96 | Z223: =VLOOKUP($U$202&$U223,GTYF!$C:$AP,Z$201,FALSE) -> 113166.64 | AA223: =VLOOKUP($U$202&$U223,GTYF!$C:$AP,AA$201,FALSE) -> 105480.69 | AB223: =VLOOKUP($U$202&$U223,GTYF!$C:$AP,AB$201,FALSE) -> 103029.86 | AC223: =VLOOKUP($U$202&$U223,GTYF!$C:$AP,AC$201,FALSE) -> 90842.35 | AD223: =VLOOKUP($U$202&$U223,GTYF!$C:$AP,AD$201,FALSE) -> 82299.8 | AE223: =VLOOKUP($U$202&$U223,GTYF!$C:$AP,AE$201,FALSE) -> 71193.84 | AF223: =VLOOKUP($U$202&$U223,GTYF!$C:$AP,AF$201,FALSE) -> 52696.56 | AG223: =VLOOKUP($U$202&$U223,GTYF!$C:$AP,AG$201,FALSE) -> 52702.76 | AH223: =VLOOKUP($U$202&$U223,GTYF!$C:$AP,AH$201,FALSE) -> 43962.56 | AI223: =VLOOKUP($U$202&$U223,GTYF!$C:$AP,AI$201,FALSE) -> 53140.01 | AJ223: =VLOOKUP($U$202&$U223,GTYF!$C:$AP,AJ$201,FALSE) -> 57575.33 | AK223: =VLOOKUP($U$202&$U223,GTYF!$C:$AP,AK$201,FALSE) -> 62812.33 | AL223: =VLOOKUP($U$202&$U223,GTYF!$C:$AP,AL$201,FALSE) -> 64223.78 | AM223: =VLOOKUP($U$202&$U223,GTYF!$C:$AP,AM$201,FALSE) -> 67424.63 | AN223: =VLOOKUP($U$202&$U223,GTYF!$C:$AP,AN$201,FALSE) -> 67581.14 | AO223: =VLOOKUP($U$202&$U223,GTYF!$C:$AP,AO$201,FALSE) -> 67176.92 | AP223: =VLOOKUP($U$202&$U223,GTYF!$C:$AP,AP$201,FALSE) -> 67350.92 | AQ223: =VLOOKUP($U$202&$U223,GTYF!$C:$AP,AQ$201,FALSE) -> 69370.74 | AR223: =VLOOKUP($U$202&$U223,GTYF!$C:$AP,AR$201,FALSE) -> 67369.77 | AS223: =VLOOKUP($U$202&$U223,GTYF!$C:$AP,AS$201,FALSE) -> 66748.4 | AT223: =VLOOKUP($U$202&$U223,GTYF!$C:$AP,AT$201,FALSE) -> 76398.36 | AU223: =VLOOKUP($U$202&$U223,GTYF!$C:$AP,AU$201,FALSE) -> 79539.48 | AV223: =VLOOKUP($U$202&$U223,GTYF!$C:$AP,AV$201,FALSE) -> 79530.5 | AW223: =VLOOKUP($U$202&$U223,GTYF!$C:$AP,AW$201,FALSE) -> 78674.61 | AX223: =VLOOKUP($U$202&$U223,GTYF!$C:$AP,AX$201,FALSE) -> 77171.25 | AY223: =VLOOKUP($U$202&$U223,GTYF!$C:$AP,AY$201,FALSE) -> 76965.6 | AZ223: =VLOOKUP($U$202&$U223,GTYF!$C:$AP,AZ$201,FALSE) -> 77124.4
S224: Figure 10a | T224: Sapinières | U224: (FCTYF_SAB) | V224: =VLOOKUP($U$202&$U224,GTYF!$C:$AP,V$201,FALSE) -> 42445.8 | W224: =VLOOKUP($U$202&$U224,GTYF!$C:$AP,W$201,FALSE) -> 41819.73 | X224: =VLOOKUP($U$202&$U224,GTYF!$C:$AP,X$201,FALSE) -> 41229.74 | Y224: =VLOOKUP($U$202&$U224,GTYF!$C:$AP,Y$201,FALSE) -> 34958.12 | Z224: =VLOOKUP($U$202&$U224,GTYF!$C:$AP,Z$201,FALSE) -> 33189.52 | AA224: =VLOOKUP($U$202&$U224,GTYF!$C:$AP,AA$201,FALSE) -> 28942.88 | AB224: =VLOOKUP($U$202&$U224,GTYF!$C:$AP,AB$201,FALSE) -> 21370.65 | AC224: =VLOOKUP($U$202&$U224,GTYF!$C:$AP,AC$201,FALSE) -> 21370.65 | AD224: =VLOOKUP($U$202&$U224,GTYF!$C:$AP,AD$201,FALSE) -> 21370.65 | AE224: =VLOOKUP($U$202&$U224,GTYF!$C:$AP,AE$201,FALSE) -> 21370.65 | AF224: =VLOOKUP($U$202&$U224,GTYF!$C:$AP,AF$201,FALSE) -> 21370.65 | AG224: =VLOOKUP($U$202&$U224,GTYF!$C:$AP,AG$201,FALSE) -> 20905.67 | AH224: =VLOOKUP($U$202&$U224,GTYF!$C:$AP,AH$201,FALSE) -> 20758.09 | AI224: =VLOOKUP($U$202&$U224,GTYF!$C:$AP,AI$201,FALSE) -> 13841.15 | AJ224: =VLOOKUP($U$202&$U224,GTYF!$C:$AP,AJ$201,FALSE) -> 11468.88 | AK224: =VLOOKUP($U$202&$U224,GTYF!$C:$AP,AK$201,FALSE) -> 11468.88 | AL224: =VLOOKUP($U$202&$U224,GTYF!$C:$AP,AL$201,FALSE) -> 11468.88 | AM224: =VLOOKUP($U$202&$U224,GTYF!$C:$AP,AM$201,FALSE) -> 11468.88 | AN224: =VLOOKUP($U$202&$U224,GTYF!$C:$AP,AN$201,FALSE) -> 11468.88 | AO224: =VLOOKUP($U$202&$U224,GTYF!$C:$AP,AO$201,FALSE) -> 11468.88 | AP224: =VLOOKUP($U$202&$U224,GTYF!$C:$AP,AP$201,FALSE) -> 11468.88 | AQ224: =VLOOKUP($U$202&$U224,GTYF!$C:$AP,AQ$201,FALSE) -> 11212.22 | AR224: =VLOOKUP($U$202&$U224,GTYF!$C:$AP,AR$201,FALSE) -> 11212.22 | AS224: =VLOOKUP($U$202&$U224,GTYF!$C:$AP,AS$201,FALSE) -> 11212.22 | AT224: =VLOOKUP($U$202&$U224,GTYF!$C:$AP,AT$201,FALSE) -> 2699.39 | AU224: =VLOOKUP($U$202&$U224,GTYF!$C:$AP,AU$201,FALSE) -> 588.2 | AV224: =VLOOKUP($U$202&$U224,GTYF!$C:$AP,AV$201,FALSE) -> 588.2 | AW224: =VLOOKUP($U$202&$U224,GTYF!$C:$AP,AW$201,FALSE) -> 588.2 | AX224: =VLOOKUP($U$202&$U224,GTYF!$C:$AP,AX$201,FALSE) -> 588.2 | AY224: =VLOOKUP($U$202&$U224,GTYF!$C:$AP,AY$201,FALSE) -> 588.2 | AZ224: =VLOOKUP($U$202&$U224,GTYF!$C:$AP,AZ$201,FALSE) -> 588.2
B225: * Attention, étant donné que le graphique fait appel aux GTYF, certains TYF ne paraissent pas dans les bons types de couvert (ex: EoRx, PbFx, PuFx, ToFx) | S225: Figure 10a | T225: Cédrières | U225: (FCTYF_THO) | V225: =VLOOKUP($U$202&$U225,GTYF!$C:$AP,V$201,FALSE) -> 11072.9 | W225: =VLOOKUP($U$202&$U225,GTYF!$C:$AP,W$201,FALSE) -> 10842.31 | X225: =VLOOKUP($U$202&$U225,GTYF!$C:$AP,X$201,FALSE) -> 10842.31 | Y225: =VLOOKUP($U$202&$U225,GTYF!$C:$AP,Y$201,FALSE) -> 10822.31 | Z225: =VLOOKUP($U$202&$U225,GTYF!$C:$AP,Z$201,FALSE) -> 10802.31 | AA225: =VLOOKUP($U$202&$U225,GTYF!$C:$AP,AA$201,FALSE) -> 10782.31 | AB225: =VLOOKUP($U$202&$U225,GTYF!$C:$AP,AB$201,FALSE) -> 10762.44 | AC225: =VLOOKUP($U$202&$U225,GTYF!$C:$AP,AC$201,FALSE) -> 10742.44 | AD225: =VLOOKUP($U$202&$U225,GTYF!$C:$AP,AD$201,FALSE) -> 10722.44 | AE225: =VLOOKUP($U$202&$U225,GTYF!$C:$AP,AE$201,FALSE) -> 10722.44 | AF225: =VLOOKUP($U$202&$U225,GTYF!$C:$AP,AF$201,FALSE) -> 10722.44 | AG225: =VLOOKUP($U$202&$U225,GTYF!$C:$AP,AG$201,FALSE) -> 10722.44 | AH225: =VLOOKUP($U$202&$U225,GTYF!$C:$AP,AH$201,FALSE) -> 10722.44 | AI225: =VLOOKUP($U$202&$U225,GTYF!$C:$AP,AI$201,FALSE) -> 10722.44 | AJ225: =VLOOKUP($U$202&$U225,GTYF!$C:$AP,AJ$201,FALSE) -> 10722.44 | AK225: =VLOOKUP($U$202&$U225,GTYF!$C:$AP,AK$201,FALSE) -> 10722.44 | AL225: =VLOOKUP($U$202&$U225,GTYF!$C:$AP,AL$201,FALSE) -> 10722.44 | AM225: =VLOOKUP($U$202&$U225,GTYF!$C:$AP,AM$201,FALSE) -> 10722.44 | AN225: =VLOOKUP($U$202&$U225,GTYF!$C:$AP,AN$201,FALSE) -> 10722.44 | AO225: =VLOOKUP($U$202&$U225,GTYF!$C:$AP,AO$201,FALSE) -> 10722.44 | AP225: =VLOOKUP($U$202&$U225,GTYF!$C:$AP,AP$201,FALSE) -> 10722.44 | AQ225: =VLOOKUP($U$202&$U225,GTYF!$C:$AP,AQ$201,FALSE) -> 10722.44 | AR225: =VLOOKUP($U$202&$U225,GTYF!$C:$AP,AR$201,FALSE) -> 10722.44 | AS225: =VLOOKUP($U$202&$U225,GTYF!$C:$AP,AS$201,FALSE) -> 10722.44 | AT225: =VLOOKUP($U$202&$U225,GTYF!$C:$AP,AT$201,FALSE) -> 10722.44 | AU225: =VLOOKUP($U$202&$U225,GTYF!$C:$AP,AU$201,FALSE) -> 10722.44 | AV225: =VLOOKUP($U$202&$U225,GTYF!$C:$AP,AV$201,FALSE) -> 10722.44 | AW225: =VLOOKUP($U$202&$U225,GTYF!$C:$AP,AW$201,FALSE) -> 10722.44 | AX225: =VLOOKUP($U$202&$U225,GTYF!$C:$AP,AX$201,FALSE) -> 10719.31 | AY225: =VLOOKUP($U$202&$U225,GTYF!$C:$AP,AY$201,FALSE) -> 10699.31 | AZ225: =VLOOKUP($U$202&$U225,GTYF!$C:$AP,AZ$201,FALSE) -> 10679.31
U228: Colonne | V228: 6 | W228: 7 | X228: 8 | Y228: 9 | Z228: 10 | AA228: 11 | AB228: 12 | AC228: 13 | AD228: 14 | AE228: 15 | AF228: 16 | AG228: 17 | AH228: 18 | AI228: 19 | AJ228: 20 | AK228: 21 | AL228: 22 | AM228: 23 | AN228: 24 | AO228: 25 | AP228: 26 | AQ228: 27 | AR228: 28 | AS228: 29 | AT228: 30 | AU228: 31 | AV228: 32 | AW228: 33 | AX228: 34 | AY228: 35 | AZ228: 36
B229: Figure 10c Évolution des superficies de hêtraie et d'érablière à hêtre | U229: Période | V229: P0 | W229: P1 | X229: P2 | Y229: P3 | Z229: P4 | AA229: P5 | AB229: P6 | AC229: P7 | AD229: P8 | AE229: P9 | AF229: P10 | AG229: P11 | AH229: P12 | AI229: P13 | AJ229: P14 | AK229: P15 | AL229: P16 | AM229: P17 | AN229: P18 | AO229: P19 | AP229: P20 | AQ229: P21 | AR229: P22 | AS229: P23 | AT229: P24 | AU229: P25 | AV229: P26 | AW229: P27 | AX229: P28 | AY229: P29 | AZ229: P30
U230: Axe des "X" Fin de période | V230: 2018 | W230: 2023 | X230: 2028 | Y230: 2033 | Z230: 2038 | AA230: 2043 | AB230: 2048 | AC230: 2053 | AD230: 2058 | AE230: 2063 | AF230: 2068 | AG230: 2073 | AH230: 2078 | AI230: 2083 | AJ230: 2088 | AK230: 2093 | AL230: 2098 | AM230: 2103 | AN230: 2108 | AO230: 2113 | AP230: 2118 | AQ230: 2123 | AR230: 2128 | AS230: 2133 | AT230: 2138 | AU230: 2143 | AV230: 2148 | AW230: 2153 | AX230: 2158 | AY230: 2163 | AZ230: 2168
S231: =LEFT(B$229,10) -> Figure 10c | T231: Hêtraie | U231: OSUPESHG_FX | V231: =VLOOKUP($U231,Output!$C:$AQ,V$228,FALSE) -> 0 | W231: =VLOOKUP($U231,Output!$C:$AQ,W$228,FALSE) -> 0 | X231: =VLOOKUP($U231,Output!$C:$AQ,X$228,FALSE) -> 0 | Y231: =VLOOKUP($U231,Output!$C:$AQ,Y$228,FALSE) -> 0 | Z231: =VLOOKUP($U231,Output!$C:$AQ,Z$228,FALSE) -> 0 | AA231: =VLOOKUP($U231,Output!$C:$AQ,AA$228,FALSE) -> 0 | AB231: =VLOOKUP($U231,Output!$C:$AQ,AB$228,FALSE) -> 0 | AC231: =VLOOKUP($U231,Output!$C:$AQ,AC$228,FALSE) -> 0 | AD231: =VLOOKUP($U231,Output!$C:$AQ,AD$228,FALSE) -> 0 | AE231: =VLOOKUP($U231,Output!$C:$AQ,AE$228,FALSE) -> 0 | AF231: =VLOOKUP($U231,Output!$C:$AQ,AF$228,FALSE) -> 0 | AG231: =VLOOKUP($U231,Output!$C:$AQ,AG$228,FALSE) -> 0 | AH231: =VLOOKUP($U231,Output!$C:$AQ,AH$228,FALSE) -> 0 | AI231: =VLOOKUP($U231,Output!$C:$AQ,AI$228,FALSE) -> 0 | AJ231: =VLOOKUP($U231,Output!$C:$AQ,AJ$228,FALSE) -> 0 | AK231: =VLOOKUP($U231,Output!$C:$AQ,AK$228,FALSE) -> 0 | AL231: =VLOOKUP($U231,Output!$C:$AQ,AL$228,FALSE) -> 0 | AM231: =VLOOKUP($U231,Output!$C:$AQ,AM$228,FALSE) -> 0 | AN231: =VLOOKUP($U231,Output!$C:$AQ,AN$228,FALSE) -> 0 | AO231: =VLOOKUP($U231,Output!$C:$AQ,AO$228,FALSE) -> 0 | AP231: =VLOOKUP($U231,Output!$C:$AQ,AP$228,FALSE) -> 0 | AQ231: =VLOOKUP($U231,Output!$C:$AQ,AQ$228,FALSE) -> 0 | AR231: =VLOOKUP($U231,Output!$C:$AQ,AR$228,FALSE) -> 0 | AS231: =VLOOKUP($U231,Output!$C:$AQ,AS$228,FALSE) -> 0 | AT231: =VLOOKUP($U231,Output!$C:$AQ,AT$228,FALSE) -> 0 | AU231: =VLOOKUP($U231,Output!$C:$AQ,AU$228,FALSE) -> 0 | AV231: =VLOOKUP($U231,Output!$C:$AQ,AV$228,FALSE) -> 0 | AW231: =VLOOKUP($U231,Output!$C:$AQ,AW$228,FALSE) -> 0 | AX231: =VLOOKUP($U231,Output!$C:$AQ,AX$228,FALSE) -> 0 | AY231: =VLOOKUP($U231,Output!$C:$AQ,AY$228,FALSE) -> 0 | AZ231: =VLOOKUP($U231,Output!$C:$AQ,AZ$228,FALSE) -> 0
S232: =LEFT(B$229,10) -> Figure 10c | T232: Érablière à hêtre | U232: OSUPESHG | V232: =VLOOKUP($U232,Output!$C:$AQ,V$228,FALSE) -> 0 | W232: =VLOOKUP($U232,Output!$C:$AQ,W$228,FALSE) -> 0 | X232: =VLOOKUP($U232,Output!$C:$AQ,X$228,FALSE) -> 0 | Y232: =VLOOKUP($U232,Output!$C:$AQ,Y$228,FALSE) -> 0 | Z232: =VLOOKUP($U232,Output!$C:$AQ,Z$228,FALSE) -> 0 | AA232: =VLOOKUP($U232,Output!$C:$AQ,AA$228,FALSE) -> 0 | AB232: =VLOOKUP($U232,Output!$C:$AQ,AB$228,FALSE) -> 0 | AC232: =VLOOKUP($U232,Output!$C:$AQ,AC$228,FALSE) -> 0 | AD232: =VLOOKUP($U232,Output!$C:$AQ,AD$228,FALSE) -> 0 | AE232: =VLOOKUP($U232,Output!$C:$AQ,AE$228,FALSE) -> 0 | AF232: =VLOOKUP($U232,Output!$C:$AQ,AF$228,FALSE) -> 0 | AG232: =VLOOKUP($U232,Output!$C:$AQ,AG$228,FALSE) -> 0 | AH232: =VLOOKUP($U232,Output!$C:$AQ,AH$228,FALSE) -> 0 | AI232: =VLOOKUP($U232,Output!$C:$AQ,AI$228,FALSE) -> 0 | AJ232: =VLOOKUP($U232,Output!$C:$AQ,AJ$228,FALSE) -> 0 | AK232: =VLOOKUP($U232,Output!$C:$AQ,AK$228,FALSE) -> 0 | AL232: =VLOOKUP($U232,Output!$C:$AQ,AL$228,FALSE) -> 0 | AM232: =VLOOKUP($U232,Output!$C:$AQ,AM$228,FALSE) -> 0 | AN232: =VLOOKUP($U232,Output!$C:$AQ,AN$228,FALSE) -> 0 | AO232: =VLOOKUP($U232,Output!$C:$AQ,AO$228,FALSE) -> 0 | AP232: =VLOOKUP($U232,Output!$C:$AQ,AP$228,FALSE) -> 0 | AQ232: =VLOOKUP($U232,Output!$C:$AQ,AQ$228,FALSE) -> 0 | AR232: =VLOOKUP($U232,Output!$C:$AQ,AR$228,FALSE) -> 0 | AS232: =VLOOKUP($U232,Output!$C:$AQ,AS$228,FALSE) -> 0 | AT232: =VLOOKUP($U232,Output!$C:$AQ,AT$228,FALSE) -> 0 | AU232: =VLOOKUP($U232,Output!$C:$AQ,AU$228,FALSE) -> 0 | AV232: =VLOOKUP($U232,Output!$C:$AQ,AV$228,FALSE) -> 0 | AW232: =VLOOKUP($U232,Output!$C:$AQ,AW$228,FALSE) -> 0 | AX232: =VLOOKUP($U232,Output!$C:$AQ,AX$228,FALSE) -> 0 | AY232: =VLOOKUP($U232,Output!$C:$AQ,AY$228,FALSE) -> 0 | AZ232: =VLOOKUP($U232,Output!$C:$AQ,AZ$228,FALSE) -> 0
S233: =LEFT(B$229,10) -> Figure 10c | T233: Total | U233: Total | V233: =SUM(V231:V232) -> 0 | W233: =SUM(W231:W232) -> 0 | X233: 0 | Y233: 0 | Z233: 0 | AA233: 0 | AB233: 0 | AC233: 0 | AD233: 0 | AE233: 0 | AF233: 0 | AG233: 0 | AH233: 0 | AI233: 0 | AJ233: 0 | AK233: 0 | AL233: 0 | AM233: 0 | AN233: 0 | AO233: 0 | AP233: 0 | AQ233: 0 | AR233: 0 | AS233: 0 | AT233: 0 | AU233: 0 | AV233: 0 | AW233: 0 | AX233: 0 | AY233: 0 | AZ233: 0
B255: Figure 11b Évolution du volume de sapin et d'épinettes sur pied dans la composante SEPM
U262: Colonne | V262: 6 | W262: 7 | X262: 8 | Y262: 9 | Z262: 10 | AA262: 11 | AB262: 12 | AC262: 13 | AD262: 14 | AE262: 15 | AF262: 16 | AG262: 17 | AH262: 18 | AI262: 19 | AJ262: 20 | AK262: 21 | AL262: 22 | AM262: 23 | AN262: 24 | AO262: 25 | AP262: 26 | AQ262: 27 | AR262: 28 | AS262: 29 | AT262: 30 | AU262: 31 | AV262: 32 | AW262: 33 | AX262: 34 | AY262: 35 | AZ262: 36
U263: Axe des "X" Fin de période | V263: 2018 | W263: 2023 | X263: 2028 | Y263: 2033 | Z263: 2038 | AA263: 2043 | AB263: 2048 | AC263: 2053 | AD263: 2058 | AE263: 2063 | AF263: 2068 | AG263: 2073 | AH263: 2078 | AI263: 2083 | AJ263: 2088 | AK263: 2093 | AL263: 2098 | AM263: 2103 | AN263: 2108 | AO263: 2113 | AP263: 2118 | AQ263: 2123 | AR263: 2128 | AS263: 2133 | AT263: 2138 | AU263: 2143 | AV263: 2148 | AW263: 2153 | AX263: 2158 | AY263: 2163 | AZ263: 2168
S264: =LEFT(B$255,10) -> Figure 11b | U264: Période | V264: P0 | W264: P1 | X264: P2 | Y264: P3 | Z264: P4 | AA264: P5 | AB264: P6 | AC264: P7 | AD264: P8 | AE264: P9 | AF264: P10 | AG264: P11 | AH264: P12 | AI264: P13 | AJ264: P14 | AK264: P15 | AL264: P16 | AM264: P17 | AN264: P18 | AO264: P19 | AP264: P20 | AQ264: P21 | AR264: P22 | AS264: P23 | AT264: P24 | AU264: P25 | AV264: P26 | AW264: P27 | AX264: P28 | AY264: P29 | AZ264: P30
S265: Figure 11b | T265: Légende | Y265: PERIOD3 | Z265: PERIOD4 | AA265: PERIOD5 | AB265: PERIOD6 | AC265: PERIOD7 | AD265: PERIOD8 | AE265: PERIOD9 | AF265: PERIOD10 | AG265: PERIOD11 | AH265: PERIOD12 | AI265: PERIOD13 | AJ265: PERIOD14 | AK265: PERIOD15 | AL265: PERIOD16 | AM265: PERIOD17 | AN265: PERIOD18 | AO265: PERIOD19 | AP265: PERIOD20 | AQ265: PERIOD21 | AR265: PERIOD22 | AS265: PERIOD23 | AT265: PERIOD24 | AU265: PERIOD25 | AV265: PERIOD26 | AW265: PERIOD27 | AX265: PERIOD28 | AY265: PERIOD29 | AZ265: PERIOD30
S266: Figure 11b | T266: Volume Sapin | U266: OVOLSABPIEDINC(FCTYF_SEPM) | V266: =VLOOKUP($U266,GTYF!$C:$AL,Figures!V$262,FALSE) -> 5257049.16 | W266: =VLOOKUP($U266,GTYF!$C:$AL,Figures!W$262,FALSE) -> 5732866.59 | X266: =VLOOKUP($U266,GTYF!$C:$AL,Figures!X$262,FALSE) -> 5876484.79 | Y266: =VLOOKUP($U266,GTYF!$C:$AL,Figures!Y$262,FALSE) -> 5355966.24 | Z266: =VLOOKUP($U266,GTYF!$C:$AL,Figures!Z$262,FALSE) -> 5291360.33 | AA266: =VLOOKUP($U266,GTYF!$C:$AL,Figures!AA$262,FALSE) -> 4914227.82 | AB266: =VLOOKUP($U266,GTYF!$C:$AL,Figures!AB$262,FALSE) -> 4064154.18 | AC266: =VLOOKUP($U266,GTYF!$C:$AL,Figures!AC$262,FALSE) -> 4054408.67 | AD266: =VLOOKUP($U266,GTYF!$C:$AL,Figures!AD$262,FALSE) -> 3998981.11 | AE266: =VLOOKUP($U266,GTYF!$C:$AL,Figures!AE$262,FALSE) -> 3904457.93 | AF266: =VLOOKUP($U266,GTYF!$C:$AL,Figures!AF$262,FALSE) -> 3824626.4 | AG266: =VLOOKUP($U266,GTYF!$C:$AL,Figures!AG$262,FALSE) -> 3179533.68 | AH266: =VLOOKUP($U266,GTYF!$C:$AL,Figures!AH$262,FALSE) -> 3016362.61 | AI266: =VLOOKUP($U266,GTYF!$C:$AL,Figures!AI$262,FALSE) -> 2605168.84 | AJ266: =VLOOKUP($U266,GTYF!$C:$AL,Figures!AJ$262,FALSE) -> 2343907.53 | AK266: =VLOOKUP($U266,GTYF!$C:$AL,Figures!AK$262,FALSE) -> 2164995.83 | AL266: =VLOOKUP($U266,GTYF!$C:$AL,Figures!AL$262,FALSE) -> 2256068.68 | AM266: =VLOOKUP($U266,GTYF!$C:$AL,Figures!AM$262,FALSE) -> 2306258.73 | AN266: =VLOOKUP($U266,GTYF!$C:$AL,Figures!AN$262,FALSE) -> 2379644.12 | AO266: =VLOOKUP($U266,GTYF!$C:$AL,Figures!AO$262,FALSE) -> 2359953.65 | AP266: =VLOOKUP($U266,GTYF!$C:$AL,Figures!AP$262,FALSE) -> 2340734.31 | AQ266: =VLOOKUP($U266,GTYF!$C:$AL,Figures!AQ$262,FALSE) -> 2286892.86 | AR266: =VLOOKUP($U266,GTYF!$C:$AL,Figures!AR$262,FALSE) -> 2250087.21 | AS266: =VLOOKUP($U266,GTYF!$C:$AL,Figures!AS$262,FALSE) -> 2225445.18 | AT266: =VLOOKUP($U266,GTYF!$C:$AL,Figures!AT$262,FALSE) -> 1586409.99 | AU266: =VLOOKUP($U266,GTYF!$C:$AL,Figures!AU$262,FALSE) -> 1372679.33 | AV266: =VLOOKUP($U266,GTYF!$C:$AL,Figures!AV$262,FALSE) -> 1382218.71 | AW266: =VLOOKUP($U266,GTYF!$C:$AL,Figures!AW$262,FALSE) -> 1390358.14 | AX266: =VLOOKUP($U266,GTYF!$C:$AL,Figures!AX$262,FALSE) -> 1381766.17 | AY266: =VLOOKUP($U266,GTYF!$C:$AL,Figures!AY$262,FALSE) -> 1395922.95 | AZ266: =VLOOKUP($U266,GTYF!$C:$AL,Figures!AZ$262,FALSE) -> 1399885.6
S267: Figure 11b | T267: Volume Épinettes | U267: OVOLGEPXPIEDINC(FCTYF_SEPM) | V267: =VLOOKUP($U267,GTYF!$C:$AL,Figures!V$262,FALSE) -> 13307046.71 | W267: =VLOOKUP($U267,GTYF!$C:$AL,Figures!W$262,FALSE) -> 14618898.57 | X267: =VLOOKUP($U267,GTYF!$C:$AL,Figures!X$262,FALSE) -> 15273416.72 | Y267: =VLOOKUP($U267,GTYF!$C:$AL,Figures!Y$262,FALSE) -> 16177655.61 | Z267: =VLOOKUP($U267,GTYF!$C:$AL,Figures!Z$262,FALSE) -> 16980302.75 | AA267: =VLOOKUP($U267,GTYF!$C:$AL,Figures!AA$262,FALSE) -> 17498150.11 | AB267: =VLOOKUP($U267,GTYF!$C:$AL,Figures!AB$262,FALSE) -> 18223246.68 | AC267: =VLOOKUP($U267,GTYF!$C:$AL,Figures!AC$262,FALSE) -> 18928691.69 | AD267: =VLOOKUP($U267,GTYF!$C:$AL,Figures!AD$262,FALSE) -> 19784737.49 | AE267: =VLOOKUP($U267,GTYF!$C:$AL,Figures!AE$262,FALSE) -> 20310834.81 | AF267: =VLOOKUP($U267,GTYF!$C:$AL,Figures!AF$262,FALSE) -> 20755539.49 | AG267: =VLOOKUP($U267,GTYF!$C:$AL,Figures!AG$262,FALSE) -> 21252331.55 | AH267: =VLOOKUP($U267,GTYF!$C:$AL,Figures!AH$262,FALSE) -> 21690998.19 | AI267: =VLOOKUP($U267,GTYF!$C:$AL,Figures!AI$262,FALSE) -> 21298634.28 | AJ267: =VLOOKUP($U267,GTYF!$C:$AL,Figures!AJ$262,FALSE) -> 20908694 | AK267: =VLOOKUP($U267,GTYF!$C:$AL,Figures!AK$262,FALSE) -> 20207314.05 | AL267: =VLOOKUP($U267,GTYF!$C:$AL,Figures!AL$262,FALSE) -> 19662310 | AM267: =VLOOKUP($U267,GTYF!$C:$AL,Figures!AM$262,FALSE) -> 18982416.67 | AN267: =VLOOKUP($U267,GTYF!$C:$AL,Figures!AN$262,FALSE) -> 18625956.4 | AO267: =VLOOKUP($U267,GTYF!$C:$AL,Figures!AO$262,FALSE) -> 18001502.58 | AP267: =VLOOKUP($U267,GTYF!$C:$AL,Figures!AP$262,FALSE) -> 17795405.66 | AQ267: =VLOOKUP($U267,GTYF!$C:$AL,Figures!AQ$262,FALSE) -> 17933828.54 | AR267: =VLOOKUP($U267,GTYF!$C:$AL,Figures!AR$262,FALSE) -> 17732287.14 | AS267: =VLOOKUP($U267,GTYF!$C:$AL,Figures!AS$262,FALSE) -> 17300028.26 | AT267: =VLOOKUP($U267,GTYF!$C:$AL,Figures!AT$262,FALSE) -> 17075260.53 | AU267: =VLOOKUP($U267,GTYF!$C:$AL,Figures!AU$262,FALSE) -> 16615727.62 | AV267: =VLOOKUP($U267,GTYF!$C:$AL,Figures!AV$262,FALSE) -> 16950536.65 | AW267: =VLOOKUP($U267,GTYF!$C:$AL,Figures!AW$262,FALSE) -> 17438655.77 | AX267: =VLOOKUP($U267,GTYF!$C:$AL,Figures!AX$262,FALSE) -> 17589824.92 | AY267: =VLOOKUP($U267,GTYF!$C:$AL,Figures!AY$262,FALSE) -> 17964387.92 | AZ267: =VLOOKUP($U267,GTYF!$C:$AL,Figures!AZ$262,FALSE) -> 18231737.39
S268: Figure 11b
S269: Figure 11b | T269: SEPM sur pied | U269: OVOLGSEPMPIEDINC(FCTYF_SEPM) | V269: =VLOOKUP($U269,GTYF!$C:$AL,Figures!V$262,FALSE) -> 21436186 | W269: =VLOOKUP($U269,GTYF!$C:$AL,Figures!W$262,FALSE) -> 23575680.75 | X269: =VLOOKUP($U269,GTYF!$C:$AL,Figures!X$262,FALSE) -> 24151926.07 | Y269: =VLOOKUP($U269,GTYF!$C:$AL,Figures!Y$262,FALSE) -> 24760884.93 | Z269: =VLOOKUP($U269,GTYF!$C:$AL,Figures!Z$262,FALSE) -> 25691265.16 | AA269: =VLOOKUP($U269,GTYF!$C:$AL,Figures!AA$262,FALSE) -> 26025007.76 | AB269: =VLOOKUP($U269,GTYF!$C:$AL,Figures!AB$262,FALSE) -> 26109634.59 | AC269: =VLOOKUP($U269,GTYF!$C:$AL,Figures!AC$262,FALSE) -> 26892309.56 | AD269: =VLOOKUP($U269,GTYF!$C:$AL,Figures!AD$262,FALSE) -> 27897484.8 | AE269: =VLOOKUP($U269,GTYF!$C:$AL,Figures!AE$262,FALSE) -> 28610242.22 | AF269: =VLOOKUP($U269,GTYF!$C:$AL,Figures!AF$262,FALSE) -> 29383634.16 | AG269: =VLOOKUP($U269,GTYF!$C:$AL,Figures!AG$262,FALSE) -> 29656642.34 | AH269: =VLOOKUP($U269,GTYF!$C:$AL,Figures!AH$262,FALSE) -> 30376398.37 | AI269: =VLOOKUP($U269,GTYF!$C:$AL,Figures!AI$262,FALSE) -> 30005305.48 | AJ269: =VLOOKUP($U269,GTYF!$C:$AL,Figures!AJ$262,FALSE) -> 29787460.91 | AK269: =VLOOKUP($U269,GTYF!$C:$AL,Figures!AK$262,FALSE) -> 29181435.78 | AL269: =VLOOKUP($U269,GTYF!$C:$AL,Figures!AL$262,FALSE) -> 28924389.52 | AM269: =VLOOKUP($U269,GTYF!$C:$AL,Figures!AM$262,FALSE) -> 28226598.37 | AN269: =VLOOKUP($U269,GTYF!$C:$AL,Figures!AN$262,FALSE) -> 28128218.71 | AO269: =VLOOKUP($U269,GTYF!$C:$AL,Figures!AO$262,FALSE) -> 27612079.16 | AP269: =VLOOKUP($U269,GTYF!$C:$AL,Figures!AP$262,FALSE) -> 27316579.65 | AQ269: =VLOOKUP($U269,GTYF!$C:$AL,Figures!AQ$262,FALSE) -> 27412362.44 | AR269: =VLOOKUP($U269,GTYF!$C:$AL,Figures!AR$262,FALSE) -> 27116571.84 | AS269: =VLOOKUP($U269,GTYF!$C:$AL,Figures!AS$262,FALSE) -> 26484873.9 | AT269: =VLOOKUP($U269,GTYF!$C:$AL,Figures!AT$262,FALSE) -> 25543170.7 | AU269: =VLOOKUP($U269,GTYF!$C:$AL,Figures!AU$262,FALSE) -> 24771477.38 | AV269: =VLOOKUP($U269,GTYF!$C:$AL,Figures!AV$262,FALSE) -> 25137348.18 | AW269: =VLOOKUP($U269,GTYF!$C:$AL,Figures!AW$262,FALSE) -> 25789711.12 | AX269: =VLOOKUP($U269,GTYF!$C:$AL,Figures!AX$262,FALSE) -> 25617934.18 | AY269: =VLOOKUP($U269,GTYF!$C:$AL,Figures!AY$262,FALSE) -> 26023094.32 | AZ269: =VLOOKUP($U269,GTYF!$C:$AL,Figures!AZ$262,FALSE) -> 26299647.7
S270: Figure 11b
S271: Figure 11b | T271: % Sapin | V271: =IF(ISERROR(V266),0,V266/V269) -> 0.2452418149 | W271: 0.2431686555 | X271: 0.2433132982 | Y271: 0.2163075454 | Z271: 0.2059595079 | AA271: 0.1888271414 | AB271: 0.15565726 | AC271: 0.150764614 | AD271: 0.143345579 | AE271: 0.1364706352 | AF271: 0.1301617894 | AG271: 0.1072115192 | AH271: 0.09929954741 | AI271: 0.08682360664 | AJ271: 0.07868772491 | AK271: 0.07419086046 | AL271: 0.0779988348 | AM271: 0.08170515978 | AN271: 0.08459988684 | AO271: 0.08546816183 | AP271: 0.08568914337 | AQ271: 0.08342560277 | AR271: 0.08297830652 | AS271: 0.08402702571 | AT271: 0.06210701125 | AU271: 0.0554137046 | AV271: 0.05498665572 | AW271: 0.0539113499 | AX271: 0.05393745492 | AY271: 0.05364169736 | AZ271: 0.05322830237
S272: Figure 11b | T272: % Épinettes | V272: =IF(ISERROR(V267),0,V267/V269) -> 0.6207749228 | W272: =IF(ISERROR(W267),0,W267/W269) -> 0.6200838366 | X272: 0.6323891799 | Y272: 0.6533553084 | Z272: 0.6609368065 | AA272: 0.6723590737 | AB272: 0.6979510424 | AC272: 0.7038700654 | AD272: 0.7091943102 | AE272: 0.7099148149 | AF272: 0.7063639364 | AG272: 0.7166128689 | AH272: 0.7140740626 | AI272: 0.7098289432 | AJ272: 0.7019293811 | AK272: 0.6924715495 | AL272: 0.6797830594 | AM272: 0.6725010368 | AN272: 0.6621804456 | AO272: 0.651943031 | AP272: 0.6514507266 | AQ272: 0.6542241144 | AR272: 0.6539280572 | AS272: 0.6532041015 | AT272: 0.6684863336 | AU272: 0.6707604623 | AV272: 0.6743168185 | AW272: 0.6761865493 | AX272: 0.6866215205 | AY272: 0.6903248207 | AZ272: 0.6932312401
S273: Figure 11b | T273: % Volume autre | V273: =1-(V272+V271) -> 0.1339832622 | W273: 0.1367475079 | X273: 0.1242975219 | Y273: 0.1303371462 | Z273: 0.1331036856 | AA273: 0.1388137849 | AB273: 0.1463916975 | AC273: 0.1453653206 | AD273: 0.1474601108 | AE273: 0.1536145499 | AF273: 0.1634742743 | AG273: 0.1761756119 | AH273: 0.18662639 | AI273: 0.2033474501 | AJ273: 0.219382894 | AK273: 0.2333375901 | AL273: 0.2422181058 | AM273: 0.2457938034 | AN273: 0.2532196675 | AO273: 0.2625888072 | AP273: 0.2628601301 | AQ273: 0.2623502829 | AR273: 0.2630936363 | AS273: 0.2627688728 | AT273: 0.2694066551 | AU273: 0.2738258331 | AV273: 0.2706965258 | AW273: 0.2699021008 | AX273: 0.2594410245 | AY273: 0.256033482 | AZ273: 0.2535404575
B278: Figure 14 Indicateur de productivité
... 127 more rows

Sheet UTA
M1: Jeune forêt | R1: Niveau d'altération des vieilles forêts | W1: Niveau d'altération combiné | AA1: Info à récupérer par le SSP Niveau d'altération des vieilles forêts
A2: Inscrire la liste des numéros d'UTA de l'UA: | B2: VieuxAlerte (%) | C2: VieuxAccept (%) | D2: RegeAlerte (%) | E2: RegeAccept (%) | G2: VieuxAlerte (ha) | H2: VieuxAccept (ha) | I2: RegeAlerte (ha) | J2: RegeAccept (ha) | K2: SupUTA | M2: OSUPJEUNEREGECO PERIOD1 (%) | N2: État Jeune 2023 | O2: OSUPJEUNEREGECO PERIOD6 (%) | P2: État Jeune 2048 | R2: OSUPVIEUXTOTREGECO PERIOD1 (%) | S2: État Vielle 2023 | T2: OSUPVIEUXTOTREGECO PERIOD6 (%) | U2: État Vielle 2048 | W2: UTA | X2: 2023 | Y2: 2048 | AA2: UA | AB2: UTA | AC2: 2023 | AD2: 2048 | AE2: Mode de répartition spatiale | AP2: Mode de répartition spatiale
A3: UTA12 | B3: =ROUND(G3/$K3,3) -> 0.201 | C3: =ROUND(H3/$K3,3) -> 0.335 | D3: =ROUND(I3/$K3,3) -> 0.3 | E3: =ROUND(J3/$K3,3) -> 0.2 | G3: =VLOOKUP(CONCATENATE("OSUPVIEUXALERTEREGECO_"&A3),Output!$C:$AQ,6,FALSE) -> 4670.07 | H3: =VLOOKUP(CONCATENATE("OSUPVIEUXACCEPTREGECO_"&A3),Output!$C:$AQ,6,FALSE) -> 7783.46 | I3: =VLOOKUP(CONCATENATE("OSUPJEUNEALERTEREGECO_"&A3),Output!$C:$AQ,6,FALSE) -> 6970.26 | J3: =VLOOKUP(CONCATENATE("OSUPJEUNEACCEPTREGECO_"&A3),Output!$C:$AQ,6,FALSE) -> 4646.84 | K3: =VLOOKUP(CONCATENATE("OSUPREGECO_"&A3),Output!$C:$AQ,6,FALSE) -> 23234.2 | M3: =ROUND(VLOOKUP("OSUPJEUNEREGECO_"&A3,Output!$C:$AQ,7,FALSE)/VLOOKUP("OSUPREGECO_"&A3,Output!$C:$AQ,6,FALSE),3) -> 0.023 | N3: =IF(M3<=$E3,"Faible",IF(M3<$D3,"Modéré","Supérieur")) -> Faible | O3: =ROUND(VLOOKUP("OSUPJEUNEREGECO_"&$A3,Output!$C:$AQ,12,FALSE)/VLOOKUP("OSUPREGECO_"&A3,Output!$C:$AQ,6,FALSE),3) -> 0.083 | P3: =IF(O3<=$E3,"Faible",IF(O3<$D3,"Modéré","Supérieur")) -> Faible | R3: =ROUND(VLOOKUP("OSUPVIEUXTOTREGECO_"&$A3,Output!$C:$AQ,7,FALSE)/VLOOKUP("OSUPREGECO_"&A3,Output!$C:$AQ,6,FALSE),3) -> 0.303 | S3: =IF(R3<$B3,"Supérieur",IF(R3<$C3,"Modéré","Faible")) -> Modéré | T3: =ROUND(VLOOKUP("OSUPVIEUXTOTREGECO_"&$A3,Output!$C:$AQ,12,FALSE)/VLOOKUP("OSUPREGECO_"&A3,Output!$C:$AQ,6,FALSE),3) -> 0.509 | U3: =IF(T3<$B3,"Supérieur",IF(T3<$C3,"Modéré","Faible")) -> Faible | W3: =A3 -> UTA12 | X3: =IF(S3>N3,S3,N3) -> Modéré | Y3: =IF(U3>P3,U3,P3) -> Faible | AA3: =Tableaux!$O$33 -> 07451 | AB3: =W3 -> UTA12 | AC3: =S3 -> Modéré | AD3: =U3 -> Faible | AE3: CMO | AG3: Note: "Élevé" a été renommé "Supérieur" pour le bon fonctionnement des formules. | AP3: COS sapinière
A4: UTA14 | B4: =ROUND(G4/$K4,3) -> 0.201 | C4: 0.335 | D4: 0.3 | E4: 0.2 | G4: =VLOOKUP(CONCATENATE("OSUPVIEUXALERTEREGECO_"&A4),Output!$C:$AQ,6,FALSE) -> 4253.86 | H4: =VLOOKUP(CONCATENATE("OSUPVIEUXACCEPTREGECO_"&A4),Output!$C:$AQ,6,FALSE) -> 7089.77 | I4: =VLOOKUP(CONCATENATE("OSUPJEUNEALERTEREGECO_"&A4),Output!$C:$AQ,6,FALSE) -> 6349.05 | J4: =VLOOKUP(CONCATENATE("OSUPJEUNEACCEPTREGECO_"&A4),Output!$C:$AQ,6,FALSE) -> 4232.7 | K4: =VLOOKUP(CONCATENATE("OSUPREGECO_"&A4),Output!$C:$AQ,6,FALSE) -> 21163.5 | M4: =ROUND(VLOOKUP("OSUPJEUNEREGECO_"&A4,Output!$C:$AQ,7,FALSE)/VLOOKUP("OSUPREGECO_"&A4,Output!$C:$AQ,6,FALSE),3) -> 0.072 | N4: =IF(M4<=$E4,"Faible",IF(M4<$D4,"Modéré","Supérieur")) -> Faible | O4: =ROUND(VLOOKUP("OSUPJEUNEREGECO_"&$A4,Output!$C:$AQ,12,FALSE)/VLOOKUP("OSUPREGECO_"&A4,Output!$C:$AQ,6,FALSE),3) -> 0.117 | P4: =IF(O4<=$E4,"Faible",IF(O4<$D4,"Modéré","Supérieur")) -> Faible | R4: =ROUND(VLOOKUP("OSUPVIEUXTOTREGECO_"&$A4,Output!$C:$AQ,7,FALSE)/VLOOKUP("OSUPREGECO_"&A4,Output!$C:$AQ,6,FALSE),3) -> 0.207 | S4: =IF(R4<$B4,"Supérieur",IF(R4<$C4,"Modéré","Faible")) -> Modéré | T4: =ROUND(VLOOKUP("OSUPVIEUXTOTREGECO_"&$A4,Output!$C:$AQ,12,FALSE)/VLOOKUP("OSUPREGECO_"&A4,Output!$C:$AQ,6,FALSE),3) -> 0.458 | U4: =IF(T4<$B4,"Supérieur",IF(T4<$C4,"Modéré","Faible")) -> Faible | W4: =A4 -> UTA14 | X4: =IF(S4>N4,S4,N4) -> Modéré | Y4: =IF(U4>P4,U4,P4) -> Faible | AA4: =Tableaux!$O$33 -> 07451 | AB4: =W4 -> UTA14 | AC4: =S4 -> Modéré | AD4: =U4 -> Faible | AE4: CMO | AP4: COS pessière
A5: UTA16 | B5: 0.201 | C5: 0.335 | D5: 0.3 | E5: 0.2 | G5: =VLOOKUP(CONCATENATE("OSUPVIEUXALERTEREGECO_"&A5),Output!$C:$AQ,6,FALSE) -> 6069.86 | H5: =VLOOKUP(CONCATENATE("OSUPVIEUXACCEPTREGECO_"&A5),Output!$C:$AQ,6,FALSE) -> 10116.43 | I5: =VLOOKUP(CONCATENATE("OSUPJEUNEALERTEREGECO_"&A5),Output!$C:$AQ,6,FALSE) -> 9059.49 | J5: =VLOOKUP(CONCATENATE("OSUPJEUNEACCEPTREGECO_"&A5),Output!$C:$AQ,6,FALSE) -> 6039.66 | K5: =VLOOKUP(CONCATENATE("OSUPREGECO_"&A5),Output!$C:$AQ,6,FALSE) -> 30198.3 | M5: =ROUND(VLOOKUP("OSUPJEUNEREGECO_"&A5,Output!$C:$AQ,7,FALSE)/VLOOKUP("OSUPREGECO_"&A5,Output!$C:$AQ,6,FALSE),3) -> 0.023 | N5: Faible | O5: =ROUND(VLOOKUP("OSUPJEUNEREGECO_"&$A5,Output!$C:$AQ,12,FALSE)/VLOOKUP("OSUPREGECO_"&A5,Output!$C:$AQ,6,FALSE),3) -> 0.091 | P5: Faible | R5: =ROUND(VLOOKUP("OSUPVIEUXTOTREGECO_"&$A5,Output!$C:$AQ,7,FALSE)/VLOOKUP("OSUPREGECO_"&A5,Output!$C:$AQ,6,FALSE),3) -> 0.374 | S5: Faible | T5: =ROUND(VLOOKUP("OSUPVIEUXTOTREGECO_"&$A5,Output!$C:$AQ,12,FALSE)/VLOOKUP("OSUPREGECO_"&A5,Output!$C:$AQ,6,FALSE),3) -> 0.593 | U5: Faible | W5: UTA16 | X5: Faible | Y5: Faible | AA5: =Tableaux!$O$33 -> 07451 | AB5: =W5 -> UTA16 | AC5: =S5 -> Faible | AD5: =U5 -> Faible | AE5: CMO | AP5: CMO
A6: UTA20 | B6: 0.201 | C6: 0.335 | D6: 0.3 | E6: 0.2 | G6: =VLOOKUP(CONCATENATE("OSUPVIEUXALERTEREGECO_"&A6),Output!$C:$AQ,6,FALSE) -> 4397.2 | H6: =VLOOKUP(CONCATENATE("OSUPVIEUXACCEPTREGECO_"&A6),Output!$C:$AQ,6,FALSE) -> 7328.66 | I6: =VLOOKUP(CONCATENATE("OSUPJEUNEALERTEREGECO_"&A6),Output!$C:$AQ,6,FALSE) -> 6562.98 | J6: =VLOOKUP(CONCATENATE("OSUPJEUNEACCEPTREGECO_"&A6),Output!$C:$AQ,6,FALSE) -> 4375.32 | K6: =VLOOKUP(CONCATENATE("OSUPREGECO_"&A6),Output!$C:$AQ,6,FALSE) -> 21876.6 | M6: =ROUND(VLOOKUP("OSUPJEUNEREGECO_"&A6,Output!$C:$AQ,7,FALSE)/VLOOKUP("OSUPREGECO_"&A6,Output!$C:$AQ,6,FALSE),3) -> 0.084 | N6: Faible | O6: =ROUND(VLOOKUP("OSUPJEUNEREGECO_"&$A6,Output!$C:$AQ,12,FALSE)/VLOOKUP("OSUPREGECO_"&A6,Output!$C:$AQ,6,FALSE),3) -> 0.121 | P6: Faible | R6: =ROUND(VLOOKUP("OSUPVIEUXTOTREGECO_"&$A6,Output!$C:$AQ,7,FALSE)/VLOOKUP("OSUPREGECO_"&A6,Output!$C:$AQ,6,FALSE),3) -> 0.384 | S6: Faible | T6: =ROUND(VLOOKUP("OSUPVIEUXTOTREGECO_"&$A6,Output!$C:$AQ,12,FALSE)/VLOOKUP("OSUPREGECO_"&A6,Output!$C:$AQ,6,FALSE),3) -> 0.522 | U6: Faible | W6: UTA20 | X6: Faible | Y6: Faible | AA6: =Tableaux!$O$33 -> 07451 | AB6: UTA20 | AC6: Faible | AD6: =U6 -> Faible | AE6: CMO | AP6: CMO entente Cris
A7: UTA21 | B7: 0.201 | C7: 0.335 | D7: 0.3 | E7: 0.2 | G7: =VLOOKUP(CONCATENATE("OSUPVIEUXALERTEREGECO_"&A7),Output!$C:$AQ,6,FALSE) -> 3071.52 | H7: =VLOOKUP(CONCATENATE("OSUPVIEUXACCEPTREGECO_"&A7),Output!$C:$AQ,6,FALSE) -> 5119.2 | I7: =VLOOKUP(CONCATENATE("OSUPJEUNEALERTEREGECO_"&A7),Output!$C:$AQ,6,FALSE) -> 4584.36 | J7: =VLOOKUP(CONCATENATE("OSUPJEUNEACCEPTREGECO_"&A7),Output!$C:$AQ,6,FALSE) -> 3056.24 | K7: =VLOOKUP(CONCATENATE("OSUPREGECO_"&A7),Output!$C:$AQ,6,FALSE) -> 15281.2 | M7: =ROUND(VLOOKUP("OSUPJEUNEREGECO_"&A7,Output!$C:$AQ,7,FALSE)/VLOOKUP("OSUPREGECO_"&A7,Output!$C:$AQ,6,FALSE),3) -> 0.165 | N7: Faible | O7: =ROUND(VLOOKUP("OSUPJEUNEREGECO_"&$A7,Output!$C:$AQ,12,FALSE)/VLOOKUP("OSUPREGECO_"&A7,Output!$C:$AQ,6,FALSE),3) -> 0.147 | P7: Faible | R7: =ROUND(VLOOKUP("OSUPVIEUXTOTREGECO_"&$A7,Output!$C:$AQ,7,FALSE)/VLOOKUP("OSUPREGECO_"&A7,Output!$C:$AQ,6,FALSE),3) -> 0.415 | S7: Faible | T7: =ROUND(VLOOKUP("OSUPVIEUXTOTREGECO_"&$A7,Output!$C:$AQ,12,FALSE)/VLOOKUP("OSUPREGECO_"&A7,Output!$C:$AQ,6,FALSE),3) -> 0.348 | U7: Faible | W7: UTA21 | X7: Faible | Y7: Faible | AA7: =Tableaux!$O$33 -> 07451 | AB7: UTA21 | AC7: =S7 -> Faible | AD7: =U7 -> Faible | AE7: CMO | AG7: Voir à renommer "Élevé" dans la légende des figures | AP7: CMO entente BM
A8: UTA22 | B8: 0.201 | C8: 0.335 | D8: 0.3 | E8: 0.2 | G8: =VLOOKUP(CONCATENATE("OSUPVIEUXALERTEREGECO_"&A8),Output!$C:$AQ,6,FALSE) -> 3632.55 | H8: =VLOOKUP(CONCATENATE("OSUPVIEUXACCEPTREGECO_"&A8),Output!$C:$AQ,6,FALSE) -> 6054.25 | I8: =VLOOKUP(CONCATENATE("OSUPJEUNEALERTEREGECO_"&A8),Output!$C:$AQ,6,FALSE) -> 5421.72 | J8: =VLOOKUP(CONCATENATE("OSUPJEUNEACCEPTREGECO_"&A8),Output!$C:$AQ,6,FALSE) -> 3614.48 | K8: =VLOOKUP(CONCATENATE("OSUPREGECO_"&A8),Output!$C:$AQ,6,FALSE) -> 18072.4 | M8: =ROUND(VLOOKUP("OSUPJEUNEREGECO_"&A8,Output!$C:$AQ,7,FALSE)/VLOOKUP("OSUPREGECO_"&A8,Output!$C:$AQ,6,FALSE),3) -> 0.073 | N8: Faible | O8: =ROUND(VLOOKUP("OSUPJEUNEREGECO_"&$A8,Output!$C:$AQ,12,FALSE)/VLOOKUP("OSUPREGECO_"&A8,Output!$C:$AQ,6,FALSE),3) -> 0.168 | P8: Faible | R8: =ROUND(VLOOKUP("OSUPVIEUXTOTREGECO_"&$A8,Output!$C:$AQ,7,FALSE)/VLOOKUP("OSUPREGECO_"&A8,Output!$C:$AQ,6,FALSE),3) -> 0.321 | S8: Modéré | T8: =ROUND(VLOOKUP("OSUPVIEUXTOTREGECO_"&$A8,Output!$C:$AQ,12,FALSE)/VLOOKUP("OSUPREGECO_"&A8,Output!$C:$AQ,6,FALSE),3) -> 0.435 | U8: Faible | W8: UTA22 | X8: Modéré | Y8: Faible | AA8: =Tableaux!$O$33 -> 07451 | AB8: UTA22 | AC8: Modéré | AD8: Faible | AE8: CMO
A9: UTA23 | B9: 0.201 | C9: 0.335 | D9: 0.3 | E9: 0.2 | G9: =VLOOKUP(CONCATENATE("OSUPVIEUXALERTEREGECO_"&A9),Output!$C:$AQ,6,FALSE) -> 5029.42 | H9: =VLOOKUP(CONCATENATE("OSUPVIEUXACCEPTREGECO_"&A9),Output!$C:$AQ,6,FALSE) -> 8382.37 | I9: =VLOOKUP(CONCATENATE("OSUPJEUNEALERTEREGECO_"&A9),Output!$C:$AQ,6,FALSE) -> 7506.6 | J9: =VLOOKUP(CONCATENATE("OSUPJEUNEACCEPTREGECO_"&A9),Output!$C:$AQ,6,FALSE) -> 5004.4 | K9: =VLOOKUP(CONCATENATE("OSUPREGECO_"&A9),Output!$C:$AQ,6,FALSE) -> 25022 | M9: =ROUND(VLOOKUP("OSUPJEUNEREGECO_"&A9,Output!$C:$AQ,7,FALSE)/VLOOKUP("OSUPREGECO_"&A9,Output!$C:$AQ,6,FALSE),3) -> 0.028 | N9: Faible | O9: =ROUND(VLOOKUP("OSUPJEUNEREGECO_"&$A9,Output!$C:$AQ,12,FALSE)/VLOOKUP("OSUPREGECO_"&A9,Output!$C:$AQ,6,FALSE),3) -> 0.132 | P9: Faible | R9: =ROUND(VLOOKUP("OSUPVIEUXTOTREGECO_"&$A9,Output!$C:$AQ,7,FALSE)/VLOOKUP("OSUPREGECO_"&A9,Output!$C:$AQ,6,FALSE),3) -> 0.324 | S9: Modéré | T9: =ROUND(VLOOKUP("OSUPVIEUXTOTREGECO_"&$A9,Output!$C:$AQ,12,FALSE)/VLOOKUP("OSUPREGECO_"&A9,Output!$C:$AQ,6,FALSE),3) -> 0.513 | U9: Faible | W9: UTA23 | X9: Modéré | Y9: Faible | AA9: =Tableaux!$O$33 -> 07451 | AB9: UTA23 | AC9: Modéré | AD9: Faible | AE9: CMO
A10: UTA29 | B10: 0.201 | C10: 0.335 | D10: 0.3 | E10: 0.2 | G10: =VLOOKUP(CONCATENATE("OSUPVIEUXALERTEREGECO_"&A10),Output!$C:$AQ,6,FALSE) -> 5787.73 | H10: =VLOOKUP(CONCATENATE("OSUPVIEUXACCEPTREGECO_"&A10),Output!$C:$AQ,6,FALSE) -> 9646.22 | I10: =VLOOKUP(CONCATENATE("OSUPJEUNEALERTEREGECO_"&A10),Output!$C:$AQ,6,FALSE) -> 8638.41 | J10: =VLOOKUP(CONCATENATE("OSUPJEUNEACCEPTREGECO_"&A10),Output!$C:$AQ,6,FALSE) -> 5758.94 | K10: =VLOOKUP(CONCATENATE("OSUPREGECO_"&A10),Output!$C:$AQ,6,FALSE) -> 28794.7 | M10: =ROUND(VLOOKUP("OSUPJEUNEREGECO_"&A10,Output!$C:$AQ,7,FALSE)/VLOOKUP("OSUPREGECO_"&A10,Output!$C:$AQ,6,FALSE),3) -> 0.048 | N10: Faible | O10: =ROUND(VLOOKUP("OSUPJEUNEREGECO_"&$A10,Output!$C:$AQ,12,FALSE)/VLOOKUP("OSUPREGECO_"&A10,Output!$C:$AQ,6,FALSE),3) -> 0.079 | P10: Faible | R10: =ROUND(VLOOKUP("OSUPVIEUXTOTREGECO_"&$A10,Output!$C:$AQ,7,FALSE)/VLOOKUP("OSUPREGECO_"&A10,Output!$C:$AQ,6,FALSE),3) -> 0.538 | S10: Faible | T10: =ROUND(VLOOKUP("OSUPVIEUXTOTREGECO_"&$A10,Output!$C:$AQ,12,FALSE)/VLOOKUP("OSUPREGECO_"&A10,Output!$C:$AQ,6,FALSE),3) -> 0.605 | U10: Faible | W10: UTA29 | X10: Faible | Y10: Faible | AA10: =Tableaux!$O$33 -> 07451 | AB10: UTA29 | AC10: Faible | AD10: Faible | AE10: CMO
A11: UTA30 | B11: 0.201 | C11: 0.335 | D11: 0.3 | E11: =ROUND(J11/$K11,3) -> 0.2 | G11: =VLOOKUP(CONCATENATE("OSUPVIEUXALERTEREGECO_"&A11),Output!$C:$AQ,6,FALSE) -> 5130.75 | H11: =VLOOKUP(CONCATENATE("OSUPVIEUXACCEPTREGECO_"&A11),Output!$C:$AQ,6,FALSE) -> 8551.24 | I11: =VLOOKUP(CONCATENATE("OSUPJEUNEALERTEREGECO_"&A11),Output!$C:$AQ,6,FALSE) -> 7657.83 | J11: =VLOOKUP(CONCATENATE("OSUPJEUNEACCEPTREGECO_"&A11),Output!$C:$AQ,6,FALSE) -> 5105.22 | K11: =VLOOKUP(CONCATENATE("OSUPREGECO_"&A11),Output!$C:$AQ,6,FALSE) -> 25526.1 | M11: =ROUND(VLOOKUP("OSUPJEUNEREGECO_"&A11,Output!$C:$AQ,7,FALSE)/VLOOKUP("OSUPREGECO_"&A11,Output!$C:$AQ,6,FALSE),3) -> 0.056 | N11: Faible | O11: =ROUND(VLOOKUP("OSUPJEUNEREGECO_"&$A11,Output!$C:$AQ,12,FALSE)/VLOOKUP("OSUPREGECO_"&A11,Output!$C:$AQ,6,FALSE),3) -> 0.145 | P11: Faible | R11: =ROUND(VLOOKUP("OSUPVIEUXTOTREGECO_"&$A11,Output!$C:$AQ,7,FALSE)/VLOOKUP("OSUPREGECO_"&A11,Output!$C:$AQ,6,FALSE),3) -> 0.422 | S11: Faible | T11: =ROUND(VLOOKUP("OSUPVIEUXTOTREGECO_"&$A11,Output!$C:$AQ,12,FALSE)/VLOOKUP("OSUPREGECO_"&A11,Output!$C:$AQ,6,FALSE),3) -> 0.406 | U11: Faible | W11: UTA30 | X11: Faible | Y11: Faible | AA11: =Tableaux!$O$33 -> 07451 | AB11: UTA30 | AC11: Faible | AD11: Faible | AE11: CMO
A12: UTA32 | B12: 0.201 | C12: 0.335 | D12: 0.3 | E12: 0.2 | G12: =VLOOKUP(CONCATENATE("OSUPVIEUXALERTEREGECO_"&A12),Output!$C:$AQ,6,FALSE) -> 3912.04 | H12: =VLOOKUP(CONCATENATE("OSUPVIEUXACCEPTREGECO_"&A12),Output!$C:$AQ,6,FALSE) -> 6520.07 | I12: =VLOOKUP(CONCATENATE("OSUPJEUNEALERTEREGECO_"&A12),Output!$C:$AQ,6,FALSE) -> 5838.87 | J12: =VLOOKUP(CONCATENATE("OSUPJEUNEACCEPTREGECO_"&A12),Output!$C:$AQ,6,FALSE) -> 3892.58 | K12: =VLOOKUP(CONCATENATE("OSUPREGECO_"&A12),Output!$C:$AQ,6,FALSE) -> 19462.9 | M12: =ROUND(VLOOKUP("OSUPJEUNEREGECO_"&A12,Output!$C:$AQ,7,FALSE)/VLOOKUP("OSUPREGECO_"&A12,Output!$C:$AQ,6,FALSE),3) -> 0.016 | N12: Faible | O12: =ROUND(VLOOKUP("OSUPJEUNEREGECO_"&$A12,Output!$C:$AQ,12,FALSE)/VLOOKUP("OSUPREGECO_"&A12,Output!$C:$AQ,6,FALSE),3) -> 0.14 | P12: Faible | R12: =ROUND(VLOOKUP("OSUPVIEUXTOTREGECO_"&$A12,Output!$C:$AQ,7,FALSE)/VLOOKUP("OSUPREGECO_"&A12,Output!$C:$AQ,6,FALSE),3) -> 0.374 | S12: Faible | T12: =ROUND(VLOOKUP("OSUPVIEUXTOTREGECO_"&$A12,Output!$C:$AQ,12,FALSE)/VLOOKUP("OSUPREGECO_"&A12,Output!$C:$AQ,6,FALSE),3) -> 0.467 | U12: Faible | W12: UTA32 | X12: Faible | Y12: Faible | AA12: =Tableaux!$O$33 -> 07451 | AB12: UTA32 | AC12: Faible | AD12: Faible | AE12: CMO | AG12: Compléter cellules en jaune
A13: UTA10 | B13: 0.174 | C13: 0.29 | D13: 0.3 | E13: 0.2 | G13: =VLOOKUP(CONCATENATE("OSUPVIEUXALERTEREGECO_"&A13),Output!$C:$AQ,6,FALSE) -> 3486.89 | H13: =VLOOKUP(CONCATENATE("OSUPVIEUXACCEPTREGECO_"&A13),Output!$C:$AQ,6,FALSE) -> 5811.48 | I13: =VLOOKUP(CONCATENATE("OSUPJEUNEALERTEREGECO_"&A13),Output!$C:$AQ,6,FALSE) -> 6011.88 | J13: =VLOOKUP(CONCATENATE("OSUPJEUNEACCEPTREGECO_"&A13),Output!$C:$AQ,6,FALSE) -> 4007.92 | K13: =VLOOKUP(CONCATENATE("OSUPREGECO_"&A13),Output!$C:$AQ,6,FALSE) -> 20039.6 | M13: =ROUND(VLOOKUP("OSUPJEUNEREGECO_"&A13,Output!$C:$AQ,7,FALSE)/VLOOKUP("OSUPREGECO_"&A13,Output!$C:$AQ,6,FALSE),3) -> 0.1 | N13: Faible | O13: =ROUND(VLOOKUP("OSUPJEUNEREGECO_"&$A13,Output!$C:$AQ,12,FALSE)/VLOOKUP("OSUPREGECO_"&A13,Output!$C:$AQ,6,FALSE),3) -> 0.136 | P13: Faible | R13: =ROUND(VLOOKUP("OSUPVIEUXTOTREGECO_"&$A13,Output!$C:$AQ,7,FALSE)/VLOOKUP("OSUPREGECO_"&A13,Output!$C:$AQ,6,FALSE),3) -> 0.216 | S13: Modéré | T13: =ROUND(VLOOKUP("OSUPVIEUXTOTREGECO_"&$A13,Output!$C:$AQ,12,FALSE)/VLOOKUP("OSUPREGECO_"&A13,Output!$C:$AQ,6,FALSE),3) -> 0.385 | U13: Faible | W13: UTA10 | X13: Modéré | Y13: Faible | AA13: =Tableaux!$O$33 -> 07451 | AB13: UTA10 | AC13: Modéré | AD13: Faible | AE13: CMO
A14: UTA17 | B14: 0.174 | C14: 0.29 | D14: 0.3 | E14: 0.2 | G14: =VLOOKUP(CONCATENATE("OSUPVIEUXALERTEREGECO_"&A14),Output!$C:$AQ,6,FALSE) -> 3676.79 | H14: =VLOOKUP(CONCATENATE("OSUPVIEUXACCEPTREGECO_"&A14),Output!$C:$AQ,6,FALSE) -> 6127.99 | I14: =VLOOKUP(CONCATENATE("OSUPJEUNEALERTEREGECO_"&A14),Output!$C:$AQ,6,FALSE) -> 6339.3 | J14: =VLOOKUP(CONCATENATE("OSUPJEUNEACCEPTREGECO_"&A14),Output!$C:$AQ,6,FALSE) -> 4226.2 | K14: =VLOOKUP(CONCATENATE("OSUPREGECO_"&A14),Output!$C:$AQ,6,FALSE) -> 21131 | M14: =ROUND(VLOOKUP("OSUPJEUNEREGECO_"&A14,Output!$C:$AQ,7,FALSE)/VLOOKUP("OSUPREGECO_"&A14,Output!$C:$AQ,6,FALSE),3) -> 0.019 | N14: Faible | O14: =ROUND(VLOOKUP("OSUPJEUNEREGECO_"&$A14,Output!$C:$AQ,12,FALSE)/VLOOKUP("OSUPREGECO_"&A14,Output!$C:$AQ,6,FALSE),3) -> 0.114 | P14: Faible | R14: =ROUND(VLOOKUP("OSUPVIEUXTOTREGECO_"&$A14,Output!$C:$AQ,7,FALSE)/VLOOKUP("OSUPREGECO_"&A14,Output!$C:$AQ,6,FALSE),3) -> 0.244 | S14: Modéré | T14: =ROUND(VLOOKUP("OSUPVIEUXTOTREGECO_"&$A14,Output!$C:$AQ,12,FALSE)/VLOOKUP("OSUPREGECO_"&A14,Output!$C:$AQ,6,FALSE),3) -> 0.431 | U14: Faible | W14: UTA17 | X14: Modéré | Y14: Faible | AA14: =Tableaux!$O$33 -> 07451 | AB14: UTA17 | AC14: Modéré | AD14: Faible | AE14: CMO
A15: UTA18 | B15: 0.174 | C15: 0.29 | D15: 0.3 | E15: 0.2 | G15: =VLOOKUP(CONCATENATE("OSUPVIEUXALERTEREGECO_"&A15),Output!$C:$AQ,6,FALSE) -> 3892.94 | H15: =VLOOKUP(CONCATENATE("OSUPVIEUXACCEPTREGECO_"&A15),Output!$C:$AQ,6,FALSE) -> 6488.23 | I15: =VLOOKUP(CONCATENATE("OSUPJEUNEALERTEREGECO_"&A15),Output!$C:$AQ,6,FALSE) -> 6711.96 | J15: =VLOOKUP(CONCATENATE("OSUPJEUNEACCEPTREGECO_"&A15),Output!$C:$AQ,6,FALSE) -> 4474.64 | K15: =VLOOKUP(CONCATENATE("OSUPREGECO_"&A15),Output!$C:$AQ,6,FALSE) -> 22373.2 | M15: =ROUND(VLOOKUP("OSUPJEUNEREGECO_"&A15,Output!$C:$AQ,7,FALSE)/VLOOKUP("OSUPREGECO_"&A15,Output!$C:$AQ,6,FALSE),3) -> 0.038 | N15: Faible | O15: =ROUND(VLOOKUP("OSUPJEUNEREGECO_"&$A15,Output!$C:$AQ,12,FALSE)/VLOOKUP("OSUPREGECO_"&A15,Output!$C:$AQ,6,FALSE),3) -> 0.102 | P15: Faible | R15: =ROUND(VLOOKUP("OSUPVIEUXTOTREGECO_"&$A15,Output!$C:$AQ,7,FALSE)/VLOOKUP("OSUPREGECO_"&A15,Output!$C:$AQ,6,FALSE),3) -> 0.203 | S15: Modéré | T15: =ROUND(VLOOKUP("OSUPVIEUXTOTREGECO_"&$A15,Output!$C:$AQ,12,FALSE)/VLOOKUP("OSUPREGECO_"&A15,Output!$C:$AQ,6,FALSE),3) -> 0.384 | U15: Faible | W15: UTA18 | X15: Modéré | Y15: Faible | AA15: =Tableaux!$O$33 -> 07451 | AB15: UTA18 | AC15: Modéré | AD15: Faible | AE15: CMO
A16: UTA19 | B16: 0.174 | C16: 0.29 | D16: 0.3 | E16: 0.2 | G16: =VLOOKUP(CONCATENATE("OSUPVIEUXALERTEREGECO_"&A16),Output!$C:$AQ,6,FALSE) -> 3536.34 | H16: =VLOOKUP(CONCATENATE("OSUPVIEUXACCEPTREGECO_"&A16),Output!$C:$AQ,6,FALSE) -> 5893.9 | I16: =VLOOKUP(CONCATENATE("OSUPJEUNEALERTEREGECO_"&A16),Output!$C:$AQ,6,FALSE) -> 6097.14 | J16: =VLOOKUP(CONCATENATE("OSUPJEUNEACCEPTREGECO_"&A16),Output!$C:$AQ,6,FALSE) -> 4064.76 | K16: =VLOOKUP(CONCATENATE("OSUPREGECO_"&A16),Output!$C:$AQ,6,FALSE) -> 20323.8 | M16: =ROUND(VLOOKUP("OSUPJEUNEREGECO_"&A16,Output!$C:$AQ,7,FALSE)/VLOOKUP("OSUPREGECO_"&A16,Output!$C:$AQ,6,FALSE),3) -> 0.039 | N16: Faible | O16: =ROUND(VLOOKUP("OSUPJEUNEREGECO_"&$A16,Output!$C:$AQ,12,FALSE)/VLOOKUP("OSUPREGECO_"&A16,Output!$C:$AQ,6,FALSE),3) -> 0.166 | P16: Faible | R16: =ROUND(VLOOKUP("OSUPVIEUXTOTREGECO_"&$A16,Output!$C:$AQ,7,FALSE)/VLOOKUP("OSUPREGECO_"&A16,Output!$C:$AQ,6,FALSE),3) -> 0.365 | S16: Faible | T16: =ROUND(VLOOKUP("OSUPVIEUXTOTREGECO_"&$A16,Output!$C:$AQ,12,FALSE)/VLOOKUP("OSUPREGECO_"&A16,Output!$C:$AQ,6,FALSE),3) -> 0.461 | U16: Faible | W16: UTA19 | X16: Faible | Y16: Faible | AA16: =Tableaux!$O$33 -> 07451 | AB16: UTA19 | AC16: Faible | AD16: Faible | AE16: CMO
A17: UTA24 | B17: 0.174 | C17: 0.29 | D17: 0.3 | E17: 0.2 | G17: =VLOOKUP(CONCATENATE("OSUPVIEUXALERTEREGECO_"&A17),Output!$C:$AQ,6,FALSE) -> 4337.42 | H17: =VLOOKUP(CONCATENATE("OSUPVIEUXACCEPTREGECO_"&A17),Output!$C:$AQ,6,FALSE) -> 7229.03 | I17: =VLOOKUP(CONCATENATE("OSUPJEUNEALERTEREGECO_"&A17),Output!$C:$AQ,6,FALSE) -> 7478.31 | J17: =VLOOKUP(CONCATENATE("OSUPJEUNEACCEPTREGECO_"&A17),Output!$C:$AQ,6,FALSE) -> 4985.54 | K17: =VLOOKUP(CONCATENATE("OSUPREGECO_"&A17),Output!$C:$AQ,6,FALSE) -> 24927.7 | M17: =ROUND(VLOOKUP("OSUPJEUNEREGECO_"&A17,Output!$C:$AQ,7,FALSE)/VLOOKUP("OSUPREGECO_"&A17,Output!$C:$AQ,6,FALSE),3) -> 0.121 | N17: Faible | O17: =ROUND(VLOOKUP("OSUPJEUNEREGECO_"&$A17,Output!$C:$AQ,12,FALSE)/VLOOKUP("OSUPREGECO_"&A17,Output!$C:$AQ,6,FALSE),3) -> 0.129 | P17: Faible | R17: =ROUND(VLOOKUP("OSUPVIEUXTOTREGECO_"&$A17,Output!$C:$AQ,7,FALSE)/VLOOKUP("OSUPREGECO_"&A17,Output!$C:$AQ,6,FALSE),3) -> 0.512 | S17: Faible | T17: =ROUND(VLOOKUP("OSUPVIEUXTOTREGECO_"&$A17,Output!$C:$AQ,12,FALSE)/VLOOKUP("OSUPREGECO_"&A17,Output!$C:$AQ,6,FALSE),3) -> 0.469 | U17: Faible | W17: UTA24 | X17: Faible | Y17: Faible | AA17: =Tableaux!$O$33 -> 07451 | AB17: UTA24 | AC17: Faible | AD17: Faible | AE17: CMO
A18: UTA25 | B18: 0.174 | C18: 0.29 | D18: 0.3 | E18: 0.2 | G18: =VLOOKUP(CONCATENATE("OSUPVIEUXALERTEREGECO_"&A18),Output!$C:$AQ,6,FALSE) -> 3392.97 | H18: =VLOOKUP(CONCATENATE("OSUPVIEUXACCEPTREGECO_"&A18),Output!$C:$AQ,6,FALSE) -> 5654.94 | I18: =VLOOKUP(CONCATENATE("OSUPJEUNEALERTEREGECO_"&A18),Output!$C:$AQ,6,FALSE) -> 5849.94 | J18: =VLOOKUP(CONCATENATE("OSUPJEUNEACCEPTREGECO_"&A18),Output!$C:$AQ,6,FALSE) -> 3899.96 | K18: =VLOOKUP(CONCATENATE("OSUPREGECO_"&A18),Output!$C:$AQ,6,FALSE) -> 19499.8 | M18: =ROUND(VLOOKUP("OSUPJEUNEREGECO_"&A18,Output!$C:$AQ,7,FALSE)/VLOOKUP("OSUPREGECO_"&A18,Output!$C:$AQ,6,FALSE),3) -> 0.075 | N18: Faible | O18: =ROUND(VLOOKUP("OSUPJEUNEREGECO_"&$A18,Output!$C:$AQ,12,FALSE)/VLOOKUP("OSUPREGECO_"&A18,Output!$C:$AQ,6,FALSE),3) -> 0.096 | P18: Faible | R18: =ROUND(VLOOKUP("OSUPVIEUXTOTREGECO_"&$A18,Output!$C:$AQ,7,FALSE)/VLOOKUP("OSUPREGECO_"&A18,Output!$C:$AQ,6,FALSE),3) -> 0.435 | S18: Faible | T18: =ROUND(VLOOKUP("OSUPVIEUXTOTREGECO_"&$A18,Output!$C:$AQ,12,FALSE)/VLOOKUP("OSUPREGECO_"&A18,Output!$C:$AQ,6,FALSE),3) -> 0.422 | U18: Faible | W18: UTA25 | X18: Faible | Y18: Faible | AA18: =Tableaux!$O$33 -> 07451 | AB18: UTA25 | AC18: Faible | AD18: Faible | AE18: CMO
A19: UTA26 | B19: 0.174 | C19: 0.29 | D19: 0.3 | E19: 0.2 | G19: =VLOOKUP(CONCATENATE("OSUPVIEUXALERTEREGECO_"&A19),Output!$C:$AQ,6,FALSE) -> 3299.54 | H19: =VLOOKUP(CONCATENATE("OSUPVIEUXACCEPTREGECO_"&A19),Output!$C:$AQ,6,FALSE) -> 5499.24 | I19: =VLOOKUP(CONCATENATE("OSUPJEUNEALERTEREGECO_"&A19),Output!$C:$AQ,6,FALSE) -> 5688.87 | J19: =VLOOKUP(CONCATENATE("OSUPJEUNEACCEPTREGECO_"&A19),Output!$C:$AQ,6,FALSE) -> 3792.58 | K19: =VLOOKUP(CONCATENATE("OSUPREGECO_"&A19),Output!$C:$AQ,6,FALSE) -> 18962.9 | M19: =ROUND(VLOOKUP("OSUPJEUNEREGECO_"&A19,Output!$C:$AQ,7,FALSE)/VLOOKUP("OSUPREGECO_"&A19,Output!$C:$AQ,6,FALSE),3) -> 0.112 | N19: Faible | O19: =ROUND(VLOOKUP("OSUPJEUNEREGECO_"&$A19,Output!$C:$AQ,12,FALSE)/VLOOKUP("OSUPREGECO_"&A19,Output!$C:$AQ,6,FALSE),3) -> 0.133 | P19: Faible | R19: =ROUND(VLOOKUP("OSUPVIEUXTOTREGECO_"&$A19,Output!$C:$AQ,7,FALSE)/VLOOKUP("OSUPREGECO_"&A19,Output!$C:$AQ,6,FALSE),3) -> 0.435 | S19: Faible | T19: =ROUND(VLOOKUP("OSUPVIEUXTOTREGECO_"&$A19,Output!$C:$AQ,12,FALSE)/VLOOKUP("OSUPREGECO_"&A19,Output!$C:$AQ,6,FALSE),3) -> 0.39 | U19: Faible | W19: UTA26 | X19: Faible | Y19: Faible | AA19: =Tableaux!$O$33 -> 07451 | AB19: UTA26 | AC19: Faible | AD19: Faible | AE19: CMO
A20: UTA27 | B20: 0.174 | C20: 0.29 | D20: 0.3 | E20: 0.2 | G20: =VLOOKUP(CONCATENATE("OSUPVIEUXALERTEREGECO_"&A20),Output!$C:$AQ,6,FALSE) -> 3504.92 | H20: =VLOOKUP(CONCATENATE("OSUPVIEUXACCEPTREGECO_"&A20),Output!$C:$AQ,6,FALSE) -> 5841.53 | I20: =VLOOKUP(CONCATENATE("OSUPJEUNEALERTEREGECO_"&A20),Output!$C:$AQ,6,FALSE) -> 6042.96 | J20: =VLOOKUP(CONCATENATE("OSUPJEUNEACCEPTREGECO_"&A20),Output!$C:$AQ,6,FALSE) -> 4028.64 | K20: =VLOOKUP(CONCATENATE("OSUPREGECO_"&A20),Output!$C:$AQ,6,FALSE) -> 20143.2 | M20: =ROUND(VLOOKUP("OSUPJEUNEREGECO_"&A20,Output!$C:$AQ,7,FALSE)/VLOOKUP("OSUPREGECO_"&A20,Output!$C:$AQ,6,FALSE),3) -> 0.126 | N20: Faible | O20: =ROUND(VLOOKUP("OSUPJEUNEREGECO_"&$A20,Output!$C:$AQ,12,FALSE)/VLOOKUP("OSUPREGECO_"&A20,Output!$C:$AQ,6,FALSE),3) -> 0.183 | P20: Faible | R20: =ROUND(VLOOKUP("OSUPVIEUXTOTREGECO_"&$A20,Output!$C:$AQ,7,FALSE)/VLOOKUP("OSUPREGECO_"&A20,Output!$C:$AQ,6,FALSE),3) -> 0.379 | S20: Faible | T20: =ROUND(VLOOKUP("OSUPVIEUXTOTREGECO_"&$A20,Output!$C:$AQ,12,FALSE)/VLOOKUP("OSUPREGECO_"&A20,Output!$C:$AQ,6,FALSE),3) -> 0.354 | U20: Faible | W20: UTA27 | X20: Faible | Y20: Faible | AA20: =Tableaux!$O$33 -> 07451 | AB20: UTA27 | AC20: Faible | AD20: Faible | AE20: CMO
A21: UTA28 | B21: =ROUND(G21/$K21,2) -> 0.17 | C21: =H21/$K21 -> 0.2900000412 | D21: =ROUND(I21/$K21,3) -> 0.3 | E21: 0.2 | G21: =VLOOKUP(CONCATENATE("OSUPVIEUXALERTEREGECO_"&A21),Output!$C:$AQ,6,FALSE) -> 4218.82 | H21: =VLOOKUP(CONCATENATE("OSUPVIEUXACCEPTREGECO_"&A21),Output!$C:$AQ,6,FALSE) -> 7031.37 | I21: =VLOOKUP(CONCATENATE("OSUPJEUNEALERTEREGECO_"&A21),Output!$C:$AQ,6,FALSE) -> 7273.83 | J21: =VLOOKUP(CONCATENATE("OSUPJEUNEACCEPTREGECO_"&A21),Output!$C:$AQ,6,FALSE) -> 4849.22 | K21: =VLOOKUP(CONCATENATE("OSUPREGECO_"&A21),Output!$C:$AQ,6,FALSE) -> 24246.1 | M21: =ROUND(VLOOKUP("OSUPJEUNEREGECO_"&A21,Output!$C:$AQ,7,FALSE)/VLOOKUP("OSUPREGECO_"&A21,Output!$C:$AQ,6,FALSE),3) -> 0.064 | N21: Faible | O21: =ROUND(VLOOKUP("OSUPJEUNEREGECO_"&$A21,Output!$C:$AQ,12,FALSE)/VLOOKUP("OSUPREGECO_"&A21,Output!$C:$AQ,6,FALSE),3) -> 0.119 | P21: Faible | R21: =ROUND(VLOOKUP("OSUPVIEUXTOTREGECO_"&$A21,Output!$C:$AQ,7,FALSE)/VLOOKUP("OSUPREGECO_"&A21,Output!$C:$AQ,6,FALSE),3) -> 0.273 | S21: Modéré | T21: =ROUND(VLOOKUP("OSUPVIEUXTOTREGECO_"&$A21,Output!$C:$AQ,12,FALSE)/VLOOKUP("OSUPREGECO_"&A21,Output!$C:$AQ,6,FALSE),3) -> 0.397 | U21: Faible | W21: UTA28 | X21: Modéré | Y21: Faible | AA21: =Tableaux!$O$33 -> 07451 | AB21: UTA28 | AC21: Modéré | AD21: Faible | AE21: CMO
A22: UTA7 | B22: 0.17 | C22: 0.2899998812 | D22: 0.3 | E22: 0.2 | G22: =VLOOKUP(CONCATENATE("OSUPVIEUXALERTEREGECO_"&A22),Output!$C:$AQ,6,FALSE) -> 4393.97 | H22: =VLOOKUP(CONCATENATE("OSUPVIEUXACCEPTREGECO_"&A22),Output!$C:$AQ,6,FALSE) -> 7323.28 | I22: =VLOOKUP(CONCATENATE("OSUPJEUNEALERTEREGECO_"&A22),Output!$C:$AQ,6,FALSE) -> 7575.81 | J22: =VLOOKUP(CONCATENATE("OSUPJEUNEACCEPTREGECO_"&A22),Output!$C:$AQ,6,FALSE) -> 5050.54 | K22: =VLOOKUP(CONCATENATE("OSUPREGECO_"&A22),Output!$C:$AQ,6,FALSE) -> 25252.7 | M22: =ROUND(VLOOKUP("OSUPJEUNEREGECO_"&A22,Output!$C:$AQ,7,FALSE)/VLOOKUP("OSUPREGECO_"&A22,Output!$C:$AQ,6,FALSE),3) -> 0.065 | N22: Faible | O22: =ROUND(VLOOKUP("OSUPJEUNEREGECO_"&$A22,Output!$C:$AQ,12,FALSE)/VLOOKUP("OSUPREGECO_"&A22,Output!$C:$AQ,6,FALSE),3) -> 0.08 | P22: Faible | R22: =ROUND(VLOOKUP("OSUPVIEUXTOTREGECO_"&$A22,Output!$C:$AQ,7,FALSE)/VLOOKUP("OSUPREGECO_"&A22,Output!$C:$AQ,6,FALSE),3) -> 0.257 | S22: Modéré | T22: =ROUND(VLOOKUP("OSUPVIEUXTOTREGECO_"&$A22,Output!$C:$AQ,12,FALSE)/VLOOKUP("OSUPREGECO_"&A22,Output!$C:$AQ,6,FALSE),3) -> 0.388 | U22: Faible | W22: UTA7 | X22: Modéré | Y22: Faible | AA22: =Tableaux!$O$33 -> 07451 | AB22: UTA7 | AC22: Modéré | AD22: Faible | AE22: CMO
A23: UTA8 | B23: 0.17 | C23: 0.2900000381 | D23: 0.3 | E23: 0.2 | G23: =VLOOKUP(CONCATENATE("OSUPVIEUXALERTEREGECO_"&A23),Output!$C:$AQ,6,FALSE) -> 4563.34 | H23: =VLOOKUP(CONCATENATE("OSUPVIEUXACCEPTREGECO_"&A23),Output!$C:$AQ,6,FALSE) -> 7605.57 | I23: =VLOOKUP(CONCATENATE("OSUPJEUNEALERTEREGECO_"&A23),Output!$C:$AQ,6,FALSE) -> 7867.83 | J23: =VLOOKUP(CONCATENATE("OSUPJEUNEACCEPTREGECO_"&A23),Output!$C:$AQ,6,FALSE) -> 5245.22 | K23: =VLOOKUP(CONCATENATE("OSUPREGECO_"&A23),Output!$C:$AQ,6,FALSE) -> 26226.1 | M23: =ROUND(VLOOKUP("OSUPJEUNEREGECO_"&A23,Output!$C:$AQ,7,FALSE)/VLOOKUP("OSUPREGECO_"&A23,Output!$C:$AQ,6,FALSE),3) -> 0.047 | N23: Faible | O23: =ROUND(VLOOKUP("OSUPJEUNEREGECO_"&$A23,Output!$C:$AQ,12,FALSE)/VLOOKUP("OSUPREGECO_"&A23,Output!$C:$AQ,6,FALSE),3) -> 0.128 | P23: Faible | R23: =ROUND(VLOOKUP("OSUPVIEUXTOTREGECO_"&$A23,Output!$C:$AQ,7,FALSE)/VLOOKUP("OSUPREGECO_"&A23,Output!$C:$AQ,6,FALSE),3) -> 0.295 | S23: Faible | T23: =ROUND(VLOOKUP("OSUPVIEUXTOTREGECO_"&$A23,Output!$C:$AQ,12,FALSE)/VLOOKUP("OSUPREGECO_"&A23,Output!$C:$AQ,6,FALSE),3) -> 0.467 | U23: Faible | W23: UTA8 | X23: Faible | Y23: Faible | AA23: =Tableaux!$O$33 -> 07451 | AB23: UTA8 | AC23: Faible | AD23: Faible | AE23: CMO
A24: UTA9 | B24: 0.17 | C24: 0.2900001318 | D24: 0.3 | E24: 0.2 | G24: =VLOOKUP(CONCATENATE("OSUPVIEUXALERTEREGECO_"&A24),Output!$C:$AQ,6,FALSE) -> 3959.94 | H24: =VLOOKUP(CONCATENATE("OSUPVIEUXACCEPTREGECO_"&A24),Output!$C:$AQ,6,FALSE) -> 6599.91 | I24: =VLOOKUP(CONCATENATE("OSUPJEUNEALERTEREGECO_"&A24),Output!$C:$AQ,6,FALSE) -> 6827.49 | J24: =VLOOKUP(CONCATENATE("OSUPJEUNEACCEPTREGECO_"&A24),Output!$C:$AQ,6,FALSE) -> 4551.66 | K24: =VLOOKUP(CONCATENATE("OSUPREGECO_"&A24),Output!$C:$AQ,6,FALSE) -> 22758.3 | M24: =ROUND(VLOOKUP("OSUPJEUNEREGECO_"&A24,Output!$C:$AQ,7,FALSE)/VLOOKUP("OSUPREGECO_"&A24,Output!$C:$AQ,6,FALSE),3) -> 0.055 | N24: Faible | O24: =ROUND(VLOOKUP("OSUPJEUNEREGECO_"&$A24,Output!$C:$AQ,12,FALSE)/VLOOKUP("OSUPREGECO_"&A24,Output!$C:$AQ,6,FALSE),3) -> 0.143 | P24: Faible | R24: =ROUND(VLOOKUP("OSUPVIEUXTOTREGECO_"&$A24,Output!$C:$AQ,7,FALSE)/VLOOKUP("OSUPREGECO_"&A24,Output!$C:$AQ,6,FALSE),3) -> 0.307 | S24: Faible | T24: =ROUND(VLOOKUP("OSUPVIEUXTOTREGECO_"&$A24,Output!$C:$AQ,12,FALSE)/VLOOKUP("OSUPREGECO_"&A24,Output!$C:$AQ,6,FALSE),3) -> 0.412 | U24: Faible | W24: UTA9 | X24: Faible | Y24: Faible | AA24: =Tableaux!$O$33 -> 07451 | AB24: UTA9 | AC24: Faible | AD24: Faible | AE24: CMO
A25: UTA1 | B25: 0.18 | C25: 0.3049998361 | D25: 0.3 | E25: 0.2 | G25: =VLOOKUP(CONCATENATE("OSUPVIEUXALERTEREGECO_"&A25),Output!$C:$AQ,6,FALSE) -> 4466.08 | H25: =VLOOKUP(CONCATENATE("OSUPVIEUXACCEPTREGECO_"&A25),Output!$C:$AQ,6,FALSE) -> 7443.46 | I25: =VLOOKUP(CONCATENATE("OSUPJEUNEALERTEREGECO_"&A25),Output!$C:$AQ,6,FALSE) -> 7321.44 | J25: =VLOOKUP(CONCATENATE("OSUPJEUNEACCEPTREGECO_"&A25),Output!$C:$AQ,6,FALSE) -> 4880.96 | K25: =VLOOKUP(CONCATENATE("OSUPREGECO_"&A25),Output!$C:$AQ,6,FALSE) -> 24404.8 | M25: =ROUND(VLOOKUP("OSUPJEUNEREGECO_"&A25,Output!$C:$AQ,7,FALSE)/VLOOKUP("OSUPREGECO_"&A25,Output!$C:$AQ,6,FALSE),3) -> 0.062 | N25: Faible | O25: =ROUND(VLOOKUP("OSUPJEUNEREGECO_"&$A25,Output!$C:$AQ,12,FALSE)/VLOOKUP("OSUPREGECO_"&A25,Output!$C:$AQ,6,FALSE),3) -> 0.133 | P25: Faible | R25: =ROUND(VLOOKUP("OSUPVIEUXTOTREGECO_"&$A25,Output!$C:$AQ,7,FALSE)/VLOOKUP("OSUPREGECO_"&A25,Output!$C:$AQ,6,FALSE),3) -> 0.298 | S25: Modéré | T25: =ROUND(VLOOKUP("OSUPVIEUXTOTREGECO_"&$A25,Output!$C:$AQ,12,FALSE)/VLOOKUP("OSUPREGECO_"&A25,Output!$C:$AQ,6,FALSE),3) -> 0.406 | U25: Faible | W25: UTA1 | X25: Modéré | Y25: Faible | AA25: =Tableaux!$O$33 -> 07451 | AB25: UTA1 | AC25: Modéré | AD25: Faible | AE25: CMO
A26: UTA11 | B26: 0.18 | C26: 0.3049998297 | D26: 0.3 | E26: 0.2 | G26: =VLOOKUP(CONCATENATE("OSUPVIEUXALERTEREGECO_"&A26),Output!$C:$AQ,6,FALSE) -> 4297.72 | H26: =VLOOKUP(CONCATENATE("OSUPVIEUXACCEPTREGECO_"&A26),Output!$C:$AQ,6,FALSE) -> 7162.86 | I26: =VLOOKUP(CONCATENATE("OSUPJEUNEALERTEREGECO_"&A26),Output!$C:$AQ,6,FALSE) -> 7045.44 | J26: =VLOOKUP(CONCATENATE("OSUPJEUNEACCEPTREGECO_"&A26),Output!$C:$AQ,6,FALSE) -> 4696.96 | K26: =VLOOKUP(CONCATENATE("OSUPREGECO_"&A26),Output!$C:$AQ,6,FALSE) -> 23484.8 | M26: =ROUND(VLOOKUP("OSUPJEUNEREGECO_"&A26,Output!$C:$AQ,7,FALSE)/VLOOKUP("OSUPREGECO_"&A26,Output!$C:$AQ,6,FALSE),3) -> 0.034 | N26: Faible | O26: =ROUND(VLOOKUP("OSUPJEUNEREGECO_"&$A26,Output!$C:$AQ,12,FALSE)/VLOOKUP("OSUPREGECO_"&A26,Output!$C:$AQ,6,FALSE),3) -> 0.116 | P26: Faible | R26: =ROUND(VLOOKUP("OSUPVIEUXTOTREGECO_"&$A26,Output!$C:$AQ,7,FALSE)/VLOOKUP("OSUPREGECO_"&A26,Output!$C:$AQ,6,FALSE),3) -> 0.244 | S26: Modéré | T26: =ROUND(VLOOKUP("OSUPVIEUXTOTREGECO_"&$A26,Output!$C:$AQ,12,FALSE)/VLOOKUP("OSUPREGECO_"&A26,Output!$C:$AQ,6,FALSE),3) -> 0.381 | U26: Faible | W26: UTA11 | X26: Modéré | Y26: Faible | AA26: =Tableaux!$O$33 -> 07451 | AB26: UTA11 | AC26: Modéré | AD26: Faible | AE26: CMO
A27: UTA13 | B27: 0.18 | C27: =ROUND(H27/$K27,3) -> 0.305 | D27: 0.3 | E27: 0.2 | G27: =VLOOKUP(CONCATENATE("OSUPVIEUXALERTEREGECO_"&A27),Output!$C:$AQ,6,FALSE) -> 4170.75 | H27: =VLOOKUP(CONCATENATE("OSUPVIEUXACCEPTREGECO_"&A27),Output!$C:$AQ,6,FALSE) -> 6951.26 | I27: =VLOOKUP(CONCATENATE("OSUPJEUNEALERTEREGECO_"&A27),Output!$C:$AQ,6,FALSE) -> 6837.3 | J27: =VLOOKUP(CONCATENATE("OSUPJEUNEACCEPTREGECO_"&A27),Output!$C:$AQ,6,FALSE) -> 4558.2 | K27: =VLOOKUP(CONCATENATE("OSUPREGECO_"&A27),Output!$C:$AQ,6,FALSE) -> 22791 | M27: =ROUND(VLOOKUP("OSUPJEUNEREGECO_"&A27,Output!$C:$AQ,7,FALSE)/VLOOKUP("OSUPREGECO_"&A27,Output!$C:$AQ,6,FALSE),3) -> 0.069 | N27: Faible | O27: =ROUND(VLOOKUP("OSUPJEUNEREGECO_"&$A27,Output!$C:$AQ,12,FALSE)/VLOOKUP("OSUPREGECO_"&A27,Output!$C:$AQ,6,FALSE),3) -> 0.141 | P27: Faible | R27: =ROUND(VLOOKUP("OSUPVIEUXTOTREGECO_"&$A27,Output!$C:$AQ,7,FALSE)/VLOOKUP("OSUPREGECO_"&A27,Output!$C:$AQ,6,FALSE),3) -> 0.222 | S27: Modéré | T27: =ROUND(VLOOKUP("OSUPVIEUXTOTREGECO_"&$A27,Output!$C:$AQ,12,FALSE)/VLOOKUP("OSUPREGECO_"&A27,Output!$C:$AQ,6,FALSE),3) -> 0.394 | U27: Faible | W27: UTA13 | X27: Modéré | Y27: Faible | AA27: =Tableaux!$O$33 -> 07451 | AB27: UTA13 | AC27: Modéré | AD27: Faible | AE27: CMO
A28: UTA15 | B28: 0.18 | C28: 0.305 | D28: 0.3 | E28: 0.2 | G28: =VLOOKUP(CONCATENATE("OSUPVIEUXALERTEREGECO_"&A28),Output!$C:$AQ,6,FALSE) -> 4660.39 | H28: =VLOOKUP(CONCATENATE("OSUPVIEUXACCEPTREGECO_"&A28),Output!$C:$AQ,6,FALSE) -> 7767.31 | I28: =VLOOKUP(CONCATENATE("OSUPJEUNEALERTEREGECO_"&A28),Output!$C:$AQ,6,FALSE) -> 7639.98 | J28: =VLOOKUP(CONCATENATE("OSUPJEUNEACCEPTREGECO_"&A28),Output!$C:$AQ,6,FALSE) -> 5093.32 | K28: =VLOOKUP(CONCATENATE("OSUPREGECO_"&A28),Output!$C:$AQ,6,FALSE) -> 25466.6 | M28: =ROUND(VLOOKUP("OSUPJEUNEREGECO_"&A28,Output!$C:$AQ,7,FALSE)/VLOOKUP("OSUPREGECO_"&A28,Output!$C:$AQ,6,FALSE),3) -> 0.03 | N28: Faible | O28: =ROUND(VLOOKUP("OSUPJEUNEREGECO_"&$A28,Output!$C:$AQ,12,FALSE)/VLOOKUP("OSUPREGECO_"&A28,Output!$C:$AQ,6,FALSE),3) -> 0.128 | P28: Faible | R28: =ROUND(VLOOKUP("OSUPVIEUXTOTREGECO_"&$A28,Output!$C:$AQ,7,FALSE)/VLOOKUP("OSUPREGECO_"&A28,Output!$C:$AQ,6,FALSE),3) -> 0.248 | S28: Modéré | T28: =ROUND(VLOOKUP("OSUPVIEUXTOTREGECO_"&$A28,Output!$C:$AQ,12,FALSE)/VLOOKUP("OSUPREGECO_"&A28,Output!$C:$AQ,6,FALSE),3) -> 0.4 | U28: Faible | W28: UTA15 | X28: Modéré | Y28: Faible | AA28: =Tableaux!$O$33 -> 07451 | AB28: UTA15 | AC28: Modéré | AD28: Faible | AE28: CMO
A29: UTA2 | B29: 0.18 | C29: 0.305 | D29: 0.3 | E29: 0.2 | G29: =VLOOKUP(CONCATENATE("OSUPVIEUXALERTEREGECO_"&A29),Output!$C:$AQ,6,FALSE) -> 4668.81 | H29: =VLOOKUP(CONCATENATE("OSUPVIEUXACCEPTREGECO_"&A29),Output!$C:$AQ,6,FALSE) -> 7781.34 | I29: =VLOOKUP(CONCATENATE("OSUPJEUNEALERTEREGECO_"&A29),Output!$C:$AQ,6,FALSE) -> 7653.78 | J29: =VLOOKUP(CONCATENATE("OSUPJEUNEACCEPTREGECO_"&A29),Output!$C:$AQ,6,FALSE) -> 5102.52 | K29: =VLOOKUP(CONCATENATE("OSUPREGECO_"&A29),Output!$C:$AQ,6,FALSE) -> 25512.6 | M29: =ROUND(VLOOKUP("OSUPJEUNEREGECO_"&A29,Output!$C:$AQ,7,FALSE)/VLOOKUP("OSUPREGECO_"&A29,Output!$C:$AQ,6,FALSE),3) -> 0.062 | N29: Faible | O29: =ROUND(VLOOKUP("OSUPJEUNEREGECO_"&$A29,Output!$C:$AQ,12,FALSE)/VLOOKUP("OSUPREGECO_"&A29,Output!$C:$AQ,6,FALSE),3) -> 0.2 | P29: Faible | R29: =ROUND(VLOOKUP("OSUPVIEUXTOTREGECO_"&$A29,Output!$C:$AQ,7,FALSE)/VLOOKUP("OSUPREGECO_"&A29,Output!$C:$AQ,6,FALSE),3) -> 0.336 | S29: Faible | T29: =ROUND(VLOOKUP("OSUPVIEUXTOTREGECO_"&$A29,Output!$C:$AQ,12,FALSE)/VLOOKUP("OSUPREGECO_"&A29,Output!$C:$AQ,6,FALSE),3) -> 0.425 | U29: Faible | W29: UTA2 | X29: Faible | Y29: Faible | AA29: =Tableaux!$O$33 -> 07451 | AB29: UTA2 | AC29: Faible | AD29: Faible | AE29: CMO
A30: UTA3 | B30: 0.18 | C30: 0.305 | D30: 0.3 | E30: 0.2 | G30: =VLOOKUP(CONCATENATE("OSUPVIEUXALERTEREGECO_"&A30),Output!$C:$AQ,6,FALSE) -> 4621.99 | H30: =VLOOKUP(CONCATENATE("OSUPVIEUXACCEPTREGECO_"&A30),Output!$C:$AQ,6,FALSE) -> 7703.32 | I30: =VLOOKUP(CONCATENATE("OSUPJEUNEALERTEREGECO_"&A30),Output!$C:$AQ,6,FALSE) -> 7577.04 | J30: =VLOOKUP(CONCATENATE("OSUPJEUNEACCEPTREGECO_"&A30),Output!$C:$AQ,6,FALSE) -> 5051.36 | K30: =VLOOKUP(CONCATENATE("OSUPREGECO_"&A30),Output!$C:$AQ,6,FALSE) -> 25256.8 | M30: =ROUND(VLOOKUP("OSUPJEUNEREGECO_"&A30,Output!$C:$AQ,7,FALSE)/VLOOKUP("OSUPREGECO_"&A30,Output!$C:$AQ,6,FALSE),3) -> 0.023 | N30: Faible | O30: =ROUND(VLOOKUP("OSUPJEUNEREGECO_"&$A30,Output!$C:$AQ,12,FALSE)/VLOOKUP("OSUPREGECO_"&A30,Output!$C:$AQ,6,FALSE),3) -> 0.175 | P30: Faible | R30: =ROUND(VLOOKUP("OSUPVIEUXTOTREGECO_"&$A30,Output!$C:$AQ,7,FALSE)/VLOOKUP("OSUPREGECO_"&A30,Output!$C:$AQ,6,FALSE),3) -> 0.237 | S30: Modéré | T30: =ROUND(VLOOKUP("OSUPVIEUXTOTREGECO_"&$A30,Output!$C:$AQ,12,FALSE)/VLOOKUP("OSUPREGECO_"&A30,Output!$C:$AQ,6,FALSE),3) -> 0.345 | U30: Faible | W30: UTA3 | X30: Modéré | Y30: Faible | AA30: =Tableaux!$O$33 -> 07451 | AB30: UTA3 | AC30: Modéré | AD30: Faible | AE30: CMO
A31: UTA31 | B31: 0.18 | C31: 0.305 | D31: 0.3 | E31: 0.2 | G31: =VLOOKUP(CONCATENATE("OSUPVIEUXALERTEREGECO_"&A31),Output!$C:$AQ,6,FALSE) -> 4176.41 | H31: =VLOOKUP(CONCATENATE("OSUPVIEUXACCEPTREGECO_"&A31),Output!$C:$AQ,6,FALSE) -> 6960.68 | I31: =VLOOKUP(CONCATENATE("OSUPJEUNEALERTEREGECO_"&A31),Output!$C:$AQ,6,FALSE) -> 6846.57 | J31: =VLOOKUP(CONCATENATE("OSUPJEUNEACCEPTREGECO_"&A31),Output!$C:$AQ,6,FALSE) -> 4564.38 | K31: =VLOOKUP(CONCATENATE("OSUPREGECO_"&A31),Output!$C:$AQ,6,FALSE) -> 22821.9 | M31: =ROUND(VLOOKUP("OSUPJEUNEREGECO_"&A31,Output!$C:$AQ,7,FALSE)/VLOOKUP("OSUPREGECO_"&A31,Output!$C:$AQ,6,FALSE),3) -> 0.074 | N31: Faible | O31: =ROUND(VLOOKUP("OSUPJEUNEREGECO_"&$A31,Output!$C:$AQ,12,FALSE)/VLOOKUP("OSUPREGECO_"&A31,Output!$C:$AQ,6,FALSE),3) -> 0.137 | P31: Faible | R31: =ROUND(VLOOKUP("OSUPVIEUXTOTREGECO_"&$A31,Output!$C:$AQ,7,FALSE)/VLOOKUP("OSUPREGECO_"&A31,Output!$C:$AQ,6,FALSE),3) -> 0.292 | S31: Modéré | T31: =ROUND(VLOOKUP("OSUPVIEUXTOTREGECO_"&$A31,Output!$C:$AQ,12,FALSE)/VLOOKUP("OSUPREGECO_"&A31,Output!$C:$AQ,6,FALSE),3) -> 0.369 | U31: Faible | W31: UTA31 | X31: Modéré | Y31: Faible | AA31: =Tableaux!$O$33 -> 07451 | AB31: UTA31 | AC31: Modéré | AD31: Faible | AE31: CMO
A32: UTA33 | B32: 0.18 | C32: 0.305 | D32: 0.3 | E32: 0.2 | G32: =VLOOKUP(CONCATENATE("OSUPVIEUXALERTEREGECO_"&A32),Output!$C:$AQ,6,FALSE) -> 4312.91 | H32: =VLOOKUP(CONCATENATE("OSUPVIEUXACCEPTREGECO_"&A32),Output!$C:$AQ,6,FALSE) -> 7188.18 | I32: =VLOOKUP(CONCATENATE("OSUPJEUNEALERTEREGECO_"&A32),Output!$C:$AQ,6,FALSE) -> 7070.34 | J32: =VLOOKUP(CONCATENATE("OSUPJEUNEACCEPTREGECO_"&A32),Output!$C:$AQ,6,FALSE) -> 4713.56 | K32: =VLOOKUP(CONCATENATE("OSUPREGECO_"&A32),Output!$C:$AQ,6,FALSE) -> 23567.8 | M32: =ROUND(VLOOKUP("OSUPJEUNEREGECO_"&A32,Output!$C:$AQ,7,FALSE)/VLOOKUP("OSUPREGECO_"&A32,Output!$C:$AQ,6,FALSE),3) -> 0.047 | N32: Faible | O32: =ROUND(VLOOKUP("OSUPJEUNEREGECO_"&$A32,Output!$C:$AQ,12,FALSE)/VLOOKUP("OSUPREGECO_"&A32,Output!$C:$AQ,6,FALSE),3) -> 0.123 | P32: Faible | R32: =ROUND(VLOOKUP("OSUPVIEUXTOTREGECO_"&$A32,Output!$C:$AQ,7,FALSE)/VLOOKUP("OSUPREGECO_"&A32,Output!$C:$AQ,6,FALSE),3) -> 0.204 | S32: Modéré | T32: =ROUND(VLOOKUP("OSUPVIEUXTOTREGECO_"&$A32,Output!$C:$AQ,12,FALSE)/VLOOKUP("OSUPREGECO_"&A32,Output!$C:$AQ,6,FALSE),3) -> 0.425 | U32: Faible | W32: UTA33 | X32: Modéré | Y32: Faible | AA32: =Tableaux!$O$33 -> 07451 | AB32: UTA33 | AC32: Modéré | AD32: Faible | AE32: CMO
A33: UTA34 | B33: 0.18 | C33: 0.305 | D33: 0.3 | E33: 0.2 | G33: =VLOOKUP(CONCATENATE("OSUPVIEUXALERTEREGECO_"&A33),Output!$C:$AQ,6,FALSE) -> 4406.27 | H33: =VLOOKUP(CONCATENATE("OSUPVIEUXACCEPTREGECO_"&A33),Output!$C:$AQ,6,FALSE) -> 7343.79 | I33: =VLOOKUP(CONCATENATE("OSUPJEUNEALERTEREGECO_"&A33),Output!$C:$AQ,6,FALSE) -> 7223.4 | J33: =VLOOKUP(CONCATENATE("OSUPJEUNEACCEPTREGECO_"&A33),Output!$C:$AQ,6,FALSE) -> 4815.6 | K33: =VLOOKUP(CONCATENATE("OSUPREGECO_"&A33),Output!$C:$AQ,6,FALSE) -> 24078 | M33: =ROUND(VLOOKUP("OSUPJEUNEREGECO_"&A33,Output!$C:$AQ,7,FALSE)/VLOOKUP("OSUPREGECO_"&A33,Output!$C:$AQ,6,FALSE),3) -> 0.04 | N33: Faible | O33: =ROUND(VLOOKUP("OSUPJEUNEREGECO_"&$A33,Output!$C:$AQ,12,FALSE)/VLOOKUP("OSUPREGECO_"&A33,Output!$C:$AQ,6,FALSE),3) -> 0.099 | P33: Faible | R33: =ROUND(VLOOKUP("OSUPVIEUXTOTREGECO_"&$A33,Output!$C:$AQ,7,FALSE)/VLOOKUP("OSUPREGECO_"&A33,Output!$C:$AQ,6,FALSE),3) -> 0.224 | S33: Modéré | T33: =ROUND(VLOOKUP("OSUPVIEUXTOTREGECO_"&$A33,Output!$C:$AQ,12,FALSE)/VLOOKUP("OSUPREGECO_"&A33,Output!$C:$AQ,6,FALSE),3) -> 0.57 | U33: Faible | W33: UTA34 | X33: Modéré | Y33: Faible | AA33: =Tableaux!$O$33 -> 07451 | AB33: =W33 -> UTA34 | AC33: Modéré | AD33: Faible | AE33: CMO
A34: UTA35 | B34: 0.18 | C34: 0.305 | D34: 0.3 | E34: 0.2 | G34: =VLOOKUP(CONCATENATE("OSUPVIEUXALERTEREGECO_"&A34),Output!$C:$AQ,6,FALSE) -> 3713.2 | H34: =VLOOKUP(CONCATENATE("OSUPVIEUXACCEPTREGECO_"&A34),Output!$C:$AQ,6,FALSE) -> 6188.66 | I34: =VLOOKUP(CONCATENATE("OSUPJEUNEALERTEREGECO_"&A34),Output!$C:$AQ,6,FALSE) -> 6087.21 | J34: =VLOOKUP(CONCATENATE("OSUPJEUNEACCEPTREGECO_"&A34),Output!$C:$AQ,6,FALSE) -> 4058.14 | K34: =VLOOKUP(CONCATENATE("OSUPREGECO_"&A34),Output!$C:$AQ,6,FALSE) -> 20290.7 | M34: =ROUND(VLOOKUP("OSUPJEUNEREGECO_"&A34,Output!$C:$AQ,7,FALSE)/VLOOKUP("OSUPREGECO_"&A34,Output!$C:$AQ,6,FALSE),3) -> 0.069 | N34: Faible | O34: =ROUND(VLOOKUP("OSUPJEUNEREGECO_"&$A34,Output!$C:$AQ,12,FALSE)/VLOOKUP("OSUPREGECO_"&A34,Output!$C:$AQ,6,FALSE),3) -> 0.116 | P34: Faible | R34: =ROUND(VLOOKUP("OSUPVIEUXTOTREGECO_"&$A34,Output!$C:$AQ,7,FALSE)/VLOOKUP("OSUPREGECO_"&A34,Output!$C:$AQ,6,FALSE),3) -> 0.3 | S34: Modéré | T34: =ROUND(VLOOKUP("OSUPVIEUXTOTREGECO_"&$A34,Output!$C:$AQ,12,FALSE)/VLOOKUP("OSUPREGECO_"&A34,Output!$C:$AQ,6,FALSE),3) -> 0.517 | U34: Faible | W34: UTA35 | X34: Modéré | Y34: Faible | AA34: =Tableaux!$O$33 -> 07451 | AB34: UTA35 | AC34: Modéré | AD34: Faible | AE34: CMO
A35: UTA4 | B35: 0.18 | C35: 0.305 | D35: 0.3 | E35: 0.2 | G35: =VLOOKUP(CONCATENATE("OSUPVIEUXALERTEREGECO_"&A35),Output!$C:$AQ,6,FALSE) -> 4133.42 | H35: =VLOOKUP(CONCATENATE("OSUPVIEUXACCEPTREGECO_"&A35),Output!$C:$AQ,6,FALSE) -> 6889.03 | I35: =VLOOKUP(CONCATENATE("OSUPJEUNEALERTEREGECO_"&A35),Output!$C:$AQ,6,FALSE) -> 6776.1 | J35: =VLOOKUP(CONCATENATE("OSUPJEUNEACCEPTREGECO_"&A35),Output!$C:$AQ,6,FALSE) -> 4517.4 | K35: =VLOOKUP(CONCATENATE("OSUPREGECO_"&A35),Output!$C:$AQ,6,FALSE) -> 22587 | M35: =ROUND(VLOOKUP("OSUPJEUNEREGECO_"&A35,Output!$C:$AQ,7,FALSE)/VLOOKUP("OSUPREGECO_"&A35,Output!$C:$AQ,6,FALSE),3) -> 0.02 | N35: Faible | O35: =ROUND(VLOOKUP("OSUPJEUNEREGECO_"&$A35,Output!$C:$AQ,12,FALSE)/VLOOKUP("OSUPREGECO_"&A35,Output!$C:$AQ,6,FALSE),3) -> 0.142 | P35: Faible | R35: =ROUND(VLOOKUP("OSUPVIEUXTOTREGECO_"&$A35,Output!$C:$AQ,7,FALSE)/VLOOKUP("OSUPREGECO_"&A35,Output!$C:$AQ,6,FALSE),3) -> 0.185 | S35: Modéré | T35: =ROUND(VLOOKUP("OSUPVIEUXTOTREGECO_"&$A35,Output!$C:$AQ,12,FALSE)/VLOOKUP("OSUPREGECO_"&A35,Output!$C:$AQ,6,FALSE),3) -> 0.413 | U35: Faible | W35: UTA4 | X35: Modéré | Y35: Faible | AA35: =Tableaux!$O$33 -> 07451 | AB35: UTA4 | AC35: Modéré | AD35: Faible | AE35: CMO
A36: UTA5 | B36: 0.18 | C36: 0.305 | D36: 0.3 | E36: 0.2 | G36: =VLOOKUP(CONCATENATE("OSUPVIEUXALERTEREGECO_"&A36),Output!$C:$AQ,6,FALSE) -> 4337.15 | H36: =VLOOKUP(CONCATENATE("OSUPVIEUXACCEPTREGECO_"&A36),Output!$C:$AQ,6,FALSE) -> 7228.59 | I36: =VLOOKUP(CONCATENATE("OSUPJEUNEALERTEREGECO_"&A36),Output!$C:$AQ,6,FALSE) -> 7110.09 | J36: =VLOOKUP(CONCATENATE("OSUPJEUNEACCEPTREGECO_"&A36),Output!$C:$AQ,6,FALSE) -> 4740.06 | K36: =VLOOKUP(CONCATENATE("OSUPREGECO_"&A36),Output!$C:$AQ,6,FALSE) -> 23700.3 | M36: =ROUND(VLOOKUP("OSUPJEUNEREGECO_"&A36,Output!$C:$AQ,7,FALSE)/VLOOKUP("OSUPREGECO_"&A36,Output!$C:$AQ,6,FALSE),3) -> 0.057 | N36: Faible | O36: =ROUND(VLOOKUP("OSUPJEUNEREGECO_"&$A36,Output!$C:$AQ,12,FALSE)/VLOOKUP("OSUPREGECO_"&A36,Output!$C:$AQ,6,FALSE),3) -> 0.104 | P36: Faible | R36: =ROUND(VLOOKUP("OSUPVIEUXTOTREGECO_"&$A36,Output!$C:$AQ,7,FALSE)/VLOOKUP("OSUPREGECO_"&A36,Output!$C:$AQ,6,FALSE),3) -> 0.216 | S36: Modéré | T36: =ROUND(VLOOKUP("OSUPVIEUXTOTREGECO_"&$A36,Output!$C:$AQ,12,FALSE)/VLOOKUP("OSUPREGECO_"&A36,Output!$C:$AQ,6,FALSE),3) -> 0.384 | U36: Faible | W36: UTA5 | X36: Modéré | Y36: Faible | AA36: =Tableaux!$O$33 -> 07451 | AB36: UTA5 | AC36: Modéré | AD36: Faible | AE36: CMO
A37: UTA6 | B37: 0.18 | C37: 0.305 | D37: 0.3 | E37: 0.2 | G37: =VLOOKUP(CONCATENATE("OSUPVIEUXALERTEREGECO_"&A37),Output!$C:$AQ,6,FALSE) -> 4498.05 | H37: =VLOOKUP(CONCATENATE("OSUPVIEUXACCEPTREGECO_"&A37),Output!$C:$AQ,6,FALSE) -> 7496.75 | I37: =VLOOKUP(CONCATENATE("OSUPJEUNEALERTEREGECO_"&A37),Output!$C:$AQ,6,FALSE) -> 7373.85 | J37: =VLOOKUP(CONCATENATE("OSUPJEUNEACCEPTREGECO_"&A37),Output!$C:$AQ,6,FALSE) -> 4915.9 | K37: =VLOOKUP(CONCATENATE("OSUPREGECO_"&A37),Output!$C:$AQ,6,FALSE) -> 24579.5 | M37: =ROUND(VLOOKUP("OSUPJEUNEREGECO_"&A37,Output!$C:$AQ,7,FALSE)/VLOOKUP("OSUPREGECO_"&A37,Output!$C:$AQ,6,FALSE),3) -> 0.035 | N37: Faible | O37: =ROUND(VLOOKUP("OSUPJEUNEREGECO_"&$A37,Output!$C:$AQ,12,FALSE)/VLOOKUP("OSUPREGECO_"&A37,Output!$C:$AQ,6,FALSE),3) -> 0.155 | P37: Faible | R37: =ROUND(VLOOKUP("OSUPVIEUXTOTREGECO_"&$A37,Output!$C:$AQ,7,FALSE)/VLOOKUP("OSUPREGECO_"&A37,Output!$C:$AQ,6,FALSE),3) -> 0.268 | S37: Modéré | T37: =ROUND(VLOOKUP("OSUPVIEUXTOTREGECO_"&$A37,Output!$C:$AQ,12,FALSE)/VLOOKUP("OSUPREGECO_"&A37,Output!$C:$AQ,6,FALSE),3) -> 0.404 | U37: Faible | W37: UTA6 | X37: Modéré | Y37: Faible | AA37: =Tableaux!$O$33 -> 07451 | AB37: UTA6 | AC37: Modéré | AD37: Faible | AE37: CMO
G38: =VLOOKUP(CONCATENATE("OSUPVIEUXALERTEREGECO_"&A38),Output!$C:$AQ,6,FALSE) ->  | H38: =VLOOKUP(CONCATENATE("OSUPVIEUXACCEPTREGECO_"&A38),Output!$C:$AQ,6,FALSE) ->  | I38: =VLOOKUP(CONCATENATE("OSUPJEUNEALERTEREGECO_"&A38),Output!$C:$AQ,6,FALSE) ->  | J38: =VLOOKUP(CONCATENATE("OSUPJEUNEACCEPTREGECO_"&A38),Output!$C:$AQ,6,FALSE) ->  | K38: =VLOOKUP(CONCATENATE("OSUPREGECO_"&A38),Output!$C:$AQ,6,FALSE) ->  | M38: =ROUND(VLOOKUP("OSUPJEUNEREGECO_"&A38,Output!$C:$AQ,7,FALSE)/VLOOKUP("OSUPREGECO_"&A38,Output!$C:$AQ,6,FALSE),3) ->  | O38: =ROUND(VLOOKUP("OSUPJEUNEREGECO_"&$A38,Output!$C:$AQ,12,FALSE)/VLOOKUP("OSUPREGECO_"&A38,Output!$C:$AQ,6,FALSE),3) ->  | R38: =ROUND(VLOOKUP("OSUPVIEUXTOTREGECO_"&$A38,Output!$C:$AQ,7,FALSE)/VLOOKUP("OSUPREGECO_"&A38,Output!$C:$AQ,6,FALSE),3) ->  | T38: =ROUND(VLOOKUP("OSUPVIEUXTOTREGECO_"&$A38,Output!$C:$AQ,12,FALSE)/VLOOKUP("OSUPREGECO_"&A38,Output!$C:$AQ,6,FALSE),3) ->  | W38: 0 | AA38: =Tableaux!$O$33 -> 07451 | AB38: 0
G39: =VLOOKUP(CONCATENATE("OSUPVIEUXALERTEREGECO_"&A39),Output!$C:$AQ,6,FALSE) ->  | H39: =VLOOKUP(CONCATENATE("OSUPVIEUXACCEPTREGECO_"&A39),Output!$C:$AQ,6,FALSE) ->  | I39: =VLOOKUP(CONCATENATE("OSUPJEUNEALERTEREGECO_"&A39),Output!$C:$AQ,6,FALSE) ->  | J39: =VLOOKUP(CONCATENATE("OSUPJEUNEACCEPTREGECO_"&A39),Output!$C:$AQ,6,FALSE) ->  | K39: =VLOOKUP(CONCATENATE("OSUPREGECO_"&A39),Output!$C:$AQ,6,FALSE) ->  | M39: =ROUND(VLOOKUP("OSUPJEUNEREGECO_"&A39,Output!$C:$AQ,7,FALSE)/VLOOKUP("OSUPREGECO_"&A39,Output!$C:$AQ,6,FALSE),3) ->  | O39: =ROUND(VLOOKUP("OSUPJEUNEREGECO_"&$A39,Output!$C:$AQ,12,FALSE)/VLOOKUP("OSUPREGECO_"&A39,Output!$C:$AQ,6,FALSE),3) ->  | R39: =ROUND(VLOOKUP("OSUPVIEUXTOTREGECO_"&$A39,Output!$C:$AQ,7,FALSE)/VLOOKUP("OSUPREGECO_"&A39,Output!$C:$AQ,6,FALSE),3) ->  | T39: =ROUND(VLOOKUP("OSUPVIEUXTOTREGECO_"&$A39,Output!$C:$AQ,12,FALSE)/VLOOKUP("OSUPREGECO_"&A39,Output!$C:$AQ,6,FALSE),3) ->  | W39: 0 | AA39: =Tableaux!$O$33 -> 07451 | AB39: 0
G40: =VLOOKUP(CONCATENATE("OSUPVIEUXALERTEREGECO_"&A40),Output!$C:$AQ,6,FALSE) ->  | H40: =VLOOKUP(CONCATENATE("OSUPVIEUXACCEPTREGECO_"&A40),Output!$C:$AQ,6,FALSE) ->  | I40: =VLOOKUP(CONCATENATE("OSUPJEUNEALERTEREGECO_"&A40),Output!$C:$AQ,6,FALSE) ->  | J40: =VLOOKUP(CONCATENATE("OSUPJEUNEACCEPTREGECO_"&A40),Output!$C:$AQ,6,FALSE) ->  | K40: =VLOOKUP(CONCATENATE("OSUPREGECO_"&A40),Output!$C:$AQ,6,FALSE) ->  | M40: =ROUND(VLOOKUP("OSUPJEUNEREGECO_"&A40,Output!$C:$AQ,7,FALSE)/VLOOKUP("OSUPREGECO_"&A40,Output!$C:$AQ,6,FALSE),3) ->  | O40: =ROUND(VLOOKUP("OSUPJEUNEREGECO_"&$A40,Output!$C:$AQ,12,FALSE)/VLOOKUP("OSUPREGECO_"&A40,Output!$C:$AQ,6,FALSE),3) ->  | R40: =ROUND(VLOOKUP("OSUPVIEUXTOTREGECO_"&$A40,Output!$C:$AQ,7,FALSE)/VLOOKUP("OSUPREGECO_"&A40,Output!$C:$AQ,6,FALSE),3) ->  | T40: =ROUND(VLOOKUP("OSUPVIEUXTOTREGECO_"&$A40,Output!$C:$AQ,12,FALSE)/VLOOKUP("OSUPREGECO_"&A40,Output!$C:$AQ,6,FALSE),3) ->  | W40: 0 | AA40: =Tableaux!$O$33 -> 07451 | AB40: 0
G41: =VLOOKUP(CONCATENATE("OSUPVIEUXALERTEREGECO_"&A41),Output!$C:$AQ,6,FALSE) ->  | H41: =VLOOKUP(CONCATENATE("OSUPVIEUXACCEPTREGECO_"&A41),Output!$C:$AQ,6,FALSE) ->  | I41: =VLOOKUP(CONCATENATE("OSUPJEUNEALERTEREGECO_"&A41),Output!$C:$AQ,6,FALSE) ->  | J41: =VLOOKUP(CONCATENATE("OSUPJEUNEACCEPTREGECO_"&A41),Output!$C:$AQ,6,FALSE) ->  | K41: =VLOOKUP(CONCATENATE("OSUPREGECO_"&A41),Output!$C:$AQ,6,FALSE) ->  | M41: =ROUND(VLOOKUP("OSUPJEUNEREGECO_"&A41,Output!$C:$AQ,7,FALSE)/VLOOKUP("OSUPREGECO_"&A41,Output!$C:$AQ,6,FALSE),3) ->  | O41: =ROUND(VLOOKUP("OSUPJEUNEREGECO_"&$A41,Output!$C:$AQ,12,FALSE)/VLOOKUP("OSUPREGECO_"&A41,Output!$C:$AQ,6,FALSE),3) ->  | R41: =ROUND(VLOOKUP("OSUPVIEUXTOTREGECO_"&$A41,Output!$C:$AQ,7,FALSE)/VLOOKUP("OSUPREGECO_"&A41,Output!$C:$AQ,6,FALSE),3) ->  | T41: =ROUND(VLOOKUP("OSUPVIEUXTOTREGECO_"&$A41,Output!$C:$AQ,12,FALSE)/VLOOKUP("OSUPREGECO_"&A41,Output!$C:$AQ,6,FALSE),3) ->  | W41: 0 | AA41: =Tableaux!$O$33 -> 07451 | AB41: 0
G42: =VLOOKUP(CONCATENATE("OSUPVIEUXALERTEREGECO_"&A42),Output!$C:$AQ,6,FALSE) ->  | H42: =VLOOKUP(CONCATENATE("OSUPVIEUXACCEPTREGECO_"&A42),Output!$C:$AQ,6,FALSE) ->  | I42: =VLOOKUP(CONCATENATE("OSUPJEUNEALERTEREGECO_"&A42),Output!$C:$AQ,6,FALSE) ->  | J42: =VLOOKUP(CONCATENATE("OSUPJEUNEACCEPTREGECO_"&A42),Output!$C:$AQ,6,FALSE) ->  | K42: =VLOOKUP(CONCATENATE("OSUPREGECO_"&A42),Output!$C:$AQ,6,FALSE) ->  | M42: =ROUND(VLOOKUP("OSUPJEUNEREGECO_"&A42,Output!$C:$AQ,7,FALSE)/VLOOKUP("OSUPREGECO_"&A42,Output!$C:$AQ,6,FALSE),3) ->  | O42: =ROUND(VLOOKUP("OSUPJEUNEREGECO_"&$A42,Output!$C:$AQ,12,FALSE)/VLOOKUP("OSUPREGECO_"&A42,Output!$C:$AQ,6,FALSE),3) ->  | R42: =ROUND(VLOOKUP("OSUPVIEUXTOTREGECO_"&$A42,Output!$C:$AQ,7,FALSE)/VLOOKUP("OSUPREGECO_"&A42,Output!$C:$AQ,6,FALSE),3) ->  | T42: =ROUND(VLOOKUP("OSUPVIEUXTOTREGECO_"&$A42,Output!$C:$AQ,12,FALSE)/VLOOKUP("OSUPREGECO_"&A42,Output!$C:$AQ,6,FALSE),3) ->  | W42: 0 | AA42: =Tableaux!$O$33 -> 07451 | AB42: 0

Sheet Output
C1: 1 | D1: 2 | E1: 3 | F1: 4 | G1: 5 | H1: 6 | I1: 7 | J1: 8 | K1: 9 | L1: 10 | M1: 11 | N1: 12 | O1: 13 | P1: 14 | Q1: 15 | R1: 16 | S1: 17 | T1: 18 | U1: 19 | V1: 20 | W1: 21 | X1: 22 | Y1: 23 | Z1: 24 | AA1: 25 | AB1: 26 | AC1: 27 | AD1: 28 | AE1: 29 | AF1: 30 | AG1: 31 | AH1: 32 | AI1: 33 | AJ1: 34 | AK1: 35 | AL1: 36 | AM1: 37 | AN1: 38 | AO1: 39 | AP1: 40 | AQ1: 41 | AR1: 42
A2: Record | B2: GROUP | C2: NAME | D2: DESCRIPTIO | E2: ATTRIBUTE | F2: MINIMUM | G2: MAXIMUM | H2: PERIOD0 | I2: PERIOD1 | J2: PERIOD2 | K2: PERIOD3 | L2: PERIOD4 | M2: PERIOD5 | N2: PERIOD6 | O2: PERIOD7 | P2: PERIOD8 | Q2: PERIOD9 | R2: PERIOD10 | S2: PERIOD11 | T2: PERIOD12 | U2: PERIOD13 | V2: PERIOD14 | W2: PERIOD15 | X2: PERIOD16 | Y2: PERIOD17 | Z2: PERIOD18 | AA2: PERIOD19 | AB2: PERIOD20 | AC2: PERIOD21 | AD2: PERIOD22 | AE2: PERIOD23 | AF2: PERIOD24 | AG2: PERIOD25 | AH2: PERIOD26 | AI2: PERIOD27 | AJ2: PERIOD28 | AK2: PERIOD29 | AL2: PERIOD30 | AM2: Moyenne P2 à P6 | AN2: Moyenne P7 à P11 | AO2: Moyenne P12 à P20 | AP2: Moyenne P21 à P30 | AQ2: Moyenne P2 à P30 | AR2: Moyenne P2 à P3
B3: <Non regroupÚ(s)> | C3: OSUPTOT | D3: Superficie Totale | F3: 1017283.2 | G3: 1017283.2 | H3: 1017283.2 | I3: 1017283.2 | J3: 1017283.2 | K3: 1017283.2 | L3: 1017283.2 | M3: 1017283.2 | N3: 1017283.2 | O3: 1017283.2 | P3: 1017283.2 | Q3: 1017283.2 | R3: 1017283.2 | S3: 1017283.2 | T3: 1017283.2 | U3: 1017283.2 | V3: 1017283.2 | W3: 1017283.2 | X3: 1017283.2 | Y3: 1017283.2 | Z3: 1017283.2 | AA3: 1017283.2 | AB3: 1017283.2 | AC3: 1017283.2 | AD3: 1017283.2 | AE3: 1017283.2 | AF3: 1017283.2 | AG3: 1017283.2 | AH3: 1017283.2 | AI3: 1017283.2 | AJ3: 1017283.2 | AK3: 1017283.2 | AL3: 1017283.2 | AM3: =AVERAGE(J3:N3) -> 1017283.2 | AN3: =AVERAGE(O3:S3) -> 1017283.2 | AO3: =AVERAGE(T3:AB3) -> 1017283.2 | AP3: =AVERAGE(AC3:AL3) -> 1017283.2 | AQ3: =AVERAGE(J3:AL3) -> 1017283.2 | AR3: =AVERAGE(J3:K3) -> 1017283.2
B4: <Non regroupÚ(s)> | C4: OSUPINC | D4: Superficie InclusActions par courbe | F4: 685574.68 | G4: 713445.8 | H4: 713445.8 | I4: 711544.54 | J4: 708884.62 | K4: 706384.08 | L4: 703917.9 | M4: 701852.06 | N4: 699925.38 | O4: 698214.79 | P4: 697263.91 | Q4: 696256.13 | R4: 694880.98 | S4: 693182.84 | T4: 691738.72 | U4: 690600.99 | V4: 689785.55 | W4: 689227.89 | X4: 688472.6 | Y4: 688003.22 | Z4: 687404.91 | AA4: 686801.84 | AB4: 686616.14 | AC4: 686285.96 | AD4: 685911.99 | AE4: 685624.68 | AF4: 685624.68 | AG4: 685617.82 | AH4: 685617.82 | AI4: 685617.82 | AJ4: 685614.68 | AK4: 685594.68 | AL4: 685574.68 | AM4: =AVERAGE(J4:N4) -> 704192.808 | AN4: =AVERAGE(O4:S4) -> 695959.73 | AO4: =AVERAGE(T4:AB4) -> 688739.0956 | AP4: =AVERAGE(AC4:AL4) -> 685708.481 | AQ4: =AVERAGE(J4:AL4) -> 691603.4262 | AR4: =AVERAGE(J4:K4) -> 707634.35
B5: <Non regroupÚ(s)> | C5: OSUPregECO | D5: Superficie Disponible aux RÚsultats ╔cologiques | F5: 775280.28 | G5: 803151.4 | H5: 803151.4 | I5: 801250.14 | J5: 798590.22 | K5: 796089.68 | L5: 793623.5 | M5: 791557.66 | N5: 789630.98 | O5: 787920.39 | P5: 786969.51 | Q5: 785961.73 | R5: 784586.58 | S5: 782888.44 | T5: 781444.32 | U5: 780306.59 | V5: 779491.15 | W5: 778933.49 | X5: 778178.2 | Y5: 777708.82 | Z5: 777110.51 | AA5: 776507.44 | AB5: 776321.74 | AC5: 775991.56 | AD5: 775617.59 | AE5: 775330.28 | AF5: 775330.28 | AG5: 775323.42 | AH5: 775323.42 | AI5: 775323.42 | AJ5: 775320.28 | AK5: 775300.28 | AL5: 775280.28 | AM5: 793898.408 | AN5: 785665.33 | AO5: 778444.6956 | AP5: 775414.081 | AQ5: 781309.0262 | AR5: 797339.95
B6: <Non regroupÚ(s)> | C6: OSUPEXIN | D6: Superficie ExcluActionsInclus | F6: 89705.6 | G6: 89705.6 | H6: 89705.6 | I6: 89705.6 | J6: 89705.6 | K6: 89705.6 | L6: 89705.6 | M6: 89705.6 | N6: 89705.6 | O6: 89705.6 | P6: 89705.6 | Q6: 89705.6 | R6: 89705.6 | S6: 89705.6 | T6: 89705.6 | U6: 89705.6 | V6: 89705.6 | W6: 89705.6 | X6: 89705.6 | Y6: 89705.6 | Z6: 89705.6 | AA6: 89705.6 | AB6: 89705.6 | AC6: 89705.6 | AD6: 89705.6 | AE6: 89705.6 | AF6: 89705.6 | AG6: 89705.6 | AH6: 89705.6 | AI6: 89705.6 | AJ6: 89705.6 | AK6: 89705.6 | AL6: 89705.6 | AM6: 89705.6 | AN6: 89705.6 | AO6: 89705.6 | AP6: 89705.6 | AQ6: 89705.6 | AR6: 89705.6
B7: <Non regroupÚ(s)> | C7: OSUPEXTI | D7: Superficie Improductive | F7: 48449.7 | G7: 48449.7 | H7: 48449.7 | I7: 48449.7 | J7: 48449.7 | K7: 48449.7 | L7: 48449.7 | M7: 48449.7 | N7: 48449.7 | O7: 48449.7 | P7: 48449.7 | Q7: 48449.7 | R7: 48449.7 | S7: 48449.7 | T7: 48449.7 | U7: 48449.7 | V7: 48449.7 | W7: 48449.7 | X7: 48449.7 | Y7: 48449.7 | Z7: 48449.7 | AA7: 48449.7 | AB7: 48449.7 | AC7: 48449.7 | AD7: 48449.7 | AE7: 48449.7 | AF7: 48449.7 | AG7: 48449.7 | AH7: 48449.7 | AI7: 48449.7 | AJ7: 48449.7 | AK7: 48449.7 | AL7: 48449.7 | AM7: 48449.7 | AN7: 48449.7 | AO7: 48449.7 | AP7: 48449.7 | AQ7: 48449.7 | AR7: 48449.7
B8: <Non regroupÚ(s)> | C8: OSUPLOCK | D8: Superficie Sous Verrous | F8: 14720.65 | G8: 201214.6 | H8: 192167.3 | I8: 201214.6 | J8: 143495.24 | K8: 128826.74 | L8: 94505.6 | M8: 49604.98 | N8: 55226.51 | O8: 57585.28 | P8: 54079.95 | Q8: 38045.13 | R8: 31018.93 | S8: 28210.18 | T8: 22767.29 | U8: 18496.26 | V8: 14720.65 | W8: 18022.5 | X8: 21515.65 | Y8: 24298.24 | Z8: 24969.08 | AA8: 29022.67 | AB8: 29574.35 | AC8: 32755.64 | AD8: 32271.4 | AE8: 32468.71 | AF8: 34870.8 | AG8: 34108.85 | AH8: 33705.49 | AI8: 34392 | AJ8: 33518.09 | AK8: 33869.86 | AL8: 32883.08 | AM8: 94331.814 | AN8: 41787.894 | AO8: 22598.52111 | AP8: 33484.392 | AQ8: 42028.59138 | AR8: 136160.99
B9: Economique | C9: oSupTcsdDEG_1_T100% | D9: oSupTcsdDEG_1_T100% | F9: 0 | G9: 6649.1 | H9: 0 | I9: 6649.1 | J9: 6450 | K9: 1945.51 | L9: 2373.48 | M9: 5474.27 | N9: 4778.59 | O9: 3282.17 | P9: 5003.49 | Q9: 6452.94 | R9: 5434.83 | S9: 4410 | T9: 5363.07 | U9: 5596.39 | V9: 5326.59 | W9: 3976.22 | X9: 3138.76 | Y9: 4288.17 | Z9: 4563.22 | AA9: 3464.38 | AB9: 3933.67 | AC9: 4533.73 | AD9: 4848.35 | AE9: 4810 | AF9: 4848.81 | AG9: 5298.36 | AH9: 4983.45 | AI9: 5026.89 | AJ9: 4946.03 | AK9: 4186.11 | AL9: 4384.43 | AM9: 4204.37 | AN9: 4916.686 | AO9: 4405.607778 | AP9: 4786.616 | AQ9: 4590.41069 | AR9: 4197.755
B10: Economique | C10: oSupTcsdDEG_2_T100% | D10: oSupTcsdDEG_2_T100% | F10: 0 | G10: 0 | H10: 0 | I10: 0 | J10: 0 | K10: 0 | L10: 0 | M10: 0 | N10: 0 | O10: 0 | P10: 0 | Q10: 0 | R10: 0 | S10: 0 | T10: 0 | U10: 0 | V10: 0 | W10: 0 | X10: 0 | Y10: 0 | Z10: 0 | AA10: 0 | AB10: 0 | AC10: 0 | AD10: 0 | AE10: 0 | AF10: 0 | AG10: 0 | AH10: 0 | AI10: 0 | AJ10: 0 | AK10: 0 | AL10: 0 | AM10: 0 | AN10: 0 | AO10: 0 | AP10: 0 | AQ10: 0 | AR10: 0
B11: Economique | C11: oSupDEG_1_T100% | D11: oSupDEG_1_T100% | F11: 0 | G11: 6649.1 | H11: 0 | I11: 6649.1 | J11: 6450 | K11: 1945.51 | L11: 2373.48 | M11: 5474.27 | N11: 4778.59 | O11: 3282.17 | P11: 5003.49 | Q11: 6452.94 | R11: 5434.83 | S11: 4410 | T11: 5363.07 | U11: 5596.39 | V11: 5326.59 | W11: 3976.22 | X11: 3138.76 | Y11: 4288.17 | Z11: 4563.22 | AA11: 3464.38 | AB11: 3933.67 | AC11: 4533.73 | AD11: 4848.35 | AE11: 4810 | AF11: 4848.81 | AG11: 5298.36 | AH11: 4983.45 | AI11: 5026.89 | AJ11: 4946.03 | AK11: 4186.11 | AL11: 4384.43 | AM11: 4204.37 | AN11: 4916.686 | AO11: 4405.607778 | AP11: 4786.616 | AQ11: 4590.41069 | AR11: 4197.755
B12: Economique | C12: oSupDEG_2_T100% | D12: oSupDEG_2_T100% | F12: 0 | G12: 0 | H12: 0 | I12: 0 | J12: 0 | K12: 0 | L12: 0 | M12: 0 | N12: 0 | O12: 0 | P12: 0 | Q12: 0 | R12: 0 | S12: 0 | T12: 0 | U12: 0 | V12: 0 | W12: 0 | X12: 0 | Y12: 0 | Z12: 0 | AA12: 0 | AB12: 0 | AC12: 0 | AD12: 0 | AE12: 0 | AF12: 0 | AG12: 0 | AH12: 0 | AI12: 0 | AJ12: 0 | AK12: 0 | AL12: 0 | AM12: 0 | AN12: 0 | AO12: 0 | AP12: 0 | AQ12: 0 | AR12: 0
B13: Economique | C13: oSupDEG_1 | D13: oSupDEG_1 | F13: 0 | G13: 6649.1 | H13: 0 | I13: 6649.1 | J13: 6450 | K13: 1945.51 | L13: 2373.48 | M13: 5474.27 | N13: 4778.59 | O13: 3282.17 | P13: 5003.49 | Q13: 6452.94 | R13: 5434.83 | S13: 4410 | T13: 5363.07 | U13: 5596.39 | V13: 5326.59 | W13: 3976.22 | X13: 3138.76 | Y13: 4288.17 | Z13: 4563.22 | AA13: 3464.38 | AB13: 3933.67 | AC13: 4533.73 | AD13: 4848.35 | AE13: 4810 | AF13: 4848.81 | AG13: 5298.36 | AH13: 4983.45 | AI13: 5026.89 | AJ13: 4946.03 | AK13: 4186.11 | AL13: 4384.43 | AM13: 4204.37 | AN13: 4916.686 | AO13: 4405.607778 | AP13: 4786.616 | AQ13: 4590.41069 | AR13: 4197.755
B14: Economique | C14: oSupDEG_2 | D14: oSupDEG_2 | F14: 0 | G14: 0 | H14: 0 | I14: 0 | J14: 0 | K14: 0 | L14: 0 | M14: 0 | N14: 0 | O14: 0 | P14: 0 | Q14: 0 | R14: 0 | S14: 0 | T14: 0 | U14: 0 | V14: 0 | W14: 0 | X14: 0 | Y14: 0 | Z14: 0 | AA14: 0 | AB14: 0 | AC14: 0 | AD14: 0 | AE14: 0 | AF14: 0 | AG14: 0 | AH14: 0 | AI14: 0 | AJ14: 0 | AK14: 0 | AL14: 0 | AM14: 0 | AN14: 0 | AO14: 0 | AP14: 0 | AQ14: 0 | AR14: 0
B15: Economique | C15: oSupTcsdSCA_LIGN_T100% | D15: oSupTcsdSCA_LIGN_T100% | F15: 0 | G15: 0 | H15: 0 | I15: 0 | J15: 0 | K15: 0 | L15: 0 | M15: 0 | N15: 0 | O15: 0 | P15: 0 | Q15: 0 | R15: 0 | S15: 0 | T15: 0 | U15: 0 | V15: 0 | W15: 0 | X15: 0 | Y15: 0 | Z15: 0 | AA15: 0 | AB15: 0 | AC15: 0 | AD15: 0 | AE15: 0 | AF15: 0 | AG15: 0 | AH15: 0 | AI15: 0 | AJ15: 0 | AK15: 0 | AL15: 0 | AM15: 0 | AN15: 0 | AO15: 0 | AP15: 0 | AQ15: 0 | AR15: 0
B16: Economique | C16: oSupTcsdSCA_PART_T100% | D16: oSupTcsdSCA_PART_T100% | F16: 0 | G16: 3217.4 | H16: 0 | I16: 1088.13 | J16: 950 | K16: 3217.4 | L16: 1529.88 | M16: 1991.34 | N16: 2384.83 | O16: 1871.85 | P16: 1635.69 | Q16: 1215.3 | R16: 1200 | S16: 950 | T16: 950 | U16: 950 | V16: 950 | W16: 950 | X16: 950 | Y16: 1153.9 | Z16: 950 | AA16: 950 | AB16: 1500 | AC16: 1250 | AD16: 950 | AE16: 950 | AF16: 950 | AG16: 950 | AH16: 1200 | AI16: 1200 | AJ16: 1200 | AK16: 1500 | AL16: 1475.41 | AM16: 2014.69 | AN16: 1374.568 | AO16: 1033.766667 | AP16: 1162.541 | AQ16: 1306.055172 | AR16: 2083.7
B17: Economique | C17: oSupTcsdSCA_REG_T100% | D17: oSupTcsdSCA_REG_T100% | F17: 0 | G17: 6975 | H17: 0 | I17: 6750 | J17: 6975 | K17: 5221.72 | L17: 5135 | M17: 6199.27 | N17: 6320.25 | O17: 6323.49 | P17: 6178.6 | Q17: 6975 | R17: 6159.83 | S17: 5135 | T17: 6088.07 | U17: 6321.39 | V17: 6051.59 | W17: 6023.71 | X17: 6975 | Y17: 6975 | Z17: 6975 | AA17: 6975 | AB17: 6975 | AC17: 6975 | AD17: 6746.3 | AE17: 6345.78 | AF17: 5573.81 | AG17: 6023.36 | AH17: 5708.45 | AI17: 5751.89 | AJ17: 5671.03 | AK17: 5528.83 | AL17: 5706.28 | AM17: 5970.248 | AN17: 6154.384 | AO17: 6595.528889 | AP17: 6003.073 | AQ17: 6207.367241 | AR17: 6098.36
B18: Economique | C18: oSupSCA_LIGN_T100% | D18: oSupSCA_LIGN_T100% | F18: 0 | G18: 0 | H18: 0 | I18: 0 | J18: 0 | K18: 0 | L18: 0 | M18: 0 | N18: 0 | O18: 0 | P18: 0 | Q18: 0 | R18: 0 | S18: 0 | T18: 0 | U18: 0 | V18: 0 | W18: 0 | X18: 0 | Y18: 0 | Z18: 0 | AA18: 0 | AB18: 0 | AC18: 0 | AD18: 0 | AE18: 0 | AF18: 0 | AG18: 0 | AH18: 0 | AI18: 0 | AJ18: 0 | AK18: 0 | AL18: 0 | AM18: 0 | AN18: 0 | AO18: 0 | AP18: 0 | AQ18: 0 | AR18: 0
B19: Economique | C19: oSupSCA_PART_T100% | D19: oSupSCA_PART_T100% | F19: 0 | G19: 3217.4 | H19: 0 | I19: 1088.13 | J19: 950 | K19: 3217.4 | L19: 1529.88 | M19: 1991.34 | N19: 2384.83 | O19: 1871.85 | P19: 1635.69 | Q19: 1215.3 | R19: 1200 | S19: 950 | T19: 950 | U19: 950 | V19: 950 | W19: 950 | X19: 950 | Y19: 1153.9 | Z19: 950 | AA19: 950 | AB19: 1500 | AC19: 1250 | AD19: 950 | AE19: 950 | AF19: 950 | AG19: 950 | AH19: 1200 | AI19: 1200 | AJ19: 1200 | AK19: 1500 | AL19: 1475.41 | AM19: 2014.69 | AN19: 1374.568 | AO19: 1033.766667 | AP19: 1162.541 | AQ19: 1306.055172 | AR19: 2083.7
B20: Economique | C20: oSupSCA_REG_T100% | D20: oSupSCA_REG_T100% | F20: 0 | G20: 6975 | H20: 0 | I20: 6750 | J20: 6975 | K20: 5221.72 | L20: 5135 | M20: 6199.27 | N20: 6320.25 | O20: 6323.49 | P20: 6178.6 | Q20: 6975 | R20: 6159.83 | S20: 5135 | T20: 6088.07 | U20: 6321.39 | V20: 6051.59 | W20: 6023.71 | X20: 6975 | Y20: 6975 | Z20: 6975 | AA20: 6975 | AB20: 6975 | AC20: 6975 | AD20: 6746.3 | AE20: 6345.78 | AF20: 5573.81 | AG20: 6023.36 | AH20: 5708.45 | AI20: 5751.89 | AJ20: 5671.03 | AK20: 5528.83 | AL20: 5706.28 | AM20: 5970.248 | AN20: 6154.384 | AO20: 6595.528889 | AP20: 6003.073 | AQ20: 6207.367241 | AR20: 6098.36
B21: Economique | C21: oSupSCA_LIGN | D21: oSupSCA_LIGN | F21: 0 | G21: 0 | H21: 0 | I21: 0 | J21: 0 | K21: 0 | L21: 0 | M21: 0 | N21: 0 | O21: 0 | P21: 0 | Q21: 0 | R21: 0 | S21: 0 | T21: 0 | U21: 0 | V21: 0 | W21: 0 | X21: 0 | Y21: 0 | Z21: 0 | AA21: 0 | AB21: 0 | AC21: 0 | AD21: 0 | AE21: 0 | AF21: 0 | AG21: 0 | AH21: 0 | AI21: 0 | AJ21: 0 | AK21: 0 | AL21: 0 | AM21: 0 | AN21: 0 | AO21: 0 | AP21: 0 | AQ21: 0 | AR21: 0
B22: Economique | C22: oSupSCA_PART | D22: oSupSCA_PART | F22: 0 | G22: 3217.4 | H22: 0 | I22: 1088.13 | J22: 950 | K22: 3217.4 | L22: 1529.88 | M22: 1991.34 | N22: 2384.83 | O22: 1871.85 | P22: 1635.69 | Q22: 1215.3 | R22: 1200 | S22: 950 | T22: 950 | U22: 950 | V22: 950 | W22: 950 | X22: 950 | Y22: 1153.9 | Z22: 950 | AA22: 950 | AB22: 1500 | AC22: 1250 | AD22: 950 | AE22: 950 | AF22: 950 | AG22: 950 | AH22: 1200 | AI22: 1200 | AJ22: 1200 | AK22: 1500 | AL22: 1475.41 | AM22: 2014.69 | AN22: 1374.568 | AO22: 1033.766667 | AP22: 1162.541 | AQ22: 1306.055172 | AR22: 2083.7
B23: Economique | C23: oSupSCA_REG | D23: oSupSCA_REG | F23: 0 | G23: 6975 | H23: 0 | I23: 6750 | J23: 6975 | K23: 5221.72 | L23: 5135 | M23: 6199.27 | N23: 6320.25 | O23: 6323.49 | P23: 6178.6 | Q23: 6975 | R23: 6159.83 | S23: 5135 | T23: 6088.07 | U23: 6321.39 | V23: 6051.59 | W23: 6023.71 | X23: 6975 | Y23: 6975 | Z23: 6975 | AA23: 6975 | AB23: 6975 | AC23: 6975 | AD23: 6746.3 | AE23: 6345.78 | AF23: 5573.81 | AG23: 6023.36 | AH23: 5708.45 | AI23: 5751.89 | AJ23: 5671.03 | AK23: 5528.83 | AL23: 5706.28 | AM23: 5970.248 | AN23: 6154.384 | AO23: 6595.528889 | AP23: 6003.073 | AQ23: 6207.367241 | AR23: 6098.36
B24: Economique | C24: oSupTcsdREG_T100% | D24: oSupTcsdREG_T100% | F24: 0 | G24: 0 | H24: 0 | I24: 0 | J24: 0 | K24: 0 | L24: 0 | M24: 0 | N24: 0 | O24: 0 | P24: 0 | Q24: 0 | R24: 0 | S24: 0 | T24: 0 | U24: 0 | V24: 0 | W24: 0 | X24: 0 | Y24: 0 | Z24: 0 | AA24: 0 | AB24: 0 | AC24: 0 | AD24: 0 | AE24: 0 | AF24: 0 | AG24: 0 | AH24: 0 | AI24: 0 | AJ24: 0 | AK24: 0 | AL24: 0 | AM24: 0 | AN24: 0 | AO24: 0 | AP24: 0 | AQ24: 0 | AR24: 0
B25: Economique | C25: oSupREG_T100% | D25: oSupREG_T100% | F25: 0 | G25: 0 | H25: 0 | I25: 0 | J25: 0 | K25: 0 | L25: 0 | M25: 0 | N25: 0 | O25: 0 | P25: 0 | Q25: 0 | R25: 0 | S25: 0 | T25: 0 | U25: 0 | V25: 0 | W25: 0 | X25: 0 | Y25: 0 | Z25: 0 | AA25: 0 | AB25: 0 | AC25: 0 | AD25: 0 | AE25: 0 | AF25: 0 | AG25: 0 | AH25: 0 | AI25: 0 | AJ25: 0 | AK25: 0 | AL25: 0 | AM25: 0 | AN25: 0 | AO25: 0 | AP25: 0 | AQ25: 0 | AR25: 0
B26: Economique | C26: oSupREG | D26: oSupREG | F26: 0 | G26: 0 | H26: 0 | I26: 0 | J26: 0 | K26: 0 | L26: 0 | M26: 0 | N26: 0 | O26: 0 | P26: 0 | Q26: 0 | R26: 0 | S26: 0 | T26: 0 | U26: 0 | V26: 0 | W26: 0 | X26: 0 | Y26: 0 | Z26: 0 | AA26: 0 | AB26: 0 | AC26: 0 | AD26: 0 | AE26: 0 | AF26: 0 | AG26: 0 | AH26: 0 | AI26: 0 | AJ26: 0 | AK26: 0 | AL26: 0 | AM26: 0 | AN26: 0 | AO26: 0 | AP26: 0 | AQ26: 0 | AR26: 0
B27: Economique | C27: oSupTcsdELAG_T100% | D27: oSupTcsdELAG_T100% | F27: 0 | G27: 0 | H27: 0 | I27: 0 | J27: 0 | K27: 0 | L27: 0 | M27: 0 | N27: 0 | O27: 0 | P27: 0 | Q27: 0 | R27: 0 | S27: 0 | T27: 0 | U27: 0 | V27: 0 | W27: 0 | X27: 0 | Y27: 0 | Z27: 0 | AA27: 0 | AB27: 0 | AC27: 0 | AD27: 0 | AE27: 0 | AF27: 0 | AG27: 0 | AH27: 0 | AI27: 0 | AJ27: 0 | AK27: 0 | AL27: 0 | AM27: 0 | AN27: 0 | AO27: 0 | AP27: 0 | AQ27: 0 | AR27: 0
B28: Economique | C28: oSupELAG_T100% | D28: oSupELAG_T100% | F28: 0 | G28: 0 | H28: 0 | I28: 0 | J28: 0 | K28: 0 | L28: 0 | M28: 0 | N28: 0 | O28: 0 | P28: 0 | Q28: 0 | R28: 0 | S28: 0 | T28: 0 | U28: 0 | V28: 0 | W28: 0 | X28: 0 | Y28: 0 | Z28: 0 | AA28: 0 | AB28: 0 | AC28: 0 | AD28: 0 | AE28: 0 | AF28: 0 | AG28: 0 | AH28: 0 | AI28: 0 | AJ28: 0 | AK28: 0 | AL28: 0 | AM28: 0 | AN28: 0 | AO28: 0 | AP28: 0 | AQ28: 0 | AR28: 0
B29: Economique | C29: oSupELAG | D29: oSupELAG | F29: 0 | G29: 0 | H29: 0 | I29: 0 | J29: 0 | K29: 0 | L29: 0 | M29: 0 | N29: 0 | O29: 0 | P29: 0 | Q29: 0 | R29: 0 | S29: 0 | T29: 0 | U29: 0 | V29: 0 | W29: 0 | X29: 0 | Y29: 0 | Z29: 0 | AA29: 0 | AB29: 0 | AC29: 0 | AD29: 0 | AE29: 0 | AF29: 0 | AG29: 0 | AH29: 0 | AI29: 0 | AJ29: 0 | AK29: 0 | AL29: 0 | AM29: 0 | AN29: 0 | AO29: 0 | AP29: 0 | AQ29: 0 | AR29: 0
B30: Economique | C30: oSupActCPICP_T100% | D30: oSupActCPICP_T100% | F30: 0 | G30: 2882.43 | H30: 0 | I30: 2882.43 | J30: 0 | K30: 250 | L30: 250 | M30: 250 | N30: 250 | O30: 250 | P30: 250 | Q30: 0 | R30: 0 | S30: 0 | T30: 0 | U30: 250 | V30: 250 | W30: 250 | X30: 250 | Y30: 250 | Z30: 250 | AA30: 250 | AB30: 250 | AC30: 250 | AD30: 250 | AE30: 250 | AF30: 250 | AG30: 250 | AH30: 250 | AI30: 250 | AJ30: 250 | AK30: 250 | AL30: 250 | AM30: 200 | AN30: 100 | AO30: 222.2222222 | AP30: 250 | AQ30: 206.8965517 | AR30: 125
B31: Economique | C31: oSupActCPIRL_FIN_T100% | D31: oSupActCPIRL_FIN_T100% | F31: 0 | G31: 6816.75 | H31: 0 | I31: 0 | J31: 0 | K31: 0 | L31: 0 | M31: 0 | N31: 0 | O31: 0 | P31: 4171.09 | Q31: 5185.65 | R31: 3918.99 | S31: 41.04 | T31: 3675.04 | U31: 3335.1 | V31: 4387.57 | W31: 1854.98 | X31: 2761.61 | Y31: 4248.75 | Z31: 3910.35 | AA31: 3337.77 | AB31: 6473.41 | AC31: 2990.14 | AD31: 4539.26 | AE31: 5284.24 | AF31: 5097.45 | AG31: 6816.75 | AH31: 4822.18 | AI31: 5032.44 | AJ31: 3380.55 | AK31: 2899.14 | AL31: 3182.04 | AM31: 0 | AN31: 2663.354 | AO31: 3776.064444 | AP31: 4404.419 | AQ31: 3149.846207 | AR31: 0
B32: Economique | C32: oSupActCPIRL_INI_T100% | D32: oSupActCPIRL_INI_T100% | F32: 0 | G32: 8448.09 | H32: 0 | I32: 6401.37 | J32: 8448.09 | K32: 8392.9 | L32: 7463.61 | M32: 7277.25 | N32: 6309.02 | O32: 5571.47 | P32: 1635.69 | Q32: 1215.3 | R32: 1200 | S32: 4501.05 | T32: 1168.32 | U32: 1807.6 | V32: 1359.4 | W32: 4598.73 | X32: 4381.22 | Y32: 3698.36 | Z32: 4921.47 | AA32: 5500.58 | AB32: 2696.65 | AC32: 5286.49 | AD32: 4784.09 | AE32: 4996.45 | AF32: 5986.3 | AG32: 3690.16 | AH32: 4184.04 | AI32: 2983.16 | AJ32: 3743.49 | AK32: 5027.3 | AL32: 3861.76 | AM32: 7578.174 | AN32: 2824.702 | AO32: 3348.036667 | AP32: 4454.324 | AQ32: 4368.618966 | AR32: 8420.495
B33: Economique | C33: oSupCPICP_T100% | D33: oSupCPICP_T100% | F33: 0 | G33: 2882.43 | H33: 0 | I33: 2882.43 | J33: 0 | K33: 250 | L33: 250 | M33: 250 | N33: 250 | O33: 250 | P33: 250 | Q33: 0 | R33: 0 | S33: 0 | T33: 0 | U33: 250 | V33: 250 | W33: 250 | X33: 250 | Y33: 250 | Z33: 250 | AA33: 250 | AB33: 250 | AC33: 250 | AD33: 250 | AE33: 250 | AF33: 250 | AG33: 250 | AH33: 250 | AI33: 250 | AJ33: 250 | AK33: 250 | AL33: 250 | AM33: 200 | AN33: 100 | AO33: 222.2222222 | AP33: 250 | AQ33: 206.8965517 | AR33: 125
B34: Economique | C34: oSupCPIRL_FIN_T100% | D34: oSupCPIRL_FIN_T100% | F34: 0 | G34: 6816.75 | H34: 0 | I34: 0 | J34: 0 | K34: 0 | L34: 0 | M34: 0 | N34: 0 | O34: 0 | P34: 4171.09 | Q34: 5185.65 | R34: 3918.99 | S34: 41.04 | T34: 3675.04 | U34: 3335.1 | V34: 4387.57 | W34: 1854.98 | X34: 2761.61 | Y34: 4248.75 | Z34: 3910.35 | AA34: 3337.77 | AB34: 6473.41 | AC34: 2990.14 | AD34: 4539.26 | AE34: 5284.24 | AF34: 5097.45 | AG34: 6816.75 | AH34: 4822.18 | AI34: 5032.44 | AJ34: 3380.55 | AK34: 2899.14 | AL34: 3182.04 | AM34: 0 | AN34: 2663.354 | AO34: 3776.064444 | AP34: 4404.419 | AQ34: 3149.846207 | AR34: 0
B35: Economique | C35: oSupCPIRL_INI_T100% | D35: oSupCPIRL_INI_T100% | F35: 0 | G35: 8448.09 | H35: 0 | I35: 6401.37 | J35: 8448.09 | K35: 8392.9 | L35: 7463.61 | M35: 7277.25 | N35: 6309.02 | O35: 5571.47 | P35: 1635.69 | Q35: 1215.3 | R35: 1200 | S35: 4501.05 | T35: 1168.32 | U35: 1807.6 | V35: 1359.4 | W35: 4598.73 | X35: 4381.22 | Y35: 3698.36 | Z35: 4921.47 | AA35: 5500.58 | AB35: 2696.65 | AC35: 5286.49 | AD35: 4784.09 | AE35: 4996.45 | AF35: 5986.3 | AG35: 3690.16 | AH35: 4184.04 | AI35: 2983.16 | AJ35: 3743.49 | AK35: 5027.3 | AL35: 3861.76 | AM35: 7578.174 | AN35: 2824.702 | AO35: 3348.036667 | AP35: 4454.324 | AQ35: 4368.618966 | AR35: 8420.495
B36: Economique | C36: oSupCPICP | D36: oSupCPICP | F36: 0 | G36: 2882.43 | H36: 0 | I36: 2882.43 | J36: 0 | K36: 250 | L36: 250 | M36: 250 | N36: 250 | O36: 250 | P36: 250 | Q36: 0 | R36: 0 | S36: 0 | T36: 0 | U36: 250 | V36: 250 | W36: 250 | X36: 250 | Y36: 250 | Z36: 250 | AA36: 250 | AB36: 250 | AC36: 250 | AD36: 250 | AE36: 250 | AF36: 250 | AG36: 250 | AH36: 250 | AI36: 250 | AJ36: 250 | AK36: 250 | AL36: 250 | AM36: 200 | AN36: 100 | AO36: 222.2222222 | AP36: 250 | AQ36: 206.8965517 | AR36: 125
B37: Economique | C37: oSupCPIRL_FIN | D37: oSupCPIRL_FIN | F37: 0 | G37: 6816.75 | H37: 0 | I37: 0 | J37: 0 | K37: 0 | L37: 0 | M37: 0 | N37: 0 | O37: 0 | P37: 4171.09 | Q37: 5185.65 | R37: 3918.99 | S37: 41.04 | T37: 3675.04 | U37: 3335.1 | V37: 4387.57 | W37: 1854.98 | X37: 2761.61 | Y37: 4248.75 | Z37: 3910.35 | AA37: 3337.77 | AB37: 6473.41 | AC37: 2990.14 | AD37: 4539.26 | AE37: 5284.24 | AF37: 5097.45 | AG37: 6816.75 | AH37: 4822.18 | AI37: 5032.44 | AJ37: 3380.55 | AK37: 2899.14 | AL37: 3182.04 | AM37: 0 | AN37: 2663.354 | AO37: 3776.064444 | AP37: 4404.419 | AQ37: 3149.846207 | AR37: 0
B38: Economique | C38: oSupCPIRL_INI | D38: oSupCPIRL_INI | F38: 0 | G38: 8448.09 | H38: 0 | I38: 6401.37 | J38: 8448.09 | K38: 8392.9 | L38: 7463.61 | M38: 7277.25 | N38: 6309.02 | O38: 5571.47 | P38: 1635.69 | Q38: 1215.3 | R38: 1200 | S38: 4501.05 | T38: 1168.32 | U38: 1807.6 | V38: 1359.4 | W38: 4598.73 | X38: 4381.22 | Y38: 3698.36 | Z38: 4921.47 | AA38: 5500.58 | AB38: 2696.65 | AC38: 5286.49 | AD38: 4784.09 | AE38: 4996.45 | AF38: 5986.3 | AG38: 3690.16 | AH38: 4184.04 | AI38: 2983.16 | AJ38: 3743.49 | AK38: 5027.3 | AL38: 3861.76 | AM38: 7578.174 | AN38: 2824.702 | AO38: 3348.036667 | AP38: 4454.324 | AQ38: 4368.618966 | AR38: 8420.495
B39: Economique | C39: oSupActCT_T100% | D39: oSupActCT_T100% | F39: 0 | G39: 40035.61 | H39: 0 | I39: 26512.42 | J39: 40035.61 | K39: 40009.99 | L39: 36709.21 | M39: 36782.44 | N39: 34678.99 | O39: 32952.89 | P39: 33506.66 | Q39: 32156.3 | R39: 32426.12 | S39: 36091.55 | T39: 34510.22 | U39: 35551.79 | V39: 35532.12 | W39: 33648.64 | X39: 37391.92 | Y39: 33767.04 | Z39: 35931.97 | AA39: 35223.88 | AB39: 33411.39 | AC39: 32299.96 | AD39: 32873.24 | AE39: 28777.12 | AF39: 30812.81 | AG39: 32049.73 | AH39: 30643.8 | AI39: 30767.36 | AJ39: 31991.99 | AK39: 32412.03 | AL39: 34591.34 | AM39: 37643.248 | AN39: 33426.704 | AO39: 34996.55222 | AP39: 31721.938 | AQ39: 34053.03828 | AR39: 40022.8
B40: Economique | C40: oSupCT_T100% | D40: oSupCT_T100% | F40: 0 | G40: 40035.61 | H40: 0 | I40: 26512.42 | J40: 40035.61 | K40: 40009.99 | L40: 36709.21 | M40: 36782.44 | N40: 34678.99 | O40: 32952.89 | P40: 33506.66 | Q40: 32156.3 | R40: 32426.12 | S40: 36091.55 | T40: 34510.22 | U40: 35551.79 | V40: 35532.12 | W40: 33648.64 | X40: 37391.92 | Y40: 33767.04 | Z40: 35931.97 | AA40: 35223.88 | AB40: 33411.39 | AC40: 32299.96 | AD40: 32873.24 | AE40: 28777.12 | AF40: 30812.81 | AG40: 32049.73 | AH40: 30643.8 | AI40: 30767.36 | AJ40: 31991.99 | AK40: 32412.03 | AL40: 34591.34 | AM40: 37643.248 | AN40: 33426.704 | AO40: 34996.55222 | AP40: 31721.938 | AQ40: 34053.03828 | AR40: 40022.8
B41: Economique | C41: oSupCT | D41: oSupCT | F41: 0 | G41: 40035.61 | H41: 0 | I41: 26512.42 | J41: 40035.61 | K41: 40009.99 | L41: 36709.21 | M41: 36782.44 | N41: 34678.99 | O41: 32952.89 | P41: 33506.66 | Q41: 32156.3 | R41: 32426.12 | S41: 36091.55 | T41: 34510.22 | U41: 35551.79 | V41: 35532.12 | W41: 33648.64 | X41: 37391.92 | Y41: 33767.04 | Z41: 35931.97 | AA41: 35223.88 | AB41: 33411.39 | AC41: 32299.96 | AD41: 32873.24 | AE41: 28777.12 | AF41: 30812.81 | AG41: 32049.73 | AH41: 30643.8 | AI41: 30767.36 | AJ41: 31991.99 | AK41: 32412.03 | AL41: 34591.34 | AM41: 37643.248 | AN41: 33426.704 | AO41: 34996.55222 | AP41: 31721.938 | AQ41: 34053.03828 | AR41: 40022.8
B42: Economique | C42: oSupActPL_PPF_T100% | D42: oSupActPL_PPF_T100% | F42: 0 | G42: 0 | H42: 0 | I42: 0 | J42: 0 | K42: 0 | L42: 0 | M42: 0 | N42: 0 | O42: 0 | P42: 0 | Q42: 0 | R42: 0 | S42: 0 | T42: 0 | U42: 0 | V42: 0 | W42: 0 | X42: 0 | Y42: 0 | Z42: 0 | AA42: 0 | AB42: 0 | AC42: 0 | AD42: 0 | AE42: 0 | AF42: 0 | AG42: 0 | AH42: 0 | AI42: 0 | AJ42: 0 | AK42: 0 | AL42: 0 | AM42: 0 | AN42: 0 | AO42: 0 | AP42: 0 | AQ42: 0 | AR42: 0
B43: Economique | C43: oSupActPL_SEPM_E_T100% | D43: oSupActPL_SEPM_E_T100% | F43: 0 | G43: 6975 | H43: 0 | I43: 3274.77 | J43: 6975 | K43: 3276.22 | L43: 2761.52 | M43: 5549.27 | N43: 5712.3 | O43: 5673.49 | P43: 4852.9 | Q43: 6325 | R43: 5612.37 | S43: 4885 | T43: 5911.65 | U43: 6321.39 | V43: 6051.59 | W43: 5773.71 | X43: 6674.78 | Y43: 6325 | Z43: 6325 | AA43: 5836.8 | AB43: 4442.03 | AC43: 6310.58 | AD43: 5846.3 | AE43: 5695.78 | AF43: 5032.77 | AG43: 5880.59 | AH43: 5708.45 | AI43: 5751.89 | AJ43: 5020.92 | AK43: 4352.06 | AL43: 4049.65 | AM43: 4854.862 | AN43: 5469.752 | AO43: 5962.438889 | AP43: 5364.899 | AQ43: 5480.483103 | AR43: 5125.61
B44: Economique | C44: oSupActPL_SEPM_I_T100% | D44: oSupActPL_SEPM_I_T100% | F44: 0 | G44: 3475.23 | H44: 0 | I44: 3475.23 | J44: 0 | K44: 1945.51 | L44: 2373.48 | M44: 650 | N44: 607.95 | O44: 650 | P44: 1325.71 | Q44: 650 | R44: 547.46 | S44: 250 | T44: 176.42 | U44: 0 | V44: 0 | W44: 250 | X44: 300.22 | Y44: 650 | Z44: 650 | AA44: 1138.2 | AB44: 2532.97 | AC44: 664.42 | AD44: 900 | AE44: 650 | AF44: 541.04 | AG44: 142.77 | AH44: 0 | AI44: 0 | AJ44: 650.11 | AK44: 1176.77 | AL44: 1656.63 | AM44: 1115.388 | AN44: 684.634 | AO44: 633.09 | AP44: 638.174 | AQ44: 726.8848276 | AR44: 972.755
B45: Economique | C45: oSupPL_PPF_T100% | D45: oSupPL_PPF_T100% | F45: 0 | G45: 0 | H45: 0 | I45: 0 | J45: 0 | K45: 0 | L45: 0 | M45: 0 | N45: 0 | O45: 0 | P45: 0 | Q45: 0 | R45: 0 | S45: 0 | T45: 0 | U45: 0 | V45: 0 | W45: 0 | X45: 0 | Y45: 0 | Z45: 0 | AA45: 0 | AB45: 0 | AC45: 0 | AD45: 0 | AE45: 0 | AF45: 0 | AG45: 0 | AH45: 0 | AI45: 0 | AJ45: 0 | AK45: 0 | AL45: 0 | AM45: 0 | AN45: 0 | AO45: 0 | AP45: 0 | AQ45: 0 | AR45: 0
B46: Economique | C46: oSupPL_SEPM_E_T100% | D46: oSupPL_SEPM_E_T100% | F46: 0 | G46: 6975 | H46: 0 | I46: 3274.77 | J46: 6975 | K46: 3276.22 | L46: 2761.52 | M46: 5549.27 | N46: 5712.3 | O46: 5673.49 | P46: 4852.9 | Q46: 6325 | R46: 5612.37 | S46: 4885 | T46: 5911.65 | U46: 6321.39 | V46: 6051.59 | W46: 5773.71 | X46: 6674.78 | Y46: 6325 | Z46: 6325 | AA46: 5836.8 | AB46: 4442.03 | AC46: 6310.58 | AD46: 5846.3 | AE46: 5695.78 | AF46: 5032.77 | AG46: 5880.59 | AH46: 5708.45 | AI46: 5751.89 | AJ46: 5020.92 | AK46: 4352.06 | AL46: 4049.65 | AM46: 4854.862 | AN46: 5469.752 | AO46: 5962.438889 | AP46: 5364.899 | AQ46: 5480.483103 | AR46: 5125.61
B47: Economique | C47: oSupPL_SEPM_I_T100% | D47: oSupPL_SEPM_I_T100% | F47: 0 | G47: 3475.23 | H47: 0 | I47: 3475.23 | J47: 0 | K47: 1945.51 | L47: 2373.48 | M47: 650 | N47: 607.95 | O47: 650 | P47: 1325.71 | Q47: 650 | R47: 547.46 | S47: 250 | T47: 176.42 | U47: 0 | V47: 0 | W47: 250 | X47: 300.22 | Y47: 650 | Z47: 650 | AA47: 1138.2 | AB47: 2532.97 | AC47: 664.42 | AD47: 900 | AE47: 650 | AF47: 541.04 | AG47: 142.77 | AH47: 0 | AI47: 0 | AJ47: 650.11 | AK47: 1176.77 | AL47: 1656.63 | AM47: 1115.388 | AN47: 684.634 | AO47: 633.09 | AP47: 638.174 | AQ47: 726.8848276 | AR47: 972.755
B48: Economique | C48: oSupPL_PPF | D48: oSupPL_PPF | F48: 0 | G48: 0 | H48: 0 | I48: 0 | J48: 0 | K48: 0 | L48: 0 | M48: 0 | N48: 0 | O48: 0 | P48: 0 | Q48: 0 | R48: 0 | S48: 0 | T48: 0 | U48: 0 | V48: 0 | W48: 0 | X48: 0 | Y48: 0 | Z48: 0 | AA48: 0 | AB48: 0 | AC48: 0 | AD48: 0 | AE48: 0 | AF48: 0 | AG48: 0 | AH48: 0 | AI48: 0 | AJ48: 0 | AK48: 0 | AL48: 0 | AM48: 0 | AN48: 0 | AO48: 0 | AP48: 0 | AQ48: 0 | AR48: 0
B49: Economique | C49: oSupPL_SEPM_E | D49: oSupPL_SEPM_E | F49: 0 | G49: 6975 | H49: 0 | I49: 3274.77 | J49: 6975 | K49: 3276.22 | L49: 2761.52 | M49: 5549.27 | N49: 5712.3 | O49: 5673.49 | P49: 4852.9 | Q49: 6325 | R49: 5612.37 | S49: 4885 | T49: 5911.65 | U49: 6321.39 | V49: 6051.59 | W49: 5773.71 | X49: 6674.78 | Y49: 6325 | Z49: 6325 | AA49: 5836.8 | AB49: 4442.03 | AC49: 6310.58 | AD49: 5846.3 | AE49: 5695.78 | AF49: 5032.77 | AG49: 5880.59 | AH49: 5708.45 | AI49: 5751.89 | AJ49: 5020.92 | AK49: 4352.06 | AL49: 4049.65 | AM49: 4854.862 | AN49: 5469.752 | AO49: 5962.438889 | AP49: 5364.899 | AQ49: 5480.483103 | AR49: 5125.61
B50: Economique | C50: oSupPL_SEPM_I | D50: oSupPL_SEPM_I | F50: 0 | G50: 3475.23 | H50: 0 | I50: 3475.23 | J50: 0 | K50: 1945.51 | L50: 2373.48 | M50: 650 | N50: 607.95 | O50: 650 | P50: 1325.71 | Q50: 650 | R50: 547.46 | S50: 250 | T50: 176.42 | U50: 0 | V50: 0 | W50: 250 | X50: 300.22 | Y50: 650 | Z50: 650 | AA50: 1138.2 | AB50: 2532.97 | AC50: 664.42 | AD50: 900 | AE50: 650 | AF50: 541.04 | AG50: 142.77 | AH50: 0 | AI50: 0 | AJ50: 650.11 | AK50: 1176.77 | AL50: 1656.63 | AM50: 1115.388 | AN50: 684.634 | AO50: 633.09 | AP50: 638.174 | AQ50: 726.8848276 | AR50: 972.755
B51: Economique | C51: oSupActEPC_2_T100% | D51: oSupActEPC_2_T100% | F51: 0 | G51: 1500 | H51: 0 | I51: 0 | J51: 0 | K51: 790.37 | L51: 1500 | M51: 1500 | N51: 1500 | O51: 1500 | P51: 1500 | Q51: 1500 | R51: 1500 | S51: 1500 | T51: 1500 | U51: 1500 | V51: 1500 | W51: 1500 | X51: 1500 | Y51: 1500 | Z51: 1500 | AA51: 1500 | AB51: 1500 | AC51: 1500 | AD51: 1500 | AE51: 1500 | AF51: 1500 | AG51: 1500 | AH51: 1500 | AI51: 1500 | AJ51: 1500 | AK51: 1500 | AL51: 1500 | AM51: 1058.074 | AN51: 1500 | AO51: 1500 | AP51: 1500 | AQ51: 1423.805862 | AR51: 395.185
B52: Economique | C52: oSupEPC_2_T100% | D52: oSupEPC_2_T100% | F52: 0 | G52: 1500 | H52: 0 | I52: 0 | J52: 0 | K52: 790.37 | L52: 1500 | M52: 1500 | N52: 1500 | O52: 1500 | P52: 1500 | Q52: 1500 | R52: 1500 | S52: 1500 | T52: 1500 | U52: 1500 | V52: 1500 | W52: 1500 | X52: 1500 | Y52: 1500 | Z52: 1500 | AA52: 1500 | AB52: 1500 | AC52: 1500 | AD52: 1500 | AE52: 1500 | AF52: 1500 | AG52: 1500 | AH52: 1500 | AI52: 1500 | AJ52: 1500 | AK52: 1500 | AL52: 1500 | AM52: 1058.074 | AN52: 1500 | AO52: 1500 | AP52: 1500 | AQ52: 1423.805862 | AR52: 395.185
B53: Economique | C53: oSupEPC_2 | D53: oSupEPC_2 | F53: 0 | G53: 1500 | H53: 0 | I53: 0 | J53: 0 | K53: 790.37 | L53: 1500 | M53: 1500 | N53: 1500 | O53: 1500 | P53: 1500 | Q53: 1500 | R53: 1500 | S53: 1500 | T53: 1500 | U53: 1500 | V53: 1500 | W53: 1500 | X53: 1500 | Y53: 1500 | Z53: 1500 | AA53: 1500 | AB53: 1500 | AC53: 1500 | AD53: 1500 | AE53: 1500 | AF53: 1500 | AG53: 1500 | AH53: 1500 | AI53: 1500 | AJ53: 1500 | AK53: 1500 | AL53: 1500 | AM53: 1058.074 | AN53: 1500 | AO53: 1500 | AP53: 1500 | AQ53: 1423.805862 | AR53: 395.185
B54: Economique | C54: oSupActEC_SEPM_T100% | D54: oSupActEC_SEPM_T100% | F54: 0 | G54: 650 | H54: 0 | I54: 506.2 | J54: 0 | K54: 650 | L54: 650 | M54: 0 | N54: 215.5 | O54: 275.6 | P54: 650 | Q54: 9.04 | R54: 650 | S54: 650 | T54: 650 | U54: 650 | V54: 650 | W54: 607.95 | X54: 650 | Y54: 650 | Z54: 650 | AA54: 541.04 | AB54: 250 | AC54: 176.42 | AD54: 0 | AE54: 0 | AF54: 250 | AG54: 250 | AH54: 650 | AI54: 650 | AJ54: 650 | AK54: 650 | AL54: 650 | AM54: 303.1 | AN54: 446.928 | AO54: 588.7766667 | AP54: 392.642 | AQ54: 447.4327586 | AR54: 325
B55: Economique | C55: oSupEC_SEPM_T100% | D55: oSupEC_SEPM_T100% | F55: 0 | G55: 650 | H55: 0 | I55: 506.2 | J55: 0 | K55: 650 | L55: 650 | M55: 0 | N55: 215.5 | O55: 275.6 | P55: 650 | Q55: 9.04 | R55: 650 | S55: 650 | T55: 650 | U55: 650 | V55: 650 | W55: 607.95 | X55: 650 | Y55: 650 | Z55: 650 | AA55: 541.04 | AB55: 250 | AC55: 176.42 | AD55: 0 | AE55: 0 | AF55: 250 | AG55: 250 | AH55: 650 | AI55: 650 | AJ55: 650 | AK55: 650 | AL55: 650 | AM55: 303.1 | AN55: 446.928 | AO55: 588.7766667 | AP55: 392.642 | AQ55: 447.4327586 | AR55: 325
B56: Economique | C56: oSupEC_SEPM | D56: oSupEC_SEPM | F56: 0 | G56: 650 | H56: 0 | I56: 506.2 | J56: 0 | K56: 650 | L56: 650 | M56: 0 | N56: 215.5 | O56: 275.6 | P56: 650 | Q56: 9.04 | R56: 650 | S56: 650 | T56: 650 | U56: 650 | V56: 650 | W56: 607.95 | X56: 650 | Y56: 650 | Z56: 650 | AA56: 541.04 | AB56: 250 | AC56: 176.42 | AD56: 0 | AE56: 0 | AF56: 250 | AG56: 250 | AH56: 650 | AI56: 650 | AJ56: 650 | AK56: 650 | AL56: 650 | AM56: 303.1 | AN56: 446.928 | AO56: 588.7766667 | AP56: 392.642 | AQ56: 447.4327586 | AR56: 325
B57: Economique | C57: oSupActNETT_T100% | D57: oSupActNETT_T100% | F57: 0 | G57: 2081.8 | H57: 0 | I57: 0 | J57: 2081.8 | K57: 0 | L57: 0 | M57: 371.35 | N57: 671.97 | O57: 0 | P57: 0 | Q57: 0 | R57: 0 | S57: 0 | T57: 0 | U57: 0 | V57: 0 | W57: 0 | X57: 0 | Y57: 0 | Z57: 0 | AA57: 0 | AB57: 180.9 | AC57: 0 | AD57: 0 | AE57: 0 | AF57: 0 | AG57: 0 | AH57: 0 | AI57: 0 | AJ57: 0 | AK57: 0 | AL57: 0 | AM57: 625.024 | AN57: 0 | AO57: 20.1 | AP57: 0 | AQ57: 114.0006897 | AR57: 1040.9
B58: Economique | C58: oSupTcsdNETT_T100% | D58: oSupTcsdNETT_T100% | F58: 0 | G58: 0 | H58: 0 | I58: 0 | J58: 0 | K58: 0 | L58: 0 | M58: 0 | N58: 0 | O58: 0 | P58: 0 | Q58: 0 | R58: 0 | S58: 0 | T58: 0 | U58: 0 | V58: 0 | W58: 0 | X58: 0 | Y58: 0 | Z58: 0 | AA58: 0 | AB58: 0 | AC58: 0 | AD58: 0 | AE58: 0 | AF58: 0 | AG58: 0 | AH58: 0 | AI58: 0 | AJ58: 0 | AK58: 0 | AL58: 0 | AM58: 0 | AN58: 0 | AO58: 0 | AP58: 0 | AQ58: 0 | AR58: 0
B59: Economique | C59: oSupTcadNETT_T100% | D59: oSupTcadNETT_T100% | F59: 0 | G59: 6649.1 | H59: 0 | I59: 0 | J59: 0 | K59: 6649.1 | L59: 6450 | M59: 1945.51 | N59: 2373.48 | O59: 5474.27 | P59: 4778.59 | Q59: 3282.17 | R59: 5003.49 | S59: 6452.94 | T59: 5434.83 | U59: 4410 | V59: 5363.07 | W59: 5596.39 | X59: 5326.59 | Y59: 3976.22 | Z59: 3138.76 | AA59: 4288.17 | AB59: 4563.22 | AC59: 3464.38 | AD59: 3933.67 | AE59: 4533.73 | AF59: 4848.35 | AG59: 4810 | AH59: 4848.81 | AI59: 5298.36 | AJ59: 4983.45 | AK59: 5026.89 | AL59: 4946.03 | AM59: 3483.618 | AN59: 4998.292 | AO59: 4677.472222 | AP59: 4669.367 | AQ59: 4524.154138 | AR59: 3324.55
B60: Economique | C60: oSupNETT_T100% | D60: oSupNETT_T100% | F60: 0 | G60: 6649.1 | H60: 0 | I60: 0 | J60: 2081.8 | K60: 6649.1 | L60: 6450 | M60: 2316.86 | N60: 3045.44 | O60: 5474.27 | P60: 4778.59 | Q60: 3282.17 | R60: 5003.49 | S60: 6452.94 | T60: 5434.83 | U60: 4410 | V60: 5363.07 | W60: 5596.39 | X60: 5326.59 | Y60: 3976.22 | Z60: 3138.76 | AA60: 4288.17 | AB60: 4744.13 | AC60: 3464.38 | AD60: 3933.67 | AE60: 4533.73 | AF60: 4848.35 | AG60: 4810 | AH60: 4848.81 | AI60: 5298.36 | AJ60: 4983.45 | AK60: 5026.89 | AL60: 4946.03 | AM60: 4108.64 | AN60: 4998.292 | AO60: 4697.573333 | AP60: 4669.367 | AQ60: 4638.154828 | AR60: 4365.45
B61: Economique | C61: oSupNETT | D61: oSupNETT | F61: 0 | G61: 6649.1 | H61: 0 | I61: 0 | J61: 2081.8 | K61: 6649.1 | L61: 6450 | M61: 2316.86 | N61: 3045.44 | O61: 5474.27 | P61: 4778.59 | Q61: 3282.17 | R61: 5003.49 | S61: 6452.94 | T61: 5434.83 | U61: 4410 | V61: 5363.07 | W61: 5596.39 | X61: 5326.59 | Y61: 3976.22 | Z61: 3138.76 | AA61: 4288.17 | AB61: 4744.13 | AC61: 3464.38 | AD61: 3933.67 | AE61: 4533.73 | AF61: 4848.35 | AG61: 4810 | AH61: 4848.81 | AI61: 5298.36 | AJ61: 4983.45 | AK61: 5026.89 | AL61: 4946.03 | AM61: 4108.64 | AN61: 4998.292 | AO61: 4697.573333 | AP61: 4669.367 | AQ61: 4638.154828 | AR61: 4365.45
B62: Economique | C62: oTauxDEG | D62: oTauxDEG | F62: 0 | G62: 9774177 | H62: 0 | I62: 9774177 | J62: 9481500 | K62: 2859894.39 | L62: 3489012.66 | M62: 8047176.25 | N62: 7024525.96 | O62: 4824786.63 | P62: 7355133.21 | Q62: 9485821.97 | R62: 7989203.06 | S62: 6482700 | T62: 7883720.2 | U62: 8226700.04 | V62: 7830093.31 | W62: 5845040.68 | X62: 4613973.34 | Y62: 6303610.67 | Z62: 6707940.22 | AA62: 5092634.52 | AB62: 5782501.5 | AC62: 6664578.65 | AD62: 7127068.15 | AE62: 7070700 | AF62: 7127752.59 | AG62: 7788592.73 | AH62: 7325668.22 | AI62: 7389535.24 | AJ62: 7270661.26 | AK62: 6153584.49 | AL62: 6445116.46 | AM62: 6180421.852 | AN62: 7227528.974 | AO62: 6476246.053 | AP62: 7036325.779 | AQ62: 6747904.359 | AR62: 6170697.195
B63: Economique | C63: oTauxSCA | D63: oTauxSCA | F63: 0 | G63: 3942312.61 | H63: 0 | I63: 3422587.72 | J63: 3442500 | K63: 3930519.61 | L63: 2982836.82 | M63: 3679014.78 | N63: 3942312.61 | O63: 3666664.21 | P63: 3478284.68 | Q63: 3585762 | R63: 3235129.45 | S63: 2669700 | T63: 3069991.49 | U63: 3167985.73 | V63: 3054669.52 | W63: 3042959.66 | X63: 3442500 | Y63: 3552606 | Z63: 3442500 | AA63: 3442500 | AB63: 3739500 | AC63: 3604500 | AD63: 3346444.76 | AE63: 3178225.71 | AF63: 2854000.74 | AG63: 3042812.21 | AH63: 3045548.06 | AI63: 3063795.78 | AJ63: 3029831.79 | AK63: 3132106.74 | AL63: 3193357.82 | AM63: 3595436.764 | AN63: 3327108.068 | AO63: 3328356.933 | AP63: 3149062.361 | AQ63: 3312364.144 | AR63: 3686509.805
B64: Economique | C64: oTauxREG | D64: oTauxREG | F64: 0 | G64: 0 | H64: 0 | I64: 0 | J64: 0 | K64: 0 | L64: 0 | M64: 0 | N64: 0 | O64: 0 | P64: 0 | Q64: 0 | R64: 0 | S64: 0 | T64: 0 | U64: 0 | V64: 0 | W64: 0 | X64: 0 | Y64: 0 | Z64: 0 | AA64: 0 | AB64: 0 | AC64: 0 | AD64: 0 | AE64: 0 | AF64: 0 | AG64: 0 | AH64: 0 | AI64: 0 | AJ64: 0 | AK64: 0 | AL64: 0 | AM64: 0 | AN64: 0 | AO64: 0 | AP64: 0 | AQ64: 0 | AR64: 0
B65: Economique | C65: oTauxELA | D65: oTauxELA | F65: 0 | G65: 0 | H65: 0 | I65: 0 | J65: 0 | K65: 0 | L65: 0 | M65: 0 | N65: 0 | O65: 0 | P65: 0 | Q65: 0 | R65: 0 | S65: 0 | T65: 0 | U65: 0 | V65: 0 | W65: 0 | X65: 0 | Y65: 0 | Z65: 0 | AA65: 0 | AB65: 0 | AC65: 0 | AD65: 0 | AE65: 0 | AF65: 0 | AG65: 0 | AH65: 0 | AI65: 0 | AJ65: 0 | AK65: 0 | AL65: 0 | AM65: 0 | AN65: 0 | AO65: 0 | AP65: 0 | AQ65: 0 | AR65: 0
B66: Economique | C66: oTauxCPI | D66: oTauxCPI | F66: 0 | G66: 5157373.27 | H66: 0 | I66: 5157373.27 | J66: 4561967.06 | K66: 4679663.77 | L66: 4177847.39 | M66: 4077212.65 | N66: 3554371.39 | O66: 3156093.25 | P66: 1030770.84 | Q66: 656262 | R66: 648000 | S66: 2430567.33 | T66: 630895.08 | U66: 1123604 | V66: 881574.1 | W66: 2630815.76 | X66: 2513360.49 | Y66: 2144613.71 | Z66: 2805095.44 | AA66: 3117811.95 | AB66: 1603689.52 | AC66: 3002203.66 | AD66: 2730908.9 | AE66: 2845582.99 | AF66: 3380103.74 | AG66: 2140186.72 | AH66: 2406882.68 | AI66: 1758405.44 | AJ66: 2168985.71 | AK66: 2862243.68 | AL66: 2232848.88 | AM66: 4210212.452 | AN66: 1584338.684 | AO66: 1939051.117 | AP66: 2552835.24 | AQ66: 2481123.039 | AR66: 4620815.415
B67: Economique | C67: oTauxCT | D67: oTauxCT | F67: 0 | G67: 0 | H67: 0 | I67: 0 | J67: 0 | K67: 0 | L67: 0 | M67: 0 | N67: 0 | O67: 0 | P67: 0 | Q67: 0 | R67: 0 | S67: 0 | T67: 0 | U67: 0 | V67: 0 | W67: 0 | X67: 0 | Y67: 0 | Z67: 0 | AA67: 0 | AB67: 0 | AC67: 0 | AD67: 0 | AE67: 0 | AF67: 0 | AG67: 0 | AH67: 0 | AI67: 0 | AJ67: 0 | AK67: 0 | AL67: 0 | AM67: 0 | AN67: 0 | AO67: 0 | AP67: 0 | AQ67: 0 | AR67: 0
B68: Economique | C68: oTauxPL | D68: oTauxPL | F68: 0 | G68: 9447320.75 | H68: 0 | I68: 9447320.75 | J68: 8649000 | K68: 7078043.36 | L68: 7103178.18 | M68: 7888594.25 | N68: 8025571.98 | O68: 8042631.68 | P68: 8072438.76 | Q68: 8850500 | R68: 7807905.69 | S68: 6444900 | T68: 7603903.79 | U68: 7838529.29 | V68: 7503976.67 | W68: 7546904.71 | X68: 8742067.97 | Y68: 8850500 | Z68: 8850500 | AA68: 9001842 | AB68: 9434222.09 | AC68: 8854970.53 | AD68: 8644408.34 | AE68: 8070261.62 | AF68: 7079247.92 | AG68: 7513227.4 | AH68: 7078475.24 | AI68: 7132349.46 | AJ68: 7233609.84 | AK68: 7220541.98 | AL68: 7589341.71 | AM68: =AVERAGE(J68:N68) -> 7748877.554 | AN68: =AVERAGE(O68:S68) -> 7843675.226 | AO68: =AVERAGE(T68:AB68) -> 8374716.28 | AP68: =AVERAGE(AC68:AL68) -> 7641643.404 | AQ68: =AVERAGE(J68:AL68) -> 7922470.499 | AR68: =AVERAGE(J68:K68) -> 7863521.68
B69: Economique | C69: oTauxEPC | D69: oTauxEPC | F69: 0 | G69: 2175000 | H69: 0 | I69: 0 | J69: 0 | K69: 1146041.74 | L69: 2175000 | M69: 2175000 | N69: 2175000 | O69: 2175000 | P69: 2175000 | Q69: 2175000 | R69: 2175000 | S69: 2175000 | T69: 2175000 | U69: 2175000 | V69: 2175000 | W69: 2175000 | X69: 2175000 | Y69: 2175000 | Z69: 2175000 | AA69: 2175000 | AB69: 2175000 | AC69: 2175000 | AD69: 2175000 | AE69: 2175000 | AF69: 2175000 | AG69: 2175000 | AH69: 2175000 | AI69: 2175000 | AJ69: 2175000 | AK69: 2175000 | AL69: 2175000 | AM69: 1534208.348 | AN69: 2175000 | AO69: 2175000 | AP69: 2175000 | AQ69: 2064518.681 | AR69: 573020.87
B70: Economique | C70: oTauxEC | D70: oTauxEC | F70: 0 | G70: 949000 | H70: 0 | I70: 739052 | J70: 0 | K70: 949000 | L70: 949000 | M70: 0 | N70: 314630 | O70: 402376 | P70: 949000 | Q70: 13201.83 | R70: 949000 | S70: 949000 | T70: 949000 | U70: 949000 | V70: 949000 | W70: 887608.43 | X70: 949000 | Y70: 949000 | Z70: 949000 | AA70: 789916.2 | AB70: 365000 | AC70: 257576.19 | AD70: 0 | AE70: 0 | AF70: 365000 | AG70: 365000 | AH70: 949000 | AI70: 949000 | AJ70: 949000 | AK70: 949000 | AL70: 949000 | AM70: 442526 | AN70: 652515.566 | AO70: 859613.8478 | AP70: 573257.619 | AQ70: 653252.0224 | AR70: 474500
B71: Economique | C71: oTauxNET | D71: oTauxNET | F71: 0 | G71: 7579974 | H71: 0 | I71: 0 | J71: 2373252 | K71: 7579974 | L71: 7353000 | M71: 2641221.13 | N71: 3471807.13 | O71: 6240667.29 | P71: 5447591.56 | Q71: 3741671.27 | R71: 5703980.86 | S71: 7356351.73 | T71: 6195708.5 | U71: 5027400 | V71: 6113905.46 | W71: 6379889.83 | X71: 6072317.26 | Y71: 4532888.69 | Z71: 3578183.4 | AA71: 4888514.39 | AB71: 5408305.95 | AC71: 3949390.03 | AD71: 4484388.92 | AE71: 5168448.75 | AF71: 5527114.07 | AG71: 5483400 | AH71: 5527644.86 | AI71: 6040133.14 | AJ71: 5681130.46 | AK71: 5730659.99 | AL71: 5638472 | AM71: 4683850.852 | AN71: 5698052.542 | AO71: 5355234.831 | AP71: 5323078.222 | AQ71: 5287496.989 | AR71: 4976613
B72: Economique | C72: oSupRealDEG | D72: oSupRealDEG | F72: 0 | G72: 6649.1 | H72: 0 | I72: 6649.1 | J72: 6450 | K72: 1945.51 | L72: 2373.48 | M72: 5474.27 | N72: 4778.59 | O72: 3282.17 | P72: 5003.49 | Q72: 6452.94 | R72: 5434.83 | S72: 4410 | T72: 5363.07 | U72: 5596.39 | V72: 5326.59 | W72: 3976.22 | X72: 3138.76 | Y72: 4288.17 | Z72: 4563.22 | AA72: 3464.38 | AB72: 3933.67 | AC72: 4533.73 | AD72: 4848.35 | AE72: 4810 | AF72: 4848.81 | AG72: 5298.36 | AH72: 4983.45 | AI72: 5026.89 | AJ72: 4946.03 | AK72: 4186.11 | AL72: 4384.43 | AM72: 4204.37 | AN72: 4916.686 | AO72: 4405.607778 | AP72: 4786.616 | AQ72: 4590.41069 | AR72: 4197.755
B73: Economique | C73: oSupRealSCA | D73: oSupRealSCA | F73: 0 | G73: 8705.08 | H73: 0 | I73: 7838.13 | J73: 7925 | K73: 8439.12 | L73: 6664.88 | M73: 8190.61 | N73: 8705.08 | O73: 8195.34 | P73: 7814.29 | Q73: 8190.3 | R73: 7359.83 | S73: 6085 | T73: 7038.07 | U73: 7271.39 | V73: 7001.59 | W73: 6973.71 | X73: 7925 | Y73: 8128.9 | Z73: 7925 | AA73: 7925 | AB73: 8475 | AC73: 8225 | AD73: 7696.3 | AE73: 7295.78 | AF73: 6523.81 | AG73: 6973.36 | AH73: 6908.45 | AI73: 6951.89 | AJ73: 6871.03 | AK73: 7028.83 | AL73: 7181.69 | AM73: 7984.938 | AN73: 7528.952 | AO73: 7629.295556 | AP73: 7165.614 | AQ73: 7513.422414 | AR73: 8182.06
B74: Economique | C74: oSupRealREG | D74: oSupRealREG | F74: 0 | G74: 0 | H74: 0 | I74: 0 | J74: 0 | K74: 0 | L74: 0 | M74: 0 | N74: 0 | O74: 0 | P74: 0 | Q74: 0 | R74: 0 | S74: 0 | T74: 0 | U74: 0 | V74: 0 | W74: 0 | X74: 0 | Y74: 0 | Z74: 0 | AA74: 0 | AB74: 0 | AC74: 0 | AD74: 0 | AE74: 0 | AF74: 0 | AG74: 0 | AH74: 0 | AI74: 0 | AJ74: 0 | AK74: 0 | AL74: 0 | AM74: 0 | AN74: 0 | AO74: 0 | AP74: 0 | AQ74: 0 | AR74: 0
B75: Economique | C75: oSupRealELA | D75: oSupRealELA | F75: 0 | G75: 0 | H75: 0 | I75: 0 | J75: 0 | K75: 0 | L75: 0 | M75: 0 | N75: 0 | O75: 0 | P75: 0 | Q75: 0 | R75: 0 | S75: 0 | T75: 0 | U75: 0 | V75: 0 | W75: 0 | X75: 0 | Y75: 0 | Z75: 0 | AA75: 0 | AB75: 0 | AC75: 0 | AD75: 0 | AE75: 0 | AF75: 0 | AG75: 0 | AH75: 0 | AI75: 0 | AJ75: 0 | AK75: 0 | AL75: 0 | AM75: 0 | AN75: 0 | AO75: 0 | AP75: 0 | AQ75: 0 | AR75: 0
B76: Economique | C76: oSupRealCPI | D76: oSupRealCPI | F76: 0 | G76: 11333.76 | H76: 0 | I76: 9283.8 | J76: 8448.09 | K76: 8642.9 | L76: 7713.61 | M76: 7527.25 | N76: 6559.02 | O76: 5821.47 | P76: 6056.78 | Q76: 6400.95 | R76: 5118.99 | S76: 4542.09 | T76: 4843.36 | U76: 5392.7 | V76: 5996.97 | W76: 6703.71 | X76: 7392.83 | Y76: 8197.11 | Z76: 9081.82 | AA76: 9088.34 | AB76: 9420.05 | AC76: 8526.63 | AD76: 9573.35 | AE76: 10530.69 | AF76: 11333.76 | AG76: 10756.91 | AH76: 9256.22 | AI76: 8265.6 | AJ76: 7374.04 | AK76: 8176.44 | AL76: 7293.8 | AM76: 7778.174 | AN76: 5588.056 | AO76: 7346.321111 | AP76: 9108.744 | AQ76: 7725.361379 | AR76: 8545.495
B77: Economique | C77: oSupRealCT | D77: oSupRealCT | F77: 0 | G77: 40035.61 | H77: 0 | I77: 26512.42 | J77: 40035.61 | K77: 40009.99 | L77: 36709.21 | M77: 36782.44 | N77: 34678.99 | O77: 32952.89 | P77: 33506.66 | Q77: 32156.3 | R77: 32426.12 | S77: 36091.55 | T77: 34510.22 | U77: 35551.79 | V77: 35532.12 | W77: 33648.64 | X77: 37391.92 | Y77: 33767.04 | Z77: 35931.97 | AA77: 35223.88 | AB77: 33411.39 | AC77: 32299.96 | AD77: 32873.24 | AE77: 28777.12 | AF77: 30812.81 | AG77: 32049.73 | AH77: 30643.8 | AI77: 30767.36 | AJ77: 31991.99 | AK77: 32412.03 | AL77: 34591.34 | AM77: 37643.248 | AN77: 33426.704 | AO77: 34996.55222 | AP77: 31721.938 | AQ77: 34053.03828 | AR77: 40022.8
B78: Economique | C78: oSupRealPL | D78: oSupRealPL | F78: 0 | G78: 6975 | H78: 0 | I78: 6750 | J78: 6975 | K78: 5221.72 | L78: 5135 | M78: 6199.27 | N78: 6320.25 | O78: 6323.49 | P78: 6178.6 | Q78: 6975 | R78: 6159.83 | S78: 5135 | T78: 6088.07 | U78: 6321.39 | V78: 6051.59 | W78: 6023.71 | X78: 6975 | Y78: 6975 | Z78: 6975 | AA78: 6975 | AB78: 6975 | AC78: 6975 | AD78: 6746.3 | AE78: 6345.78 | AF78: 5573.81 | AG78: 6023.36 | AH78: 5708.45 | AI78: 5751.89 | AJ78: 5671.03 | AK78: 5528.83 | AL78: 5706.28 | AM78: 5970.248 | AN78: 6154.384 | AO78: 6595.528889 | AP78: 6003.073 | AQ78: 6207.367241 | AR78: 6098.36
B79: Economique | C79: oSupRealEPC | D79: oSupRealEPC | F79: 0 | G79: 1500 | H79: 0 | I79: 0 | J79: 0 | K79: 790.37 | L79: 1500 | M79: 1500 | N79: 1500 | O79: 1500 | P79: 1500 | Q79: 1500 | R79: 1500 | S79: 1500 | T79: 1500 | U79: 1500 | V79: 1500 | W79: 1500 | X79: 1500 | Y79: 1500 | Z79: 1500 | AA79: 1500 | AB79: 1500 | AC79: 1500 | AD79: 1500 | AE79: 1500 | AF79: 1500 | AG79: 1500 | AH79: 1500 | AI79: 1500 | AJ79: 1500 | AK79: 1500 | AL79: 1500 | AM79: 1058.074 | AN79: 1500 | AO79: 1500 | AP79: 1500 | AQ79: 1423.805862 | AR79: 395.185
B80: Economique | C80: oSupRealEC | D80: oSupRealEC | F80: 0 | G80: 650 | H80: 0 | I80: 506.2 | J80: 0 | K80: 650 | L80: 650 | M80: 0 | N80: 215.5 | O80: 275.6 | P80: 650 | Q80: 9.04 | R80: 650 | S80: 650 | T80: 650 | U80: 650 | V80: 650 | W80: 607.95 | X80: 650 | Y80: 650 | Z80: 650 | AA80: 541.04 | AB80: 250 | AC80: 176.42 | AD80: 0 | AE80: 0 | AF80: 250 | AG80: 250 | AH80: 650 | AI80: 650 | AJ80: 650 | AK80: 650 | AL80: 650 | AM80: 303.1 | AN80: 446.928 | AO80: 588.7766667 | AP80: 392.642 | AQ80: 447.4327586 | AR80: 325
B81: Economique | C81: oSupRealNET | D81: oSupRealNET | F81: 0 | G81: 6649.1 | H81: 0 | I81: 0 | J81: 2081.8 | K81: 6649.1 | L81: 6450 | M81: 2316.86 | N81: 3045.44 | O81: 5474.27 | P81: 4778.59 | Q81: 3282.17 | R81: 5003.49 | S81: 6452.94 | T81: 5434.83 | U81: 4410 | V81: 5363.07 | W81: 5596.39 | X81: 5326.59 | Y81: 3976.22 | Z81: 3138.76 | AA81: 4288.17 | AB81: 4744.13 | AC81: 3464.38 | AD81: 3933.67 | AE81: 4533.73 | AF81: 4848.35 | AG81: 4810 | AH81: 4848.81 | AI81: 5298.36 | AJ81: 4983.45 | AK81: 5026.89 | AL81: 4946.03 | AM81: 4108.64 | AN81: 4998.292 | AO81: 4697.573333 | AP81: 4669.367 | AQ81: 4638.154828 | AR81: 4365.45
B82: Economique | C82: oCoutProdPlants | D82: oCoutProdPlants | F82: 0 | G82: 0 | H82: 0 | I82: 0 | J82: 0 | K82: 0 | L82: 0 | M82: 0 | N82: 0 | O82: 0 | P82: 0 | Q82: 0 | R82: 0 | S82: 0 | T82: 0 | U82: 0 | V82: 0 | W82: 0 | X82: 0 | Y82: 0 | Z82: 0 | AA82: 0 | AB82: 0 | AC82: 0 | AD82: 0 | AE82: 0 | AF82: 0 | AG82: 0 | AH82: 0 | AI82: 0 | AJ82: 0 | AK82: 0 | AL82: 0 | AM82: 0 | AN82: 0 | AO82: 0 | AP82: 0 | AQ82: 0 | AR82: 0
B83: Economique | C83: oCoutTransPlants | D83: oCoutTransPlants | F83: 0 | G83: 0 | H83: 0 | I83: 0 | J83: 0 | K83: 0 | L83: 0 | M83: 0 | N83: 0 | O83: 0 | P83: 0 | Q83: 0 | R83: 0 | S83: 0 | T83: 0 | U83: 0 | V83: 0 | W83: 0 | X83: 0 | Y83: 0 | Z83: 0 | AA83: 0 | AB83: 0 | AC83: 0 | AD83: 0 | AE83: 0 | AF83: 0 | AG83: 0 | AH83: 0 | AI83: 0 | AJ83: 0 | AK83: 0 | AL83: 0 | AM83: 0 | AN83: 0 | AO83: 0 | AP83: 0 | AQ83: 0 | AR83: 0
B84: Economique | C84: o$InvestisTS | D84: o$InvestisTS | F84: 0 | G84: 28540510.74 | H84: 0 | I84: 28540510.74 | J84: 28508219.06 | K84: 28223136.87 | L84: 28229875.05 | M84: 28508219.06 | N84: 28508219.06 | O84: 28508219.06 | P84: 28508219.06 | Q84: 28508219.06 | R84: 28508219.06 | S84: 28508219.06 | T84: 28508219.06 | U84: 28508219.06 | V84: 28508219.06 | W84: 28508219.06 | X84: 28508219.06 | Y84: 28508219.06 | Z84: 28508219.06 | AA84: 28508219.06 | AB84: 28508219.06 | AC84: 28508219.06 | AD84: 28508219.06 | AE84: 28508219.06 | AF84: 28508219.06 | AG84: 28508219.06 | AH84: 28508219.06 | AI84: 28508219.06 | AJ84: 28508219.06 | AK84: 28223136.87 | AL84: 28223136.87 | AM84: 28395533.82 | AN84: 28508219.06 | AO84: 28508219.06 | AP84: 28451202.62 | AQ84: 28469129.73 | AR84: 28365677.96
B85: Economique | C85: oTauxREGAPAR | D85: oTauxREGAPAR | F85: 0 | G85: 5896425.27 | H85: 0 | I85: 5896425.27 | J85: 4561967.06 | K85: 5628663.77 | L85: 5126847.39 | M85: 4077212.65 | N85: 3869001.39 | O85: 3558469.25 | P85: 1979770.84 | Q85: 669463.83 | R85: 1597000 | S85: 3379567.33 | T85: 1579895.08 | U85: 2072604 | V85: 1830574.1 | W85: 3518424.19 | X85: 3462360.49 | Y85: 3093613.71 | Z85: 3754095.44 | AA85: 3907728.15 | AB85: 1968689.52 | AC85: 3259779.86 | AD85: 2730908.9 | AE85: 2845582.99 | AF85: 3745103.74 | AG85: 2505186.72 | AH85: 3355882.68 | AI85: 2707405.44 | AJ85: 3117985.71 | AK85: 3811243.68 | AL85: 3181848.88 | AM85: 4652738.452 | AN85: 2236854.25 | AO85: 2798664.964 | AP85: 3126092.86 | AQ85: 3134375.062 | AR85: 5095315.415
B86: Economique | C86: oTauxREGAEDU | D86: oTauxREGAEDU | F86: 0 | G86: 16254428.7 | H86: 0 | I86: 9774177 | J86: 11854752 | K86: 11585910.13 | L86: 13017012.66 | M86: 12863397.38 | N86: 12671333.09 | O86: 13240453.93 | P86: 14977724.77 | Q86: 15402493.23 | R86: 15868183.92 | S86: 16014051.73 | T86: 16254428.7 | U86: 15429100.04 | V86: 16118998.77 | W86: 14399930.51 | X86: 12861290.6 | Y86: 13011499.35 | Z86: 12461123.63 | AA86: 12156148.91 | AB86: 13365807.45 | AC86: 12788968.68 | AD86: 13786457.07 | AE86: 14414148.75 | AF86: 14829866.66 | AG86: 15446992.73 | AH86: 15028313.09 | AI86: 15604668.38 | AJ86: 15126791.72 | AK86: 14059244.47 | AL86: 14258588.46 | AM86: 12398481.05 | AN86: 15100581.52 | AO86: 14006480.88 | AP86: 14534404 | AQ86: 14099920.03 | AR86: 11720331.07
